Workbook

Sheet Introduction
C4: Joint Monitoring Programme for Water Supply, Sanitation and Hygiene
C6: Estimates on household water, sanitation and hygiene by wealth quintile and sub-national region in
C7: =+Water!B5 -> Central African Republic
C9: Updated May 2021
C11: Follow the links below to find the following information:
C13: JMP Estimates
C14: WASH status and trends by wealth quintile (customized quintiles made without water and sanitation assets)
C15: Water
C16: Sanitation
C17: Hygiene
C19: Data inputs
C20: customized wealth quintiles and subnational data:
C21: =IF(INDIRECT(CONCATENATE("Water","!B105"))=0,"",INDIRECT(CONCATENATE("Water","!B105"))) -> MICS00
C22: =IF(INDIRECT(CONCATENATE("Water","!B106"))=0,"",INDIRECT(CONCATENATE("Water","!B106"))) -> MICS06
C23: =IF(INDIRECT(CONCATENATE("Water","!B107"))=0,"",INDIRECT(CONCATENATE("Water","!B107"))) -> MICS10
C24: =IF(INDIRECT(CONCATENATE("Water","!B108"))=0,"",INDIRECT(CONCATENATE("Water","!B108"))) -> MICS19
C25: =IF(INDIRECT(CONCATENATE("Water","!B109"))=0,"",INDIRECT(CONCATENATE("Water","!B109"))) -> 
C26: =IF(INDIRECT(CONCATENATE("Water","!B110"))=0,"",INDIRECT(CONCATENATE("Water","!B110"))) -> 
C27: =IF(INDIRECT(CONCATENATE("Water","!B111"))=0,"",INDIRECT(CONCATENATE("Water","!B111"))) -> 
C28: =IF(INDIRECT(CONCATENATE("Water","!B112"))=0,"",INDIRECT(CONCATENATE("Water","!B112"))) -> 
C29: =IF(INDIRECT(CONCATENATE("Water","!B113"))=0,"",INDIRECT(CONCATENATE("Water","!B113"))) -> 
C30: =IF(INDIRECT(CONCATENATE("Water","!B114"))=0,"",INDIRECT(CONCATENATE("Water","!B114"))) -> 
C31: =IF(INDIRECT(CONCATENATE("Water","!B115"))=0,"",INDIRECT(CONCATENATE("Water","!B115"))) -> 
C32: =IF(INDIRECT(CONCATENATE("Water","!B116"))=0,"",INDIRECT(CONCATENATE("Water","!B116"))) -> 
L55: =+IF(ISNUMBER(M48), "", "Insufficient data to estimate safely managed sanitation services at national level") -> Insufficient data to estimate safely managed sanitation services at national level

Sheet Water
A1: BGD
B4: Summary of trends in use of drinking water by wealth quintile (%)
B5: =IF(ISERROR(INDIRECT(CONCATENATE($B105,"!A2"))),"",INDIRECT(CONCATENATE($B105,"!A2"))) -> Central African Republic
B7: =B118 -> National use of drinking water sources, 2000–2020 | J7: =B218 -> Urban use of drinking water sources, 2000–2020 | R7: =B318 -> Rural use of drinking water sources, 2000–2020
B31: =IF(ISERROR(INDIRECT(CONCATENATE($B105,"!A2"))),"",INDIRECT(CONCATENATE($B105,"!A2"))) -> Central African Republic | F31: Poorest | J31: Poor | N31: Middle | R31: Rich | V31: Richest
F32: Basic | G32: Limited | H32: Unimproved | I32: Surface water | J32: Basic | K32: Limited | L32: Unimproved | M32: Surface water | N32: Basic | O32: Limited | P32: Unimproved | Q32: Surface water | R32: Basic | S32: Limited | T32: Unimproved | U32: Surface water | V32: Basic | W32: Limited | X32: Unimproved | Y32: Surface water
B33: NATIONAL | D33: Estimate | E33: =C99 -> 2000 | F33: =E99 -> 43.66823507 | G33: =F99 -> 14.71476364 | H33: 32.60320564 | I33: 9.01379565 | J33: =J99 -> 40.30129204 | K33: =K99 -> 14.41823839 | L33: 35.90050997 | M33: 9.3799596 | N33: =O99 -> 42.167587 | O33: =P99 -> 15.92396681 | P33: 32.4407261 | Q33: 9.467720086 | R33: =T99 -> 58.45720943 | S33: =U99 -> 16.72005623 | T33: 19.04293758 | U33: 5.779796761 | V33: =Y99 -> 70.65110458 | W33: =Z99 -> 18.84515104 | X33: 9.241937363 | Y33: 1.261807016
E34: =C100 -> 2020 | F34: =E100 -> 33.16140699 | G34: 11.17430702 | H34: 47.2353823 | I34: 8.428903684 | J34: =J100 -> 33.15864699 | K34: 11.86287716 | L34: 49.47358751 | M34: 5.504888336 | N34: =O100 -> 38.0725588 | O34: 14.37753986 | P34: 42.74503731 | Q34: 4.804864037 | R34: =T100 -> 50.13039846 | S34: 14.33840392 | T34: 33.79173062 | U34: 1.739466997 | V34: =Y100 -> 68.4790953 | W34: 18.26579927 | X34: 13.13796243 | Y34: 0.1171430002
B36: URBAN | D36: Estimate | E36: =C199 -> 2000 | F36: =E199 -> 59.73431232 | G36: =F199 -> 16.43161919 | H36: 21.6405148 | I36: 2.193553684 | J36: =J199 -> 70.13608048 | K36: =K199 -> 17.08873101 | L36: 10.98502757 | M36: 1.790160943 | N36: =O199 -> 69.8343051 | O36: =P199 -> 17.42394395 | P36: 11.15042699 | Q36: 1.59132396 | R36: =T199 -> 74.82486257 | S36: =U199 -> 18.87416609 | T36: 6.200804634 | U36: 0.1001667073 | V36: =Y199 -> 79.17015876 | W36: =Z199 -> 18.03968702 | X36: 2.625804459 | Y36: 0.1643497662
E37: =C200 -> 2020 | F37: =E200 -> 55.8282981 | G37: 15.35715904 | H37: 28.38816965 | I37: 0.4263732093 | J37: =J200 -> 60.04170081 | K37: 14.62922461 | L37: 24.30052111 | M37: 1.028553467 | N37: =O200 -> 66.60667428 | O37: 16.6186369 | P37: 16.77468882 | Q37: 0 | R37: =T200 -> 72.16761104 | S37: 18.2038888 | T37: 9.524109903 | U37: 0.1043902575 | V37: =Y200 -> 77.13913311 | W37: 17.57689817 | X37: 5.283968725 | Y37: 0
B39: RURAL | D39: Estimate | E39: =C299 -> 2000 | F39: =E299 -> 37.37167543 | G39: =F299 -> 13.54306988 | H39: 37.20156292 | I39: 11.88369178 | J39: =J299 -> 40.40199802 | K39: =K299 -> 14.50896733 | L39: 35.26348936 | M39: 9.825545294 | N39: =O299 -> 36.68291032 | O39: =P299 -> 14.85542722 | P39: 39.12625487 | Q39: 9.335407582 | R39: =T299 -> 38.61979839 | S39: =U299 -> 15.23583642 | T39: 33.97297007 | U39: 12.17139512 | V39: =Y299 -> 43.52951759 | W39: =Z299 -> 17.44767576 | X39: 28.74974669 | Y39: 10.27305997
E40: =C300 -> 2020 | F40: =E300 -> 30.90309584 | G40: 11.19893025 | H40: 49.07966985 | I40: 8.818304067 | J40: =J300 -> 30.65770186 | K40: 11.0096435 | L40: 51.35064271 | M40: 6.982011933 | N40: =O300 -> 31.20784338 | O40: 12.63819697 | P40: 49.50951322 | Q40: 6.644446429 | R40: =T300 -> 35.32690467 | S40: 13.93676205 | T40: 45.72567177 | U40: 5.01066151 | V40: =Y300 -> 36.45496202 | W40: 14.61202404 | X40: 45.98122471 | Y40: 2.951789231
A97: NATIONAL | D97: Poorest | I97: Poor | N97: Middle | S97: Rich | X97: Richest
D98: Improved | E98: Basic | F98: Limited | G98: Unimproved | H98: Surface water | I98: Improved | J98: Basic | K98: Limited | L98: Unimproved | M98: Surface water | N98: Improved | O98: Basic | P98: Limited | Q98: Unimproved | R98: Surface water | S98: Improved | T98: Basic | U98: Limited | V98: Unimproved | W98: Surface water | X98: Improved | Y98: Basic | Z98: Limited | AA98: Unimproved | AB98: Surface water
A99: Forecast period: | C99: 2000 | D99: =IF((D101+H101)>100,D101*100/(D101+H101),D101) -> 58.38299871 | E99: =D99*AVERAGEIF(E105:E116,">0")/100 -> 43.66823507 | F99: =D99*(100-AVERAGEIF(E105:E116,">0"))/100 -> 14.71476364 | G99: =100-(E99+F99+H99) -> 32.60320564 | H99: =IF((D101+H101)>100,H101*100/(D101+H101),H101) -> 9.01379565 | I99: =IF((I101+M101)>100,I101*100/(I101+M101),I101) -> 54.71953043 | J99: =I99*AVERAGEIF(J105:J116,">0")/100 -> 40.30129204 | K99: =I99*(100-AVERAGEIF(J105:J116,">0"))/100 -> 14.41823839 | L99: =100-(J99+K99+M99) -> 35.90050997 | M99: =IF((I101+M101)>100,M101*100/(I101+M101),M101) -> 9.3799596 | N99: =IF((N101+R101)>100,N101*100/(N101+R101),N101) -> 58.09155381 | O99: =N99*AVERAGEIF(O105:O116,">0")/100 -> 42.167587 | P99: =N99*(100-AVERAGEIF(O105:O116,">0"))/100 -> 15.92396681 | Q99: =100-(O99+P99+R99) -> 32.4407261 | R99: =IF((N101+R101)>100,R101*100/(N101+R101),R101) -> 9.467720086 | S99: =IF((S101+W101)>100,S101*100/(S101+W101),S101) -> 75.17726566 | T99: =S99*AVERAGEIF(T105:T116,">0")/100 -> 58.45720943 | U99: =S99*(100-AVERAGEIF(T105:T116,">0"))/100 -> 16.72005623 | V99: =100-(T99+U99+W99) -> 19.04293758 | W99: =IF((S101+W101)>100,W101*100/(S101+W101),W101) -> 5.779796761 | X99: =IF((X101+AB101)>100,X101*100/(X101+AB101),X101) -> 89.49625562 | Y99: =X99*AVERAGEIF(Y105:Y116,">0")/100 -> 70.65110458 | Z99: =X99*(100-AVERAGEIF(Y105:Y116,">0"))/100 -> 18.84515104 | AA99: =100-(Y99+Z99+AB99) -> 9.241937363 | AB99: =IF((X101+AB101)>100,AB101*100/(X101+AB101),AB101) -> 1.261807016
C100: 2020 | D100: =IF((D102+H102)>100,D102*100/(D102+H102),D102) -> 44.33571401 | E100: =D100*AVERAGEIF(E105:E116,">0")/100 -> 33.16140699 | F100: =D100*(100-AVERAGEIF(E105:E116,">0"))/100 -> 11.17430702 | G100: =100-(E100+F100+H100) -> 47.2353823 | H100: =IF((D102+H102)>100,H102*100/(D102+H102),H102) -> 8.428903684 | I100: =IF((I102+M102)>100,I102*100/(I102+M102),I102) -> 45.02152415 | J100: =I100*AVERAGEIF(J105:J116,">0")/100 -> 33.15864699 | K100: =I100*(100-AVERAGEIF(J105:J116,">0"))/100 -> 11.86287716 | L100: =100-(J100+K100+M100) -> 49.47358751 | M100: =IF((I102+M102)>100,M102*100/(I102+M102),M102) -> 5.504888336 | N100: =IF((N102+R102)>100,N102*100/(N102+R102),N102) -> 52.45009866 | O100: =N100*AVERAGEIF(O105:O116,">0")/100 -> 38.0725588 | P100: =N100*(100-AVERAGEIF(O105:O116,">0"))/100 -> 14.37753986 | Q100: =100-(O100+P100+R100) -> 42.74503731 | R100: =IF((N102+R102)>100,R102*100/(N102+R102),R102) -> 4.804864037 | S100: =IF((S102+W102)>100,S102*100/(S102+W102),S102) -> 64.46880238 | T100: =S100*AVERAGEIF(T105:T116,">0")/100 -> 50.13039846 | U100: =S100*(100-AVERAGEIF(T105:T116,">0"))/100 -> 14.33840392 | V100: =100-(T100+U100+W100) -> 33.79173062 | W100: =IF((S102+W102)>100,W102*100/(S102+W102),W102) -> 1.739466997 | X100: =IF((X102+AB102)>100,X102*100/(X102+AB102),X102) -> 86.74489457 | Y100: =X100*AVERAGEIF(Y105:Y116,">0")/100 -> 68.4790953 | Z100: =X100*(100-AVERAGEIF(Y105:Y116,">0"))/100 -> 18.26579927 | AA100: =100-(Y100+Z100+AB100) -> 13.13796243 | AB100: =IF((X102+AB102)>100,AB102*100/(X102+AB102),AB102) -> 0.1171430002
A101: Regression period: | C101: =MinRegYear(C99,C105:C116) -> 2000 | D101: =IF(MAX(C105:C116)-MIN(C105:C116)<5,AVERAGEIF(C105:C116,">0",D105:D116), IF(FORECAST($C101,D$105:D$116,$C$105:$C$116)<0,0, IF(FORECAST($C101,D$105:D$116,$C$105:$C$116)>100,100, FORECAST($C101,D$105:D$116,$C$105:$C$116)))) -> 58.38299871 | H101: =IF(MAX(C105:C116)-MIN(C105:C116)<5,AVERAGEIF(C105:C116,">0",H105:H116), IF(FORECAST($C101,H$105:H$116,$C$105:$C$116)<0,0, IF(FORECAST($C101,H$105:H$116,$C$105:$C$116)>100,100, FORECAST($C101,H$105:H$116,$C$105:$C$116)))) -> 9.01379565 | I101: =IF(MAX(C105:C116)-MIN(C105:C116)<5,AVERAGEIF(C105:C116,">0",I105:I116), IF(FORECAST($C101,I$105:I$116,$C$105:$C$116)<0,0, IF(FORECAST($C101,I$105:I$116,$C$105:$C$116)>100,100, FORECAST($C101,I$105:I$116,$C$105:$C$116)))) -> 54.71953043 | M101: =IF(MAX(C105:C116)-MIN(C105:C116)<5,AVERAGEIF(C105:C116,">0",M105:M116), IF(FORECAST($C101,M$105:M$116,$C$105:$C$116)<0,0, IF(FORECAST($C101,M$105:M$116,$C$105:$C$116)>100,100, FORECAST($C101,M$105:M$116,$C$105:$C$116)))) -> 9.3799596 | N101: =IF(MAX(C105:C116)-MIN(C105:C116)<5,AVERAGEIF(C105:C116,">0",N105:N116), IF(FORECAST($C101,N$105:N$116,$C$105:$C$116)<0,0, IF(FORECAST($C101,N$105:N$116,$C$105:$C$116)>100,100, FORECAST($C101,N$105:N$116,$C$105:$C$116)))) -> 58.09155381 | R101: =IF(MAX(C105:C116)-MIN(C105:C116)<5,AVERAGEIF(C105:C116,">0",R105:R116), IF(FORECAST($C101,R$105:R$116,$C$105:$C$116)<0,0, IF(FORECAST($C101,R$105:R$116,$C$105:$C$116)>100,100, FORECAST($C101,R$105:R$116,$C$105:$C$116)))) -> 9.467720086 | S101: =IF(MAX(C105:C116)-MIN(C105:C116)<5,AVERAGEIF(C105:C116,">0",S105:S116), IF(FORECAST($C101,S$105:S$116,$C$105:$C$116)<0,0, IF(FORECAST($C101,S$105:S$116,$C$105:$C$116)>100,100, FORECAST($C101,S$105:S$116,$C$105:$C$116)))) -> 75.17726566 | W101: =IF(MAX(C105:C116)-MIN(C105:C116)<5,AVERAGEIF(C105:C116,">0",W105:W116), IF(FORECAST($C101,W$105:W$116,$C$105:$C$116)<0,0, IF(FORECAST($C101,W$105:W$116,$C$105:$C$116)>100,100, FORECAST($C101,W$105:W$116,$C$105:$C$116)))) -> 5.779796761 | X101: =IF(MAX(C105:C116)-MIN(C105:C116)<5,AVERAGEIF(C105:C116,">0",X105:X116), IF(FORECAST($C101,X$105:X$116,$C$105:$C$116)<0,0, IF(FORECAST($C101,X$105:X$116,$C$105:$C$116)>100,100, FORECAST($C101,X$105:X$116,$C$105:$C$116)))) -> 89.49625562 | AB101: =IF(MAX(C105:C116)-MIN(C105:C116)<5,AVERAGEIF(C105:C116,">0",AB105:AB116), IF(FORECAST($C101,AB$105:AB$116,$C$105:$C$116)<0,0, IF(FORECAST($C101,AB$105:AB$116,$C$105:$C$116)>100,100, FORECAST($C101,AB$105:AB$116,$C$105:$C$116)))) -> 1.261807016
C102: =MaxRegYear(C100,C105:C116) -> 2020 | D102: =IF(MAX(C105:C116)-MIN(C105:C116)<5,AVERAGEIF(C105:C116,">0",D105:D116), IF(FORECAST($C102,D$105:D$116,$C$105:$C$116)<0,0, IF(FORECAST($C102,D$105:D$116,$C$105:$C$116)>100,100, FORECAST($C102,D$105:D$116,$C$105:$C$116)))) -> 44.33571401 | H102: =IF(MAX(C105:C116)-MIN(C105:C116)<5,AVERAGEIF(C105:C116,">0",H105:H116), IF(FORECAST($C102,H$105:H$116,$C$105:$C$116)<0,0, IF(FORECAST($C102,H$105:H$116,$C$105:$C$116)>100,100, FORECAST($C102,H$105:H$116,$C$105:$C$116)))) -> 8.428903684 | I102: =IF(MAX(C105:C116)-MIN(C105:C116)<5,AVERAGEIF(C105:C116,">0",I105:I116), IF(FORECAST($C102,I$105:I$116,$C$105:$C$116)<0,0, IF(FORECAST($C102,I$105:I$116,$C$105:$C$116)>100,100, FORECAST($C102,I$105:I$116,$C$105:$C$116)))) -> 45.02152415 | M102: =IF(MAX(C105:C116)-MIN(C105:C116)<5,AVERAGEIF(C105:C116,">0",M105:M116), IF(FORECAST($C102,M$105:M$116,$C$105:$C$116)<0,0, IF(FORECAST($C102,M$105:M$116,$C$105:$C$116)>100,100, FORECAST($C102,M$105:M$116,$C$105:$C$116)))) -> 5.504888336 | N102: =IF(MAX(C105:C116)-MIN(C105:C116)<5,AVERAGEIF(C105:C116,">0",N105:N116), IF(FORECAST($C102,N$105:N$116,$C$105:$C$116)<0,0, IF(FORECAST($C102,N$105:N$116,$C$105:$C$116)>100,100, FORECAST($C102,N$105:N$116,$C$105:$C$116)))) -> 52.45009866 | R102: =IF(MAX(C105:C116)-MIN(C105:C116)<5,AVERAGEIF(C105:C116,">0",R105:R116), IF(FORECAST($C102,R$105:R$116,$C$105:$C$116)<0,0, IF(FORECAST($C102,R$105:R$116,$C$105:$C$116)>100,100, FORECAST($C102,R$105:R$116,$C$105:$C$116)))) -> 4.804864037 | S102: =IF(MAX(C105:C116)-MIN(C105:C116)<5,AVERAGEIF(C105:C116,">0",S105:S116), IF(FORECAST($C102,S$105:S$116,$C$105:$C$116)<0,0, IF(FORECAST($C102,S$105:S$116,$C$105:$C$116)>100,100, FORECAST($C102,S$105:S$116,$C$105:$C$116)))) -> 64.46880238 | W102: =IF(MAX(C105:C116)-MIN(C105:C116)<5,AVERAGEIF(C105:C116,">0",W105:W116), IF(FORECAST($C102,W$105:W$116,$C$105:$C$116)<0,0, IF(FORECAST($C102,W$105:W$116,$C$105:$C$116)>100,100, FORECAST($C102,W$105:W$116,$C$105:$C$116)))) -> 1.739466997 | X102: =IF(MAX(C105:C116)-MIN(C105:C116)<5,AVERAGEIF(C105:C116,">0",X105:X116), IF(FORECAST($C102,X$105:X$116,$C$105:$C$116)<0,0, IF(FORECAST($C102,X$105:X$116,$C$105:$C$116)>100,100, FORECAST($C102,X$105:X$116,$C$105:$C$116)))) -> 86.74489457 | AB102: =IF(MAX(C105:C116)-MIN(C105:C116)<5,AVERAGEIF(C105:C116,">0",AB105:AB116), IF(FORECAST($C102,AB$105:AB$116,$C$105:$C$116)<0,0, IF(FORECAST($C102,AB$105:AB$116,$C$105:$C$116)>100,100, FORECAST($C102,AB$105:AB$116,$C$105:$C$116)))) -> 0.1171430002
B104: Survey | C104: Year | D104: Improved | E104: % Improved < = 30min | H104: Surface water | I104: Improved | J104: % Improved < = 30min | M104: Surface water | N104: Improved | O104: % Improved < = 30min | R104: Surface water | S104: Improved | T104: % Improved < = 30min | W104: Surface water | X104: Improved | Y104: % Improved < = 30min | AB104: Surface water
B105: MICS00 | C105: 2000 | D105: =IF(ISERROR(INDIRECT(CONCATENATE($B105,"!C16"))),"",INDIRECT(CONCATENATE($B105,"!C16"))) -> 56.10562078 | E105: =IF(ISERROR(INDIRECT(CONCATENATE($B105,"!C23"))),"",INDIRECT(CONCATENATE($B105,"!C23"))) -> 87.27838405 | H105: =IF(ISERROR(INDIRECT(CONCATENATE($B105,"!C21"))),"",INDIRECT(CONCATENATE($B105,"!C21"))) -> 10.09939136 | I105: =IF(ISERROR(INDIRECT(CONCATENATE($B105,"!D16"))),"",INDIRECT(CONCATENATE($B105,"!D16"))) -> 57.81271656 | J105: =IF(ISERROR(INDIRECT(CONCATENATE($B105,"!D23"))),"",INDIRECT(CONCATENATE($B105,"!D23"))) -> 86.66717513 | M105: =IF(ISERROR(INDIRECT(CONCATENATE($B105,"!D21"))),"",INDIRECT(CONCATENATE($B105,"!D21"))) -> 10.80709303 | N105: =IF(ISERROR(INDIRECT(CONCATENATE($B105,"!E16"))),"",INDIRECT(CONCATENATE($B105,"!E16"))) -> 62.32485925 | O105: =IF(ISERROR(INDIRECT(CONCATENATE($B105,"!E23"))),"",INDIRECT(CONCATENATE($B105,"!E23"))) -> 87.55260267 | R105: =IF(ISERROR(INDIRECT(CONCATENATE($B105,"!E21"))),"",INDIRECT(CONCATENATE($B105,"!E21"))) -> 11.39731614 | S105: =IF(ISERROR(INDIRECT(CONCATENATE($B105,"!F16"))),"",INDIRECT(CONCATENATE($B105,"!F16"))) -> 78.21838425 | T105: =IF(ISERROR(INDIRECT(CONCATENATE($B105,"!F23"))),"",INDIRECT(CONCATENATE($B105,"!F23"))) -> 88.56967059 | W105: =IF(ISERROR(INDIRECT(CONCATENATE($B105,"!F21"))),"",INDIRECT(CONCATENATE($B105,"!F21"))) -> 7.306102801 | X105: =IF(ISERROR(INDIRECT(CONCATENATE($B105,"!G16"))),"",INDIRECT(CONCATENATE($B105,"!G16"))) -> 90.57262717 | Y105: =IF(ISERROR(INDIRECT(CONCATENATE($B105,"!G23"))),"",INDIRECT(CONCATENATE($B105,"!G23"))) -> 91.43831303 | AB105: =IF(ISERROR(INDIRECT(CONCATENATE($B105,"!G221"))),"",INDIRECT(CONCATENATE($B105,"!G21"))) -> 1.461577672
B106: MICS06 | C106: 2006 | D106: 56.24101029 | E106: 80.12445192 | H106: 7.110864421 | I106: 44.71159471 | J106: 73.15096304 | M106: 6.908112843 | N106: 47.1783674 | O106: 71.11709578 | R106: 6.822465547 | S106: 62.49608623 | T106: 83.13530892 | W106: 3.492363585 | X106: 85.19455801 | Y106: 88.83942761 | AB106: 0.8343071361
B107: MICS10 | C107: 2010 | D107: 53.17398077 | E107: 69.98920477 | H107: 8.924761766 | I107: 53.59390546 | J107: 68.15345915 | M107: 6.320834489 | N107: 59.652709 | O107: 66.47510267 | R107: 4.863052662 | S107: 77.07981986 | T107: 70.04135881 | W107: 2.090690816 | X107: 90.86954192 | Y107: 74.55299631 | AB107: 0.3892157112
B108: MICS19 | C108: 2019 | D108: 43.42863477 | E108: 61.79255775 | H108: 8.896604117 | I108: 45.78839401 | J108: 66.63101877 | M108: 6.702423324 | N108: 53.33773307 | O108: 65.20781805 | R108: 6.62804791 | S108: 64.17496156 | T108: 69.29029711 | W108: 3.159452754 | X108: 86.53341354 | Y108: 60.94160051 | AB108: 0.3589655179
D111: =IF(ISERROR(INDIRECT(CONCATENATE($B111,"!C16"))),"",INDIRECT(CONCATENATE($B111,"!C16"))) ->  | E111: =IF(ISERROR(INDIRECT(CONCATENATE($B111,"!C23"))),"",INDIRECT(CONCATENATE($B111,"!C23"))) ->  | H111: =IF(ISERROR(INDIRECT(CONCATENATE($B111,"!C21"))),"",INDIRECT(CONCATENATE($B111,"!C21"))) ->  | I111: =IF(ISERROR(INDIRECT(CONCATENATE($B111,"!D16"))),"",INDIRECT(CONCATENATE($B111,"!D16"))) ->  | J111: =IF(ISERROR(INDIRECT(CONCATENATE($B111,"!D23"))),"",INDIRECT(CONCATENATE($B111,"!D23"))) ->  | M111: =IF(ISERROR(INDIRECT(CONCATENATE($B111,"!D21"))),"",INDIRECT(CONCATENATE($B111,"!D21"))) ->  | N111: =IF(ISERROR(INDIRECT(CONCATENATE($B111,"!E16"))),"",INDIRECT(CONCATENATE($B111,"!E16"))) ->  | O111: =IF(ISERROR(INDIRECT(CONCATENATE($B111,"!E23"))),"",INDIRECT(CONCATENATE($B111,"!E23"))) ->  | R111: =IF(ISERROR(INDIRECT(CONCATENATE($B111,"!E21"))),"",INDIRECT(CONCATENATE($B111,"!E21"))) ->  | S111: =IF(ISERROR(INDIRECT(CONCATENATE($B111,"!F16"))),"",INDIRECT(CONCATENATE($B111,"!F16"))) ->  | T111: =IF(ISERROR(INDIRECT(CONCATENATE($B111,"!F23"))),"",INDIRECT(CONCATENATE($B111,"!F23"))) ->  | W111: =IF(ISERROR(INDIRECT(CONCATENATE($B111,"!F21"))),"",INDIRECT(CONCATENATE($B111,"!F21"))) ->  | X111: =IF(ISERROR(INDIRECT(CONCATENATE($B111,"!G16"))),"",INDIRECT(CONCATENATE($B111,"!G16"))) ->  | Y111: =IF(ISERROR(INDIRECT(CONCATENATE($B111,"!G23"))),"",INDIRECT(CONCATENATE($B111,"!G23"))) ->  | AB111: =IF(ISERROR(INDIRECT(CONCATENATE($B111,"!G221"))),"",INDIRECT(CONCATENATE($B111,"!G21"))) -> 
D112: =IF(ISERROR(INDIRECT(CONCATENATE($B112,"!C16"))),"",INDIRECT(CONCATENATE($B112,"!C16"))) ->  | E112: =IF(ISERROR(INDIRECT(CONCATENATE($B112,"!C23"))),"",INDIRECT(CONCATENATE($B112,"!C23"))) ->  | H112: =IF(ISERROR(INDIRECT(CONCATENATE($B112,"!C21"))),"",INDIRECT(CONCATENATE($B112,"!C21"))) ->  | I112: =IF(ISERROR(INDIRECT(CONCATENATE($B112,"!D16"))),"",INDIRECT(CONCATENATE($B112,"!D16"))) ->  | J112: =IF(ISERROR(INDIRECT(CONCATENATE($B112,"!D23"))),"",INDIRECT(CONCATENATE($B112,"!D23"))) ->  | M112: =IF(ISERROR(INDIRECT(CONCATENATE($B112,"!D21"))),"",INDIRECT(CONCATENATE($B112,"!D21"))) ->  | N112: =IF(ISERROR(INDIRECT(CONCATENATE($B112,"!E16"))),"",INDIRECT(CONCATENATE($B112,"!E16"))) ->  | O112: =IF(ISERROR(INDIRECT(CONCATENATE($B112,"!E23"))),"",INDIRECT(CONCATENATE($B112,"!E23"))) ->  | R112: =IF(ISERROR(INDIRECT(CONCATENATE($B112,"!E21"))),"",INDIRECT(CONCATENATE($B112,"!E21"))) ->  | S112: =IF(ISERROR(INDIRECT(CONCATENATE($B112,"!F16"))),"",INDIRECT(CONCATENATE($B112,"!F16"))) ->  | T112: =IF(ISERROR(INDIRECT(CONCATENATE($B112,"!F23"))),"",INDIRECT(CONCATENATE($B112,"!F23"))) ->  | W112: =IF(ISERROR(INDIRECT(CONCATENATE($B112,"!F21"))),"",INDIRECT(CONCATENATE($B112,"!F21"))) ->  | X112: =IF(ISERROR(INDIRECT(CONCATENATE($B112,"!G16"))),"",INDIRECT(CONCATENATE($B112,"!G16"))) ->  | Y112: =IF(ISERROR(INDIRECT(CONCATENATE($B112,"!G23"))),"",INDIRECT(CONCATENATE($B112,"!G23"))) ->  | AB112: =IF(ISERROR(INDIRECT(CONCATENATE($B112,"!G221"))),"",INDIRECT(CONCATENATE($B112,"!G21"))) -> 
B118: =CONCATENATE("National use of drinking water sources, ",C99,"–",C100) -> National use of drinking water sources, 2000–2020 | S118: Data points used for regression
E153: =IF(ISERROR(INDIRECT(CONCATENATE($B153,"!M18"))),"",INDIRECT(CONCATENATE($B153,"!M18"))) ->  | F153: =IF(ISERROR(INDIRECT(CONCATENATE($B153,"!M19"))),"",INDIRECT(CONCATENATE($B153,"!M19"))) ->  | G153: =IF(ISERROR(INDIRECT(CONCATENATE($B153,"!M20"))),"",INDIRECT(CONCATENATE($B153,"!M20"))) ->  | H153: =IF(ISERROR(INDIRECT(CONCATENATE($B153,"!M21"))),"",INDIRECT(CONCATENATE($B153,"!M21"))) ->  | J153: =IF(ISERROR(INDIRECT(CONCATENATE($B153,"!N18"))),"",INDIRECT(CONCATENATE($B153,"!N18"))) ->  | K153: =IF(ISERROR(INDIRECT(CONCATENATE($B153,"!N19"))),"",INDIRECT(CONCATENATE($B153,"!N19"))) ->  | L153: =IF(ISERROR(INDIRECT(CONCATENATE($B153,"!N20"))),"",INDIRECT(CONCATENATE($B153,"!N20"))) ->  | M153: =IF(ISERROR(INDIRECT(CONCATENATE($B153,"!N21"))),"",INDIRECT(CONCATENATE($B153,"!N21"))) ->  | O153: =IF(ISERROR(INDIRECT(CONCATENATE($B153,"!O18"))),"",INDIRECT(CONCATENATE($B153,"!O18"))) ->  | P153: =IF(ISERROR(INDIRECT(CONCATENATE($B153,"!O19"))),"",INDIRECT(CONCATENATE($B153,"!O19"))) ->  | Q153: =IF(ISERROR(INDIRECT(CONCATENATE($B153,"!O20"))),"",INDIRECT(CONCATENATE($B153,"!O20"))) ->  | R153: =IF(ISERROR(INDIRECT(CONCATENATE($B153,"!O21"))),"",INDIRECT(CONCATENATE($B153,"!O21"))) ->  | T153: =IF(ISERROR(INDIRECT(CONCATENATE($B153,"!P18"))),"",INDIRECT(CONCATENATE($B153,"!P18"))) ->  | U153: =IF(ISERROR(INDIRECT(CONCATENATE($B153,"!P19"))),"",INDIRECT(CONCATENATE($B153,"!P19"))) ->  | V153: =IF(ISERROR(INDIRECT(CONCATENATE($B153,"!P20"))),"",INDIRECT(CONCATENATE($B153,"!P20"))) ->  | W153: =IF(ISERROR(INDIRECT(CONCATENATE($B153,"!P21"))),"",INDIRECT(CONCATENATE($B153,"!P21"))) ->  | Y153: =IF(ISERROR(INDIRECT(CONCATENATE($B153,"!Q18"))),"",INDIRECT(CONCATENATE($B153,"!Q18"))) ->  | Z153: =IF(ISERROR(INDIRECT(CONCATENATE($B153,"!Q19"))),"",INDIRECT(CONCATENATE($B153,"!Q19"))) ->  | AA153: =IF(ISERROR(INDIRECT(CONCATENATE($B153,"!Q20"))),"",INDIRECT(CONCATENATE($B153,"!Q20"))) ->  | AB153: =IF(ISERROR(INDIRECT(CONCATENATE($B153,"!Q21"))),"",INDIRECT(CONCATENATE($B153,"!Q1"))) -> 
A197: URBAN | D197: Poorest | I197: Poor | N197: Middle | S197: Rich | X197: Richest
D198: Improved | E198: Basic | F198: Limited | G198: Unimproved | H198: Surface water | I198: Improved | J198: Basic | K198: Limited | L198: Unimproved | M198: Surface water | N198: Improved | O198: Basic | P198: Limited | Q198: Unimproved | R198: Surface water | S198: Improved | T198: Basic | U198: Limited | V198: Unimproved | W198: Surface water | X198: Improved | Y198: Basic | Z198: Limited | AA198: Unimproved | AB198: Surface water
A199: Forecast period: | C199: 2000 | D199: =IF((D201+H201)>100,D201*100/(D201+H201),D201) -> 76.16593152 | E199: =D199*AVERAGEIF(E205:E216,">0")/100 -> 59.73431232 | F199: =D199*(100-AVERAGEIF(E205:E216,">0"))/100 -> 16.43161919 | G199: =100-(E199+F199+H199) -> 21.6405148 | H199: =IF((D201+H201)>100,H201*100/(D201+H201),H201) -> 2.193553684 | I199: =IF((I201+M201)>100,I201*100/(I201+M201),I201) -> 87.22481149 | J199: =I199*AVERAGEIF(J205:J216,">0")/100 -> 70.13608048 | K199: =I199*(100-AVERAGEIF(J205:J216,">0"))/100 -> 17.08873101 | L199: =100-(J199+K199+M199) -> 10.98502757 | M199: =IF((I201+M201)>100,M201*100/(I201+M201),M201) -> 1.790160943 | N199: =IF((N201+R201)>100,N201*100/(N201+R201),N201) -> 87.25824905 | O199: =N199*AVERAGEIF(O205:O216,">0")/100 -> 69.8343051 | P199: =N199*(100-AVERAGEIF(O205:O216,">0"))/100 -> 17.42394395 | Q199: =100-(O199+P199+R199) -> 11.15042699 | R199: =IF((N201+R201)>100,R201*100/(N201+R201),R201) -> 1.59132396 | S199: =IF((S201+W201)>100,S201*100/(S201+W201),S201) -> 93.69902866 | T199: =S199*AVERAGEIF(T205:T216,">0")/100 -> 74.82486257 | U199: =S199*(100-AVERAGEIF(T205:T216,">0"))/100 -> 18.87416609 | V199: =100-(T199+U199+W199) -> 6.200804634 | W199: =IF((S201+W201)>100,W201*100/(S201+W201),W201) -> 0.1001667073 | X199: =IF((X201+AB201)>100,X201*100/(X201+AB201),X201) -> 97.20984578 | Y199: =X199*AVERAGEIF(Y205:Y216,">0")/100 -> 79.17015876 | Z199: =X199*(100-AVERAGEIF(Y205:Y216,">0"))/100 -> 18.03968702 | AA199: =100-(Y199+Z199+AB199) -> 2.625804459 | AB199: =IF((X201+AB201)>100,AB201*100/(X201+AB201),AB201) -> 0.1643497662
C200: 2020 | D200: =IF((D202+H202)>100,D202*100/(D202+H202),D202) -> 71.18545714 | E200: =D200*AVERAGEIF(E205:E216,">0")/100 -> 55.8282981 | F200: =D200*(100-AVERAGEIF(E205:E216,">0"))/100 -> 15.35715904 | G200: =100-(E200+F200+H200) -> 28.38816965 | H200: =IF((D202+H202)>100,H202*100/(D202+H202),H202) -> 0.4263732093 | I200: =IF((I202+M202)>100,I202*100/(I202+M202),I202) -> 74.67092542 | J200: =I200*AVERAGEIF(J205:J216,">0")/100 -> 60.04170081 | K200: =I200*(100-AVERAGEIF(J205:J216,">0"))/100 -> 14.62922461 | L200: =100-(J200+K200+M200) -> 24.30052111 | M200: =IF((I202+M202)>100,M202*100/(I202+M202),M202) -> 1.028553467 | N200: =IF((N202+R202)>100,N202*100/(N202+R202),N202) -> 83.22531118 | O200: =N200*AVERAGEIF(O205:O216,">0")/100 -> 66.60667428 | P200: =N200*(100-AVERAGEIF(O205:O216,">0"))/100 -> 16.6186369 | Q200: =100-(O200+P200+R200) -> 16.77468882 | R200: =IF((N202+R202)>100,R202*100/(N202+R202),R202) -> 0 | S200: =IF((S202+W202)>100,S202*100/(S202+W202),S202) -> 90.37149984 | T200: =S200*AVERAGEIF(T205:T216,">0")/100 -> 72.16761104 | U200: =S200*(100-AVERAGEIF(T205:T216,">0"))/100 -> 18.2038888 | V200: =100-(T200+U200+W200) -> 9.524109903 | W200: =IF((S202+W202)>100,W202*100/(S202+W202),W202) -> 0.1043902575 | X200: =IF((X202+AB202)>100,X202*100/(X202+AB202),X202) -> 94.71603127 | Y200: =X200*AVERAGEIF(Y205:Y216,">0")/100 -> 77.13913311 | Z200: =X200*(100-AVERAGEIF(Y205:Y216,">0"))/100 -> 17.57689817 | AA200: =100-(Y200+Z200+AB200) -> 5.283968725 | AB200: =IF((X202+AB202)>100,AB202*100/(X202+AB202),AB202) -> 0
A201: Regression period: | C201: =MinRegYear(C199,C205:C216) -> 2000 | D201: =IF(MAX(C205:C216)-MIN(C205:C216)<5,AVERAGEIF(C205:C216,">0",D205:D216), IF(FORECAST($C201,D$205:D$216,$C$205:$C$216)<0,0, IF(FORECAST($C201,D$205:D$216,$C$205:$C$216)>100,100, FORECAST($C201,D$205:D$216,$C$205:$C$216)))) -> 76.16593152 | H201: =IF(MAX(C205:C216)-MIN(C205:C216)<5,AVERAGEIF(C205:C216,">0",H205:H216), IF(FORECAST($C201,H$205:H$216,$C$205:$C$216)<0,0, IF(FORECAST($C201,H$205:H$216,$C$205:$C$216)>100,100, FORECAST($C201,H$205:H$216,$C$205:$C$216)))) -> 2.193553684 | I201: =IF(MAX(C205:C216)-MIN(C205:C216)<5,AVERAGEIF(C205:C216,">0",I205:I216), IF(FORECAST($C201,I$205:I$216,$C$205:$C$216)<0,0, IF(FORECAST($C201,I$205:I$216,$C$205:$C$216)>100,100, FORECAST($C201,I$205:I$216,$C$205:$C$216)))) -> 87.22481149 | M201: =IF(MAX(C205:C216)-MIN(C205:C216)<5,AVERAGEIF(C205:C216,">0",M205:M216), IF(FORECAST($C201,M$205:M$216,$C$205:$C$216)<0,0, IF(FORECAST($C201,M$205:M$216,$C$205:$C$216)>100,100, FORECAST($C201,M$205:M$216,$C$205:$C$216)))) -> 1.790160943 | N201: =IF(MAX(C205:C216)-MIN(C205:C216)<5,AVERAGEIF(C205:C216,">0",N205:N216), IF(FORECAST($C201,N$205:N$216,$C$205:$C$216)<0,0, IF(FORECAST($C201,N$205:N$216,$C$205:$C$216)>100,100, FORECAST($C201,N$205:N$216,$C$205:$C$216)))) -> 87.25824905 | R201: =IF(MAX(C205:C216)-MIN(C205:C216)<5,AVERAGEIF(C205:C216,">0",R205:R216), IF(FORECAST($C201,R$205:R$216,$C$205:$C$216)<0,0, IF(FORECAST($C201,R$205:R$216,$C$205:$C$216)>100,100, FORECAST($C201,R$205:R$216,$C$205:$C$216)))) -> 1.59132396 | S201: =IF(MAX(C205:C216)-MIN(C205:C216)<5,AVERAGEIF(C205:C216,">0",S205:S216), IF(FORECAST($C201,S$205:S$216,$C$205:$C$216)<0,0, IF(FORECAST($C201,S$205:S$216,$C$205:$C$216)>100,100, FORECAST($C201,S$205:S$216,$C$205:$C$216)))) -> 93.69902866 | W201: =IF(MAX(C205:C216)-MIN(C205:C216)<5,AVERAGEIF(C205:C216,">0",W205:W216), IF(FORECAST($C201,W$205:W$216,$C$205:$C$216)<0,0, IF(FORECAST($C201,W$205:W$216,$C$205:$C$216)>100,100, FORECAST($C201,W$205:W$216,$C$205:$C$216)))) -> 0.1001667073 | X201: =IF(MAX(C205:C216)-MIN(C205:C216)<5,AVERAGEIF(C205:C216,">0",X205:X216), IF(FORECAST($C201,X$205:X$216,$C$205:$C$216)<0,0, IF(FORECAST($C201,X$205:X$216,$C$205:$C$216)>100,100, FORECAST($C201,X$205:X$216,$C$205:$C$216)))) -> 97.20984578 | AB201: =IF(MAX(C205:C216)-MIN(C205:C216)<5,AVERAGEIF(C205:C216,">0",AB205:AB216), IF(FORECAST($C201,AB$205:AB$216,$C$205:$C$216)<0,0, IF(FORECAST($C201,AB$205:AB$216,$C$205:$C$216)>100,100, FORECAST($C201,AB$205:AB$216,$C$205:$C$216)))) -> 0.1643497662
C202: =MaxRegYear(C200,C205:C216) -> 2020 | D202: =IF(MAX(C205:C216)-MIN(C205:C216)<5,AVERAGEIF(C205:C216,">0",D205:D216), IF(FORECAST($C202,D$205:D$216,$C$205:$C$216)<0,0, IF(FORECAST($C202,D$205:D$216,$C$205:$C$216)>100,100, FORECAST($C202,D$205:D$216,$C$205:$C$216)))) -> 71.18545714 | H202: =IF(MAX(C205:C216)-MIN(C205:C216)<5,AVERAGEIF(C205:C216,">0",H205:H216), IF(FORECAST($C202,H$205:H$216,$C$205:$C$216)<0,0, IF(FORECAST($C202,H$205:H$216,$C$205:$C$216)>100,100, FORECAST($C202,H$205:H$216,$C$205:$C$216)))) -> 0.4263732093 | I202: =IF(MAX(C205:C216)-MIN(C205:C216)<5,AVERAGEIF(C205:C216,">0",I205:I216), IF(FORECAST($C202,I$205:I$216,$C$205:$C$216)<0,0, IF(FORECAST($C202,I$205:I$216,$C$205:$C$216)>100,100, FORECAST($C202,I$205:I$216,$C$205:$C$216)))) -> 74.67092542 | M202: =IF(MAX(C205:C216)-MIN(C205:C216)<5,AVERAGEIF(C205:C216,">0",M205:M216), IF(FORECAST($C202,M$205:M$216,$C$205:$C$216)<0,0, IF(FORECAST($C202,M$205:M$216,$C$205:$C$216)>100,100, FORECAST($C202,M$205:M$216,$C$205:$C$216)))) -> 1.028553467 | N202: =IF(MAX(C205:C216)-MIN(C205:C216)<5,AVERAGEIF(C205:C216,">0",N205:N216), IF(FORECAST($C202,N$205:N$216,$C$205:$C$216)<0,0, IF(FORECAST($C202,N$205:N$216,$C$205:$C$216)>100,100, FORECAST($C202,N$205:N$216,$C$205:$C$216)))) -> 83.22531118 | R202: =IF(MAX(C205:C216)-MIN(C205:C216)<5,AVERAGEIF(C205:C216,">0",R205:R216), IF(FORECAST($C202,R$205:R$216,$C$205:$C$216)<0,0, IF(FORECAST($C202,R$205:R$216,$C$205:$C$216)>100,100, FORECAST($C202,R$205:R$216,$C$205:$C$216)))) -> 0 | S202: =IF(MAX(C205:C216)-MIN(C205:C216)<5,AVERAGEIF(C205:C216,">0",S205:S216), IF(FORECAST($C202,S$205:S$216,$C$205:$C$216)<0,0, IF(FORECAST($C202,S$205:S$216,$C$205:$C$216)>100,100, FORECAST($C202,S$205:S$216,$C$205:$C$216)))) -> 90.37149984 | W202: =IF(MAX(C205:C216)-MIN(C205:C216)<5,AVERAGEIF(C205:C216,">0",W205:W216), IF(FORECAST($C202,W$205:W$216,$C$205:$C$216)<0,0, IF(FORECAST($C202,W$205:W$216,$C$205:$C$216)>100,100, FORECAST($C202,W$205:W$216,$C$205:$C$216)))) -> 0.1043902575 | X202: =IF(MAX(C205:C216)-MIN(C205:C216)<5,AVERAGEIF(C205:C216,">0",X205:X216), IF(FORECAST($C202,X$205:X$216,$C$205:$C$216)<0,0, IF(FORECAST($C202,X$205:X$216,$C$205:$C$216)>100,100, FORECAST($C202,X$205:X$216,$C$205:$C$216)))) -> 94.71603127 | AB202: =IF(MAX(C205:C216)-MIN(C205:C216)<5,AVERAGEIF(C205:C216,">0",AB205:AB216), IF(FORECAST($C202,AB$205:AB$216,$C$205:$C$216)<0,0, IF(FORECAST($C202,AB$205:AB$216,$C$205:$C$216)>100,100, FORECAST($C202,AB$205:AB$216,$C$205:$C$216)))) -> 0
B204: Survey | C204: Year | D204: Improved | E204: % Improved < = 30min | H204: Surface water | I204: Improved | J204: % Improved < = 30min | M204: Surface water | N204: Improved | O204: % Improved < = 30min | R204: Surface water | S204: Improved | T204: % Improved < = 30min | W204: Surface water | X204: Improved | Y204: % Improved < = 30min | AB204: Surface water
B205: MICS00 | C205: 2000 | D205: =IF(ISERROR(INDIRECT(CONCATENATE($B205,"!H16"))),"",INDIRECT(CONCATENATE($B205,"!H16"))) -> 77.22557821 | E205: =IF(ISERROR(INDIRECT(CONCATENATE($B205,"!H23"))),"",INDIRECT(CONCATENATE($B205,"!H23"))) -> 88.55782046 | H205: =IF(ISERROR(INDIRECT(CONCATENATE($B205,"!H21"))),"",INDIRECT(CONCATENATE($B205,"!H21"))) -> 2.014320045 | I205: =IF(ISERROR(INDIRECT(CONCATENATE($B205,"!I16"))),"",INDIRECT(CONCATENATE($B205,"!I16"))) -> 87.02781646 | J205: =IF(ISERROR(INDIRECT(CONCATENATE($B205,"!I23"))),"",INDIRECT(CONCATENATE($B205,"!I23"))) -> 92.21080487 | M205: =IF(ISERROR(INDIRECT(CONCATENATE($B205,"!I21"))),"",INDIRECT(CONCATENATE($B205,"!I21"))) -> 2.62542087 | N205: =IF(ISERROR(INDIRECT(CONCATENATE($B205,"!J16"))),"",INDIRECT(CONCATENATE($B205,"!J16"))) -> 87.50712276 | O205: =IF(ISERROR(INDIRECT(CONCATENATE($B205,"!J23"))),"",INDIRECT(CONCATENATE($B205,"!J23"))) -> 92.11856638 | R205: =IF(ISERROR(INDIRECT(CONCATENATE($B205,"!J21"))),"",INDIRECT(CONCATENATE($B205,"!J21"))) -> 2.194017269 | S205: =IF(ISERROR(INDIRECT(CONCATENATE($B205,"!K16"))),"",INDIRECT(CONCATENATE($B205,"!K16"))) -> 93.39924112 | T205: =IF(ISERROR(INDIRECT(CONCATENATE($B205,"!K23"))),"",INDIRECT(CONCATENATE($B205,"!K23"))) -> 93.72061781 | W205: =IF(ISERROR(INDIRECT(CONCATENATE($B205,"!K21"))),"",INDIRECT(CONCATENATE($B205,"!K21"))) -> 0 | X205: =IF(ISERROR(INDIRECT(CONCATENATE($B205,"!L16"))),"",INDIRECT(CONCATENATE($B205,"!L16"))) -> 96.37248372 | Y205: =IF(ISERROR(INDIRECT(CONCATENATE($B205,"!L23"))),"",INDIRECT(CONCATENATE($B205,"!L23"))) -> 92.75152703 | AB205: =IF(ISERROR(INDIRECT(CONCATENATE($B205,"!L221"))),"",INDIRECT(CONCATENATE($B205,"!L21"))) -> 0.2164435097
B206: MICS06 | C206: 2006 | D206: 78.46055803 | E206: 86.64583889 | H206: 1.673105752 | I206: 82.1136222 | J206: 84.7902502 | M206: 1.316623025 | N206: 84.32510142 | O206: 87.531309 | R206: 0.470052122 | S206: 91.68118954 | T206: 91.36439874 | W206: 0.3186394478 | X206: 96.99418614 | Y206: 91.05161528 | AB206: 0.06211305677
B207: MICS10 | C207: 2010 | D207: 65.96599633 | E207: 69.77323845 | H207: 1.674325491 | I207: 83.30655853 | J207: 72.61339674 | M207: 0 | N207: 87.20554245 | O207: 75.82539171 | R207: 0.04880443768 | S207: 94.1408764 | T207: 79.79620461 | W207: 0 | X207: 96.96155827 | Y207: 74.89754813 | AB207: 0
B208: MICS19 | C208: 2019 | D208: 74.29576334 | E208: 68.72930199 | H208: 0.3198976169 | I208: 74.48194815 | J208: 72.01917185 | M208: 1.885786793 | N208: 82.9375883 | O208: 64.65173917 | R208: 0.109081025 | S208: 89.75163214 | T208: 54.54519611 | W208: 0.08941859424 | X208: 94.14697959 | Y208: 67.06943345 | AB208: 0
B218: =CONCATENATE("Urban use of drinking water sources, ",C199,"–",C200) -> Urban use of drinking water sources, 2000–2020 | S218: Data points used for regression
E253: =IF(ISERROR(INDIRECT(CONCATENATE($B253,"!M18"))),"",INDIRECT(CONCATENATE($B253,"!M18"))) ->  | F253: =IF(ISERROR(INDIRECT(CONCATENATE($B253,"!M19"))),"",INDIRECT(CONCATENATE($B253,"!M19"))) ->  | G253: =IF(ISERROR(INDIRECT(CONCATENATE($B253,"!M20"))),"",INDIRECT(CONCATENATE($B253,"!M20"))) ->  | H253: =IF(ISERROR(INDIRECT(CONCATENATE($B253,"!M21"))),"",INDIRECT(CONCATENATE($B253,"!M21"))) ->  | J253: =IF(ISERROR(INDIRECT(CONCATENATE($B253,"!N18"))),"",INDIRECT(CONCATENATE($B253,"!N18"))) ->  | K253: =IF(ISERROR(INDIRECT(CONCATENATE($B253,"!N19"))),"",INDIRECT(CONCATENATE($B253,"!N19"))) ->  | L253: =IF(ISERROR(INDIRECT(CONCATENATE($B253,"!N20"))),"",INDIRECT(CONCATENATE($B253,"!N20"))) ->  | M253: =IF(ISERROR(INDIRECT(CONCATENATE($B253,"!N21"))),"",INDIRECT(CONCATENATE($B253,"!N21"))) ->  | O253: =IF(ISERROR(INDIRECT(CONCATENATE($B253,"!O18"))),"",INDIRECT(CONCATENATE($B253,"!O18"))) ->  | P253: =IF(ISERROR(INDIRECT(CONCATENATE($B253,"!O19"))),"",INDIRECT(CONCATENATE($B253,"!O19"))) ->  | Q253: =IF(ISERROR(INDIRECT(CONCATENATE($B253,"!O20"))),"",INDIRECT(CONCATENATE($B253,"!O20"))) ->  | R253: =IF(ISERROR(INDIRECT(CONCATENATE($B253,"!O21"))),"",INDIRECT(CONCATENATE($B253,"!O21"))) ->  | T253: =IF(ISERROR(INDIRECT(CONCATENATE($B253,"!P18"))),"",INDIRECT(CONCATENATE($B253,"!P18"))) ->  | U253: =IF(ISERROR(INDIRECT(CONCATENATE($B253,"!P19"))),"",INDIRECT(CONCATENATE($B253,"!P19"))) ->  | V253: =IF(ISERROR(INDIRECT(CONCATENATE($B253,"!P20"))),"",INDIRECT(CONCATENATE($B253,"!P20"))) ->  | W253: =IF(ISERROR(INDIRECT(CONCATENATE($B253,"!P21"))),"",INDIRECT(CONCATENATE($B253,"!P21"))) ->  | Y253: =IF(ISERROR(INDIRECT(CONCATENATE($B253,"!Q18"))),"",INDIRECT(CONCATENATE($B253,"!Q18"))) ->  | Z253: =IF(ISERROR(INDIRECT(CONCATENATE($B253,"!Q19"))),"",INDIRECT(CONCATENATE($B253,"!Q19"))) ->  | AA253: =IF(ISERROR(INDIRECT(CONCATENATE($B253,"!Q20"))),"",INDIRECT(CONCATENATE($B253,"!Q20"))) ->  | AB253: =IF(ISERROR(INDIRECT(CONCATENATE($B253,"!Q21"))),"",INDIRECT(CONCATENATE($B253,"!Q1"))) -> 
E254: =IF(ISERROR(INDIRECT(CONCATENATE($B254,"!M18"))),"",INDIRECT(CONCATENATE($B254,"!M18"))) ->  | F254: =IF(ISERROR(INDIRECT(CONCATENATE($B254,"!M19"))),"",INDIRECT(CONCATENATE($B254,"!M19"))) ->  | G254: =IF(ISERROR(INDIRECT(CONCATENATE($B254,"!M20"))),"",INDIRECT(CONCATENATE($B254,"!M20"))) ->  | H254: =IF(ISERROR(INDIRECT(CONCATENATE($B254,"!M21"))),"",INDIRECT(CONCATENATE($B254,"!M21"))) ->  | J254: =IF(ISERROR(INDIRECT(CONCATENATE($B254,"!N18"))),"",INDIRECT(CONCATENATE($B254,"!N18"))) ->  | K254: =IF(ISERROR(INDIRECT(CONCATENATE($B254,"!N19"))),"",INDIRECT(CONCATENATE($B254,"!N19"))) ->  | L254: =IF(ISERROR(INDIRECT(CONCATENATE($B254,"!N20"))),"",INDIRECT(CONCATENATE($B254,"!N20"))) ->  | M254: =IF(ISERROR(INDIRECT(CONCATENATE($B254,"!N21"))),"",INDIRECT(CONCATENATE($B254,"!N21"))) ->  | O254: =IF(ISERROR(INDIRECT(CONCATENATE($B254,"!O18"))),"",INDIRECT(CONCATENATE($B254,"!O18"))) ->  | P254: =IF(ISERROR(INDIRECT(CONCATENATE($B254,"!O19"))),"",INDIRECT(CONCATENATE($B254,"!O19"))) ->  | Q254: =IF(ISERROR(INDIRECT(CONCATENATE($B254,"!O20"))),"",INDIRECT(CONCATENATE($B254,"!O20"))) ->  | R254: =IF(ISERROR(INDIRECT(CONCATENATE($B254,"!O21"))),"",INDIRECT(CONCATENATE($B254,"!O21"))) ->  | T254: =IF(ISERROR(INDIRECT(CONCATENATE($B254,"!P18"))),"",INDIRECT(CONCATENATE($B254,"!P18"))) ->  | U254: =IF(ISERROR(INDIRECT(CONCATENATE($B254,"!P19"))),"",INDIRECT(CONCATENATE($B254,"!P19"))) ->  | V254: =IF(ISERROR(INDIRECT(CONCATENATE($B254,"!P20"))),"",INDIRECT(CONCATENATE($B254,"!P20"))) ->  | W254: =IF(ISERROR(INDIRECT(CONCATENATE($B254,"!P21"))),"",INDIRECT(CONCATENATE($B254,"!P21"))) ->  | Y254: =IF(ISERROR(INDIRECT(CONCATENATE($B254,"!Q18"))),"",INDIRECT(CONCATENATE($B254,"!Q18"))) ->  | Z254: =IF(ISERROR(INDIRECT(CONCATENATE($B254,"!Q19"))),"",INDIRECT(CONCATENATE($B254,"!Q19"))) ->  | AA254: =IF(ISERROR(INDIRECT(CONCATENATE($B254,"!Q20"))),"",INDIRECT(CONCATENATE($B254,"!Q20"))) ->  | AB254: =IF(ISERROR(INDIRECT(CONCATENATE($B254,"!Q21"))),"",INDIRECT(CONCATENATE($B254,"!Q1"))) -> 
E255: =IF(ISERROR(INDIRECT(CONCATENATE($B255,"!M18"))),"",INDIRECT(CONCATENATE($B255,"!M18"))) ->  | F255: =IF(ISERROR(INDIRECT(CONCATENATE($B255,"!M19"))),"",INDIRECT(CONCATENATE($B255,"!M19"))) ->  | G255: =IF(ISERROR(INDIRECT(CONCATENATE($B255,"!M20"))),"",INDIRECT(CONCATENATE($B255,"!M20"))) ->  | H255: =IF(ISERROR(INDIRECT(CONCATENATE($B255,"!M21"))),"",INDIRECT(CONCATENATE($B255,"!M21"))) ->  | J255: =IF(ISERROR(INDIRECT(CONCATENATE($B255,"!N18"))),"",INDIRECT(CONCATENATE($B255,"!N18"))) ->  | K255: =IF(ISERROR(INDIRECT(CONCATENATE($B255,"!N19"))),"",INDIRECT(CONCATENATE($B255,"!N19"))) ->  | L255: =IF(ISERROR(INDIRECT(CONCATENATE($B255,"!N20"))),"",INDIRECT(CONCATENATE($B255,"!N20"))) ->  | M255: =IF(ISERROR(INDIRECT(CONCATENATE($B255,"!N21"))),"",INDIRECT(CONCATENATE($B255,"!N21"))) ->  | O255: =IF(ISERROR(INDIRECT(CONCATENATE($B255,"!O18"))),"",INDIRECT(CONCATENATE($B255,"!O18"))) ->  | P255: =IF(ISERROR(INDIRECT(CONCATENATE($B255,"!O19"))),"",INDIRECT(CONCATENATE($B255,"!O19"))) ->  | Q255: =IF(ISERROR(INDIRECT(CONCATENATE($B255,"!O20"))),"",INDIRECT(CONCATENATE($B255,"!O20"))) ->  | R255: =IF(ISERROR(INDIRECT(CONCATENATE($B255,"!O21"))),"",INDIRECT(CONCATENATE($B255,"!O21"))) ->  | T255: =IF(ISERROR(INDIRECT(CONCATENATE($B255,"!P18"))),"",INDIRECT(CONCATENATE($B255,"!P18"))) ->  | U255: =IF(ISERROR(INDIRECT(CONCATENATE($B255,"!P19"))),"",INDIRECT(CONCATENATE($B255,"!P19"))) ->  | V255: =IF(ISERROR(INDIRECT(CONCATENATE($B255,"!P20"))),"",INDIRECT(CONCATENATE($B255,"!P20"))) ->  | W255: =IF(ISERROR(INDIRECT(CONCATENATE($B255,"!P21"))),"",INDIRECT(CONCATENATE($B255,"!P21"))) ->  | Y255: =IF(ISERROR(INDIRECT(CONCATENATE($B255,"!Q18"))),"",INDIRECT(CONCATENATE($B255,"!Q18"))) ->  | Z255: =IF(ISERROR(INDIRECT(CONCATENATE($B255,"!Q19"))),"",INDIRECT(CONCATENATE($B255,"!Q19"))) ->  | AA255: =IF(ISERROR(INDIRECT(CONCATENATE($B255,"!Q20"))),"",INDIRECT(CONCATENATE($B255,"!Q20"))) ->  | AB255: =IF(ISERROR(INDIRECT(CONCATENATE($B255,"!Q21"))),"",INDIRECT(CONCATENATE($B255,"!Q1"))) -> 
E256: =IF(ISERROR(INDIRECT(CONCATENATE($B256,"!M18"))),"",INDIRECT(CONCATENATE($B256,"!M18"))) ->  | F256: =IF(ISERROR(INDIRECT(CONCATENATE($B256,"!M19"))),"",INDIRECT(CONCATENATE($B256,"!M19"))) ->  | G256: =IF(ISERROR(INDIRECT(CONCATENATE($B256,"!M20"))),"",INDIRECT(CONCATENATE($B256,"!M20"))) ->  | H256: =IF(ISERROR(INDIRECT(CONCATENATE($B256,"!M21"))),"",INDIRECT(CONCATENATE($B256,"!M21"))) ->  | J256: =IF(ISERROR(INDIRECT(CONCATENATE($B256,"!N18"))),"",INDIRECT(CONCATENATE($B256,"!N18"))) ->  | K256: =IF(ISERROR(INDIRECT(CONCATENATE($B256,"!N19"))),"",INDIRECT(CONCATENATE($B256,"!N19"))) ->  | L256: =IF(ISERROR(INDIRECT(CONCATENATE($B256,"!N20"))),"",INDIRECT(CONCATENATE($B256,"!N20"))) ->  | M256: =IF(ISERROR(INDIRECT(CONCATENATE($B256,"!N21"))),"",INDIRECT(CONCATENATE($B256,"!N21"))) ->  | O256: =IF(ISERROR(INDIRECT(CONCATENATE($B256,"!O18"))),"",INDIRECT(CONCATENATE($B256,"!O18"))) ->  | P256: =IF(ISERROR(INDIRECT(CONCATENATE($B256,"!O19"))),"",INDIRECT(CONCATENATE($B256,"!O19"))) ->  | Q256: =IF(ISERROR(INDIRECT(CONCATENATE($B256,"!O20"))),"",INDIRECT(CONCATENATE($B256,"!O20"))) ->  | R256: =IF(ISERROR(INDIRECT(CONCATENATE($B256,"!O21"))),"",INDIRECT(CONCATENATE($B256,"!O21"))) ->  | T256: =IF(ISERROR(INDIRECT(CONCATENATE($B256,"!P18"))),"",INDIRECT(CONCATENATE($B256,"!P18"))) ->  | U256: =IF(ISERROR(INDIRECT(CONCATENATE($B256,"!P19"))),"",INDIRECT(CONCATENATE($B256,"!P19"))) ->  | V256: =IF(ISERROR(INDIRECT(CONCATENATE($B256,"!P20"))),"",INDIRECT(CONCATENATE($B256,"!P20"))) ->  | W256: =IF(ISERROR(INDIRECT(CONCATENATE($B256,"!P21"))),"",INDIRECT(CONCATENATE($B256,"!P21"))) ->  | Y256: =IF(ISERROR(INDIRECT(CONCATENATE($B256,"!Q18"))),"",INDIRECT(CONCATENATE($B256,"!Q18"))) ->  | Z256: =IF(ISERROR(INDIRECT(CONCATENATE($B256,"!Q19"))),"",INDIRECT(CONCATENATE($B256,"!Q19"))) ->  | AA256: =IF(ISERROR(INDIRECT(CONCATENATE($B256,"!Q20"))),"",INDIRECT(CONCATENATE($B256,"!Q20"))) ->  | AB256: =IF(ISERROR(INDIRECT(CONCATENATE($B256,"!Q21"))),"",INDIRECT(CONCATENATE($B256,"!Q1"))) -> 
E257: =IF(ISERROR(INDIRECT(CONCATENATE($B257,"!M18"))),"",INDIRECT(CONCATENATE($B257,"!M18"))) ->  | F257: =IF(ISERROR(INDIRECT(CONCATENATE($B257,"!M19"))),"",INDIRECT(CONCATENATE($B257,"!M19"))) ->  | G257: =IF(ISERROR(INDIRECT(CONCATENATE($B257,"!M20"))),"",INDIRECT(CONCATENATE($B257,"!M20"))) ->  | H257: =IF(ISERROR(INDIRECT(CONCATENATE($B257,"!M21"))),"",INDIRECT(CONCATENATE($B257,"!M21"))) ->  | J257: =IF(ISERROR(INDIRECT(CONCATENATE($B257,"!N18"))),"",INDIRECT(CONCATENATE($B257,"!N18"))) ->  | K257: =IF(ISERROR(INDIRECT(CONCATENATE($B257,"!N19"))),"",INDIRECT(CONCATENATE($B257,"!N19"))) ->  | L257: =IF(ISERROR(INDIRECT(CONCATENATE($B257,"!N20"))),"",INDIRECT(CONCATENATE($B257,"!N20"))) ->  | M257: =IF(ISERROR(INDIRECT(CONCATENATE($B257,"!N21"))),"",INDIRECT(CONCATENATE($B257,"!N21"))) ->  | O257: =IF(ISERROR(INDIRECT(CONCATENATE($B257,"!O18"))),"",INDIRECT(CONCATENATE($B257,"!O18"))) ->  | P257: =IF(ISERROR(INDIRECT(CONCATENATE($B257,"!O19"))),"",INDIRECT(CONCATENATE($B257,"!O19"))) ->  | Q257: =IF(ISERROR(INDIRECT(CONCATENATE($B257,"!O20"))),"",INDIRECT(CONCATENATE($B257,"!O20"))) ->  | R257: =IF(ISERROR(INDIRECT(CONCATENATE($B257,"!O21"))),"",INDIRECT(CONCATENATE($B257,"!O21"))) ->  | T257: =IF(ISERROR(INDIRECT(CONCATENATE($B257,"!P18"))),"",INDIRECT(CONCATENATE($B257,"!P18"))) ->  | U257: =IF(ISERROR(INDIRECT(CONCATENATE($B257,"!P19"))),"",INDIRECT(CONCATENATE($B257,"!P19"))) ->  | V257: =IF(ISERROR(INDIRECT(CONCATENATE($B257,"!P20"))),"",INDIRECT(CONCATENATE($B257,"!P20"))) ->  | W257: =IF(ISERROR(INDIRECT(CONCATENATE($B257,"!P21"))),"",INDIRECT(CONCATENATE($B257,"!P21"))) ->  | Y257: =IF(ISERROR(INDIRECT(CONCATENATE($B257,"!Q18"))),"",INDIRECT(CONCATENATE($B257,"!Q18"))) ->  | Z257: =IF(ISERROR(INDIRECT(CONCATENATE($B257,"!Q19"))),"",INDIRECT(CONCATENATE($B257,"!Q19"))) ->  | AA257: =IF(ISERROR(INDIRECT(CONCATENATE($B257,"!Q20"))),"",INDIRECT(CONCATENATE($B257,"!Q20"))) ->  | AB257: =IF(ISERROR(INDIRECT(CONCATENATE($B257,"!Q21"))),"",INDIRECT(CONCATENATE($B257,"!Q1"))) -> 
A297: RURAL | D297: Poorest | I297: Poor | N297: Middle | S297: Rich | X297: Richest
D298: Improved | E298: Basic | F298: Limited | G298: Unimproved | H298: Surface water | I298: Improved | J298: Basic | K298: Limited | L298: Unimproved | M298: Surface water | N298: Improved | O298: Basic | P298: Limited | Q298: Unimproved | R298: Surface water | S298: Improved | T298: Basic | U298: Limited | V298: Unimproved | W298: Surface water | X298: Improved | Y298: Basic | Z298: Limited | AA298: Unimproved | AB298: Surface water
A299: Forecast period: | C299: 2000 | D299: =IF((D301+H301)>100,D301*100/(D301+H301),D301) -> 50.9147453 | E299: =D299*AVERAGEIF(E305:E316,">0")/100 -> 37.37167543 | F299: =D299*(100-AVERAGEIF(E305:E316,">0"))/100 -> 13.54306988 | G299: =100-(E299+F299+H299) -> 37.20156292 | H299: =IF((D301+H301)>100,H301*100/(D301+H301),H301) -> 11.88369178 | I299: =IF((I301+M301)>100,I301*100/(I301+M301),I301) -> 54.91096535 | J299: =I299*AVERAGEIF(J305:J316,">0")/100 -> 40.40199802 | K299: =I299*(100-AVERAGEIF(J305:J316,">0"))/100 -> 14.50896733 | L299: =100-(J299+K299+M299) -> 35.26348936 | M299: =IF((I301+M301)>100,M301*100/(I301+M301),M301) -> 9.825545294 | N299: =IF((N301+R301)>100,N301*100/(N301+R301),N301) -> 51.53833755 | O299: =N299*AVERAGEIF(O305:O316,">0")/100 -> 36.68291032 | P299: =N299*(100-AVERAGEIF(O305:O316,">0"))/100 -> 14.85542722 | Q299: =100-(O299+P299+R299) -> 39.12625487 | R299: =IF((N301+R301)>100,R301*100/(N301+R301),R301) -> 9.335407582 | S299: =IF((S301+W301)>100,S301*100/(S301+W301),S301) -> 53.8556348 | T299: =S299*AVERAGEIF(T305:T316,">0")/100 -> 38.61979839 | U299: =S299*(100-AVERAGEIF(T305:T316,">0"))/100 -> 15.23583642 | V299: =100-(T299+U299+W299) -> 33.97297007 | W299: =IF((S301+W301)>100,W301*100/(S301+W301),W301) -> 12.17139512 | X299: =IF((X301+AB301)>100,X301*100/(X301+AB301),X301) -> 60.97719335 | Y299: =X299*AVERAGEIF(Y305:Y316,">0")/100 -> 43.52951759 | Z299: =X299*(100-AVERAGEIF(Y305:Y316,">0"))/100 -> 17.44767576 | AA299: =100-(Y299+Z299+AB299) -> 28.74974669 | AB299: =IF((X301+AB301)>100,AB301*100/(X301+AB301),AB301) -> 10.27305997
C300: 2020 | D300: =IF((D302+H302)>100,D302*100/(D302+H302),D302) -> 42.10202609 | E300: =D300*AVERAGEIF(E305:E316,">0")/100 -> 30.90309584 | F300: =D300*(100-AVERAGEIF(E305:E316,">0"))/100 -> 11.19893025 | G300: =100-(E300+F300+H300) -> 49.07966985 | H300: =IF((D302+H302)>100,H302*100/(D302+H302),H302) -> 8.818304067 | I300: =IF((I302+M302)>100,I302*100/(I302+M302),I302) -> 41.66734535 | J300: =I300*AVERAGEIF(J305:J316,">0")/100 -> 30.65770186 | K300: =I300*(100-AVERAGEIF(J305:J316,">0"))/100 -> 11.0096435 | L300: =100-(J300+K300+M300) -> 51.35064271 | M300: =IF((I302+M302)>100,M302*100/(I302+M302),M302) -> 6.982011933 | N300: =IF((N302+R302)>100,N302*100/(N302+R302),N302) -> 43.84604035 | O300: =N300*AVERAGEIF(O305:O316,">0")/100 -> 31.20784338 | P300: =N300*(100-AVERAGEIF(O305:O316,">0"))/100 -> 12.63819697 | Q300: =100-(O300+P300+R300) -> 49.50951322 | R300: =IF((N302+R302)>100,R302*100/(N302+R302),R302) -> 6.644446429 | S300: =IF((S302+W302)>100,S302*100/(S302+W302),S302) -> 49.26366672 | T300: =S300*AVERAGEIF(T305:T316,">0")/100 -> 35.32690467 | U300: =S300*(100-AVERAGEIF(T305:T316,">0"))/100 -> 13.93676205 | V300: =100-(T300+U300+W300) -> 45.72567177 | W300: =IF((S302+W302)>100,W302*100/(S302+W302),W302) -> 5.01066151 | X300: =IF((X302+AB302)>100,X302*100/(X302+AB302),X302) -> 51.06698606 | Y300: =X300*AVERAGEIF(Y305:Y316,">0")/100 -> 36.45496202 | Z300: =X300*(100-AVERAGEIF(Y305:Y316,">0"))/100 -> 14.61202404 | AA300: =100-(Y300+Z300+AB300) -> 45.98122471 | AB300: =IF((X302+AB302)>100,AB302*100/(X302+AB302),AB302) -> 2.951789231
A301: Regression period: | C301: =MinRegYear(C299,C305:C316) -> 2000 | D301: =IF(MAX(C305:C316)-MIN(C305:C316)<5,AVERAGEIF(C305:C316,">0",D305:D316), IF(FORECAST($C301,D$305:D$316,$C$305:$C$316)<0,0, IF(FORECAST($C301,D$305:D$316,$C$305:$C$316)>100,100, FORECAST($C301,D$305:D$316,$C$305:$C$316)))) -> 50.9147453 | H301: =IF(MAX(C305:C316)-MIN(C305:C316)<5,AVERAGEIF(C305:C316,">0",H305:H316), IF(FORECAST($C301,H$305:H$316,$C$305:$C$316)<0,0, IF(FORECAST($C301,H$305:H$316,$C$305:$C$316)>100,100, FORECAST($C301,H$305:H$316,$C$305:$C$316)))) -> 11.88369178 | I301: =IF(MAX(C305:C316)-MIN(C305:C316)<5,AVERAGEIF(C305:C316,">0",I305:I316), IF(FORECAST($C301,I$305:I$316,$C$305:$C$316)<0,0, IF(FORECAST($C301,I$305:I$316,$C$305:$C$316)>100,100, FORECAST($C301,I$305:I$316,$C$305:$C$316)))) -> 54.91096535 | M301: =IF(MAX(C305:C316)-MIN(C305:C316)<5,AVERAGEIF(C305:C316,">0",M305:M316), IF(FORECAST($C301,M$305:M$316,$C$305:$C$316)<0,0, IF(FORECAST($C301,M$305:M$316,$C$305:$C$316)>100,100, FORECAST($C301,M$305:M$316,$C$305:$C$316)))) -> 9.825545294 | N301: =IF(MAX(C305:C316)-MIN(C305:C316)<5,AVERAGEIF(C305:C316,">0",N305:N316), IF(FORECAST($C301,N$305:N$316,$C$305:$C$316)<0,0, IF(FORECAST($C301,N$305:N$316,$C$305:$C$316)>100,100, FORECAST($C301,N$305:N$316,$C$305:$C$316)))) -> 51.53833755 | R301: =IF(MAX(C305:C316)-MIN(C305:C316)<5,AVERAGEIF(C305:C316,">0",R305:R316), IF(FORECAST($C301,R$305:R$316,$C$305:$C$316)<0,0, IF(FORECAST($C301,R$305:R$316,$C$305:$C$316)>100,100, FORECAST($C301,R$305:R$316,$C$305:$C$316)))) -> 9.335407582 | S301: =IF(MAX(C305:C316)-MIN(C305:C316)<5,AVERAGEIF(C305:C316,">0",S305:S316), IF(FORECAST($C301,S$305:S$316,$C$305:$C$316)<0,0, IF(FORECAST($C301,S$305:S$316,$C$305:$C$316)>100,100, FORECAST($C301,S$305:S$316,$C$305:$C$316)))) -> 53.8556348 | W301: =IF(MAX(C305:C316)-MIN(C305:C316)<5,AVERAGEIF(C305:C316,">0",W305:W316), IF(FORECAST($C301,W$305:W$316,$C$305:$C$316)<0,0, IF(FORECAST($C301,W$305:W$316,$C$305:$C$316)>100,100, FORECAST($C301,W$305:W$316,$C$305:$C$316)))) -> 12.17139512 | X301: =IF(MAX(C305:C316)-MIN(C305:C316)<5,AVERAGEIF(C305:C316,">0",X305:X316), IF(FORECAST($C301,X$305:X$316,$C$305:$C$316)<0,0, IF(FORECAST($C301,X$305:X$316,$C$305:$C$316)>100,100, FORECAST($C301,X$305:X$316,$C$305:$C$316)))) -> 60.97719335 | AB301: =IF(MAX(C305:C316)-MIN(C305:C316)<5,AVERAGEIF(C305:C316,">0",AB305:AB316), IF(FORECAST($C301,AB$305:AB$316,$C$305:$C$316)<0,0, IF(FORECAST($C301,AB$305:AB$316,$C$305:$C$316)>100,100, FORECAST($C301,AB$305:AB$316,$C$305:$C$316)))) -> 10.27305997
C302: =MaxRegYear(C300,C305:C316) -> 2020 | D302: =IF(MAX(C305:C316)-MIN(C305:C316)<5,AVERAGEIF(C305:C316,">0",D305:D316), IF(FORECAST($C302,D$305:D$316,$C$305:$C$316)<0,0, IF(FORECAST($C302,D$305:D$316,$C$305:$C$316)>100,100, FORECAST($C302,D$305:D$316,$C$305:$C$316)))) -> 42.10202609 | H302: =IF(MAX(C305:C316)-MIN(C305:C316)<5,AVERAGEIF(C305:C316,">0",H305:H316), IF(FORECAST($C302,H$305:H$316,$C$305:$C$316)<0,0, IF(FORECAST($C302,H$305:H$316,$C$305:$C$316)>100,100, FORECAST($C302,H$305:H$316,$C$305:$C$316)))) -> 8.818304067 | I302: =IF(MAX(C305:C316)-MIN(C305:C316)<5,AVERAGEIF(C305:C316,">0",I305:I316), IF(FORECAST($C302,I$305:I$316,$C$305:$C$316)<0,0, IF(FORECAST($C302,I$305:I$316,$C$305:$C$316)>100,100, FORECAST($C302,I$305:I$316,$C$305:$C$316)))) -> 41.66734535 | M302: =IF(MAX(C305:C316)-MIN(C305:C316)<5,AVERAGEIF(C305:C316,">0",M305:M316), IF(FORECAST($C302,M$305:M$316,$C$305:$C$316)<0,0, IF(FORECAST($C302,M$305:M$316,$C$305:$C$316)>100,100, FORECAST($C302,M$305:M$316,$C$305:$C$316)))) -> 6.982011933 | N302: =IF(MAX(C305:C316)-MIN(C305:C316)<5,AVERAGEIF(C305:C316,">0",N305:N316), IF(FORECAST($C302,N$305:N$316,$C$305:$C$316)<0,0, IF(FORECAST($C302,N$305:N$316,$C$305:$C$316)>100,100, FORECAST($C302,N$305:N$316,$C$305:$C$316)))) -> 43.84604035 | R302: =IF(MAX(C305:C316)-MIN(C305:C316)<5,AVERAGEIF(C305:C316,">0",R305:R316), IF(FORECAST($C302,R$305:R$316,$C$305:$C$316)<0,0, IF(FORECAST($C302,R$305:R$316,$C$305:$C$316)>100,100, FORECAST($C302,R$305:R$316,$C$305:$C$316)))) -> 6.644446429 | S302: =IF(MAX(C305:C316)-MIN(C305:C316)<5,AVERAGEIF(C305:C316,">0",S305:S316), IF(FORECAST($C302,S$305:S$316,$C$305:$C$316)<0,0, IF(FORECAST($C302,S$305:S$316,$C$305:$C$316)>100,100, FORECAST($C302,S$305:S$316,$C$305:$C$316)))) -> 49.26366672 | W302: =IF(MAX(C305:C316)-MIN(C305:C316)<5,AVERAGEIF(C305:C316,">0",W305:W316), IF(FORECAST($C302,W$305:W$316,$C$305:$C$316)<0,0, IF(FORECAST($C302,W$305:W$316,$C$305:$C$316)>100,100, FORECAST($C302,W$305:W$316,$C$305:$C$316)))) -> 5.01066151 | X302: =IF(MAX(C305:C316)-MIN(C305:C316)<5,AVERAGEIF(C305:C316,">0",X305:X316), IF(FORECAST($C302,X$305:X$316,$C$305:$C$316)<0,0, IF(FORECAST($C302,X$305:X$316,$C$305:$C$316)>100,100, FORECAST($C302,X$305:X$316,$C$305:$C$316)))) -> 51.06698606 | AB302: =IF(MAX(C305:C316)-MIN(C305:C316)<5,AVERAGEIF(C305:C316,">0",AB305:AB316), IF(FORECAST($C302,AB$305:AB$316,$C$305:$C$316)<0,0, IF(FORECAST($C302,AB$305:AB$316,$C$305:$C$316)>100,100, FORECAST($C302,AB$305:AB$316,$C$305:$C$316)))) -> 2.951789231
B304: Survey | C304: Year | D304: Improved | E304: % Improved < = 30min | H304: Surface water | I304: Improved | J304: % Improved < = 30min | M304: Surface water | N304: Improved | O304: % Improved < = 30min | R304: Surface water | S304: Improved | T304: % Improved < = 30min | W304: Surface water | X304: Improved | Y304: % Improved < = 30min | AB304: Surface water
B305: MICS00 | C305: 2000 | D305: =IF(ISERROR(INDIRECT(CONCATENATE($B305,"!M16"))),"",INDIRECT(CONCATENATE($B305,"!M16"))) -> 50.36296671 | E305: =IF(ISERROR(INDIRECT(CONCATENATE($B305,"!M23"))),"",INDIRECT(CONCATENATE($B305,"!M23"))) -> 87.51563868 | H305: =IF(ISERROR(INDIRECT(CONCATENATE($B305,"!M21"))),"",INDIRECT(CONCATENATE($B305,"!M21"))) -> 13.16857824 | I305: =IF(ISERROR(INDIRECT(CONCATENATE($B305,"!N16"))),"",INDIRECT(CONCATENATE($B305,"!N16"))) -> 56.7725828 | J305: =IF(ISERROR(INDIRECT(CONCATENATE($B305,"!N23"))),"",INDIRECT(CONCATENATE($B305,"!N23"))) -> 87.04017759 | M305: =IF(ISERROR(INDIRECT(CONCATENATE($B305,"!N21"))),"",INDIRECT(CONCATENATE($B305,"!N21"))) -> 10.33726372 | N305: =IF(ISERROR(INDIRECT(CONCATENATE($B305,"!O16"))),"",INDIRECT(CONCATENATE($B305,"!O16"))) -> 55.72996106 | O305: =IF(ISERROR(INDIRECT(CONCATENATE($B305,"!O23"))),"",INDIRECT(CONCATENATE($B305,"!O23"))) -> 86.03012932 | R305: =IF(ISERROR(INDIRECT(CONCATENATE($B305,"!O21"))),"",INDIRECT(CONCATENATE($B305,"!O21"))) -> 11.64928395 | S305: =IF(ISERROR(INDIRECT(CONCATENATE($B305,"!P16"))),"",INDIRECT(CONCATENATE($B305,"!P16"))) -> 54.27488815 | T305: =IF(ISERROR(INDIRECT(CONCATENATE($B305,"!P23"))),"",INDIRECT(CONCATENATE($B305,"!P23"))) -> 84.06667862 | W305: =IF(ISERROR(INDIRECT(CONCATENATE($B305,"!P21"))),"",INDIRECT(CONCATENATE($B305,"!P21"))) -> 15.01869113 | X305: =IF(ISERROR(INDIRECT(CONCATENATE($B305,"!Q16"))),"",INDIRECT(CONCATENATE($B305,"!Q16"))) -> 62.28096088 | Y305: =IF(ISERROR(INDIRECT(CONCATENATE($B305,"!Q23"))),"",INDIRECT(CONCATENATE($B305,"!Q23"))) -> 80.88005476 | AB305: =IF(ISERROR(INDIRECT(CONCATENATE($B305,"!Q221"))),"",INDIRECT(CONCATENATE($B305,"!Q21"))) -> 14.04879563
B306: MICS06 | C306: 2006 | D306: 45.03463256 | E306: 74.26448927 | H306: 9.606895144 | I306: 44.64647411 | J306: 74.34846699 | M306: 8.422140005 | N306: 41.66099436 | O306: 68.37029705 | R306: 5.603192479 | S306: 48.19837076 | T306: 73.25115229 | W306: 7.646111277 | X306: 51.47354311 | Y306: 78.74581191 | AB306: 3.934312191
B307: MICS10 | C307: 2010 | D307: 52.3479028 | E307: 70.80204744 | H307: 9.59883141 | I307: 53.44665941 | J307: 69.65736953 | M307: 8.118427332 | N307: 49.77715067 | O307: 66.7414832 | R307: 7.329971106 | S307: 56.85631114 | T307: 63.72947424 | W307: 6.013606623 | X307: 62.7027632 | Y307: 59.97863903 | AB307: 4.624845445
B308: MICS19 | C308: 2019 | D308: 40.49122051 | E308: 61.01980733 | H308: 9.796033825 | I308: 41.60181008 | J308: 63.26312988 | M308: 7.448166733 | N308: 45.523724 | O308: 63.56195997 | R308: 8.050000778 | S308: 48.05702501 | T308: 65.79212049 | W308: 7.475887639 | X308: 50.10864344 | Y308: 65.94171378 | AB308: 5.672062812
B318: =CONCATENATE("Rural use of drinking water sources, ",C299,"–",C300) -> Rural use of drinking water sources, 2000–2020 | S318: Data points used for regression

Sheet Sanitation
B4: Summary of trends in use of sanitation facilities by wealth quintile (%)
B5: =IF(ISERROR(INDIRECT(CONCATENATE($B105,"!A2"))),"",INDIRECT(CONCATENATE($B105,"!A2"))) -> Central African Republic
B7: =B118 -> National use of sanitation facilities, 2000–2020 | J7: =B218 -> Urban use of sanitation facilities, 2000–2020 | R7: =B318 -> Rural use of sanitation facilities, 2000–2020
B31: =IF(ISERROR(INDIRECT(CONCATENATE($B105,"!A2"))),"",INDIRECT(CONCATENATE($B105,"!A2"))) -> Central African Republic | F31: Poorest | J31: Poor | N31: Middle | R31: Rich | V31: Richest
F32: Basic | G32: Limited | H32: Unimproved | I32: Open defecation | J32: Basic | K32: Limited | L32: Unimproved | M32: Open defecation | N32: Basic | O32: Limited | P32: Unimproved | Q32: Open defecation | R32: Basic | S32: Limited | T32: Unimproved | U32: Open defecation | V32: Basic | W32: Limited | X32: Unimproved | Y32: Open defecation
B33: NATIONAL | D33: Estimate | E33: =C99 -> 2000 | F33: =E99 -> 0.6170709339 | G33: =F99 -> 0.5730637458 | H33: 54.94615728 | I33: 43.86370804 | J33: =J99 -> 0.9753953585 | K33: =K99 -> 0.710832518 | L33: 56.73753077 | M33: 41.57624135 | N33: =O99 -> 7.425525906 | O33: =P99 -> 5.900954565 | P33: 56.85747303 | Q33: 29.8160465 | R33: =T99 -> 29.96754816 | S33: =U99 -> 28.28747931 | T33: 29.29325054 | U33: 12.45172198 | V33: =Y99 -> 55.812374 | W33: =Z99 -> 31.64016336 | X33: 10.61936145 | Y33: 1.928101194
E34: =C100 -> 2020 | F34: =E100 -> 3.43851765 | G34: 3.193295448 | H34: 34.58840558 | I34: 58.77978132 | J34: =J100 -> 6.929859921 | K34: 5.050228848 | L34: 49.02060281 | M34: 38.99930842 | N34: =O100 -> 9.063610097 | O34: 7.202715613 | P34: 56.89575641 | Q34: 26.83791788 | R34: =T100 -> 14.49852299 | S34: 13.68569317 | T34: 60.89609265 | U34: 10.9196912 | V34: =Y100 -> 34.89737892 | W34: 19.78340448 | X34: 43.41891548 | Y34: 1.900301124
B36: URBAN | D36: Estimate | E36: =C199 -> 2000 | F36: =E199 -> 5.618401823 | G36: =F199 -> 6.4600305 | H36: 69.04261788 | I36: 18.87894979 | J36: =J199 -> 27.04310768 | K36: =K199 -> 33.42045225 | L36: 34.69232697 | M36: 4.844113098 | N36: =O199 -> 40.34492677 | O36: =P199 -> 43.99280375 | P36: 12.98702176 | Q36: 2.675247714 | R36: =T199 -> 50.37955727 | S36: =U199 -> 36.97498787 | T36: 10.85331415 | U36: 1.792140714 | V36: =Y199 -> 63.20875852 | W36: =Z199 -> 26.1671702 | X36: 10.17036733 | Y36: 0.453703948
E37: =C200 -> 2020 | F37: =E200 -> 8.072777987 | G37: 9.282068756 | H37: 61.80207678 | I37: 20.84307647 | J37: =J200 -> 16.1757243 | K37: 19.99030688 | L37: 57.51277781 | M37: 6.321191004 | N37: =O200 -> 16.79154229 | O37: 18.30978722 | P37: 63.31294269 | Q37: 1.585727794 | R37: =T200 -> 30.66890509 | S37: 22.50878044 | T37: 44.89782648 | U37: 1.924487989 | V37: =Y200 -> 50.77022452 | W37: 21.01786425 | X37: 27.34600545 | Y37: 0.8659057799
B39: RURAL | D39: Estimate | E39: =C299 -> 2000 | F39: =E299 -> 0 | G39: =F299 -> 0 | H39: 45.23799342 | I39: 54.76200658 | J39: =J299 -> 0.09337220047 | K39: =K299 -> 0.07121654188 | L39: 52.88668514 | M39: 46.94872612 | N39: =O299 -> 1.330816249 | O39: =P299 -> 0.759453885 | P39: 60.33886246 | Q39: 37.5708674 | R39: =T299 -> 5.622580746 | S39: =U299 -> 3.780514399 | T39: 60.56059073 | U39: 30.03631412 | V39: =Y299 -> 29.0079689 | W39: =Z299 -> 15.06757227 | X39: 42.78923867 | Y39: 13.13522016
E40: =C300 -> 2020 | F40: =E300 -> 3.521828133 | G40: 2.7521768 | H40: 30.90712792 | I40: 62.81886715 | J40: =J300 -> 4.508449608 | K40: 3.438670062 | L40: 40.26445173 | M40: 51.7884286 | N40: =O300 -> 8.089333157 | O40: 4.616321373 | P40: 51.28371978 | Q40: 36.01062569 | R40: =T300 -> 8.886902551 | S40: 5.975381159 | T40: 55.81129272 | U40: 29.32642357 | V40: =Y300 -> 14.08640809 | W40: 7.316884979 | X40: 59.62597952 | Y40: 18.9707274
A97: NATIONAL | D97: Poorest | I97: Poor | N97: Middle | S97: Rich | X97: Richest
D98: Improved | E98: Basic | F98: Limited | G98: Unimproved | H98: Open defecation | I98: Improved | J98: Basic | K98: Limited | L98: Unimproved | M98: Open defecation | N98: Improved | O98: Basic | P98: Limited | Q98: Unimproved | R98: Open defecation | S98: Improved | T98: Basic | U98: Limited | V98: Unimproved | W98: Open defecation | X98: Improved | Y98: Basic | Z98: Limited | AA98: Unimproved | AB98: Open defecation
A99: Forecast period: | C99: =MinBase(C105:C116) -> 2000 | D99: =IF((D101+H101)>100,D101*100/(D101+H101),D101) -> 1.19013468 | E99: =D99*AVERAGEIF(E105:E116,">0")/100 -> 0.6170709339 | F99: =D99*(100-AVERAGEIF(E105:E116,">0"))/100 -> 0.5730637458 | G99: =100-(E99+F99+H99) -> 54.94615728 | H99: =IF((D101+H101)>100,H101*100/(D101+H101),H101) -> 43.86370804 | I99: =IF((I101+M101)>100,I101*100/(I101+M101),I101) -> 1.686227877 | J99: =I99*AVERAGEIF(J105:J116,">0")/100 -> 0.9753953585 | K99: =I99*(100-AVERAGEIF(J105:J116,">0"))/100 -> 0.710832518 | L99: =100-(J99+K99+M99) -> 56.73753077 | M99: =IF((I101+M101)>100,M101*100/(I101+M101),M101) -> 41.57624135 | N99: =IF((N101+R101)>100,N101*100/(N101+R101),N101) -> 13.32648047 | O99: =N99*AVERAGEIF(O105:O116,">0")/100 -> 7.425525906 | P99: =N99*(100-AVERAGEIF(O105:O116,">0"))/100 -> 5.900954565 | Q99: =100-(O99+P99+R99) -> 56.85747303 | R99: =IF((N101+R101)>100,R101*100/(N101+R101),R101) -> 29.8160465 | S99: =IF((S101+W101)>100,S101*100/(S101+W101),S101) -> 58.25502748 | T99: =S99*AVERAGEIF(T105:T116,">0")/100 -> 29.96754816 | U99: =S99*(100-AVERAGEIF(T105:T116,">0"))/100 -> 28.28747931 | V99: =100-(T99+U99+W99) -> 29.29325054 | W99: =IF((S101+W101)>100,W101*100/(S101+W101),W101) -> 12.45172198 | X99: =IF((X101+AB101)>100,X101*100/(X101+AB101),X101) -> 87.45253736 | Y99: =X99*AVERAGEIF(Y105:Y116,">0")/100 -> 55.812374 | Z99: =X99*(100-AVERAGEIF(Y105:Y116,">0"))/100 -> 31.64016336 | AA99: =100-(Y99+Z99+AB99) -> 10.61936145 | AB99: =IF((X101+AB101)>100,AB101*100/(X101+AB101),AB101) -> 1.928101194
C100: =MaxTarget(C105:C116) -> 2020 | D100: =IF((D102+H102)>100,D102*100/(D102+H102),D102) -> 6.631813098 | E100: =D100*AVERAGEIF(E105:E116,">0")/100 -> 3.43851765 | F100: =D100*(100-AVERAGEIF(E105:E116,">0"))/100 -> 3.193295448 | G100: =100-(E100+F100+H100) -> 34.58840558 | H100: =IF((D102+H102)>100,H102*100/(D102+H102),H102) -> 58.77978132 | I100: =IF((I102+M102)>100,I102*100/(I102+M102),I102) -> 11.98008877 | J100: =I100*AVERAGEIF(J105:J116,">0")/100 -> 6.929859921 | K100: =I100*(100-AVERAGEIF(J105:J116,">0"))/100 -> 5.050228848 | L100: =100-(J100+K100+M100) -> 49.02060281 | M100: =IF((I102+M102)>100,M102*100/(I102+M102),M102) -> 38.99930842 | N100: =IF((N102+R102)>100,N102*100/(N102+R102),N102) -> 16.26632571 | O100: =N100*AVERAGEIF(O105:O116,">0")/100 -> 9.063610097 | P100: =N100*(100-AVERAGEIF(O105:O116,">0"))/100 -> 7.202715613 | Q100: =100-(O100+P100+R100) -> 56.89575641 | R100: =IF((N102+R102)>100,R102*100/(N102+R102),R102) -> 26.83791788 | S100: =IF((S102+W102)>100,S102*100/(S102+W102),S102) -> 28.18421616 | T100: =S100*AVERAGEIF(T105:T116,">0")/100 -> 14.49852299 | U100: =S100*(100-AVERAGEIF(T105:T116,">0"))/100 -> 13.68569317 | V100: =100-(T100+U100+W100) -> 60.89609265 | W100: =IF((S102+W102)>100,W102*100/(S102+W102),W102) -> 10.9196912 | X100: =IF((X102+AB102)>100,X102*100/(X102+AB102),X102) -> 54.6807834 | Y100: =X100*AVERAGEIF(Y105:Y116,">0")/100 -> 34.89737892 | Z100: =X100*(100-AVERAGEIF(Y105:Y116,">0"))/100 -> 19.78340448 | AA100: =100-(Y100+Z100+AB100) -> 43.41891548 | AB100: =IF((X102+AB102)>100,AB102*100/(X102+AB102),AB102) -> 1.900301124
A101: Regression period: | C101: =MinRegYear(C99,C105:C116) -> 2004 | D101: =IF(MAX(C105:C116)-MIN(C105:C116)<5,AVERAGEIF(C105:C116,">0",D105:D116), IF(FORECAST($C101,D$105:D$116,$C$105:$C$116)<0,0, IF(FORECAST($C101,D$105:D$116,$C$105:$C$116)>100,100, FORECAST($C101,D$105:D$116,$C$105:$C$116)))) -> 1.19013468 | H101: =IF(MAX(C105:C116)-MIN(C105:C116)<5,AVERAGEIF(C105:C116,">0",H105:H116), IF(FORECAST($C101,H$105:H$116,$C$105:$C$116)<0,0, IF(FORECAST($C101,H$105:H$116,$C$105:$C$116)>100,100, FORECAST($C101,H$105:H$116,$C$105:$C$116)))) -> 43.86370804 | I101: =IF(MAX(C105:C116)-MIN(C105:C116)<5,AVERAGEIF(C105:C116,">0",I105:I116), IF(FORECAST($C101,I$105:I$116,$C$105:$C$116)<0,0, IF(FORECAST($C101,I$105:I$116,$C$105:$C$116)>100,100, FORECAST($C101,I$105:I$116,$C$105:$C$116)))) -> 1.686227877 | M101: =IF(MAX(C105:C116)-MIN(C105:C116)<5,AVERAGEIF(C105:C116,">0",M105:M116), IF(FORECAST($C101,M$105:M$116,$C$105:$C$116)<0,0, IF(FORECAST($C101,M$105:M$116,$C$105:$C$116)>100,100, FORECAST($C101,M$105:M$116,$C$105:$C$116)))) -> 41.57624135 | N101: =IF(MAX(C105:C116)-MIN(C105:C116)<5,AVERAGEIF(C105:C116,">0",N105:N116), IF(FORECAST($C101,N$105:N$116,$C$105:$C$116)<0,0, IF(FORECAST($C101,N$105:N$116,$C$105:$C$116)>100,100, FORECAST($C101,N$105:N$116,$C$105:$C$116)))) -> 13.32648047 | R101: =IF(MAX(C105:C116)-MIN(C105:C116)<5,AVERAGEIF(C105:C116,">0",R105:R116), IF(FORECAST($C101,R$105:R$116,$C$105:$C$116)<0,0, IF(FORECAST($C101,R$105:R$116,$C$105:$C$116)>100,100, FORECAST($C101,R$105:R$116,$C$105:$C$116)))) -> 29.8160465 | S101: =IF(MAX(C105:C116)-MIN(C105:C116)<5,AVERAGEIF(C105:C116,">0",S105:S116), IF(FORECAST($C101,S$105:S$116,$C$105:$C$116)<0,0, IF(FORECAST($C101,S$105:S$116,$C$105:$C$116)>100,100, FORECAST($C101,S$105:S$116,$C$105:$C$116)))) -> 58.25502748 | W101: =IF(MAX(C105:C116)-MIN(C105:C116)<5,AVERAGEIF(C105:C116,">0",W105:W116), IF(FORECAST($C101,W$105:W$116,$C$105:$C$116)<0,0, IF(FORECAST($C101,W$105:W$116,$C$105:$C$116)>100,100, FORECAST($C101,W$105:W$116,$C$105:$C$116)))) -> 12.45172198 | X101: =IF(MAX(C105:C116)-MIN(C105:C116)<5,AVERAGEIF(C105:C116,">0",X105:X116), IF(FORECAST($C101,X$105:X$116,$C$105:$C$116)<0,0, IF(FORECAST($C101,X$105:X$116,$C$105:$C$116)>100,100, FORECAST($C101,X$105:X$116,$C$105:$C$116)))) -> 87.45253736 | AB101: =IF(MAX(C105:C116)-MIN(C105:C116)<5,AVERAGEIF(C105:C116,">0",AB105:AB116), IF(FORECAST($C101,AB$105:AB$116,$C$105:$C$116)<0,0, IF(FORECAST($C101,AB$105:AB$116,$C$105:$C$116)>100,100, FORECAST($C101,AB$105:AB$116,$C$105:$C$116)))) -> 1.928101194
C102: =MaxRegYear(C100,C105:C116) -> 2020 | D102: =IF(MAX(C105:C116)-MIN(C105:C116)<5,AVERAGEIF(C105:C116,">0",D105:D116), IF(FORECAST($C102,D$105:D$116,$C$105:$C$116)<0,0, IF(FORECAST($C102,D$105:D$116,$C$105:$C$116)>100,100, FORECAST($C102,D$105:D$116,$C$105:$C$116)))) -> 6.631813098 | H102: =IF(MAX(C105:C116)-MIN(C105:C116)<5,AVERAGEIF(C105:C116,">0",H105:H116), IF(FORECAST($C102,H$105:H$116,$C$105:$C$116)<0,0, IF(FORECAST($C102,H$105:H$116,$C$105:$C$116)>100,100, FORECAST($C102,H$105:H$116,$C$105:$C$116)))) -> 58.77978132 | I102: =IF(MAX(C105:C116)-MIN(C105:C116)<5,AVERAGEIF(C105:C116,">0",I105:I116), IF(FORECAST($C102,I$105:I$116,$C$105:$C$116)<0,0, IF(FORECAST($C102,I$105:I$116,$C$105:$C$116)>100,100, FORECAST($C102,I$105:I$116,$C$105:$C$116)))) -> 11.98008877 | M102: =IF(MAX(C105:C116)-MIN(C105:C116)<5,AVERAGEIF(C105:C116,">0",M105:M116), IF(FORECAST($C102,M$105:M$116,$C$105:$C$116)<0,0, IF(FORECAST($C102,M$105:M$116,$C$105:$C$116)>100,100, FORECAST($C102,M$105:M$116,$C$105:$C$116)))) -> 38.99930842 | N102: =IF(MAX(C105:C116)-MIN(C105:C116)<5,AVERAGEIF(C105:C116,">0",N105:N116), IF(FORECAST($C102,N$105:N$116,$C$105:$C$116)<0,0, IF(FORECAST($C102,N$105:N$116,$C$105:$C$116)>100,100, FORECAST($C102,N$105:N$116,$C$105:$C$116)))) -> 16.26632571 | R102: =IF(MAX(C105:C116)-MIN(C105:C116)<5,AVERAGEIF(C105:C116,">0",R105:R116), IF(FORECAST($C102,R$105:R$116,$C$105:$C$116)<0,0, IF(FORECAST($C102,R$105:R$116,$C$105:$C$116)>100,100, FORECAST($C102,R$105:R$116,$C$105:$C$116)))) -> 26.83791788 | S102: =IF(MAX(C105:C116)-MIN(C105:C116)<5,AVERAGEIF(C105:C116,">0",S105:S116), IF(FORECAST($C102,S$105:S$116,$C$105:$C$116)<0,0, IF(FORECAST($C102,S$105:S$116,$C$105:$C$116)>100,100, FORECAST($C102,S$105:S$116,$C$105:$C$116)))) -> 28.18421616 | W102: =IF(MAX(C105:C116)-MIN(C105:C116)<5,AVERAGEIF(C105:C116,">0",W105:W116), IF(FORECAST($C102,W$105:W$116,$C$105:$C$116)<0,0, IF(FORECAST($C102,W$105:W$116,$C$105:$C$116)>100,100, FORECAST($C102,W$105:W$116,$C$105:$C$116)))) -> 10.9196912 | X102: =IF(MAX(C105:C116)-MIN(C105:C116)<5,AVERAGEIF(C105:C116,">0",X105:X116), IF(FORECAST($C102,X$105:X$116,$C$105:$C$116)<0,0, IF(FORECAST($C102,X$105:X$116,$C$105:$C$116)>100,100, FORECAST($C102,X$105:X$116,$C$105:$C$116)))) -> 54.6807834 | AB102: =IF(MAX(C105:C116)-MIN(C105:C116)<5,AVERAGEIF(C105:C116,">0",AB105:AB116), IF(FORECAST($C102,AB$105:AB$116,$C$105:$C$116)<0,0, IF(FORECAST($C102,AB$105:AB$116,$C$105:$C$116)>100,100, FORECAST($C102,AB$105:AB$116,$C$105:$C$116)))) -> 1.900301124
B104: Survey | C104: Year | D104: Improved | E104: Not shared | H104: Open defecation | I104: Improved | J104: Not shared | M104: Open defecation | N104: Improved | O104: Not shared | R104: Open defecation | S104: Improved | T104: Not shared | W104: Open defecation | X104: Improved | Y104: Not shared | AB104: Open defecation
B105: MICS00 | D105: =IF(ISERROR(INDIRECT(CONCATENATE($B105,"!C122"))),"",INDIRECT(CONCATENATE($B105,"!C122"))) -> 1.112220115 | E105: =IF(ISERROR(INDIRECT(CONCATENATE($B105,"!C129"))),"",INDIRECT(CONCATENATE($B105,"!C129"))) -> N/A | H105: =IF(ISERROR(INDIRECT(CONCATENATE($B105,"!C127"))),"",INDIRECT(CONCATENATE($B105,"!C127"))) -> 51.01590197 | I105: =IF(ISERROR(INDIRECT(CONCATENATE($B105,"!D122"))),"",INDIRECT(CONCATENATE($B105,"!D122"))) -> 3.659434358 | J105: =IF(ISERROR(INDIRECT(CONCATENATE($B105,"!D129"))),"",INDIRECT(CONCATENATE($B105,"!D129"))) -> N/A | M105: =IF(ISERROR(INDIRECT(CONCATENATE($B105,"!D127"))),"",INDIRECT(CONCATENATE($B105,"!D127"))) -> 34.55903148 | N105: =IF(ISERROR(INDIRECT(CONCATENATE($B105,"!E122"))),"",INDIRECT(CONCATENATE($B105,"!E122"))) -> 15.00795498 | O105: =IF(ISERROR(INDIRECT(CONCATENATE($B105,"!E129"))),"",INDIRECT(CONCATENATE($B105,"!E129"))) -> N/A | R105: =IF(ISERROR(INDIRECT(CONCATENATE($B105,"!E127"))),"",INDIRECT(CONCATENATE($B105,"!E127"))) -> 19.72682955 | S105: =IF(ISERROR(INDIRECT(CONCATENATE($B105,"!F122"))),"",INDIRECT(CONCATENATE($B105,"!F122"))) -> 59.10664713 | T105: =IF(ISERROR(INDIRECT(CONCATENATE($B105,"!F129"))),"",INDIRECT(CONCATENATE($B105,"!F129"))) -> N/A | W105: =IF(ISERROR(INDIRECT(CONCATENATE($B105,"!F127"))),"",INDIRECT(CONCATENATE($B105,"!F127"))) -> 7.313303358 | X105: =IF(ISERROR(INDIRECT(CONCATENATE($B105,"!G122"))),"",INDIRECT(CONCATENATE($B105,"!G122"))) -> 87.9380425 | Y105: =IF(ISERROR(INDIRECT(CONCATENATE($B105,"!G129"))),"",INDIRECT(CONCATENATE($B105,"!G129"))) -> N/A | AB105: =IF(ISERROR(INDIRECT(CONCATENATE($B105,"!G2127"))),"",INDIRECT(CONCATENATE($B105,"!G127"))) -> 1.441322165
B106: MICS06 | C106: 2006 | D106: 2.902993491 | E106: 62.38801343 | H106: 39.66170359 | I106: 3.117372276 | J106: 62.01517167 | M106: 42.33544516 | N106: 11.92590928 | O106: 65.25144315 | R106: 31.70221046 | S106: 42.31830424 | T106: 59.99306669 | W106: 14.2550237 | X106: 69.98704063 | Y106: 71.66061644 | AB106: 2.354112082
B107: MICS10 | C107: 2010 | D107: 1.739159962 | E107: 59.48270363 | H107: 58.21997741 | I107: 5.337830906 | J107: 67.57976966 | M107: 39.04798422 | N107: 16.98277509 | O107: 56.92950225 | R107: 25.43707155 | S107: 64.56873253 | T107: 54.78848489 | W107: 8.995824623 | X107: 94.4739471 | Y107: 64.09457079 | AB107: 1.297307651
B108: MICS19 | C108: 2019 | D108: 6.750663312 | E108: 33.67577976 | H108: 55.15129847 | I108: 11.40090548 | J108: 43.93949706 | M108: 39.64095359 | N108: 15.29678457 | O108: 44.97930195 | R108: 28.0277976 | S108: 24.65125439 | T108: 39.5444326 | W108: 11.90202337 | X108: 50.78722803 | Y108: 55.70537761 | AB108: 2.092921249
B118: =CONCATENATE("National use of sanitation facilities, ",C99,"–",C100) -> National use of sanitation facilities, 2000–2020 | S118: Data points used for regression
A197: URBAN | D197: Poorest | I197: Poor | N197: Middle | S197: Rich | X197: Richest
D198: Improved | E198: Basic | F198: Limited | G198: Unimproved | H198: Open defecation | I198: Improved | J198: Basic | K198: Limited | L198: Unimproved | M198: Open defecation | N198: Improved | O198: Basic | P198: Limited | Q198: Unimproved | R198: Open defecation | S198: Improved | T198: Basic | U198: Limited | V198: Unimproved | W198: Open defecation | X198: Improved | Y198: Basic | Z198: Limited | AA198: Unimproved | AB198: Open defecation
A199: Forecast period: | C199: =MinBase(C205:C216) -> 2000 | D199: =IF((D201+H201)>100,D201*100/(D201+H201),D201) -> 12.07843232 | E199: =D199*AVERAGEIF(E205:E216,">0")/100 -> 5.618401823 | F199: =D199*(100-AVERAGEIF(E205:E216,">0"))/100 -> 6.4600305 | G199: =100-(E199+F199+H199) -> 69.04261788 | H199: =IF((D201+H201)>100,H201*100/(D201+H201),H201) -> 18.87894979 | I199: =IF((I201+M201)>100,I201*100/(I201+M201),I201) -> 60.46355993 | J199: =I199*AVERAGEIF(J205:J216,">0")/100 -> 27.04310768 | K199: =I199*(100-AVERAGEIF(J205:J216,">0"))/100 -> 33.42045225 | L199: =100-(J199+K199+M199) -> 34.69232697 | M199: =IF((I201+M201)>100,M201*100/(I201+M201),M201) -> 4.844113098 | N199: =IF((N201+R201)>100,N201*100/(N201+R201),N201) -> 84.33773053 | O199: =N199*AVERAGEIF(O205:O216,">0")/100 -> 40.34492677 | P199: =N199*(100-AVERAGEIF(O205:O216,">0"))/100 -> 43.99280375 | Q199: =100-(O199+P199+R199) -> 12.98702176 | R199: =IF((N201+R201)>100,R201*100/(N201+R201),R201) -> 2.675247714 | S199: =IF((S201+W201)>100,S201*100/(S201+W201),S201) -> 87.35454514 | T199: =S199*AVERAGEIF(T205:T216,">0")/100 -> 50.37955727 | U199: =S199*(100-AVERAGEIF(T205:T216,">0"))/100 -> 36.97498787 | V199: =100-(T199+U199+W199) -> 10.85331415 | W199: =IF((S201+W201)>100,W201*100/(S201+W201),W201) -> 1.792140714 | X199: =IF((X201+AB201)>100,X201*100/(X201+AB201),X201) -> 89.37592873 | Y199: =X199*AVERAGEIF(Y205:Y216,">0")/100 -> 63.20875852 | Z199: =X199*(100-AVERAGEIF(Y205:Y216,">0"))/100 -> 26.1671702 | AA199: =100-(Y199+Z199+AB199) -> 10.17036733 | AB199: =IF((X201+AB201)>100,AB201*100/(X201+AB201),AB201) -> 0.453703948
C200: =MaxTarget(C205:C216) -> 2020 | D200: =IF((D202+H202)>100,D202*100/(D202+H202),D202) -> 17.35484674 | E200: =D200*AVERAGEIF(E205:E216,">0")/100 -> 8.072777987 | F200: =D200*(100-AVERAGEIF(E205:E216,">0"))/100 -> 9.282068756 | G200: =100-(E200+F200+H200) -> 61.80207678 | H200: =IF((D202+H202)>100,H202*100/(D202+H202),H202) -> 20.84307647 | I200: =IF((I202+M202)>100,I202*100/(I202+M202),I202) -> 36.16603119 | J200: =I200*AVERAGEIF(J205:J216,">0")/100 -> 16.1757243 | K200: =I200*(100-AVERAGEIF(J205:J216,">0"))/100 -> 19.99030688 | L200: =100-(J200+K200+M200) -> 57.51277781 | M200: =IF((I202+M202)>100,M202*100/(I202+M202),M202) -> 6.321191004 | N200: =IF((N202+R202)>100,N202*100/(N202+R202),N202) -> 35.10132952 | O200: =N200*AVERAGEIF(O205:O216,">0")/100 -> 16.79154229 | P200: =N200*(100-AVERAGEIF(O205:O216,">0"))/100 -> 18.30978722 | Q200: =100-(O200+P200+R200) -> 63.31294269 | R200: =IF((N202+R202)>100,R202*100/(N202+R202),R202) -> 1.585727794 | S200: =IF((S202+W202)>100,S202*100/(S202+W202),S202) -> 53.17768553 | T200: =S200*AVERAGEIF(T205:T216,">0")/100 -> 30.66890509 | U200: =S200*(100-AVERAGEIF(T205:T216,">0"))/100 -> 22.50878044 | V200: =100-(T200+U200+W200) -> 44.89782648 | W200: =IF((S202+W202)>100,W202*100/(S202+W202),W202) -> 1.924487989 | X200: =IF((X202+AB202)>100,X202*100/(X202+AB202),X202) -> 71.78808877 | Y200: =X200*AVERAGEIF(Y205:Y216,">0")/100 -> 50.77022452 | Z200: =X200*(100-AVERAGEIF(Y205:Y216,">0"))/100 -> 21.01786425 | AA200: =100-(Y200+Z200+AB200) -> 27.34600545 | AB200: =IF((X202+AB202)>100,AB202*100/(X202+AB202),AB202) -> 0.8659057799
A201: Regression period: | C201: =MinRegYear(C199,C205:C216) -> 2004 | D201: =IF(MAX(C205:C216)-MIN(C205:C216)<5,AVERAGEIF(C205:C216,">0",D205:D216), IF(FORECAST($C201,D$205:D$216,$C$205:$C$216)<0,0, IF(FORECAST($C201,D$205:D$216,$C$205:$C$216)>100,100, FORECAST($C201,D$205:D$216,$C$205:$C$216)))) -> 12.07843232 | H201: =IF(MAX(C205:C216)-MIN(C205:C216)<5,AVERAGEIF(C205:C216,">0",H205:H216), IF(FORECAST($C201,H$205:H$216,$C$205:$C$216)<0,0, IF(FORECAST($C201,H$205:H$216,$C$205:$C$216)>100,100, FORECAST($C201,H$205:H$216,$C$205:$C$216)))) -> 18.87894979 | I201: =IF(MAX(C205:C216)-MIN(C205:C216)<5,AVERAGEIF(C205:C216,">0",I205:I216), IF(FORECAST($C201,I$205:I$216,$C$205:$C$216)<0,0, IF(FORECAST($C201,I$205:I$216,$C$205:$C$216)>100,100, FORECAST($C201,I$205:I$216,$C$205:$C$216)))) -> 60.46355993 | M201: =IF(MAX(C205:C216)-MIN(C205:C216)<5,AVERAGEIF(C205:C216,">0",M205:M216), IF(FORECAST($C201,M$205:M$216,$C$205:$C$216)<0,0, IF(FORECAST($C201,M$205:M$216,$C$205:$C$216)>100,100, FORECAST($C201,M$205:M$216,$C$205:$C$216)))) -> 4.844113098 | N201: =IF(MAX(C205:C216)-MIN(C205:C216)<5,AVERAGEIF(C205:C216,">0",N205:N216), IF(FORECAST($C201,N$205:N$216,$C$205:$C$216)<0,0, IF(FORECAST($C201,N$205:N$216,$C$205:$C$216)>100,100, FORECAST($C201,N$205:N$216,$C$205:$C$216)))) -> 84.33773053 | R201: =IF(MAX(C205:C216)-MIN(C205:C216)<5,AVERAGEIF(C205:C216,">0",R205:R216), IF(FORECAST($C201,R$205:R$216,$C$205:$C$216)<0,0, IF(FORECAST($C201,R$205:R$216,$C$205:$C$216)>100,100, FORECAST($C201,R$205:R$216,$C$205:$C$216)))) -> 2.675247714 | S201: =IF(MAX(C205:C216)-MIN(C205:C216)<5,AVERAGEIF(C205:C216,">0",S205:S216), IF(FORECAST($C201,S$205:S$216,$C$205:$C$216)<0,0, IF(FORECAST($C201,S$205:S$216,$C$205:$C$216)>100,100, FORECAST($C201,S$205:S$216,$C$205:$C$216)))) -> 87.35454514 | W201: =IF(MAX(C205:C216)-MIN(C205:C216)<5,AVERAGEIF(C205:C216,">0",W205:W216), IF(FORECAST($C201,W$205:W$216,$C$205:$C$216)<0,0, IF(FORECAST($C201,W$205:W$216,$C$205:$C$216)>100,100, FORECAST($C201,W$205:W$216,$C$205:$C$216)))) -> 1.792140714 | X201: =IF(MAX(C205:C216)-MIN(C205:C216)<5,AVERAGEIF(C205:C216,">0",X205:X216), IF(FORECAST($C201,X$205:X$216,$C$205:$C$216)<0,0, IF(FORECAST($C201,X$205:X$216,$C$205:$C$216)>100,100, FORECAST($C201,X$205:X$216,$C$205:$C$216)))) -> 89.37592873 | AB201: =IF(MAX(C205:C216)-MIN(C205:C216)<5,AVERAGEIF(C205:C216,">0",AB205:AB216), IF(FORECAST($C201,AB$205:AB$216,$C$205:$C$216)<0,0, IF(FORECAST($C201,AB$205:AB$216,$C$205:$C$216)>100,100, FORECAST($C201,AB$205:AB$216,$C$205:$C$216)))) -> 0.453703948
C202: =MaxRegYear(C200,C205:C216) -> 2020 | D202: =IF(MAX(C205:C216)-MIN(C205:C216)<5,AVERAGEIF(C205:C216,">0",D205:D216), IF(FORECAST($C202,D$205:D$216,$C$205:$C$216)<0,0, IF(FORECAST($C202,D$205:D$216,$C$205:$C$216)>100,100, FORECAST($C202,D$205:D$216,$C$205:$C$216)))) -> 17.35484674 | H202: =IF(MAX(C205:C216)-MIN(C205:C216)<5,AVERAGEIF(C205:C216,">0",H205:H216), IF(FORECAST($C202,H$205:H$216,$C$205:$C$216)<0,0, IF(FORECAST($C202,H$205:H$216,$C$205:$C$216)>100,100, FORECAST($C202,H$205:H$216,$C$205:$C$216)))) -> 20.84307647 | I202: =IF(MAX(C205:C216)-MIN(C205:C216)<5,AVERAGEIF(C205:C216,">0",I205:I216), IF(FORECAST($C202,I$205:I$216,$C$205:$C$216)<0,0, IF(FORECAST($C202,I$205:I$216,$C$205:$C$216)>100,100, FORECAST($C202,I$205:I$216,$C$205:$C$216)))) -> 36.16603119 | M202: =IF(MAX(C205:C216)-MIN(C205:C216)<5,AVERAGEIF(C205:C216,">0",M205:M216), IF(FORECAST($C202,M$205:M$216,$C$205:$C$216)<0,0, IF(FORECAST($C202,M$205:M$216,$C$205:$C$216)>100,100, FORECAST($C202,M$205:M$216,$C$205:$C$216)))) -> 6.321191004 | N202: =IF(MAX(C205:C216)-MIN(C205:C216)<5,AVERAGEIF(C205:C216,">0",N205:N216), IF(FORECAST($C202,N$205:N$216,$C$205:$C$216)<0,0, IF(FORECAST($C202,N$205:N$216,$C$205:$C$216)>100,100, FORECAST($C202,N$205:N$216,$C$205:$C$216)))) -> 35.10132952 | R202: =IF(MAX(C205:C216)-MIN(C205:C216)<5,AVERAGEIF(C205:C216,">0",R205:R216), IF(FORECAST($C202,R$205:R$216,$C$205:$C$216)<0,0, IF(FORECAST($C202,R$205:R$216,$C$205:$C$216)>100,100, FORECAST($C202,R$205:R$216,$C$205:$C$216)))) -> 1.585727794 | S202: =IF(MAX(C205:C216)-MIN(C205:C216)<5,AVERAGEIF(C205:C216,">0",S205:S216), IF(FORECAST($C202,S$205:S$216,$C$205:$C$216)<0,0, IF(FORECAST($C202,S$205:S$216,$C$205:$C$216)>100,100, FORECAST($C202,S$205:S$216,$C$205:$C$216)))) -> 53.17768553 | W202: =IF(MAX(C205:C216)-MIN(C205:C216)<5,AVERAGEIF(C205:C216,">0",W205:W216), IF(FORECAST($C202,W$205:W$216,$C$205:$C$216)<0,0, IF(FORECAST($C202,W$205:W$216,$C$205:$C$216)>100,100, FORECAST($C202,W$205:W$216,$C$205:$C$216)))) -> 1.924487989 | X202: =IF(MAX(C205:C216)-MIN(C205:C216)<5,AVERAGEIF(C205:C216,">0",X205:X216), IF(FORECAST($C202,X$205:X$216,$C$205:$C$216)<0,0, IF(FORECAST($C202,X$205:X$216,$C$205:$C$216)>100,100, FORECAST($C202,X$205:X$216,$C$205:$C$216)))) -> 71.78808877 | AB202: =IF(MAX(C205:C216)-MIN(C205:C216)<5,AVERAGEIF(C205:C216,">0",AB205:AB216), IF(FORECAST($C202,AB$205:AB$216,$C$205:$C$216)<0,0, IF(FORECAST($C202,AB$205:AB$216,$C$205:$C$216)>100,100, FORECAST($C202,AB$205:AB$216,$C$205:$C$216)))) -> 0.8659057799
B204: Survey | C204: Year | D204: Improved | E204: Not shared | H204: Open defecation | I204: Improved | J204: Not shared | M204: Open defecation | N204: Improved | O204: Not shared | R204: Open defecation | S204: Improved | T204: Not shared | W204: Open defecation | X204: Improved | Y204: Not shared | AB204: Open defecation
B205: MICS00 | D205: =IF(ISERROR(INDIRECT(CONCATENATE($B205,"!H122"))),"",INDIRECT(CONCATENATE($B205,"!H122"))) -> 13.69867975 | E205: =IF(ISERROR(INDIRECT(CONCATENATE($B205,"!H129"))),"",INDIRECT(CONCATENATE($B205,"!H129"))) -> N/A | H205: =IF(ISERROR(INDIRECT(CONCATENATE($B205,"!H127"))),"",INDIRECT(CONCATENATE($B205,"!H127"))) -> 13.31713056 | I205: =IF(ISERROR(INDIRECT(CONCATENATE($B205,"!I122"))),"",INDIRECT(CONCATENATE($B205,"!I122"))) -> 67.4006888 | J205: =IF(ISERROR(INDIRECT(CONCATENATE($B205,"!I129"))),"",INDIRECT(CONCATENATE($B205,"!I129"))) -> N/A | M205: =IF(ISERROR(INDIRECT(CONCATENATE($B205,"!I127"))),"",INDIRECT(CONCATENATE($B205,"!I127"))) -> 2.826788811 | N205: =IF(ISERROR(INDIRECT(CONCATENATE($B205,"!J122"))),"",INDIRECT(CONCATENATE($B205,"!J122"))) -> 83.07308675 | O205: =IF(ISERROR(INDIRECT(CONCATENATE($B205,"!J129"))),"",INDIRECT(CONCATENATE($B205,"!J129"))) -> N/A | R205: =IF(ISERROR(INDIRECT(CONCATENATE($B205,"!J127"))),"",INDIRECT(CONCATENATE($B205,"!J127"))) -> 1.934921399 | S205: =IF(ISERROR(INDIRECT(CONCATENATE($B205,"!K122"))),"",INDIRECT(CONCATENATE($B205,"!K122"))) -> 88.39555976 | T205: =IF(ISERROR(INDIRECT(CONCATENATE($B205,"!K129"))),"",INDIRECT(CONCATENATE($B205,"!K129"))) -> N/A | W205: =IF(ISERROR(INDIRECT(CONCATENATE($B205,"!K127"))),"",INDIRECT(CONCATENATE($B205,"!K127"))) -> 1.097487756 | X205: =IF(ISERROR(INDIRECT(CONCATENATE($B205,"!L122"))),"",INDIRECT(CONCATENATE($B205,"!L122"))) -> 93.29575417 | Y205: =IF(ISERROR(INDIRECT(CONCATENATE($B205,"!L129"))),"",INDIRECT(CONCATENATE($B205,"!L129"))) -> N/A | AB205: =IF(ISERROR(INDIRECT(CONCATENATE($B205,"!L2127"))),"",INDIRECT(CONCATENATE($B205,"!L127"))) -> 0.03014001244
B206: MICS06 | C206: 2006 | D206: 12.75629593 | E206: 56.97399882 | H206: 16.31870057 | I206: 45.28267103 | J206: 47.43908295 | M206: 4.978086072 | N206: 60.19309429 | O206: 55.18982169 | R206: 2.790799291 | S206: 68.83958199 | T206: 69.98347234 | W206: 2.130742642 | X206: 77.13828089 | Y206: 78.27291019 | AB206: 0.4981455937
B207: MICS10 | C207: 2010 | D207: 14.03063735 | E207: 47.73015946 | H207: 23.66826905 | I207: 68.89288348 | J207: 53.84740712 | M207: 5.471195415 | N207: 91.85976008 | O207: 47.27765667 | R207: 1.903051036 | S207: 95.11123657 | T207: 54.22998125 | W207: 1.376575305 | X207: 97.28150896 | Y207: 72.10426624 | AB207: 0.6185114775
B208: MICS19 | C208: 2019 | D208: 17.03320942 | E208: 34.84379809 | H208: 19.47331186 | I208: 32.28742771 | J208: 32.89238253 | M208: 6.206357295 | N208: 30.18301075 | O208: 41.04454119 | R208: 1.76570793 | S208: 48.98358117 | T208: 48.80407123 | W208: 2.059353403 | X208: 68.42547639 | Y208: 61.78987825 | AB208: 0.8369949061
B218: =CONCATENATE("Urban use of sanitation facilities, ",C199,"–",C200) -> Urban use of sanitation facilities, 2000–2020 | S218: Data points used for regression
A297: RURAL | D297: Poorest | I297: Poor | N297: Middle | S297: Rich | X297: Richest
D298: Improved | E298: Basic | F298: Limited | G298: Unimproved | H298: Open defecation | I298: Improved | J298: Basic | K298: Limited | L298: Unimproved | M298: Open defecation | N298: Improved | O298: Basic | P298: Limited | Q298: Unimproved | R298: Open defecation | S298: Improved | T298: Basic | U298: Limited | V298: Unimproved | W298: Open defecation | X298: Improved | Y298: Basic | Z298: Limited | AA298: Unimproved | AB298: Open defecation
A299: Forecast period: | C299: 2000 | D299: =IF((D301+H301)>100,D301*100/(D301+H301),D301) -> 0 | E299: =D299*AVERAGEIF(E305:E316,">0")/100 -> 0 | F299: =D299*(100-AVERAGEIF(E305:E316,">0"))/100 -> 0 | G299: =100-(E299+F299+H299) -> 45.23799342 | H299: =IF((D301+H301)>100,H301*100/(D301+H301),H301) -> 54.76200658 | I299: =IF((I301+M301)>100,I301*100/(I301+M301),I301) -> 0.1645887424 | J299: =I299*AVERAGEIF(J305:J316,">0")/100 -> 0.09337220047 | K299: =I299*(100-AVERAGEIF(J305:J316,">0"))/100 -> 0.07121654188 | L299: =100-(J299+K299+M299) -> 52.88668514 | M299: =IF((I301+M301)>100,M301*100/(I301+M301),M301) -> 46.94872612 | N299: =IF((N301+R301)>100,N301*100/(N301+R301),N301) -> 2.090270134 | O299: =N299*AVERAGEIF(O305:O316,">0")/100 -> 1.330816249 | P299: =N299*(100-AVERAGEIF(O305:O316,">0"))/100 -> 0.759453885 | Q299: =100-(O299+P299+R299) -> 60.33886246 | R299: =IF((N301+R301)>100,R301*100/(N301+R301),R301) -> 37.5708674 | S299: =IF((S301+W301)>100,S301*100/(S301+W301),S301) -> 9.403095144 | T299: =S299*AVERAGEIF(T305:T316,">0")/100 -> 5.622580746 | U299: =S299*(100-AVERAGEIF(T305:T316,">0"))/100 -> 3.780514399 | V299: =100-(T299+U299+W299) -> 60.56059073 | W299: =IF((S301+W301)>100,W301*100/(S301+W301),W301) -> 30.03631412 | X299: =IF((X301+AB301)>100,X301*100/(X301+AB301),X301) -> 44.07554117 | Y299: =X299*AVERAGEIF(Y305:Y316,">0")/100 -> 29.0079689 | Z299: =X299*(100-AVERAGEIF(Y305:Y316,">0"))/100 -> 15.06757227 | AA299: =100-(Y299+Z299+AB299) -> 42.78923867 | AB299: =IF((X301+AB301)>100,AB301*100/(X301+AB301),AB301) -> 13.13522016
C300: 2020 | D300: =IF((D302+H302)>100,D302*100/(D302+H302),D302) -> 6.274004932 | E300: =D300*AVERAGEIF(E305:E316,">0")/100 -> 3.521828133 | F300: =D300*(100-AVERAGEIF(E305:E316,">0"))/100 -> 2.7521768 | G300: =100-(E300+F300+H300) -> 30.90712792 | H300: =IF((D302+H302)>100,H302*100/(D302+H302),H302) -> 62.81886715 | I300: =IF((I302+M302)>100,I302*100/(I302+M302),I302) -> 7.94711967 | J300: =I300*AVERAGEIF(J305:J316,">0")/100 -> 4.508449608 | K300: =I300*(100-AVERAGEIF(J305:J316,">0"))/100 -> 3.438670062 | L300: =100-(J300+K300+M300) -> 40.26445173 | M300: =IF((I302+M302)>100,M302*100/(I302+M302),M302) -> 51.7884286 | N300: =IF((N302+R302)>100,N302*100/(N302+R302),N302) -> 12.70565453 | O300: =N300*AVERAGEIF(O305:O316,">0")/100 -> 8.089333157 | P300: =N300*(100-AVERAGEIF(O305:O316,">0"))/100 -> 4.616321373 | Q300: =100-(O300+P300+R300) -> 51.28371978 | R300: =IF((N302+R302)>100,R302*100/(N302+R302),R302) -> 36.01062569 | S300: =IF((S302+W302)>100,S302*100/(S302+W302),S302) -> 14.86228371 | T300: =S300*AVERAGEIF(T305:T316,">0")/100 -> 8.886902551 | U300: =S300*(100-AVERAGEIF(T305:T316,">0"))/100 -> 5.975381159 | V300: =100-(T300+U300+W300) -> 55.81129272 | W300: =IF((S302+W302)>100,W302*100/(S302+W302),W302) -> 29.32642357 | X300: =IF((X302+AB302)>100,X302*100/(X302+AB302),X302) -> 21.40329307 | Y300: =X300*AVERAGEIF(Y305:Y316,">0")/100 -> 14.08640809 | Z300: =X300*(100-AVERAGEIF(Y305:Y316,">0"))/100 -> 7.316884979 | AA300: =100-(Y300+Z300+AB300) -> 59.62597952 | AB300: =IF((X302+AB302)>100,AB302*100/(X302+AB302),AB302) -> 18.9707274
A301: Regression period: | C301: =MinRegYear(C299,C305:C316) -> 2004 | D301: =IF(MAX(C305:C316)-MIN(C305:C316)<5,AVERAGEIF(C305:C316,">0",D305:D316), IF(FORECAST($C301,D$305:D$316,$C$305:$C$316)<0,0, IF(FORECAST($C301,D$305:D$316,$C$305:$C$316)>100,100, FORECAST($C301,D$305:D$316,$C$305:$C$316)))) -> 0 | H301: =IF(MAX(C305:C316)-MIN(C305:C316)<5,AVERAGEIF(C305:C316,">0",H305:H316), IF(FORECAST($C301,H$305:H$316,$C$305:$C$316)<0,0, IF(FORECAST($C301,H$305:H$316,$C$305:$C$316)>100,100, FORECAST($C301,H$305:H$316,$C$305:$C$316)))) -> 54.76200658 | I301: =IF(MAX(C305:C316)-MIN(C305:C316)<5,AVERAGEIF(C305:C316,">0",I305:I316), IF(FORECAST($C301,I$305:I$316,$C$305:$C$316)<0,0, IF(FORECAST($C301,I$305:I$316,$C$305:$C$316)>100,100, FORECAST($C301,I$305:I$316,$C$305:$C$316)))) -> 0.1645887424 | M301: =IF(MAX(C305:C316)-MIN(C305:C316)<5,AVERAGEIF(C305:C316,">0",M305:M316), IF(FORECAST($C301,M$305:M$316,$C$305:$C$316)<0,0, IF(FORECAST($C301,M$305:M$316,$C$305:$C$316)>100,100, FORECAST($C301,M$305:M$316,$C$305:$C$316)))) -> 46.94872612 | N301: =IF(MAX(C305:C316)-MIN(C305:C316)<5,AVERAGEIF(C305:C316,">0",N305:N316), IF(FORECAST($C301,N$305:N$316,$C$305:$C$316)<0,0, IF(FORECAST($C301,N$305:N$316,$C$305:$C$316)>100,100, FORECAST($C301,N$305:N$316,$C$305:$C$316)))) -> 2.090270134 | R301: =IF(MAX(C305:C316)-MIN(C305:C316)<5,AVERAGEIF(C305:C316,">0",R305:R316), IF(FORECAST($C301,R$305:R$316,$C$305:$C$316)<0,0, IF(FORECAST($C301,R$305:R$316,$C$305:$C$316)>100,100, FORECAST($C301,R$305:R$316,$C$305:$C$316)))) -> 37.5708674 | S301: =IF(MAX(C305:C316)-MIN(C305:C316)<5,AVERAGEIF(C305:C316,">0",S305:S316), IF(FORECAST($C301,S$305:S$316,$C$305:$C$316)<0,0, IF(FORECAST($C301,S$305:S$316,$C$305:$C$316)>100,100, FORECAST($C301,S$305:S$316,$C$305:$C$316)))) -> 9.403095144 | W301: =IF(MAX(C305:C316)-MIN(C305:C316)<5,AVERAGEIF(C305:C316,">0",W305:W316), IF(FORECAST($C301,W$305:W$316,$C$305:$C$316)<0,0, IF(FORECAST($C301,W$305:W$316,$C$305:$C$316)>100,100, FORECAST($C301,W$305:W$316,$C$305:$C$316)))) -> 30.03631412 | X301: =IF(MAX(C305:C316)-MIN(C305:C316)<5,AVERAGEIF(C305:C316,">0",X305:X316), IF(FORECAST($C301,X$305:X$316,$C$305:$C$316)<0,0, IF(FORECAST($C301,X$305:X$316,$C$305:$C$316)>100,100, FORECAST($C301,X$305:X$316,$C$305:$C$316)))) -> 44.07554117 | AB301: =IF(MAX(C305:C316)-MIN(C305:C316)<5,AVERAGEIF(C305:C316,">0",AB305:AB316), IF(FORECAST($C301,AB$305:AB$316,$C$305:$C$316)<0,0, IF(FORECAST($C301,AB$305:AB$316,$C$305:$C$316)>100,100, FORECAST($C301,AB$305:AB$316,$C$305:$C$316)))) -> 13.13522016
C302: =MaxRegYear(C300,C305:C316) -> 2020 | D302: =IF(MAX(C305:C316)-MIN(C305:C316)<5,AVERAGEIF(C305:C316,">0",D305:D316), IF(FORECAST($C302,D$305:D$316,$C$305:$C$316)<0,0, IF(FORECAST($C302,D$305:D$316,$C$305:$C$316)>100,100, FORECAST($C302,D$305:D$316,$C$305:$C$316)))) -> 6.274004932 | H302: =IF(MAX(C305:C316)-MIN(C305:C316)<5,AVERAGEIF(C305:C316,">0",H305:H316), IF(FORECAST($C302,H$305:H$316,$C$305:$C$316)<0,0, IF(FORECAST($C302,H$305:H$316,$C$305:$C$316)>100,100, FORECAST($C302,H$305:H$316,$C$305:$C$316)))) -> 62.81886715 | I302: =IF(MAX(C305:C316)-MIN(C305:C316)<5,AVERAGEIF(C305:C316,">0",I305:I316), IF(FORECAST($C302,I$305:I$316,$C$305:$C$316)<0,0, IF(FORECAST($C302,I$305:I$316,$C$305:$C$316)>100,100, FORECAST($C302,I$305:I$316,$C$305:$C$316)))) -> 7.94711967 | M302: =IF(MAX(C305:C316)-MIN(C305:C316)<5,AVERAGEIF(C305:C316,">0",M305:M316), IF(FORECAST($C302,M$305:M$316,$C$305:$C$316)<0,0, IF(FORECAST($C302,M$305:M$316,$C$305:$C$316)>100,100, FORECAST($C302,M$305:M$316,$C$305:$C$316)))) -> 51.7884286 | N302: =IF(MAX(C305:C316)-MIN(C305:C316)<5,AVERAGEIF(C305:C316,">0",N305:N316), IF(FORECAST($C302,N$305:N$316,$C$305:$C$316)<0,0, IF(FORECAST($C302,N$305:N$316,$C$305:$C$316)>100,100, FORECAST($C302,N$305:N$316,$C$305:$C$316)))) -> 12.70565453 | R302: =IF(MAX(C305:C316)-MIN(C305:C316)<5,AVERAGEIF(C305:C316,">0",R305:R316), IF(FORECAST($C302,R$305:R$316,$C$305:$C$316)<0,0, IF(FORECAST($C302,R$305:R$316,$C$305:$C$316)>100,100, FORECAST($C302,R$305:R$316,$C$305:$C$316)))) -> 36.01062569 | S302: =IF(MAX(C305:C316)-MIN(C305:C316)<5,AVERAGEIF(C305:C316,">0",S305:S316), IF(FORECAST($C302,S$305:S$316,$C$305:$C$316)<0,0, IF(FORECAST($C302,S$305:S$316,$C$305:$C$316)>100,100, FORECAST($C302,S$305:S$316,$C$305:$C$316)))) -> 14.86228371 | W302: =IF(MAX(C305:C316)-MIN(C305:C316)<5,AVERAGEIF(C305:C316,">0",W305:W316), IF(FORECAST($C302,W$305:W$316,$C$305:$C$316)<0,0, IF(FORECAST($C302,W$305:W$316,$C$305:$C$316)>100,100, FORECAST($C302,W$305:W$316,$C$305:$C$316)))) -> 29.32642357 | X302: =IF(MAX(C305:C316)-MIN(C305:C316)<5,AVERAGEIF(C305:C316,">0",X305:X316), IF(FORECAST($C302,X$305:X$316,$C$305:$C$316)<0,0, IF(FORECAST($C302,X$305:X$316,$C$305:$C$316)>100,100, FORECAST($C302,X$305:X$316,$C$305:$C$316)))) -> 21.40329307 | AB302: =IF(MAX(C305:C316)-MIN(C305:C316)<5,AVERAGEIF(C305:C316,">0",AB305:AB316), IF(FORECAST($C302,AB$305:AB$316,$C$305:$C$316)<0,0, IF(FORECAST($C302,AB$305:AB$316,$C$305:$C$316)>100,100, FORECAST($C302,AB$305:AB$316,$C$305:$C$316)))) -> 18.9707274
B304: Survey | C304: Year | D304: Improved | E304: Not shared | H304: Open defecation | I304: Improved | J304: Not shared | M304: Open defecation | N304: Improved | O304: Not shared | R304: Open defecation | S304: Improved | T304: Not shared | W304: Open defecation | X304: Improved | Y304: Not shared | AB304: Open defecation
B305: MICS00 | D305: =IF(ISERROR(INDIRECT(CONCATENATE($B305,"!M122"))),"",INDIRECT(CONCATENATE($B305,"!M122"))) -> 0.6020070736 | E305: =IF(ISERROR(INDIRECT(CONCATENATE($B305,"!M129"))),"",INDIRECT(CONCATENATE($B305,"!M129"))) -> N/A | H305: =IF(ISERROR(INDIRECT(CONCATENATE($B305,"!M127"))),"",INDIRECT(CONCATENATE($B305,"!M127"))) -> 61.09634 | I305: =IF(ISERROR(INDIRECT(CONCATENATE($B305,"!N122"))),"",INDIRECT(CONCATENATE($B305,"!N122"))) -> 1.493549335 | J305: =IF(ISERROR(INDIRECT(CONCATENATE($B305,"!N129"))),"",INDIRECT(CONCATENATE($B305,"!N129"))) -> N/A | M305: =IF(ISERROR(INDIRECT(CONCATENATE($B305,"!N127"))),"",INDIRECT(CONCATENATE($B305,"!N127"))) -> 45.41452962 | N305: =IF(ISERROR(INDIRECT(CONCATENATE($B305,"!O122"))),"",INDIRECT(CONCATENATE($B305,"!O122"))) -> 3.318429639 | O305: =IF(ISERROR(INDIRECT(CONCATENATE($B305,"!O129"))),"",INDIRECT(CONCATENATE($B305,"!O129"))) -> N/A | R305: =IF(ISERROR(INDIRECT(CONCATENATE($B305,"!O127"))),"",INDIRECT(CONCATENATE($B305,"!O127"))) -> 32.77850938 | S305: =IF(ISERROR(INDIRECT(CONCATENATE($B305,"!P122"))),"",INDIRECT(CONCATENATE($B305,"!P122"))) -> 9.446898567 | T305: =IF(ISERROR(INDIRECT(CONCATENATE($B305,"!P129"))),"",INDIRECT(CONCATENATE($B305,"!P129"))) -> N/A | W305: =IF(ISERROR(INDIRECT(CONCATENATE($B305,"!P127"))),"",INDIRECT(CONCATENATE($B305,"!P127"))) -> 25.90015658 | X305: =IF(ISERROR(INDIRECT(CONCATENATE($B305,"!Q122"))),"",INDIRECT(CONCATENATE($B305,"!Q122"))) -> 40.32226159 | Y305: =IF(ISERROR(INDIRECT(CONCATENATE($B305,"!Q129"))),"",INDIRECT(CONCATENATE($B305,"!Q129"))) -> N/A | AB305: =IF(ISERROR(INDIRECT(CONCATENATE($B305,"!Q2127"))),"",INDIRECT(CONCATENATE($B305,"!Q127"))) -> 13.46286714
B306: MICS06 | C306: 2006 | D306: 1.301246296 | E306: 67.11818876 | H306: 51.91700381 | I306: 1.880978776 | J306: 62.09613215 | M306: 45.54444496 | N306: 3.841898029 | O306: 65.81739371 | R306: 37.75338931 | S306: 10.02548632 | T306: 65.83635371 | W306: 29.23161295 | X306: 34.1815983 | Y306: 69.65916835 | AB306: 14.61022352
B307: MICS10 | C307: 2010 | D307: 1.355590173 | E307: 68.40042385 | H307: 63.34748866 | I307: 2.008986986 | J307: 64.56811701 | M307: 51.66585583 | N307: 5.457576728 | O307: 79.04561434 | R307: 36.44042369 | S307: 11.5369682 | T307: 68.20979442 | W307: 30.80427662 | X307: 45.7710986 | Y307: 72.35613076 | AB307: 14.24660822
B308: MICS19 | C308: 2019 | D308: 6.154921425 | E308: 32.88234519 | H308: 60.60326432 | I308: 7.791188673 | J308: 43.52758621 | M308: 50.59294987 | N308: 12.23095071 | O308: 46.1385607 | R308: 36.27594174 | S308: 14.49441447 | T308: 45.338852 | W308: 29.05258513 | X308: 19.68256997 | Y308: 55.4273287 | AB308: 18.93737041
B318: =CONCATENATE("Rural use of sanitation facilities, ",C299,"–",C300) -> Rural use of sanitation facilities, 2000–2020 | S318: Data points used for regression

Sheet Hygiene
B4: Access to hygiene facilities by wealth quintile (%)
B5: =IF(ISERROR(INDIRECT(CONCATENATE($E$32,"!A2"))),"",INDIRECT(CONCATENATE($E$32,"!A2"))) -> Central African Republic
B7: =CONCATENATE("National ",IF(ISERROR(INDIRECT(CONCATENATE($E$32,"!A2"))),"",INDIRECT(CONCATENATE($E$32,"!A210")))) -> National Access to hygiene facilities | K7: =CONCATENATE("Urban ",IF(ISERROR(INDIRECT(CONCATENATE($E$32,"!A2"))),"",INDIRECT(CONCATENATE($E$32,"!A210")))) -> Urban Access to hygiene facilities | S7: =CONCATENATE("Rural ",IF(ISERROR(INDIRECT(CONCATENATE($E$32,"!A2"))),"",INDIRECT(CONCATENATE($E$32,"!A210")))) -> Rural Access to hygiene facilities
E32: =INDEX(B88:B100,A88) -> MICS19 | G32: =IF(ISERROR(INDIRECT(CONCATENATE($E$32,"!A2"))),"",INDIRECT(CONCATENATE($E$32,"!A2"))) -> Central African Republic | K32: Poorest | N32: Poor | Q32: Middle | T32: Rich | W32: Richest
K33: Basic | L33: Limited | M33: No facility | N33: Basic | O33: Limited | P33: No facility | Q33: Basic | R33: Limited | S33: No facility | T33: Basic | U33: Limited | V33: No facility | W33: Basic | X33: Limited | Y33: No facility
B34: >>> Select Survey : | G34: NATIONAL | J34: =IF(ISERROR(INDIRECT(CONCATENATE(#REF!,"!A2"))),"",INDIRECT(CONCATENATE(#REF!,"!A210"))) ->  | K34: =IF(ISERROR(INDIRECT(CONCATENATE($E$32,"!C222"))),"",INDIRECT(CONCATENATE($E$32,"!C222"))) -> 7.8010158 | L34: =IF(ISERROR(INDIRECT(CONCATENATE($E$32,"!C223"))),"",INDIRECT(CONCATENATE($E$32,"!C223"))) -> 7.442304446 | M34: =IF(ISERROR(INDIRECT(CONCATENATE($E$32,"!C224"))),"",INDIRECT(CONCATENATE($E$32,"!C224"))) -> 84.75667975 | N34: =IF(ISERROR(INDIRECT(CONCATENATE($E$32,"!D222"))),"",INDIRECT(CONCATENATE($E$32,"!D222"))) -> 8.822594644 | O34: =IF(ISERROR(INDIRECT(CONCATENATE($E$32,"!D223"))),"",INDIRECT(CONCATENATE($E$32,"!D223"))) -> 8.311949358 | P34: =IF(ISERROR(INDIRECT(CONCATENATE($E$32,"!D224"))),"",INDIRECT(CONCATENATE($E$32,"!D224"))) -> 82.865456 | Q34: =IF(ISERROR(INDIRECT(CONCATENATE($E$32,"!E222"))),"",INDIRECT(CONCATENATE($E$32,"!E222"))) -> 13.88191264 | R34: =IF(ISERROR(INDIRECT(CONCATENATE($E$32,"!E223"))),"",INDIRECT(CONCATENATE($E$32,"!E223"))) -> 8.852413595 | S34: =IF(ISERROR(INDIRECT(CONCATENATE($E$32,"!E224"))),"",INDIRECT(CONCATENATE($E$32,"!E224"))) -> 77.26567377 | T34: =IF(ISERROR(INDIRECT(CONCATENATE($E$32,"!F222"))),"",INDIRECT(CONCATENATE($E$32,"!F222"))) -> 26.03433806 | U34: =IF(ISERROR(INDIRECT(CONCATENATE($E$32,"!F223"))),"",INDIRECT(CONCATENATE($E$32,"!F223"))) -> 10.46072579 | V34: =IF(ISERROR(INDIRECT(CONCATENATE($E$32,"!F224"))),"",INDIRECT(CONCATENATE($E$32,"!F224"))) -> 63.50493615 | W34: =IF(ISERROR(INDIRECT(CONCATENATE($E$32,"!G222"))),"",INDIRECT(CONCATENATE($E$32,"!G222"))) -> 42.06800985 | X34: =IF(ISERROR(INDIRECT(CONCATENATE($E$32,"!G223"))),"",INDIRECT(CONCATENATE($E$32,"!G223"))) -> 9.481324534 | Y34: =IF(ISERROR(INDIRECT(CONCATENATE($E$32,"!G224"))),"",INDIRECT(CONCATENATE($E$32,"!G224"))) -> 48.45066561
G37: URBAN | J37: =IF(ISERROR(INDIRECT(CONCATENATE(#REF!,"!A2"))),"",INDIRECT(CONCATENATE(#REF!,"!A210"))) ->  | K37: =IF(ISERROR(INDIRECT(CONCATENATE($E$32,"!H222"))),"",INDIRECT(CONCATENATE($E$32,"!H222"))) -> 12.97329161 | L37: =IF(ISERROR(INDIRECT(CONCATENATE($E$32,"!H223"))),"",INDIRECT(CONCATENATE($E$32,"!H223"))) -> 8.46219868 | M37: =IF(ISERROR(INDIRECT(CONCATENATE($E$32,"!H224"))),"",INDIRECT(CONCATENATE($E$32,"!H224"))) -> 78.56450971 | N37: =IF(ISERROR(INDIRECT(CONCATENATE($E$32,"!I222"))),"",INDIRECT(CONCATENATE($E$32,"!I222"))) -> 27.33734474 | O37: =IF(ISERROR(INDIRECT(CONCATENATE($E$32,"!I223"))),"",INDIRECT(CONCATENATE($E$32,"!I223"))) -> 11.63191211 | P37: =IF(ISERROR(INDIRECT(CONCATENATE($E$32,"!I224"))),"",INDIRECT(CONCATENATE($E$32,"!I224"))) -> 61.03074315 | Q37: =IF(ISERROR(INDIRECT(CONCATENATE($E$32,"!J222"))),"",INDIRECT(CONCATENATE($E$32,"!J222"))) -> 34.19595809 | R37: =IF(ISERROR(INDIRECT(CONCATENATE($E$32,"!J223"))),"",INDIRECT(CONCATENATE($E$32,"!J223"))) -> 9.857569094 | S37: =IF(ISERROR(INDIRECT(CONCATENATE($E$32,"!J224"))),"",INDIRECT(CONCATENATE($E$32,"!J224"))) -> 55.94647281 | T37: =IF(ISERROR(INDIRECT(CONCATENATE($E$32,"!K222"))),"",INDIRECT(CONCATENATE($E$32,"!K222"))) -> 38.81553137 | U37: =IF(ISERROR(INDIRECT(CONCATENATE($E$32,"!K223"))),"",INDIRECT(CONCATENATE($E$32,"!K223"))) -> 8.978105522 | V37: =IF(ISERROR(INDIRECT(CONCATENATE($E$32,"!K224"))),"",INDIRECT(CONCATENATE($E$32,"!K224"))) -> 52.20636311 | W37: =IF(ISERROR(INDIRECT(CONCATENATE($E$32,"!L222"))),"",INDIRECT(CONCATENATE($E$32,"!L222"))) -> 52.57690411 | X37: =IF(ISERROR(INDIRECT(CONCATENATE($E$32,"!L223"))),"",INDIRECT(CONCATENATE($E$32,"!L223"))) -> 10.25282755 | Y37: =IF(ISERROR(INDIRECT(CONCATENATE($E$32,"!L224"))),"",INDIRECT(CONCATENATE($E$32,"!L224"))) -> 37.17026834
G40: RURAL | J40: =IF(ISERROR(INDIRECT(CONCATENATE(#REF!,"!A2"))),"",INDIRECT(CONCATENATE(#REF!,"!A210"))) ->  | K40: =IF(ISERROR(INDIRECT(CONCATENATE($E$32,"!M222"))),"",INDIRECT(CONCATENATE($E$32,"!M222"))) -> 6.188693143 | L40: =IF(ISERROR(INDIRECT(CONCATENATE($E$32,"!M223"))),"",INDIRECT(CONCATENATE($E$32,"!M223"))) -> 6.65772488 | M40: =IF(ISERROR(INDIRECT(CONCATENATE($E$32,"!M224"))),"",INDIRECT(CONCATENATE($E$32,"!M224"))) -> 87.15358198 | N40: =IF(ISERROR(INDIRECT(CONCATENATE($E$32,"!N222"))),"",INDIRECT(CONCATENATE($E$32,"!N222"))) -> 7.725261988 | O40: =IF(ISERROR(INDIRECT(CONCATENATE($E$32,"!N223"))),"",INDIRECT(CONCATENATE($E$32,"!N223"))) -> 9.14533442 | P40: =IF(ISERROR(INDIRECT(CONCATENATE($E$32,"!N224"))),"",INDIRECT(CONCATENATE($E$32,"!N224"))) -> 83.12940359 | Q40: =IF(ISERROR(INDIRECT(CONCATENATE($E$32,"!O222"))),"",INDIRECT(CONCATENATE($E$32,"!O222"))) -> 10.23011771 | R40: =IF(ISERROR(INDIRECT(CONCATENATE($E$32,"!O223"))),"",INDIRECT(CONCATENATE($E$32,"!O223"))) -> 8.363108497 | S40: =IF(ISERROR(INDIRECT(CONCATENATE($E$32,"!O224"))),"",INDIRECT(CONCATENATE($E$32,"!O224"))) -> 81.40677379 | T40: =IF(ISERROR(INDIRECT(CONCATENATE($E$32,"!P222"))),"",INDIRECT(CONCATENATE($E$32,"!P222"))) -> 14.55762215 | U40: =IF(ISERROR(INDIRECT(CONCATENATE($E$32,"!P223"))),"",INDIRECT(CONCATENATE($E$32,"!P223"))) -> 8.687571585 | V40: =IF(ISERROR(INDIRECT(CONCATENATE($E$32,"!P224"))),"",INDIRECT(CONCATENATE($E$32,"!P224"))) -> 76.75480627 | W40: =IF(ISERROR(INDIRECT(CONCATENATE($E$32,"!Q222"))),"",INDIRECT(CONCATENATE($E$32,"!Q222"))) -> 22.765841 | X40: =IF(ISERROR(INDIRECT(CONCATENATE($E$32,"!Q223"))),"",INDIRECT(CONCATENATE($E$32,"!Q223"))) -> 9.130879821 | Y40: =IF(ISERROR(INDIRECT(CONCATENATE($E$32,"!Q224"))),"",INDIRECT(CONCATENATE($E$32,"!Q224"))) -> 68.10327918
A88: 4 | B88: MICS00
B89: MICS06
B90: MICS10
B91: MICS19
B92: Template

Sheet MICS00
A2: =A1026 -> Central African Republic
A3: =A1034 -> 2000
A4: Use of drinking water sources
A5: by wealth quintile and sub-national region
A6: Notes:
A7: WHO/UNICEF JMP customised wealth index excludes water,
A8: sanitation and hygiene assets.
A9: Survey used for analysis: | B9: =A1025 -> MICS00
A10: =B1028 -> 
A11: =B1027 -> 
A14: Use of drinking water sources | C14: NATIONAL wealth index quintile | H14: URBAN wealth index quintile | M14: RURAL wealth index quintile | R14: SUB-REGIONS: | BA14: Raw numbers of respondents: | BB14: Use of drinking water sources | BC14: NATIONAL wealth index quintile | BH14: URBAN wealth index quintile | BM14: RURAL wealth index quintile | BR14: SUB-REGIONS:
A15: Weighted percentage (used in graphs) | C15: Poorest | D15: Poor | E15: Middle | F15: Rich | G15: Richest | H15: Poorest | I15: Poor | J15: Middle | K15: Rich | L15: Richest | M15: Poorest | N15: Poor | O15: Middle | P15: Rich | Q15: Richest | R15: bamingui-bangoran | S15: bangui | T15: basse-kotto | U15: haut-mbomou | V15: haute-kotto | W15: kémo | X15: lobaye | Y15: mambéré-kadeï | Z15: mbomou | AA15: nana-grébizi | AB15: nana-mambéré | AC15: ombella-m'poko | AD15: ouaka | AE15: ouham | AF15: ouham-pendé | AG15: sangha-mbaéré | AH15: vakaga | BA15: Water data, raw numbers (weighted) | BC15: Poorest | BD15: Poor | BE15: Middle | BF15: Rich | BG15: Richest | BH15: Poorest | BI15: Poor | BJ15: Middle | BK15: Rich | BL15: Richest | BM15: Poorest | BN15: Poor | BO15: Middle | BP15: Rich | BQ15: Richest | BR15: bamingui-bangoran | BS15: bangui | BT15: basse-kotto | BU15: haut-mbomou | BV15: haute-kotto | BW15: kémo | BX15: lobaye | BY15: mambéré-kadeï | BZ15: mbomou | CA15: nana-grébizi | CB15: nana-mambéré | CC15: ombella-m'poko | CD15: ouaka | CE15: ouham | CF15: ouham-pendé | CG15: sangha-mbaéré | CH15: vakaga
A16: Water | B16: Improved | C16: 56.10562078 | D16: 57.81271656 | E16: 62.32485925 | F16: 78.21838425 | G16: 90.57262717 | H16: 77.22557821 | I16: 87.02781646 | J16: 87.50712276 | K16: 93.39924112 | L16: 96.37248372 | M16: 50.36296671 | N16: 56.7725828 | O16: 55.72996106 | P16: 54.27488815 | Q16: 62.28096088 | R16: 68.42593996 | S16: 98.19175923 | T16: 36.81991622 | U16: 62.61418645 | V16: 70.75952939 | W16: 57.37176637 | X16: 68.63460285 | Y16: 60.10633612 | Z16: 51.38939403 | AA16: 69.20943818 | AB16: 65.51446408 | AC16: 67.89854315 | AD16: 45.01444892 | AE16: 84.84417638 | AF16: 74.79434076 | AG16: 55.91529383 | AH16: 43.56914351 | BA16: Water | BB16: Improved | BC16: N/A | BD16: N/A | BE16: N/A | BF16: N/A | BG16: N/A | BH16: N/A | BI16: N/A | BJ16: N/A | BK16: N/A | BL16: N/A | BM16: N/A | BN16: N/A | BO16: N/A | BP16: N/A | BQ16: N/A | BR16: N/A | BS16: N/A | BT16: N/A | BU16: N/A | BV16: N/A | BW16: N/A | BX16: N/A | BY16: N/A | BZ16: N/A | CA16: N/A | CB16: N/A | CC16: N/A | CD16: N/A | CE16: N/A | CF16: N/A | CG16: N/A | CH16: N/A
B17: Not Improved | C17: 43.89437922 | D17: 42.18728344 | E17: 37.67514075 | F17: 21.78161575 | G17: 9.427372828 | H17: 22.77442179 | I17: 12.97218354 | J17: 12.49287724 | K17: 6.600758877 | L17: 3.62751628 | M17: 49.63703329 | N17: 43.2274172 | O17: 44.27003894 | P17: 45.72511185 | Q17: 37.71903912 | R17: 31.57406004 | S17: 1.80824077 | T17: 63.18008378 | U17: 37.38581355 | V17: 29.24047061 | W17: 42.62823363 | X17: 31.36539715 | Y17: 39.89366388 | Z17: 48.61060597 | AA17: 30.79056182 | AB17: 34.48553592 | AC17: 32.10145685 | AD17: 54.98555108 | AE17: 15.15582362 | AF17: 25.20565924 | AG17: 44.08470617 | AH17: 56.43085649 | BB17: Not Improved | BC17: N/A | BD17: N/A | BE17: N/A | BF17: N/A | BG17: N/A | BH17: N/A | BI17: N/A | BJ17: N/A | BK17: N/A | BL17: N/A | BM17: N/A | BN17: N/A | BO17: N/A | BP17: N/A | BQ17: N/A | BR17: N/A | BS17: N/A | BT17: N/A | BU17: N/A | BV17: N/A | BW17: N/A | BX17: N/A | BY17: N/A | BZ17: N/A | CA17: N/A | CB17: N/A | CC17: N/A | CD17: N/A | CE17: N/A | CF17: N/A | CG17: N/A | CH17: N/A
A18: Water ladder | B18: Basic | C18: =C16*C23/100 -> 48.96807918 | D18: =D16*D23/100 -> 50.10464831 | E18: =E16*E23/100 -> 54.56703638 | F18: 69.27776527 | G18: 82.81808235 | H18: 68.3892889 | I18: 80.24905001 | J18: 80.61030697 | K18: 87.53434581 | L18: 89.38695029 | M18: 44.07547198 | N18: 49.41495689 | O18: 47.94455758 | P18: 45.62709579 | Q18: 50.37287527 | R18: 56.25893819 | S18: 94.66037588 | T18: 28.73604946 | U18: 49.02964515 | V18: 68.86590539 | W18: 46.94566786 | X18: 63.03809406 | Y18: 49.28004794 | Z18: 41.55612935 | AA18: 52.84180845 | AB18: 57.69352642 | AC18: 59.99822145 | AD18: 38.3665229 | AE18: 74.63041387 | AF18: 66.82745875 | AG18: 48.04317333 | AH18: 37.28428227 | BA18: Water ladder | BB18: Basic | BC18: N/A | BD18: N/A | BE18: N/A | BF18: N/A | BG18: N/A | BH18: N/A | BI18: N/A | BJ18: N/A | BK18: N/A | BL18: N/A | BM18: N/A | BN18: N/A | BO18: N/A | BP18: N/A | BQ18: N/A | BR18: N/A | BS18: N/A | BT18: N/A | BU18: N/A | BV18: N/A | BW18: N/A | BX18: N/A | BY18: N/A | BZ18: N/A | CA18: N/A | CB18: N/A | CC18: N/A | CD18: N/A | CE18: N/A | CF18: N/A | CG18: N/A | CH18: N/A
B19: Limited | C19: =C16*C22/100 -> 7.137541605 | D19: =D16*D22/100 -> 7.708068254 | E19: =E16*E22/100 -> 7.757822867 | F19: 8.940618982 | G19: 7.754544819 | H19: 8.836289306 | I19: 6.778766444 | J19: 6.896815794 | K19: 5.86489531 | L19: 6.98553343 | M19: 6.287494736 | N19: 7.357625911 | O19: 7.785403489 | P19: 8.647792356 | Q19: 11.90808562 | R19: 12.16700177 | S19: 3.531383349 | T19: 8.083866753 | U19: 13.5845413 | V19: 1.893623996 | W19: 10.42609852 | X19: 5.596508789 | Y19: 10.82628818 | Z19: 9.833264682 | AA19: 16.36762973 | AB19: 7.82093766 | AC19: 7.900321705 | AD19: 6.647926019 | AE19: 10.21376252 | AF19: 7.966882016 | AG19: 7.872120504 | AH19: 6.28486124 | BB19: Limited | BC19: N/A | BD19: N/A | BE19: N/A | BF19: N/A | BG19: N/A | BH19: N/A | BI19: N/A | BJ19: N/A | BK19: N/A | BL19: N/A | BM19: N/A | BN19: N/A | BO19: N/A | BP19: N/A | BQ19: N/A | BR19: N/A | BS19: N/A | BT19: N/A | BU19: N/A | BV19: N/A | BW19: N/A | BX19: N/A | BY19: N/A | BZ19: N/A | CA19: N/A | CB19: N/A | CC19: N/A | CD19: N/A | CE19: N/A | CF19: N/A | CG19: N/A | CH19: N/A
B20: Unimproved | C20: =100-C18-C19-C21 -> 33.79498786 | D20: =100-D18-D19-D21 -> 31.38019041 | E20: =100-E18-E19-E21 -> 26.27782461 | F20: 14.47551295 | G20: 7.965795157 | H20: 20.76010174 | I20: 10.34676267 | J20: 10.29885997 | K20: 6.600758877 | L20: 3.41107277 | M20: 36.46845504 | N20: 32.89015347 | O20: 32.62075499 | P20: 30.70642072 | Q20: 23.67024349 | R20: 27.17688537 | S20: 1.689446327 | T20: 52.09883874 | U20: 20.74792029 | V20: 20.59868572 | W20: 36.04097267 | X20: 23.80036425 | Y20: 14.63343408 | Z20: 41.44592688 | AA20: 28.31840707 | AB20: 29.14840212 | AC20: 23.08379751 | AD20: 50.62396594 | AE20: 9.640245271 | AF20: 17.52261678 | AG20: 28.07731741 | AH20: 54.6248745 | BB20: Unimproved | BC20: N/A | BD20: N/A | BE20: N/A | BF20: N/A | BG20: N/A | BH20: N/A | BI20: N/A | BJ20: N/A | BK20: N/A | BL20: N/A | BM20: N/A | BN20: N/A | BO20: N/A | BP20: N/A | BQ20: N/A | BR20: N/A | BS20: N/A | BT20: N/A | BU20: N/A | BV20: N/A | BW20: N/A | BX20: N/A | BY20: N/A | BZ20: N/A | CA20: N/A | CB20: N/A | CC20: N/A | CD20: N/A | CE20: N/A | CF20: N/A | CG20: N/A | CH20: N/A
B21: Surface water | C21: 10.09939136 | D21: 10.80709303 | E21: 11.39731614 | F21: 7.306102801 | G21: 1.461577672 | H21: 2.014320045 | I21: 2.62542087 | J21: 2.194017269 | K21: 0 | L21: 0.2164435097 | M21: 13.16857824 | N21: 10.33726372 | O21: 11.64928395 | P21: 15.01869113 | Q21: 14.04879563 | R21: 4.397174666 | S21: 0.1187944425 | T21: 11.08124505 | U21: 16.63789326 | V21: 8.641784887 | W21: 6.58726096 | X21: 7.565032901 | Y21: 25.2602298 | Z21: 7.164679082 | AA21: 2.472154752 | AB21: 5.337133801 | AC21: 9.017659339 | AD21: 4.361585143 | AE21: 5.515578348 | AF21: 7.683042452 | AG21: 16.00738875 | AH21: 1.805981993 | BB21: Surface water | BC21: N/A | BD21: N/A | BE21: N/A | BF21: N/A | BG21: N/A | BH21: N/A | BI21: N/A | BJ21: N/A | BK21: N/A | BL21: N/A | BM21: N/A | BN21: N/A | BO21: N/A | BP21: N/A | BQ21: N/A | BR21: N/A | BS21: N/A | BT21: N/A | BU21: N/A | BV21: N/A | BW21: N/A | BX21: N/A | BY21: N/A | BZ21: N/A | CA21: N/A | CB21: N/A | CC21: N/A | CD21: N/A | CE21: N/A | CF21: N/A | CG21: N/A | CH21: N/A
A22: Improved water point at more than 30 minutes | B22: Yes | C22: 12.72161595 | D22: 13.33282487 | E22: 12.44739733 | F22: 11.43032941 | G22: 8.56168697 | H22: 11.44217954 | I22: 7.789195133 | J22: 7.88143362 | K22: 6.279382187 | L22: 7.248472967 | M22: 12.48436132 | N22: 12.95982241 | O22: 13.96987068 | P22: 15.93332138 | Q22: 19.11994524 | R22: 17.78127093 | S22: 3.596415195 | T22: 21.95514706 | U22: 21.69562854 | V22: 2.676139896 | W22: 18.17287348 | X22: 8.154063047 | Y22: 18.01189172 | Z22: 19.13481345 | AA22: 23.64941858 | AB22: 11.93772668 | AC22: 11.63548044 | AD22: 14.76842698 | AE22: 12.03825996 | AF22: 10.65171768 | AG22: 14.07865356 | AH22: 14.42502821 | BA22: Improved water point at more than 30 minutes | BB22: Yes | BC22: N/A | BD22: N/A | BE22: N/A | BF22: N/A | BG22: N/A | BH22: N/A | BI22: N/A | BJ22: N/A | BK22: N/A | BL22: N/A | BM22: N/A | BN22: N/A | BO22: N/A | BP22: N/A | BQ22: N/A | BR22: N/A | BS22: N/A | BT22: N/A | BU22: N/A | BV22: N/A | BW22: N/A | BX22: N/A | BY22: N/A | BZ22: N/A | CA22: N/A | CB22: N/A | CC22: N/A | CD22: N/A | CE22: N/A | CF22: N/A | CG22: N/A | CH22: N/A
B23: No | C23: 87.27838405 | D23: 86.66717513 | E23: 87.55260267 | F23: 88.56967059 | G23: 91.43831303 | H23: 88.55782046 | I23: 92.21080487 | J23: 92.11856638 | K23: 93.72061781 | L23: 92.75152703 | M23: 87.51563868 | N23: 87.04017759 | O23: 86.03012932 | P23: 84.06667862 | Q23: 80.88005476 | R23: 82.21872907 | S23: 96.4035848 | T23: 78.04485294 | U23: 78.30437146 | V23: 97.3238601 | W23: 81.82712652 | X23: 91.84593695 | Y23: 81.98810828 | Z23: 80.86518655 | AA23: 76.35058142 | AB23: 88.06227332 | AC23: 88.36451956 | AD23: 85.23157302 | AE23: 87.96174004 | AF23: 89.34828232 | AG23: 85.92134644 | AH23: 85.57497179 | BB23: No | BC23: N/A | BD23: N/A | BE23: N/A | BF23: N/A | BG23: N/A | BH23: N/A | BI23: N/A | BJ23: N/A | BK23: N/A | BL23: N/A | BM23: N/A | BN23: N/A | BO23: N/A | BP23: N/A | BQ23: N/A | BR23: N/A | BS23: N/A | BT23: N/A | BU23: N/A | BV23: N/A | BW23: N/A | BX23: N/A | BY23: N/A | BZ23: N/A | CA23: N/A | CB23: N/A | CC23: N/A | CD23: N/A | CE23: N/A | CF23: N/A | CG23: N/A | CH23: N/A
A24: Manually calculated ratios | B24: Improved wells
B25: Improved springs
B26: Other
C27: NATIONAL wealth index quintile | H27: URBAN wealth index quintile | M27: RURAL wealth index quintile | R27: SUB-REGIONS: | BA27: Raw numbers of respondents: | BB27: Use of drinking water sources | BC27: NATIONAL wealth index quintile | BH27: URBAN wealth index quintile | BM27: RURAL wealth index quintile | BR27: SUB-REGIONS:
A28: Percentage based on weighted population | C28: Poorest | D28: Poor | E28: Middle | F28: Rich | G28: Richest | H28: Poorest | I28: Poor | J28: Middle | K28: Rich | L28: Richest | M28: Poorest | N28: Poor | O28: Middle | P28: Rich | Q28: Richest | R28: bamingui-bangoran | S28: bangui | T28: basse-kotto | U28: haut-mbomou | V28: haute-kotto | W28: kémo | X28: lobaye | Y28: mambéré-kadeï | Z28: mbomou | AA28: nana-grébizi | AB28: nana-mambéré | AC28: ombella-m'poko | AD28: ouaka | AE28: ouham | AF28: ouham-pendé | AG28: sangha-mbaéré | AH28: vakaga | BA28: Water data, raw numbers (weighted) | BC28: Poorest | BD28: Poor | BE28: Middle | BF28: Rich | BG28: Richest | BH28: Poorest | BI28: Poor | BJ28: Middle | BK28: Rich | BL28: Richest | BM28: Poorest | BN28: Poor | BO28: Middle | BP28: Rich | BQ28: Richest | BR28: bamingui-bangoran | BS28: bangui | BT28: basse-kotto | BU28: haut-mbomou | BV28: haute-kotto | BW28: kémo | BX28: lobaye | BY28: mambéré-kadeï | BZ28: mbomou | CA28: nana-grébizi | CB28: nana-mambéré | CC28: ombella-m'poko | CD28: ouaka | CE28: ouham | CF28: ouham-pendé | CG28: sangha-mbaéré | CH28: vakaga
A29: Piped water | B29: Yes | C29: 7.004017962 | D29: 7.338857596 | E29: 14.48397006 | F29: 32.61365648 | G29: 58.5931402 | H29: 28.50707607 | I29: 43.66481513 | J29: 51.36192814 | K29: 62.80668894 | L29: 74.18392737 | M29: 3.369139379 | N29: 5.116129409 | O29: 5.616724299 | P29: 5.028897257 | Q29: 5.409824023 | R29: 24.66886767 | S29: 81.10926485 | T29: 0.4273817513 | U29: 1.832447754 | V29: 0.5390853535 | W29: 5.286295374 | X29: 2.280149703 | Y29: 28.61909288 | Z29: 1.288257117 | AA29: 2.703601587 | AB29: 17.91293984 | AC29: 11.53462864 | AD29: 9.447948945 | AE29: 20.39839329 | AF29: 16.60744381 | AG29: 1.82204422 | AH29: 0.4210760306 | BA29: Piped water | BB29: Yes | BC29: N/A | BD29: N/A | BE29: N/A | BF29: N/A | BG29: N/A | BH29: N/A | BI29: N/A | BJ29: N/A | BK29: N/A | BL29: N/A | BM29: N/A | BN29: N/A | BO29: N/A | BP29: N/A | BQ29: N/A | BR29: N/A | BS29: N/A | BT29: N/A | BU29: N/A | BV29: N/A | BW29: N/A | BX29: N/A | BY29: N/A | BZ29: N/A | CA29: N/A | CB29: N/A | CC29: N/A | CD29: N/A | CE29: N/A | CF29: N/A | CG29: N/A | CH29: N/A
B30: No | C30: 92.99598204 | D30: 92.6611424 | E30: 85.51602994 | F30: 67.38634352 | G30: 41.4068598 | H30: 71.49292393 | I30: 56.33518487 | J30: 48.63807186 | K30: 37.19331106 | L30: 25.81607263 | M30: 96.63086062 | N30: 94.88387059 | O30: 94.3832757 | P30: 94.97110274 | Q30: 94.59017598 | R30: 75.33113233 | S30: 18.89073515 | T30: 99.57261825 | U30: 98.16755225 | V30: 99.46091465 | W30: 94.71370463 | X30: 97.7198503 | Y30: 71.38090712 | Z30: 98.71174288 | AA30: 97.29639841 | AB30: 82.08706016 | AC30: 88.46537136 | AD30: 90.55205106 | AE30: 79.60160671 | AF30: 83.39255619 | AG30: 98.17795578 | AH30: 99.57892397 | BB30: No | BC30: N/A | BD30: N/A | BE30: N/A | BF30: N/A | BG30: N/A | BH30: N/A | BI30: N/A | BJ30: N/A | BK30: N/A | BL30: N/A | BM30: N/A | BN30: N/A | BO30: N/A | BP30: N/A | BQ30: N/A | BR30: N/A | BS30: N/A | BT30: N/A | BU30: N/A | BV30: N/A | BW30: N/A | BX30: N/A | BY30: N/A | BZ30: N/A | CA30: N/A | CB30: N/A | CC30: N/A | CD30: N/A | CE30: N/A | CF30: N/A | CG30: N/A | CH30: N/A
A31: Piped water on premises | B31: Yes | C31: 0.3214805249 | D31: 0.3836089588 | E31: 0.3211789536 | F31: 1.562745683 | G31: 14.56964293 | H31: 0.9113728582 | I31: 1.482697884 | J31: 3.130971737 | K31: 8.903310865 | L31: 26.32665616 | M31: 0.03936708908 | N31: 0.1411452877 | O31: 0.395035049 | P31: 0.1908246016 | Q31: 0.3479705314 | R31: 2.766208893 | S31: 13.09335945 | T31: 0.1392703585 | U31: 1.52242658 | V31: 0.3141213581 | W31: 0.1150639384 | X31: 0.2731703155 | Y31: 3.340662148 | Z31: 0.4879796312 | AA31: 0 | AB31: 4.995331656 | AC31: 1.13237606 | AD31: 1.116567096 | AE31: 2.702404186 | AF31: 0.3762795997 | AG31: 0.2149417296 | AH31: 0 | BA31: Piped water on premises | BB31: Yes | BC31: N/A | BD31: N/A | BE31: N/A | BF31: N/A | BG31: N/A | BH31: N/A | BI31: N/A | BJ31: N/A | BK31: N/A | BL31: N/A | BM31: N/A | BN31: N/A | BO31: N/A | BP31: N/A | BQ31: N/A | BR31: N/A | BS31: N/A | BT31: N/A | BU31: N/A | BV31: N/A | BW31: N/A | BX31: N/A | BY31: N/A | BZ31: N/A | CA31: N/A | CB31: N/A | CC31: N/A | CD31: N/A | CE31: N/A | CF31: N/A | CG31: N/A | CH31: N/A
B32: No | C32: 99.67851948 | D32: 99.61639104 | E32: 99.67882105 | F32: 98.43725432 | G32: 85.43035707 | H32: 99.08862714 | I32: 98.51730212 | J32: 96.86902826 | K32: 91.09668913 | L32: 73.67334384 | M32: 99.96063291 | N32: 99.85885471 | O32: 99.60496495 | P32: 99.8091754 | Q32: 99.65202947 | R32: 97.23379111 | S32: 86.90664055 | T32: 99.86072964 | U32: 98.47757342 | V32: 99.68587864 | W32: 99.88493606 | X32: 99.72682968 | Y32: 96.65933785 | Z32: 99.51202037 | AA32: 100 | AB32: 95.00466834 | AC32: 98.86762394 | AD32: 98.8834329 | AE32: 97.29759581 | AF32: 99.6237204 | AG32: 99.78505827 | AH32: 100 | BB32: No | BC32: N/A | BD32: N/A | BE32: N/A | BF32: N/A | BG32: N/A | BH32: N/A | BI32: N/A | BJ32: N/A | BK32: N/A | BL32: N/A | BM32: N/A | BN32: N/A | BO32: N/A | BP32: N/A | BQ32: N/A | BR32: N/A | BS32: N/A | BT32: N/A | BU32: N/A | BV32: N/A | BW32: N/A | BX32: N/A | BY32: N/A | BZ32: N/A | CA32: N/A | CB32: N/A | CC32: N/A | CD32: N/A | CE32: N/A | CF32: N/A | CG32: N/A | CH32: N/A
A33: Piped water into dwelling | B33: Yes | C33: N/A | D33: N/A | E33: N/A | F33: N/A | G33: N/A | H33: N/A | I33: N/A | J33: N/A | K33: N/A | L33: N/A | M33: N/A | N33: N/A | O33: N/A | P33: N/A | Q33: N/A | R33: N/A | S33: N/A | T33: N/A | U33: N/A | V33: N/A | W33: N/A | X33: N/A | Y33: N/A | Z33: N/A | AA33: N/A | AB33: N/A | AC33: N/A | AD33: N/A | AE33: N/A | AF33: N/A | AG33: N/A | AH33: N/A | BA33: Piped water into dwelling | BB33: Yes | BC33: N/A | BD33: N/A | BE33: N/A | BF33: N/A | BG33: N/A | BH33: N/A | BI33: N/A | BJ33: N/A | BK33: N/A | BL33: N/A | BM33: N/A | BN33: N/A | BO33: N/A | BP33: N/A | BQ33: N/A | BR33: N/A | BS33: N/A | BT33: N/A | BU33: N/A | BV33: N/A | BW33: N/A | BX33: N/A | BY33: N/A | BZ33: N/A | CA33: N/A | CB33: N/A | CC33: N/A | CD33: N/A | CE33: N/A | CF33: N/A | CG33: N/A | CH33: N/A
B34: No | C34: N/A | D34: N/A | E34: N/A | F34: N/A | G34: N/A | H34: N/A | I34: N/A | J34: N/A | K34: N/A | L34: N/A | M34: N/A | N34: N/A | O34: N/A | P34: N/A | Q34: N/A | R34: N/A | S34: N/A | T34: N/A | U34: N/A | V34: N/A | W34: N/A | X34: N/A | Y34: N/A | Z34: N/A | AA34: N/A | AB34: N/A | AC34: N/A | AD34: N/A | AE34: N/A | AF34: N/A | AG34: N/A | AH34: N/A | BB34: No | BC34: N/A | BD34: N/A | BE34: N/A | BF34: N/A | BG34: N/A | BH34: N/A | BI34: N/A | BJ34: N/A | BK34: N/A | BL34: N/A | BM34: N/A | BN34: N/A | BO34: N/A | BP34: N/A | BQ34: N/A | BR34: N/A | BS34: N/A | BT34: N/A | BU34: N/A | BV34: N/A | BW34: N/A | BX34: N/A | BY34: N/A | BZ34: N/A | CA34: N/A | CB34: N/A | CC34: N/A | CD34: N/A | CE34: N/A | CF34: N/A | CG34: N/A | CH34: N/A
A35: Water source on premises | B35: Yes | C35: 5.854109032 | D35: 7.255780343 | E35: 8.718488393 | F35: 12.23659425 | G35: 27.67847157 | H35: 12.31935504 | I35: 13.24758873 | J35: 16.96124284 | K35: 23.35785936 | L35: 39.18229883 | M35: 4.690139802 | N35: 5.43859984 | O35: 7.604381703 | P35: 6.52160991 | Q35: 8.028072496 | R35: 6.841285107 | S35: 21.95534024 | T35: 7.23667344 | U35: 6.529148112 | V35: 24.57469661 | W35: 7.295798719 | X35: 8.443487507 | Y35: 5.585361797 | Z35: 14.56236471 | AA35: 9.5640852 | AB35: 11.79863098 | AC35: 17.83850679 | AD35: 12.7977215 | AE35: 9.662533226 | AF35: 8.76217576 | AG35: 4.062154937 | AH35: 11.32496441 | BA35: Water source on premises | BB35: Yes | BC35: N/A | BD35: N/A | BE35: N/A | BF35: N/A | BG35: N/A | BH35: N/A | BI35: N/A | BJ35: N/A | BK35: N/A | BL35: N/A | BM35: N/A | BN35: N/A | BO35: N/A | BP35: N/A | BQ35: N/A | BR35: N/A | BS35: N/A | BT35: N/A | BU35: N/A | BV35: N/A | BW35: N/A | BX35: N/A | BY35: N/A | BZ35: N/A | CA35: N/A | CB35: N/A | CC35: N/A | CD35: N/A | CE35: N/A | CF35: N/A | CG35: N/A | CH35: N/A
B36: No | C36: 94.14589097 | D36: 92.74421966 | E36: 91.28151161 | F36: 87.76340575 | G36: 72.32152843 | H36: 87.68064496 | I36: 86.75241127 | J36: 83.03875716 | K36: 76.64214064 | L36: 60.81770117 | M36: 95.3098602 | N36: 94.56140016 | O36: 92.3956183 | P36: 93.47839009 | Q36: 91.9719275 | R36: 93.15871489 | S36: 78.04465976 | T36: 92.76332656 | U36: 93.47085189 | V36: 75.42530339 | W36: 92.70420128 | X36: 91.55651249 | Y36: 94.4146382 | Z36: 85.43763529 | AA36: 90.4359148 | AB36: 88.20136902 | AC36: 82.16149321 | AD36: 87.2022785 | AE36: 90.33746677 | AF36: 91.23782424 | AG36: 95.93784506 | AH36: 88.67503559 | BB36: No | BC36: N/A | BD36: N/A | BE36: N/A | BF36: N/A | BG36: N/A | BH36: N/A | BI36: N/A | BJ36: N/A | BK36: N/A | BL36: N/A | BM36: N/A | BN36: N/A | BO36: N/A | BP36: N/A | BQ36: N/A | BR36: N/A | BS36: N/A | BT36: N/A | BU36: N/A | BV36: N/A | BW36: N/A | BX36: N/A | BY36: N/A | BZ36: N/A | CA36: N/A | CB36: N/A | CC36: N/A | CD36: N/A | CE36: N/A | CF36: N/A | CG36: N/A | CH36: N/A
A37: Improved Water source on premises | B37: Yes | C37: 6.784457478 | D37: 7.704817862 | E37: 9.199729553 | F37: 12.14208754 | G37: 28.0776533 | H37: 10.51012866 | I37: 13.02921477 | J37: 14.54281152 | K37: 21.97082879 | L37: 39.18739321 | M37: 5.799816962 | N37: 6.054281178 | O37: 7.915392638 | P37: 7.410861972 | Q37: 9.4472124 | R37: 6.646168899 | S37: 21.68334293 | T37: 12.51088847 | U37: 8.015688903 | V37: 29.42137904 | W37: 10.02928778 | X37: 7.600710943 | Y37: 8.423806961 | Z37: 14.2617901 | AA37: 10.93003571 | AB37: 13.61419924 | AC37: 19.37284381 | AD37: 20.62199036 | AE37: 9.979170864 | AF37: 6.344981254 | AG37: 5.178717149 | AH37: 14.56366412 | BA37: Improved water source on premises | BB37: Yes | BC37: N/A | BD37: N/A | BE37: N/A | BF37: N/A | BG37: N/A | BH37: N/A | BI37: N/A | BJ37: N/A | BK37: N/A | BL37: N/A | BM37: N/A | BN37: N/A | BO37: N/A | BP37: N/A | BQ37: N/A | BR37: N/A | BS37: N/A | BT37: N/A | BU37: N/A | BV37: N/A | BW37: N/A | BX37: N/A | BY37: N/A | BZ37: N/A | CA37: N/A | CB37: N/A | CC37: N/A | CD37: N/A | CE37: N/A | CF37: N/A | CG37: N/A | CH37: N/A
B38: No | C38: 93.21554252 | D38: 92.29518214 | E38: 90.80027045 | F38: 87.85791246 | G38: 71.9223467 | H38: 89.48987134 | I38: 86.97078523 | J38: 85.45718848 | K38: 78.02917121 | L38: 60.81260679 | M38: 94.20018304 | N38: 93.94571882 | O38: 92.08460736 | P38: 92.58913803 | Q38: 90.5527876 | R38: 93.3538311 | S38: 78.31665707 | T38: 87.48911153 | U38: 91.9843111 | V38: 70.57862096 | W38: 89.97071222 | X38: 92.39928906 | Y38: 91.57619304 | Z38: 85.7382099 | AA38: 89.06996429 | AB38: 86.38580076 | AC38: 80.62715619 | AD38: 79.37800964 | AE38: 90.02082914 | AF38: 93.65501875 | AG38: 94.82128285 | AH38: 85.43633588 | BB38: No | BC38: N/A | BD38: N/A | BE38: N/A | BF38: N/A | BG38: N/A | BH38: N/A | BI38: N/A | BJ38: N/A | BK38: N/A | BL38: N/A | BM38: N/A | BN38: N/A | BO38: N/A | BP38: N/A | BQ38: N/A | BR38: N/A | BS38: N/A | BT38: N/A | BU38: N/A | BV38: N/A | BW38: N/A | BX38: N/A | BY38: N/A | BZ38: N/A | CA38: N/A | CB38: N/A | CC38: N/A | CD38: N/A | CE38: N/A | CF38: N/A | CG38: N/A | CH38: N/A
A39: Piped water on premises available when needed | B39: Yes | C39: N/A | D39: N/A | E39: N/A | F39: N/A | G39: N/A | H39: N/A | I39: N/A | J39: N/A | K39: N/A | L39: N/A | M39: N/A | N39: N/A | O39: N/A | P39: N/A | Q39: N/A | R39: N/A | S39: N/A | T39: N/A | U39: N/A | V39: N/A | W39: N/A | X39: N/A | Y39: N/A | Z39: N/A | AA39: N/A | AB39: N/A | AC39: N/A | AD39: N/A | AE39: N/A | AF39: N/A | AG39: N/A | AH39: N/A | BA39: Piped water on premises available when needed | BB39: Yes | BC39: N/A | BD39: N/A | BE39: N/A | BF39: N/A | BG39: N/A | BH39: N/A | BI39: N/A | BJ39: N/A | BK39: N/A | BL39: N/A | BM39: N/A | BN39: N/A | BO39: N/A | BP39: N/A | BQ39: N/A | BR39: N/A | BS39: N/A | BT39: N/A | BU39: N/A | BV39: N/A | BW39: N/A | BX39: N/A | BY39: N/A | BZ39: N/A | CA39: N/A | CB39: N/A | CC39: N/A | CD39: N/A | CE39: N/A | CF39: N/A | CG39: N/A | CH39: N/A
B40: No | C40: N/A | D40: N/A | E40: N/A | F40: N/A | G40: N/A | H40: N/A | I40: N/A | J40: N/A | K40: N/A | L40: N/A | M40: N/A | N40: N/A | O40: N/A | P40: N/A | Q40: N/A | R40: N/A | S40: N/A | T40: N/A | U40: N/A | V40: N/A | W40: N/A | X40: N/A | Y40: N/A | Z40: N/A | AA40: N/A | AB40: N/A | AC40: N/A | AD40: N/A | AE40: N/A | AF40: N/A | AG40: N/A | AH40: N/A | BB40: No | BC40: N/A | BD40: N/A | BE40: N/A | BF40: N/A | BG40: N/A | BH40: N/A | BI40: N/A | BJ40: N/A | BK40: N/A | BL40: N/A | BM40: N/A | BN40: N/A | BO40: N/A | BP40: N/A | BQ40: N/A | BR40: N/A | BS40: N/A | BT40: N/A | BU40: N/A | BV40: N/A | BW40: N/A | BX40: N/A | BY40: N/A | BZ40: N/A | CA40: N/A | CB40: N/A | CC40: N/A | CD40: N/A | CE40: N/A | CF40: N/A | CG40: N/A | CH40: N/A
A41: Water point at more than 30 minutes | B41: Yes | C41: 16.19526508 | D41: 18.87574574 | E41: 16.62161933 | F41: 12.30728192 | G41: 9.005080136 | H41: 12.40935123 | I41: 8.476340145 | J41: 8.076149046 | K41: 6.7547251 | L41: 7.499849269 | M41: 16.14612379 | N41: 18.37267523 | O41: 20.13155808 | P41: 19.87893008 | Q41: 18.72326952 | R41: 17.9762756 | S41: 3.586045776 | T41: 22.85100245 | U41: 20.47876817 | V41: 5.735654262 | W41: 20.88394474 | X41: 12.8257954 | Y41: 19.92866585 | Z41: 19.21134144 | AA41: 28.62573177 | AB41: 10.51933835 | AC41: 13.85500085 | AD41: 20.57056494 | AE41: 15.24602776 | AF41: 11.70819776 | AG41: 22.75812556 | AH41: 17.42613638 | BA41: Water point at more than 30 minutes | BB41: Yes | BC41: N/A | BD41: N/A | BE41: N/A | BF41: N/A | BG41: N/A | BH41: N/A | BI41: N/A | BJ41: N/A | BK41: N/A | BL41: N/A | BM41: N/A | BN41: N/A | BO41: N/A | BP41: N/A | BQ41: N/A | BR41: N/A | BS41: N/A | BT41: N/A | BU41: N/A | BV41: N/A | BW41: N/A | BX41: N/A | BY41: N/A | BZ41: N/A | CA41: N/A | CB41: N/A | CC41: N/A | CD41: N/A | CE41: N/A | CF41: N/A | CG41: N/A | CH41: N/A
B42: No | C42: 83.80473492 | D42: 81.12425426 | E42: 83.37838067 | F42: 87.69271808 | G42: 90.99491986 | H42: 87.59064877 | I42: 91.52365985 | J42: 91.92385095 | K42: 93.2452749 | L42: 92.50015073 | M42: 83.85387621 | N42: 81.62732477 | O42: 79.86844192 | P42: 80.12106992 | Q42: 81.27673048 | R42: 82.0237244 | S42: 96.41395422 | T42: 77.14899755 | U42: 79.52123183 | V42: 94.26434574 | W42: 79.11605526 | X42: 87.1742046 | Y42: 80.07133415 | Z42: 80.78865856 | AA42: 71.37426823 | AB42: 89.48066165 | AC42: 86.14499915 | AD42: 79.42943506 | AE42: 84.75397224 | AF42: 88.29180224 | AG42: 77.24187444 | AH42: 82.57386362 | BB42: No | BC42: N/A | BD42: N/A | BE42: N/A | BF42: N/A | BG42: N/A | BH42: N/A | BI42: N/A | BJ42: N/A | BK42: N/A | BL42: N/A | BM42: N/A | BN42: N/A | BO42: N/A | BP42: N/A | BQ42: N/A | BR42: N/A | BS42: N/A | BT42: N/A | BU42: N/A | BV42: N/A | BW42: N/A | BX42: N/A | BY42: N/A | BZ42: N/A | CA42: N/A | CB42: N/A | CC42: N/A | CD42: N/A | CE42: N/A | CF42: N/A | CG42: N/A | CH42: N/A
A43: Water source available when needed | B43: Yes | C43: N/A | D43: N/A | E43: N/A | F43: N/A | G43: N/A | H43: N/A | I43: N/A | J43: N/A | K43: N/A | L43: N/A | M43: N/A | N43: N/A | O43: N/A | P43: N/A | Q43: N/A | R43: N/A | S43: N/A | T43: N/A | U43: N/A | V43: N/A | W43: N/A | X43: N/A | Y43: N/A | Z43: N/A | AA43: N/A | AB43: N/A | AC43: N/A | AD43: N/A | AE43: N/A | AF43: N/A | AG43: N/A | AH43: N/A | BA43: Water source available when needed | BB43: Yes | BC43: N/A | BD43: N/A | BE43: N/A | BF43: N/A | BG43: N/A | BH43: N/A | BI43: N/A | BJ43: N/A | BK43: N/A | BL43: N/A | BM43: N/A | BN43: N/A | BO43: N/A | BP43: N/A | BQ43: N/A | BR43: N/A | BS43: N/A | BT43: N/A | BU43: N/A | BV43: N/A | BW43: N/A | BX43: N/A | BY43: N/A | BZ43: N/A | CA43: N/A | CB43: N/A | CC43: N/A | CD43: N/A | CE43: N/A | CF43: N/A | CG43: N/A | CH43: N/A
B44: No | C44: N/A | D44: N/A | E44: N/A | F44: N/A | G44: N/A | H44: N/A | I44: N/A | J44: N/A | K44: N/A | L44: N/A | M44: N/A | N44: N/A | O44: N/A | P44: N/A | Q44: N/A | R44: N/A | S44: N/A | T44: N/A | U44: N/A | V44: N/A | W44: N/A | X44: N/A | Y44: N/A | Z44: N/A | AA44: N/A | AB44: N/A | AC44: N/A | AD44: N/A | AE44: N/A | AF44: N/A | AG44: N/A | AH44: N/A | BB44: No | BC44: N/A | BD44: N/A | BE44: N/A | BF44: N/A | BG44: N/A | BH44: N/A | BI44: N/A | BJ44: N/A | BK44: N/A | BL44: N/A | BM44: N/A | BN44: N/A | BO44: N/A | BP44: N/A | BQ44: N/A | BR44: N/A | BS44: N/A | BT44: N/A | BU44: N/A | BV44: N/A | BW44: N/A | BX44: N/A | BY44: N/A | BZ44: N/A | CA44: N/A | CB44: N/A | CC44: N/A | CD44: N/A | CE44: N/A | CF44: N/A | CG44: N/A | CH44: N/A
A45: Improved water source available when needed | B45: Yes | C45: N/A | D45: N/A | E45: N/A | F45: N/A | G45: N/A | H45: N/A | I45: N/A | J45: N/A | K45: N/A | L45: N/A | M45: N/A | N45: N/A | O45: N/A | P45: N/A | Q45: N/A | R45: N/A | S45: N/A | T45: N/A | U45: N/A | V45: N/A | W45: N/A | X45: N/A | Y45: N/A | Z45: N/A | AA45: N/A | AB45: N/A | AC45: N/A | AD45: N/A | AE45: N/A | AF45: N/A | AG45: N/A | AH45: N/A | BA45: Improved water source available when needed | BB45: Yes | BC45: N/A | BD45: N/A | BE45: N/A | BF45: N/A | BG45: N/A | BH45: N/A | BI45: N/A | BJ45: N/A | BK45: N/A | BL45: N/A | BM45: N/A | BN45: N/A | BO45: N/A | BP45: N/A | BQ45: N/A | BR45: N/A | BS45: N/A | BT45: N/A | BU45: N/A | BV45: N/A | BW45: N/A | BX45: N/A | BY45: N/A | BZ45: N/A | CA45: N/A | CB45: N/A | CC45: N/A | CD45: N/A | CE45: N/A | CF45: N/A | CG45: N/A | CH45: N/A
B46: No | C46: N/A | D46: N/A | E46: N/A | F46: N/A | G46: N/A | H46: N/A | I46: N/A | J46: N/A | K46: N/A | L46: N/A | M46: N/A | N46: N/A | O46: N/A | P46: N/A | Q46: N/A | R46: N/A | S46: N/A | T46: N/A | U46: N/A | V46: N/A | W46: N/A | X46: N/A | Y46: N/A | Z46: N/A | AA46: N/A | AB46: N/A | AC46: N/A | AD46: N/A | AE46: N/A | AF46: N/A | AG46: N/A | AH46: N/A | BB46: No | BC46: N/A | BD46: N/A | BE46: N/A | BF46: N/A | BG46: N/A | BH46: N/A | BI46: N/A | BJ46: N/A | BK46: N/A | BL46: N/A | BM46: N/A | BN46: N/A | BO46: N/A | BP46: N/A | BQ46: N/A | BR46: N/A | BS46: N/A | BT46: N/A | BU46: N/A | BV46: N/A | BW46: N/A | BX46: N/A | BY46: N/A | BZ46: N/A | CA46: N/A | CB46: N/A | CC46: N/A | CD46: N/A | CE46: N/A | CF46: N/A | CG46: N/A | CH46: N/A
A47: Microbiological quality at point of collection | B47: Not contaminated (No E. coli in 100 mL) | C47: N/A | D47: N/A | E47: N/A | F47: N/A | G47: N/A | H47: N/A | I47: N/A | J47: N/A | K47: N/A | L47: N/A | M47: N/A | N47: N/A | O47: N/A | P47: N/A | Q47: N/A | R47: N/A | S47: N/A | T47: N/A | U47: N/A | V47: N/A | W47: N/A | X47: N/A | Y47: N/A | Z47: N/A | AA47: N/A | AB47: N/A | AC47: N/A | AD47: N/A | AE47: N/A | AF47: N/A | AG47: N/A | AH47: N/A | BA47: Microbiological quality at point of collection | BB47: Not contaminated (No E. coli in 100 mL) | BC47: N/A | BD47: N/A | BE47: N/A | BF47: N/A | BG47: N/A | BH47: N/A | BI47: N/A | BJ47: N/A | BK47: N/A | BL47: N/A | BM47: N/A | BN47: N/A | BO47: N/A | BP47: N/A | BQ47: N/A | BR47: N/A | BS47: N/A | BT47: N/A | BU47: N/A | BV47: N/A | BW47: N/A | BX47: N/A | BY47: N/A | BZ47: N/A | CA47: N/A | CB47: N/A | CC47: N/A | CD47: N/A | CE47: N/A | CF47: N/A | CG47: N/A | CH47: N/A
B48: Contaminated (E. coli detected in 100 mL) | C48: N/A | D48: N/A | E48: N/A | F48: N/A | G48: N/A | H48: N/A | I48: N/A | J48: N/A | K48: N/A | L48: N/A | M48: N/A | N48: N/A | O48: N/A | P48: N/A | Q48: N/A | R48: N/A | S48: N/A | T48: N/A | U48: N/A | V48: N/A | W48: N/A | X48: N/A | Y48: N/A | Z48: N/A | AA48: N/A | AB48: N/A | AC48: N/A | AD48: N/A | AE48: N/A | AF48: N/A | AG48: N/A | AH48: N/A | BB48: Contaminated (E. coli detected in 100 mL) | BC48: N/A | BD48: N/A | BE48: N/A | BF48: N/A | BG48: N/A | BH48: N/A | BI48: N/A | BJ48: N/A | BK48: N/A | BL48: N/A | BM48: N/A | BN48: N/A | BO48: N/A | BP48: N/A | BQ48: N/A | BR48: N/A | BS48: N/A | BT48: N/A | BU48: N/A | BV48: N/A | BW48: N/A | BX48: N/A | BY48: N/A | BZ48: N/A | CA48: N/A | CB48: N/A | CC48: N/A | CD48: N/A | CE48: N/A | CF48: N/A | CG48: N/A | CH48: N/A
B49: Highly contaminated (>100 CFU/100 mL) | C49: N/A | D49: N/A | E49: N/A | F49: N/A | G49: N/A | H49: N/A | I49: N/A | J49: N/A | K49: N/A | L49: N/A | M49: N/A | N49: N/A | O49: N/A | P49: N/A | Q49: N/A | R49: N/A | S49: N/A | T49: N/A | U49: N/A | V49: N/A | W49: N/A | X49: N/A | Y49: N/A | Z49: N/A | AA49: N/A | AB49: N/A | AC49: N/A | AD49: N/A | AE49: N/A | AF49: N/A | AG49: N/A | AH49: N/A | BB49: Highly contaminated (>100 CFU/100 mL) | BC49: N/A | BD49: N/A | BE49: N/A | BF49: N/A | BG49: N/A | BH49: N/A | BI49: N/A | BJ49: N/A | BK49: N/A | BL49: N/A | BM49: N/A | BN49: N/A | BO49: N/A | BP49: N/A | BQ49: N/A | BR49: N/A | BS49: N/A | BT49: N/A | BU49: N/A | BV49: N/A | BW49: N/A | BX49: N/A | BY49: N/A | BZ49: N/A | CA49: N/A | CB49: N/A | CC49: N/A | CD49: N/A | CE49: N/A | CF49: N/A | CG49: N/A | CH49: N/A
A50: Microbiological quality of improved water sources at point of collection | B50: Not contaminated (No E. coli in 100 mL) | C50: N/A | D50: N/A | E50: N/A | F50: N/A | G50: N/A | H50: N/A | I50: N/A | J50: N/A | K50: N/A | L50: N/A | M50: N/A | N50: N/A | O50: N/A | P50: N/A | Q50: N/A | R50: N/A | S50: N/A | T50: N/A | U50: N/A | V50: N/A | W50: N/A | X50: N/A | Y50: N/A | Z50: N/A | AA50: N/A | AB50: N/A | AC50: N/A | AD50: N/A | AE50: N/A | AF50: N/A | AG50: N/A | AH50: N/A | BA50: Microbiological quality of improved water sources at point of collection | BB50: Not contaminated (No E. coli in 100 mL) | BC50: N/A | BD50: N/A | BE50: N/A | BF50: N/A | BG50: N/A | BH50: N/A | BI50: N/A | BJ50: N/A | BK50: N/A | BL50: N/A | BM50: N/A | BN50: N/A | BO50: N/A | BP50: N/A | BQ50: N/A | BR50: N/A | BS50: N/A | BT50: N/A | BU50: N/A | BV50: N/A | BW50: N/A | BX50: N/A | BY50: N/A | BZ50: N/A | CA50: N/A | CB50: N/A | CC50: N/A | CD50: N/A | CE50: N/A | CF50: N/A | CG50: N/A | CH50: N/A
B51: Contaminated (E. coli detected in 100 mL) | C51: N/A | D51: N/A | E51: N/A | F51: N/A | G51: N/A | H51: N/A | I51: N/A | J51: N/A | K51: N/A | L51: N/A | M51: N/A | N51: N/A | O51: N/A | P51: N/A | Q51: N/A | R51: N/A | S51: N/A | T51: N/A | U51: N/A | V51: N/A | W51: N/A | X51: N/A | Y51: N/A | Z51: N/A | AA51: N/A | AB51: N/A | AC51: N/A | AD51: N/A | AE51: N/A | AF51: N/A | AG51: N/A | AH51: N/A | BB51: Contaminated (E. coli detected in 100 mL) | BC51: N/A | BD51: N/A | BE51: N/A | BF51: N/A | BG51: N/A | BH51: N/A | BI51: N/A | BJ51: N/A | BK51: N/A | BL51: N/A | BM51: N/A | BN51: N/A | BO51: N/A | BP51: N/A | BQ51: N/A | BR51: N/A | BS51: N/A | BT51: N/A | BU51: N/A | BV51: N/A | BW51: N/A | BX51: N/A | BY51: N/A | BZ51: N/A | CA51: N/A | CB51: N/A | CC51: N/A | CD51: N/A | CE51: N/A | CF51: N/A | CG51: N/A | CH51: N/A
B52: Highly contaminated (>100 CFU/100 mL) | C52: N/A | D52: N/A | E52: N/A | F52: N/A | G52: N/A | H52: N/A | I52: N/A | J52: N/A | K52: N/A | L52: N/A | M52: N/A | N52: N/A | O52: N/A | P52: N/A | Q52: N/A | R52: N/A | S52: N/A | T52: N/A | U52: N/A | V52: N/A | W52: N/A | X52: N/A | Y52: N/A | Z52: N/A | AA52: N/A | AB52: N/A | AC52: N/A | AD52: N/A | AE52: N/A | AF52: N/A | AG52: N/A | AH52: N/A | BB52: Highly contaminated (>100 CFU/100 mL) | BC52: N/A | BD52: N/A | BE52: N/A | BF52: N/A | BG52: N/A | BH52: N/A | BI52: N/A | BJ52: N/A | BK52: N/A | BL52: N/A | BM52: N/A | BN52: N/A | BO52: N/A | BP52: N/A | BQ52: N/A | BR52: N/A | BS52: N/A | BT52: N/A | BU52: N/A | BV52: N/A | BW52: N/A | BX52: N/A | BY52: N/A | BZ52: N/A | CA52: N/A | CB52: N/A | CC52: N/A | CD52: N/A | CE52: N/A | CF52: N/A | CG52: N/A | CH52: N/A
A53: Microbiological quality of piped on premises at point of collection | B53: Not contaminated (No E. coli in 100 mL) | C53: N/A | D53: N/A | E53: N/A | F53: N/A | G53: N/A | H53: N/A | I53: N/A | J53: N/A | K53: N/A | L53: N/A | M53: N/A | N53: N/A | O53: N/A | P53: N/A | Q53: N/A | R53: N/A | S53: N/A | T53: N/A | U53: N/A | V53: N/A | W53: N/A | X53: N/A | Y53: N/A | Z53: N/A | AA53: N/A | AB53: N/A | AC53: N/A | AD53: N/A | AE53: N/A | AF53: N/A | AG53: N/A | AH53: N/A | BA53: Microbiological quality of piped on premises at point of collection | BB53: Not contaminated (No E. coli in 100 mL) | BC53: N/A | BD53: N/A | BE53: N/A | BF53: N/A | BG53: N/A | BH53: N/A | BI53: N/A | BJ53: N/A | BK53: N/A | BL53: N/A | BM53: N/A | BN53: N/A | BO53: N/A | BP53: N/A | BQ53: N/A | BR53: N/A | BS53: N/A | BT53: N/A | BU53: N/A | BV53: N/A | BW53: N/A | BX53: N/A | BY53: N/A | BZ53: N/A | CA53: N/A | CB53: N/A | CC53: N/A | CD53: N/A | CE53: N/A | CF53: N/A | CG53: N/A | CH53: N/A
B54: Contaminated (E. coli detected in 100 mL) | C54: N/A | D54: N/A | E54: N/A | F54: N/A | G54: N/A | H54: N/A | I54: N/A | J54: N/A | K54: N/A | L54: N/A | M54: N/A | N54: N/A | O54: N/A | P54: N/A | Q54: N/A | R54: N/A | S54: N/A | T54: N/A | U54: N/A | V54: N/A | W54: N/A | X54: N/A | Y54: N/A | Z54: N/A | AA54: N/A | AB54: N/A | AC54: N/A | AD54: N/A | AE54: N/A | AF54: N/A | AG54: N/A | AH54: N/A | BB54: Contaminated (E. coli detected in 100 mL) | BC54: N/A | BD54: N/A | BE54: N/A | BF54: N/A | BG54: N/A | BH54: N/A | BI54: N/A | BJ54: N/A | BK54: N/A | BL54: N/A | BM54: N/A | BN54: N/A | BO54: N/A | BP54: N/A | BQ54: N/A | BR54: N/A | BS54: N/A | BT54: N/A | BU54: N/A | BV54: N/A | BW54: N/A | BX54: N/A | BY54: N/A | BZ54: N/A | CA54: N/A | CB54: N/A | CC54: N/A | CD54: N/A | CE54: N/A | CF54: N/A | CG54: N/A | CH54: N/A
B55: Highly contaminated (>100 CFU/100 mL) | C55: N/A | D55: N/A | E55: N/A | F55: N/A | G55: N/A | H55: N/A | I55: N/A | J55: N/A | K55: N/A | L55: N/A | M55: N/A | N55: N/A | O55: N/A | P55: N/A | Q55: N/A | R55: N/A | S55: N/A | T55: N/A | U55: N/A | V55: N/A | W55: N/A | X55: N/A | Y55: N/A | Z55: N/A | AA55: N/A | AB55: N/A | AC55: N/A | AD55: N/A | AE55: N/A | AF55: N/A | AG55: N/A | AH55: N/A | BB55: Highly contaminated (>100 CFU/100 mL) | BC55: N/A | BD55: N/A | BE55: N/A | BF55: N/A | BG55: N/A | BH55: N/A | BI55: N/A | BJ55: N/A | BK55: N/A | BL55: N/A | BM55: N/A | BN55: N/A | BO55: N/A | BP55: N/A | BQ55: N/A | BR55: N/A | BS55: N/A | BT55: N/A | BU55: N/A | BV55: N/A | BW55: N/A | BX55: N/A | BY55: N/A | BZ55: N/A | CA55: N/A | CB55: N/A | CC55: N/A | CD55: N/A | CE55: N/A | CF55: N/A | CG55: N/A | CH55: N/A
C56: NATIONAL wealth index quintile | H56: URBAN wealth index quintile | M56: RURAL wealth index quintile | R56: SUB-REGIONS: | BA56: Raw numbers of respondents: | BB56: Use of drinking water sources | BC56: NATIONAL wealth index quintile | BH56: URBAN wealth index quintile | BM56: RURAL wealth index quintile | BR56: SUB-REGIONS:
A57: Percentage based on weighted population | C57: Poorest | D57: Poor | E57: Middle | F57: Rich | G57: Richest | H57: Poorest | I57: Poor | J57: Middle | K57: Rich | L57: Richest | M57: Poorest | N57: Poor | O57: Middle | P57: Rich | Q57: Richest | R57: bamingui-bangoran | S57: bangui | T57: basse-kotto | U57: haut-mbomou | V57: haute-kotto | W57: kémo | X57: lobaye | Y57: mambéré-kadeï | Z57: mbomou | AA57: nana-grébizi | AB57: nana-mambéré | AC57: ombella-m'poko | AD57: ouaka | AE57: ouham | AF57: ouham-pendé | AG57: sangha-mbaéré | AH57: vakaga | BA57: Water data, raw numbers (weighted) | BC57: Poorest | BD57: Poor | BE57: Middle | BF57: Rich | BG57: Richest | BH57: Poorest | BI57: Poor | BJ57: Middle | BK57: Rich | BL57: Richest | BM57: Poorest | BN57: Poor | BO57: Middle | BP57: Rich | BQ57: Richest | BR57: bamingui-bangoran | BS57: bangui | BT57: basse-kotto | BU57: haut-mbomou | BV57: haute-kotto | BW57: kémo | BX57: lobaye | BY57: mambéré-kadeï | BZ57: mbomou | CA57: nana-grébizi | CB57: nana-mambéré | CC57: ombella-m'poko | CD57: ouaka | CE57: ouham | CF57: ouham-pendé | CG57: sangha-mbaéré | CH57: vakaga
A58: principale source d'eau | B58: eau du robinet dans le lgt | C58: 0 | D58: 0.07266747382 | E58: 0.04436873073 | F58: 0.1233273356 | G58: 3.652580593 | H58: 0 | I58: 0 | J58: 0.3047678307 | K58: 1.69259198 | L58: 7.288775953 | M58: 0 | N58: 0.1215623572 | O58: 0 | P58: 0.07452406482 | Q58: 0.02845812726 | R58: 0.8737249515 | S58: 2.972183312 | T58: 0.1392703585 | U58: 0 | V58: 0 | W58: 0 | X58: 0 | Y58: 0.5166210396 | Z58: 0.07242012437 | AA58: 0 | AB58: 2.790917383 | AC58: 0 | AD58: 0.2413442108 | AE58: 0.345657025 | AF58: 0 | AG58: 0 | AH58: 0
B59: eau de robinet dans la cours | C59: 0.3214805249 | D59: 0.3109414849 | E59: 0.2768102229 | F59: 1.439418347 | G59: 10.91706234 | H59: 0.9113728582 | I59: 1.482697884 | J59: 2.826203907 | K59: 7.210718885 | L59: 19.03788021 | M59: 0.03936708908 | N59: 0.01958293045 | O59: 0.395035049 | P59: 0.1163005368 | Q59: 0.3195124041 | R59: 1.892483942 | S59: 10.12117614 | T59: 0 | U59: 1.52242658 | V59: 0.3141213581 | W59: 0.1150639384 | X59: 0.2731703155 | Y59: 2.824041109 | Z59: 0.4155595068 | AA59: 0 | AB59: 2.204414272 | AC59: 1.13237606 | AD59: 0.8752228853 | AE59: 2.356747161 | AF59: 0.3762795997 | AG59: 0.2149417296 | AH59: 0
B60: borne fontaine/kiosque | C60: 6.682537437 | D60: 6.955248638 | E60: 14.16279111 | F60: 31.0509108 | G60: 44.02349727 | H60: 27.59570322 | I60: 42.18211724 | J60: 48.2309564 | K60: 53.90337807 | L60: 47.85727121 | M60: 3.32977229 | N60: 4.974984122 | O60: 5.22168925 | P60: 4.838072655 | Q60: 5.061853491 | R60: 21.90265878 | S60: 68.01590539 | T60: 0.2881113927 | U60: 0.3100211745 | V60: 0.2249639953 | W60: 5.171231435 | X60: 2.006979387 | Y60: 25.27843073 | Z60: 0.8002774855 | AA60: 2.703601587 | AB60: 12.91760818 | AC60: 10.40225258 | AD60: 8.331381849 | AE60: 17.69598911 | AF60: 16.23116421 | AG60: 1.60710249 | AH60: 0.4210760306
B61: puits à pompe/forage | C61: 26.54689357 | D61: 25.42802011 | E61: 22.52419873 | F61: 15.31221663 | G61: 10.92979419 | H61: 13.16533352 | I61: 7.17155605 | J61: 5.391647697 | K61: 6.948870954 | L61: 4.297829572 | M61: 27.95186691 | N61: 29.33532436 | O61: 25.64938138 | P61: 27.67581443 | Q61: 33.47984285 | R61: 37.08355458 | S61: 0.2928281431 | T61: 1.756310627 | U61: 28.85608075 | V61: 0.4503422829 | W61: 14.91436516 | X61: 50.6292852 | Y61: 6.22683629 | Z61: 0.1919378105 | AA61: 56.64028736 | AB61: 22.37758584 | AC61: 23.18645673 | AD61: 4.033330276 | AE61: 49.42498612 | AF61: 46.84643853 | AG61: 13.83396518 | AH61: 15.8027101
B62: puits protégé | C62: 10.1054582 | D62: 9.958518754 | E62: 11.52840979 | F62: 20.86295026 | G62: 16.86409501 | H62: 24.83675583 | I62: 28.60380455 | J62: 26.2893348 | K62: 21.37321318 | L62: 15.38501021 | M62: 7.851670218 | N62: 7.831490436 | O62: 8.093878775 | P62: 5.559650585 | Q62: 7.918151214 | R62: 6.097602895 | S62: 16.61894581 | T62: 5.719790008 | U62: 17.08516948 | V62: 67.29756019 | W62: 26.24387589 | X62: 8.482345627 | Y62: 2.73885191 | Z62: 18.00099966 | AA62: 7.456321175 | AB62: 7.284487276 | AC62: 26.27628823 | AD62: 17.10471015 | AE62: 9.157218522 | AF62: 6.908845173 | AG62: 23.87805782 | AH62: 26.04176775
B63: source protégée | C63: 12.1346169 | D63: 14.9103276 | E63: 13.28626889 | F63: 9.355714764 | G63: 3.933118248 | H63: 9.88818071 | I63: 7.427654106 | J63: 4.40893625 | K63: 2.228774111 | L63: 2.276125094 | M63: 10.77412643 | N63: 14.28796509 | O63: 16.26496905 | P63: 15.62615671 | Q63: 15.25584095 | R63: 0.5759148195 | S63: 0.1707204302 | T63: 27.2367649 | U63: 14.44772804 | V63: 2.472541567 | W63: 10.92722995 | X63: 7.242822327 | Y63: 22.52155504 | Z63: 31.90819945 | AA63: 1.080375861 | AB63: 17.93945113 | AC63: 6.651394959 | AD63: 14.42845955 | AE63: 5.202270102 | AF63: 4.208942882 | AG63: 16.26135416 | AH63: 0.5899514043
B64: eau de pluie | C64: 0.162483903 | D64: 0.06664963125 | E64: 0.1737425895 | F64: 0 | G64: 0.02973857366 | H64: 0.05359451437 | I64: 0 | J64: 0 | K64: 0 | L64: 0.07342307983 | M64: 0.2744165293 | N64: 0.09323122118 | O64: 0 | P64: 0.2736861146 | Q64: 0 | R64: 0 | S64: 0 | T64: 0 | U64: 0.1563690288 | V64: 0 | W64: 0 | X64: 0 | Y64: 0 | Z64: 0 | AA64: 0.2714324975 | AB64: 0 | AC64: 0 | AD64: 0 | AE64: 0.6613083457 | AF64: 0.2226703712 | AG64: 0 | AH64: 0
B65: eau en bouteille | C65: 0 | D65: 0 | E65: 0.1523251906 | F65: 0 | G65: 0 | H65: 0.3034086174 | I65: 0 | J65: 0 | K65: 0 | L65: 0 | M65: 0 | N65: 0 | O65: 0 | P65: 0.04956921189 | Q65: 0 | R65: 0 | S65: 0 | T65: 0 | U65: 0 | V65: 0 | W65: 0 | X65: 0 | Y65: 0 | Z65: 0 | AA65: 0.1971072119 | AB65: 0 | AC65: 0.2497745874 | AD65: 0 | AE65: 0 | AF65: 0 | AG65: 0 | AH65: 0
B66: puits non protégé | C66: 11.11050716 | D66: 9.66157672 | E66: 9.661159004 | F66: 6.482889684 | G66: 4.438730991 | H66: 12.54847664 | I66: 7.393088202 | J66: 7.844924635 | K66: 5.017801279 | L66: 2.384845898 | M66: 11.42379005 | N66: 9.196270436 | O66: 9.269813532 | P66: 9.147566051 | Q66: 6.51905997 | R66: 19.4278794 | S66: 1.404473413 | T66: 8.125028666 | U66: 8.489399804 | V66: 15.10444103 | W66: 8.839298525 | X66: 9.655320846 | Y66: 4.299159456 | Z66: 12.16763422 | AA66: 11.3742207 | AB66: 8.782463384 | AC66: 12.65165779 | AD66: 12.25035434 | AE66: 6.055156946 | AF66: 8.444616183 | AG66: 6.552358524 | AH66: 51.07795938
B67: source non protégée | C67: 22.34222065 | D67: 21.36176106 | E67: 16.31145349 | F67: 7.883342746 | G67: 3.201165695 | H67: 8.138826123 | I67: 2.673511321 | J67: 2.396713867 | K67: 1.397887863 | L67: 0.6124266001 | M67: 24.77704223 | N67: 23.17855056 | O67: 22.99880463 | P67: 21.1829942 | Q67: 16.95365755 | R67: 7.404790684 | S67: 0 | T67: 43.78346111 | U67: 12.11760177 | V67: 5.494244692 | W67: 27.01875795 | X67: 13.83228144 | Y67: 10.12500486 | Z67: 28.86441936 | AA67: 16.72977825 | AB67: 20.10040573 | AC67: 10.03676725 | AD67: 37.88226499 | AE67: 3.311406102 | AF67: 8.78605621 | AG67: 21.37592446 | AH67: 3.32544119
B68: mare/ruisseau/cours d'eau river or stream | C68: 10.09939136 | D68: 10.80709303 | E68: 11.39731614 | F68: 7.305484295 | G68: 1.459952627 | H68: 2.014320045 | I68: 2.62542087 | J68: 2.193558273 | K68: 0 | L68: 0.2164435097 | M68: 13.16857824 | N68: 10.33726372 | O68: 11.64928395 | P68: 15.01869113 | Q68: 14.0225495 | R68: 4.397174666 | S68: 0.1187944425 | T68: 11.08124505 | U68: 16.63789326 | V68: 8.641784887 | W68: 6.58726096 | X68: 7.565032901 | Y68: 25.2602298 | Z68: 7.164679082 | AA68: 2.470756855 | AB68: 5.337133801 | AC68: 9.017659339 | AD68: 4.361585143 | AE68: 5.515578348 | AF68: 7.66713971 | AG68: 16.00738875 | AH68: 1.805981993
B69: tanker truck vendor | C69: 0.1521502512 | D69: 0.1103428734 | E69: 0.1759439942 | F69: 0.07384611774 | G69: 0.2227409559 | H69: 0.4712289445 | I69: 0.1599866177 | J69: 0.05527587346 | K69: 0.04169393906 | L69: 0.1561683929 | M69: 0.1417472521 | N69: 0.108442285 | O69: 0.1050075663 | P69: 0.06111384297 | Q69: 0.2173018517 | R69: 0 | S69: 0 | T69: 1.679668926 | U69: 0.2363913872 | V69: 0 | W69: 0 | X69: 0 | Y69: 0 | Z69: 0 | AA69: 0.8603124924 | AB69: 0 | AC69: 0 | AD69: 0 | AE69: 0 | AF69: 0 | AG69: 0.1198724591 | AH69: 0.7136382268
B70: other | C70: 0.08462794452 | D70: 0.1968126021 | E70: 0.1234958092 | F70: 0.06190532127 | G70: 0.2452326809 | H70: 0.05467980118 | I70: 0.2412521662 | J70: 0.05768046483 | K70: 0.1850697354 | L70: 0.2106282355 | M70: 0.03096249284 | N70: 0.2082542877 | O70: 0.2062805737 | P70: 0.09711717417 | Q70: 0.1431445183 | R70: 0.3442152829 | S70: 0.2164315273 | T70: 0.1903489574 | U70: 0 | V70: 0 | W70: 0 | X70: 0.1199455936 | Y70: 0.07707422206 | Z70: 0 | AA70: 0.09727777371 | AB70: 0 | AC70: 0.3393410642 | AD70: 0.4913466155 | AE70: 0 | AF70: 0 | AG70: 0.1490344297 | AH70: 0
B71: missing | C71: 0.238237374 | D71: 0.1600400241 | E71: 0.09329554365 | F71: 0.02624967723 | G71: 0.08229083567 | H71: 0.01811918247 | I71: 0.03891098426 | J71: 0 | K71: 0 | L71: 0.2031720373 | M71: 0.2039048225 | N71: 0.3070781886 | O71: 0.1458562566 | P71: 0.130227109 | Q71: 0.04409844928 | R71: 0 | S71: 0.0685413867 | T71: 0 | U71: 0 | V71: 0 | W71: 0.1176801353 | X71: 0.08006417675 | Y71: 0 | Z71: 0.4138733001 | AA71: 0.1185282396 | AB71: 0.2655330034 | AC71: 0.05603140531 | AD71: 0 | AE71: 0.2736822238 | AF71: 0.3078471341 | AG71: 0 | AH71: 0.2214739325
B72: don't know | C72: 0.01939472874 | D72: 0 | E72: 0.08842076301 | F72: 0.02174402859 | G72: 0 | H72: 0 | I72: 0 | J72: 0 | K72: 0 | L72: 0 | M72: 0.03275545485 | N72: 0 | O72: 0 | P72: 0.1485161862 | Q72: 0.03652913267 | R72: 0 | S72: 0 | T72: 0 | U72: 0.1409187157 | V72: 0 | W72: 0.06523605573 | X72: 0.112752187 | Y72: 0.132195534 | Z72: 0 | AA72: 0 | AB72: 0 | AC72: 0 | AD72: 0 | AE72: 0 | AF72: 0 | AG72: 0 | AH72: 0
A108: =A1026 -> Central African Republic
A109: =A1034 -> 2000
A110: Use of sanitation facilities
A111: by wealth quintile and sub-national region
A112: Notes:
A113: WHO/UNICEF JMP customised wealth index excludes water,
A114: sanitation and hygiene assets.
A115: Survey used for analysis: | B115: =A1025 -> MICS00
A116: =B1030 -> Ratio of Improved latrines based on: | B116: MICS10
A117: =B1029 -> Ratio of Shared improved based on: | B117: MICS06
A120: Use of sanitation facilities | C120: NATIONAL wealth index quintile | H120: URBAN wealth index quintile | M120: RURAL wealth index quintile | R120: SUB-REGIONS: | BA120: Raw numbers of respondents: | BB120: Use of sanitation facilities | BC120: NATIONAL wealth index quintile | BH120: URBAN wealth index quintile | BM120: RURAL wealth index quintile | BR120: SUB-REGIONS:
A121: Weighted percentage (used in graphs) | C121: Poorest | D121: Poor | E121: Middle | F121: Rich | G121: Richest | H121: Poorest | I121: Poor | J121: Middle | K121: Rich | L121: Richest | M121: Poorest | N121: Poor | O121: Middle | P121: Rich | Q121: Richest | R121: bamingui-bangoran | S121: bangui | T121: basse-kotto | U121: haut-mbomou | V121: haute-kotto | W121: kémo | X121: lobaye | Y121: mambéré-kadeï | Z121: mbomou | AA121: nana-grébizi | AB121: nana-mambéré | AC121: ombella-m'poko | AD121: ouaka | AE121: ouham | AF121: ouham-pendé | AG121: sangha-mbaéré | AH121: vakaga | BA121: Sanitation data, raw numbers (weighted) | BC121: Poorest | BD121: Poor | BE121: Middle | BF121: Rich | BG121: Richest | BH121: Poorest | BI121: Poor | BJ121: Middle | BK121: Rich | BL121: Richest | BM121: Poorest | BN121: Poor | BO121: Middle | BP121: Rich | BQ121: Richest | BR121: bamingui-bangoran | BS121: bangui | BT121: basse-kotto | BU121: haut-mbomou | BV121: haute-kotto | BW121: kémo | BX121: lobaye | BY121: mambéré-kadeï | BZ121: mbomou | CA121: nana-grébizi | CB121: nana-mambéré | CC121: ombella-m'poko | CD121: ouaka | CE121: ouham | CF121: ouham-pendé | CG121: sangha-mbaéré | CH121: vakaga
A122: Sanitation | B122: Improved | C122: =C153+C154+C155+(C156+C161)*MICS10!C130/100 -> 1.112220115 | D122: =D153+D154+D155+(D156+D161)*MICS10!D130/100 -> 3.659434358 | E122: =E153+E154+E155+(E156+E161)*MICS10!E130/100 -> 15.00795498 | F122: =F153+F154+F155+(F156+F161)*MICS10!F130/100 -> 59.10664713 | G122: =G153+G154+G155+(G156+G161)*MICS10!G130/100 -> 87.9380425 | H122: =H153+H154+H155+(H156+H161)*MICS10!H130/100 -> 13.69867975 | I122: =I153+I154+I155+(I156+I161)*MICS10!I130/100 -> 67.4006888 | J122: =J153+J154+J155+(J156+J161)*MICS10!J130/100 -> 83.07308675 | K122: =K153+K154+K155+(K156+K161)*MICS10!K130/100 -> 88.39555976 | L122: =L153+L154+L155+(L156+L161)*MICS10!L130/100 -> 93.29575417 | M122: =M153+M154+M155+(M156+M161)*MICS10!M130/100 -> 0.6020070736 | N122: =N153+N154+N155+(N156+N161)*MICS10!N130/100 -> 1.493549335 | O122: =O153+O154+O155+(O156+O161)*MICS10!O130/100 -> 3.318429639 | P122: =P153+P154+P155+(P156+P161)*MICS10!P130/100 -> 9.446898567 | Q122: =Q153+Q154+Q155+(Q156+Q161)*MICS10!Q130/100 -> 40.32226159 | R122: =R153+R154+R155+(R156+R161)*MICS10!R130/100 -> 20.39467378 | S122: =S153+S154+S155+(S156+S161)*MICS10!S130/100 -> 89.62830402 | T122: =T153+T154+T155+(T156+T161)*MICS10!T130/100 -> 7.353356288 | U122: =U153+U154+U155+(U156+U161)*MICS10!U130/100 -> 5.561748417 | V122: =V153+V154+V155+(V156+V161)*MICS10!V130/100 -> 20.74827172 | W122: =W153+W154+W155+(W156+W161)*MICS10!W130/100 -> 13.46409694 | X122: =X153+X154+X155+(X156+X161)*MICS10!X130/100 -> 24.29801325 | Y122: =Y153+Y154+Y155+(Y156+Y161)*MICS10!Y130/100 -> 28.53127575 | Z122: =Z153+Z154+Z155+(Z156+Z161)*MICS10!Z130/100 -> 11.18129757 | AA122: =AA153+AA154+AA155+(AA156+AA161)*MICS10!AA130/100 -> 12.27253955 | AB122: =AB153+AB154+AB155+(AB156+AB161)*MICS10!AB130/100 -> 22.03661195 | AC122: =AC153+AC154+AC155+(AC156+AC161)*MICS10!AC130/100 -> 40.85874415 | AD122: =AD153+AD154+AD155+(AD156+AD161)*MICS10!AD130/100 -> 12.54483615 | AE122: =AE153+AE154+AE155+(AE156+AE161)*MICS10!AE130/100 -> 11.59182569 | AF122: =AF153+AF154+AF155+(AF156+AF161)*MICS10!AF130/100 -> 17.6247688 | AG122: =AG153+AG154+AG155+(AG156+AG161)*MICS10!AG130/100 -> 23.29961833 | AH122: =AH153+AH154+AH155+(AH156+AH161)*MICS10!AH130/100 -> 1.451993374 | BA122: Sanitation | BB122: Improved | BC122: N/A | BD122: N/A | BE122: N/A | BF122: N/A | BG122: N/A | BH122: N/A | BI122: N/A | BJ122: N/A | BK122: N/A | BL122: N/A | BM122: N/A | BN122: N/A | BO122: N/A | BP122: N/A | BQ122: N/A | BR122: N/A | BS122: N/A | BT122: N/A | BU122: N/A | BV122: N/A | BW122: N/A | BX122: N/A | BY122: N/A | BZ122: N/A | CA122: N/A | CB122: N/A | CC122: N/A | CD122: N/A | CE122: N/A | CF122: N/A | CG122: N/A | CH122: N/A
B123: Not Improved | C123: =100-C122 -> 98.88777988 | D123: =100-D122 -> 96.34056564 | E123: 84.99204502 | F123: 40.89335287 | G123: 12.0619575 | H123: 86.30132025 | I123: 32.5993112 | J123: 16.92691325 | K123: 11.60444024 | L123: 6.704245831 | M123: 99.39799293 | N123: 98.50645067 | O123: 96.68157036 | P123: 90.55310143 | Q123: 59.67773841 | R123: 79.60532622 | S123: 10.37169598 | T123: 92.64664371 | U123: 94.43825158 | V123: 79.25172828 | W123: 86.53590306 | X123: 75.70198675 | Y123: 71.46872425 | Z123: 88.81870243 | AA123: 87.72746045 | AB123: 77.96338805 | AC123: 59.14125585 | AD123: 87.45516385 | AE123: 88.40817431 | AF123: 82.3752312 | AG123: 76.70038167 | AH123: 98.54800663 | BB123: Not Improved | BC123: N/A | BD123: N/A | BE123: N/A | BF123: N/A | BG123: N/A | BH123: N/A | BI123: N/A | BJ123: N/A | BK123: N/A | BL123: N/A | BM123: N/A | BN123: N/A | BO123: N/A | BP123: N/A | BQ123: N/A | BR123: N/A | BS123: N/A | BT123: N/A | BU123: N/A | BV123: N/A | BW123: N/A | BX123: N/A | BY123: N/A | BZ123: N/A | CA123: N/A | CB123: N/A | CC123: N/A | CD123: N/A | CE123: N/A | CF123: N/A | CG123: N/A | CH123: N/A
A124: Sanitation ladder | B124: Basic | C124: =C122*#REF!/100 ->  | D124: =D122*#REF!/100 ->  | E124: =E122*#REF!/100 ->  | F124: =F122*#REF!/100 ->  | G124: =G122*#REF!/100 ->  | H124: =H122*#REF!/100 ->  | I124: =I122*#REF!/100 ->  | J124: =J122*#REF!/100 ->  | K124: =K122*#REF!/100 ->  | L124: =L122*#REF!/100 ->  | M124: =M122*#REF!/100 ->  | N124: =N122*#REF!/100 ->  | O124: =O122*#REF!/100 ->  | P124: =P122*#REF!/100 ->  | Q124: =Q122*#REF!/100 ->  | R124: =R122*#REF!/100 ->  | S124: =S122*#REF!/100 ->  | T124: =T122*#REF!/100 ->  | U124: =U122*#REF!/100 ->  | V124: =V122*#REF!/100 ->  | W124: =W122*#REF!/100 ->  | X124: =X122*#REF!/100 ->  | Y124: =Y122*#REF!/100 ->  | Z124: =Z122*#REF!/100 ->  | AA124: =AA122*#REF!/100 ->  | AB124: =AB122*#REF!/100 ->  | AC124: =AC122*#REF!/100 ->  | AD124: =AD122*#REF!/100 ->  | AE124: =AE122*#REF!/100 ->  | AF124: =AF122*#REF!/100 ->  | AG124: =AG122*#REF!/100 ->  | AH124: =AH122*MICS10!AH129/100 -> 1.451993374 | BA124: Sanitation ladder | BB124: Basic | BC124: N/A | BD124: N/A | BE124: N/A | BF124: N/A | BG124: N/A | BH124: N/A | BI124: N/A | BJ124: N/A | BK124: N/A | BL124: N/A | BM124: N/A | BN124: N/A | BO124: N/A | BP124: N/A | BQ124: N/A | BR124: N/A | BS124: N/A | BT124: N/A | BU124: N/A | BV124: N/A | BW124: N/A | BX124: N/A | BY124: N/A | BZ124: N/A | CA124: N/A | CB124: N/A | CC124: N/A | CD124: N/A | CE124: N/A | CF124: N/A | CG124: N/A | CH124: N/A
B125: Limited | C125: =C122*#REF!/100 ->  | D125: =D122*#REF!/100 ->  | E125: =E122*#REF!/100 ->  | F125: =F122*#REF!/100 ->  | G125: =G122*#REF!/100 ->  | H125: =H122*#REF!/100 ->  | I125: =I122*#REF!/100 ->  | J125: =J122*#REF!/100 ->  | K125: =K122*#REF!/100 ->  | L125: =L122*#REF!/100 ->  | M125: =M122*#REF!/100 ->  | N125: =N122*#REF!/100 ->  | O125: =O122*#REF!/100 ->  | P125: =P122*#REF!/100 ->  | Q125: =Q122*#REF!/100 ->  | R125: =R122*#REF!/100 ->  | S125: =S122*#REF!/100 ->  | T125: =T122*#REF!/100 ->  | U125: =U122*#REF!/100 ->  | V125: =V122*#REF!/100 ->  | W125: =W122*#REF!/100 ->  | X125: =X122*#REF!/100 ->  | Y125: =Y122*#REF!/100 ->  | Z125: =Z122*#REF!/100 ->  | AA125: =AA122*#REF!/100 ->  | AB125: =AB122*#REF!/100 ->  | AC125: =AC122*#REF!/100 ->  | AD125: =AD122*#REF!/100 ->  | AE125: =AE122*#REF!/100 ->  | AF125: =AF122*#REF!/100 ->  | AG125: =AG122*#REF!/100 ->  | AH125: =AH122*MICS10!AH128/100 -> 0 | BB125: Limited | BC125: N/A | BD125: N/A | BE125: N/A | BF125: N/A | BG125: N/A | BH125: N/A | BI125: N/A | BJ125: N/A | BK125: N/A | BL125: N/A | BM125: N/A | BN125: N/A | BO125: N/A | BP125: N/A | BQ125: N/A | BR125: N/A | BS125: N/A | BT125: N/A | BU125: N/A | BV125: N/A | BW125: N/A | BX125: N/A | BY125: N/A | BZ125: N/A | CA125: N/A | CB125: N/A | CC125: N/A | CD125: N/A | CE125: N/A | CF125: N/A | CG125: N/A | CH125: N/A
B126: Unimproved | C126: =100-C124-C125-C127 ->  | D126: =100-D124-D125-D127 ->  | AH126: 54.55079056 | BB126: Unimproved | BC126: N/A | BD126: N/A | BE126: N/A | BF126: N/A | BG126: N/A | BH126: N/A | BI126: N/A | BJ126: N/A | BK126: N/A | BL126: N/A | BM126: N/A | BN126: N/A | BO126: N/A | BP126: N/A | BQ126: N/A | BR126: N/A | BS126: N/A | BT126: N/A | BU126: N/A | BV126: N/A | BW126: N/A | BX126: N/A | BY126: N/A | BZ126: N/A | CA126: N/A | CB126: N/A | CC126: N/A | CD126: N/A | CE126: N/A | CF126: N/A | CG126: N/A | CH126: N/A
B127: Open defecation | C127: =C160 -> 51.01590197 | D127: =D160 -> 34.55903148 | E127: 19.72682955 | F127: 7.313303358 | G127: 1.441322165 | H127: 13.31713056 | I127: 2.826788811 | J127: 1.934921399 | K127: 1.097487756 | L127: 0.03014001244 | M127: 61.09634 | N127: 45.41452962 | O127: 32.77850938 | P127: 25.90015658 | Q127: 13.46286714 | R127: 23.3050361 | S127: 1.098658362 | T127: 27.15409558 | U127: 17.35365688 | V127: 15.6260686 | W127: 32.57390665 | X127: 13.12285882 | Y127: 11.94333557 | Z127: 16.05468903 | AA127: 20.99941726 | AB127: 21.88609145 | AC127: 17.07736306 | AD127: 44.81716436 | AE127: 53.61157956 | AF127: 43.57019625 | AG127: 11.39320965 | AH127: 43.99721607 | BB127: Open defecation | BC127: N/A | BD127: N/A | BE127: N/A | BF127: N/A | BG127: N/A | BH127: N/A | BI127: N/A | BJ127: N/A | BK127: N/A | BL127: N/A | BM127: N/A | BN127: N/A | BO127: N/A | BP127: N/A | BQ127: N/A | BR127: N/A | BS127: N/A | BT127: N/A | BU127: N/A | BV127: N/A | BW127: N/A | BX127: N/A | BY127: N/A | BZ127: N/A | CA127: N/A | CB127: N/A | CC127: N/A | CD127: N/A | CE127: N/A | CF127: N/A | CG127: N/A | CH127: N/A
A128: Shared among Improved Sanitation | B128: Yes | C128: N/A | D128: N/A | E128: N/A | F128: N/A | G128: N/A | H128: N/A | I128: N/A | J128: N/A | K128: N/A | L128: N/A | M128: N/A | N128: N/A | O128: N/A | P128: N/A | Q128: N/A | R128: N/A | S128: N/A | T128: N/A | U128: N/A | V128: N/A | W128: N/A | X128: N/A | Y128: N/A | Z128: N/A | AA128: N/A | AB128: N/A | AC128: N/A | AD128: N/A | AE128: N/A | AF128: N/A | AG128: N/A | AH128: N/A | BA128: Shared among improved sanitation facilities | BB128: Yes | BC128: N/A | BD128: N/A | BE128: N/A | BF128: N/A | BG128: N/A | BH128: N/A | BI128: N/A | BJ128: N/A | BK128: N/A | BL128: N/A | BM128: N/A | BN128: N/A | BO128: N/A | BP128: N/A | BQ128: N/A | BR128: N/A | BS128: N/A | BT128: N/A | BU128: N/A | BV128: N/A | BW128: N/A | BX128: N/A | BY128: N/A | BZ128: N/A | CA128: N/A | CB128: N/A | CC128: N/A | CD128: N/A | CE128: N/A | CF128: N/A | CG128: N/A | CH128: N/A
B129: No | C129: N/A | D129: N/A | E129: N/A | F129: N/A | G129: N/A | H129: N/A | I129: N/A | J129: N/A | K129: N/A | L129: N/A | M129: N/A | N129: N/A | O129: N/A | P129: N/A | Q129: N/A | R129: N/A | S129: N/A | T129: N/A | U129: N/A | V129: N/A | W129: N/A | X129: N/A | Y129: N/A | Z129: N/A | AA129: N/A | AB129: N/A | AC129: N/A | AD129: N/A | AE129: N/A | AF129: N/A | AG129: N/A | AH129: N/A | BB129: No | BC129: N/A | BD129: N/A | BE129: N/A | BF129: N/A | BG129: N/A | BH129: N/A | BI129: N/A | BJ129: N/A | BK129: N/A | BL129: N/A | BM129: N/A | BN129: N/A | BO129: N/A | BP129: N/A | BQ129: N/A | BR129: N/A | BS129: N/A | BT129: N/A | BU129: N/A | BV129: N/A | BW129: N/A | BX129: N/A | BY129: N/A | BZ129: N/A | CA129: N/A | CB129: N/A | CC129: N/A | CD129: N/A | CE129: N/A | CF129: N/A | CG129: N/A | CH129: N/A
A130: Manually calculated ratios | B130: Improved latrines
B131: Other
B132: Other
C133: NATIONAL wealth index quintile | H133: URBAN wealth index quintile | M133: RURAL wealth index quintile | R133: SUB-REGIONS: | BA133: Raw numbers of respondents: | BB133: Use of sanitation facilities | BC133: NATIONAL wealth index quintile | BH133: URBAN wealth index quintile | BM133: RURAL wealth index quintile | BR133: SUB-REGIONS:
A134: Percentage based on weighted population | C134: Poorest | D134: Poor | E134: Middle | F134: Rich | G134: Richest | H134: Poorest | I134: Poor | J134: Middle | K134: Rich | L134: Richest | M134: Poorest | N134: Poor | O134: Middle | P134: Rich | Q134: Richest | R134: bamingui-bangoran | S134: bangui | T134: basse-kotto | U134: haut-mbomou | V134: haute-kotto | W134: kémo | X134: lobaye | Y134: mambéré-kadeï | Z134: mbomou | AA134: nana-grébizi | AB134: nana-mambéré | AC134: ombella-m'poko | AD134: ouaka | AE134: ouham | AF134: ouham-pendé | AG134: sangha-mbaéré | AH134: vakaga | BA134: Sanitation data, raw numbers (weighted) | BC134: Poorest | BD134: Poor | BE134: Middle | BF134: Rich | BG134: Richest | BH134: Poorest | BI134: Poor | BJ134: Middle | BK134: Rich | BL134: Richest | BM134: Poorest | BN134: Poor | BO134: Middle | BP134: Rich | BQ134: Richest | BR134: bamingui-bangoran | BS134: bangui | BT134: basse-kotto | BU134: haut-mbomou | BV134: haute-kotto | BW134: kémo | BX134: lobaye | BY134: mambéré-kadeï | BZ134: mbomou | CA134: nana-grébizi | CB134: nana-mambéré | CC134: ombella-m'poko | CD134: ouaka | CE134: ouham | CF134: ouham-pendé | CG134: sangha-mbaéré | CH134: vakaga
A135: Sanitation type | B135: Sewer connection | C135: N/A | D135: N/A | E135: N/A | F135: N/A | G135: N/A | H135: N/A | I135: N/A | J135: N/A | K135: N/A | L135: N/A | M135: N/A | N135: N/A | O135: N/A | P135: N/A | Q135: N/A | R135: N/A | S135: N/A | T135: N/A | U135: N/A | V135: N/A | W135: N/A | X135: N/A | Y135: N/A | Z135: N/A | AA135: N/A | AB135: N/A | AC135: N/A | AD135: N/A | AE135: N/A | AF135: N/A | AG135: N/A | AH135: N/A | BA135: Sanitation type | BB135: Sewer connection | BC135: N/A | BD135: N/A | BE135: N/A | BF135: N/A | BG135: N/A | BH135: N/A | BI135: N/A | BJ135: N/A | BK135: N/A | BL135: N/A | BM135: N/A | BN135: N/A | BO135: N/A | BP135: N/A | BQ135: N/A | BR135: N/A | BS135: N/A | BT135: N/A | BU135: N/A | BV135: N/A | BW135: N/A | BX135: N/A | BY135: N/A | BZ135: N/A | CA135: N/A | CB135: N/A | CC135: N/A | CD135: N/A | CE135: N/A | CF135: N/A | CG135: N/A | CH135: N/A
B136: Septic tank connection | C136: N/A | D136: N/A | E136: N/A | F136: N/A | G136: N/A | H136: N/A | I136: N/A | J136: N/A | K136: N/A | L136: N/A | M136: N/A | N136: N/A | O136: N/A | P136: N/A | Q136: N/A | R136: N/A | S136: N/A | T136: N/A | U136: N/A | V136: N/A | W136: N/A | X136: N/A | Y136: N/A | Z136: N/A | AA136: N/A | AB136: N/A | AC136: N/A | AD136: N/A | AE136: N/A | AF136: N/A | AG136: N/A | AH136: N/A | BB136: Septic tank connection | BC136: N/A | BD136: N/A | BE136: N/A | BF136: N/A | BG136: N/A | BH136: N/A | BI136: N/A | BJ136: N/A | BK136: N/A | BL136: N/A | BM136: N/A | BN136: N/A | BO136: N/A | BP136: N/A | BQ136: N/A | BR136: N/A | BS136: N/A | BT136: N/A | BU136: N/A | BV136: N/A | BW136: N/A | BX136: N/A | BY136: N/A | BZ136: N/A | CA136: N/A | CB136: N/A | CC136: N/A | CD136: N/A | CE136: N/A | CF136: N/A | CG136: N/A | CH136: N/A
B137: Improved latrines | C137: N/A | D137: N/A | E137: N/A | F137: N/A | G137: N/A | H137: N/A | I137: N/A | J137: N/A | K137: N/A | L137: N/A | M137: N/A | N137: N/A | O137: N/A | P137: N/A | Q137: N/A | R137: N/A | S137: N/A | T137: N/A | U137: N/A | V137: N/A | W137: N/A | X137: N/A | Y137: N/A | Z137: N/A | AA137: N/A | AB137: N/A | AC137: N/A | AD137: N/A | AE137: N/A | AF137: N/A | AG137: N/A | AH137: N/A | BB137: Improved latrines | BC137: N/A | BD137: N/A | BE137: N/A | BF137: N/A | BG137: N/A | BH137: N/A | BI137: N/A | BJ137: N/A | BK137: N/A | BL137: N/A | BM137: N/A | BN137: N/A | BO137: N/A | BP137: N/A | BQ137: N/A | BR137: N/A | BS137: N/A | BT137: N/A | BU137: N/A | BV137: N/A | BW137: N/A | BX137: N/A | BY137: N/A | BZ137: N/A | CA137: N/A | CB137: N/A | CC137: N/A | CD137: N/A | CE137: N/A | CF137: N/A | CG137: N/A | CH137: N/A
B138: Unimproved facilities | C138: N/A | D138: N/A | E138: N/A | F138: N/A | G138: N/A | H138: N/A | I138: N/A | J138: N/A | K138: N/A | L138: N/A | M138: N/A | N138: N/A | O138: N/A | P138: N/A | Q138: N/A | R138: N/A | S138: N/A | T138: N/A | U138: N/A | V138: N/A | W138: N/A | X138: N/A | Y138: N/A | Z138: N/A | AA138: N/A | AB138: N/A | AC138: N/A | AD138: N/A | AE138: N/A | AF138: N/A | AG138: N/A | AH138: N/A | BB138: Unimproved facilities | BC138: N/A | BD138: N/A | BE138: N/A | BF138: N/A | BG138: N/A | BH138: N/A | BI138: N/A | BJ138: N/A | BK138: N/A | BL138: N/A | BM138: N/A | BN138: N/A | BO138: N/A | BP138: N/A | BQ138: N/A | BR138: N/A | BS138: N/A | BT138: N/A | BU138: N/A | BV138: N/A | BW138: N/A | BX138: N/A | BY138: N/A | BZ138: N/A | CA138: N/A | CB138: N/A | CC138: N/A | CD138: N/A | CE138: N/A | CF138: N/A | CG138: N/A | CH138: N/A
B139: Open defecation | C139: N/A | D139: N/A | E139: N/A | F139: N/A | G139: N/A | H139: N/A | I139: N/A | J139: N/A | K139: N/A | L139: N/A | M139: N/A | N139: N/A | O139: N/A | P139: N/A | Q139: N/A | R139: N/A | S139: N/A | T139: N/A | U139: N/A | V139: N/A | W139: N/A | X139: N/A | Y139: N/A | Z139: N/A | AA139: N/A | AB139: N/A | AC139: N/A | AD139: N/A | AE139: N/A | AF139: N/A | AG139: N/A | AH139: N/A | BB139: Open defecation | BC139: N/A | BD139: N/A | BE139: N/A | BF139: N/A | BG139: N/A | BH139: N/A | BI139: N/A | BJ139: N/A | BK139: N/A | BL139: N/A | BM139: N/A | BN139: N/A | BO139: N/A | BP139: N/A | BQ139: N/A | BR139: N/A | BS139: N/A | BT139: N/A | BU139: N/A | BV139: N/A | BW139: N/A | BX139: N/A | BY139: N/A | BZ139: N/A | CA139: N/A | CB139: N/A | CC139: N/A | CD139: N/A | CE139: N/A | CF139: N/A | CG139: N/A | CH139: N/A
A140: Septic tank emptying practices | B140: Not emptied/treated and disposed in situ | C140: N/A | D140: N/A | E140: N/A | F140: N/A | G140: N/A | H140: N/A | I140: N/A | J140: N/A | K140: N/A | L140: N/A | M140: N/A | N140: N/A | O140: N/A | P140: N/A | Q140: N/A | R140: N/A | S140: N/A | T140: N/A | U140: N/A | V140: N/A | W140: N/A | X140: N/A | Y140: N/A | Z140: N/A | AA140: N/A | AB140: N/A | AC140: N/A | AD140: N/A | AE140: N/A | AF140: N/A | AG140: N/A | AH140: N/A | BA140: Septic tank emptying practices | BB140: Not emptied/treated and disposed in situ | BC140: N/A | BD140: N/A | BE140: N/A | BF140: N/A | BG140: N/A | BH140: N/A | BI140: N/A | BJ140: N/A | BK140: N/A | BL140: N/A | BM140: N/A | BN140: N/A | BO140: N/A | BP140: N/A | BQ140: N/A | BR140: N/A | BS140: N/A | BT140: N/A | BU140: N/A | BV140: N/A | BW140: N/A | BX140: N/A | BY140: N/A | BZ140: N/A | CA140: N/A | CB140: N/A | CC140: N/A | CD140: N/A | CE140: N/A | CF140: N/A | CG140: N/A | CH140: N/A
B141: Emptied and buried on site | C141: N/A | D141: N/A | E141: N/A | F141: N/A | G141: N/A | H141: N/A | I141: N/A | J141: N/A | K141: N/A | L141: N/A | M141: N/A | N141: N/A | O141: N/A | P141: N/A | Q141: N/A | R141: N/A | S141: N/A | T141: N/A | U141: N/A | V141: N/A | W141: N/A | X141: N/A | Y141: N/A | Z141: N/A | AA141: N/A | AB141: N/A | AC141: N/A | AD141: N/A | AE141: N/A | AF141: N/A | AG141: N/A | AH141: N/A | BB141: Emptied and buried on site | BC141: N/A | BD141: N/A | BE141: N/A | BF141: N/A | BG141: N/A | BH141: N/A | BI141: N/A | BJ141: N/A | BK141: N/A | BL141: N/A | BM141: N/A | BN141: N/A | BO141: N/A | BP141: N/A | BQ141: N/A | BR141: N/A | BS141: N/A | BT141: N/A | BU141: N/A | BV141: N/A | BW141: N/A | BX141: N/A | BY141: N/A | BZ141: N/A | CA141: N/A | CB141: N/A | CC141: N/A | CD141: N/A | CE141: N/A | CF141: N/A | CG141: N/A | CH141: N/A
B142: Emptied and discharged locally | C142: N/A | D142: N/A | E142: N/A | F142: N/A | G142: N/A | H142: N/A | I142: N/A | J142: N/A | K142: N/A | L142: N/A | M142: N/A | N142: N/A | O142: N/A | P142: N/A | Q142: N/A | R142: N/A | S142: N/A | T142: N/A | U142: N/A | V142: N/A | W142: N/A | X142: N/A | Y142: N/A | Z142: N/A | AA142: N/A | AB142: N/A | AC142: N/A | AD142: N/A | AE142: N/A | AF142: N/A | AG142: N/A | AH142: N/A | BB142: Emptied and discharged locally | BC142: N/A | BD142: N/A | BE142: N/A | BF142: N/A | BG142: N/A | BH142: N/A | BI142: N/A | BJ142: N/A | BK142: N/A | BL142: N/A | BM142: N/A | BN142: N/A | BO142: N/A | BP142: N/A | BQ142: N/A | BR142: N/A | BS142: N/A | BT142: N/A | BU142: N/A | BV142: N/A | BW142: N/A | BX142: N/A | BY142: N/A | BZ142: N/A | CA142: N/A | CB142: N/A | CC142: N/A | CD142: N/A | CE142: N/A | CF142: N/A | CG142: N/A | CH142: N/A
B143: Emptied and removed offsite | C143: N/A | D143: N/A | E143: N/A | F143: N/A | G143: N/A | H143: N/A | I143: N/A | J143: N/A | K143: N/A | L143: N/A | M143: N/A | N143: N/A | O143: N/A | P143: N/A | Q143: N/A | R143: N/A | S143: N/A | T143: N/A | U143: N/A | V143: N/A | W143: N/A | X143: N/A | Y143: N/A | Z143: N/A | AA143: N/A | AB143: N/A | AC143: N/A | AD143: N/A | AE143: N/A | AF143: N/A | AG143: N/A | AH143: N/A | BB143: Emptied and removed offsite | BC143: N/A | BD143: N/A | BE143: N/A | BF143: N/A | BG143: N/A | BH143: N/A | BI143: N/A | BJ143: N/A | BK143: N/A | BL143: N/A | BM143: N/A | BN143: N/A | BO143: N/A | BP143: N/A | BQ143: N/A | BR143: N/A | BS143: N/A | BT143: N/A | BU143: N/A | BV143: N/A | BW143: N/A | BX143: N/A | BY143: N/A | BZ143: N/A | CA143: N/A | CB143: N/A | CC143: N/A | CD143: N/A | CE143: N/A | CF143: N/A | CG143: N/A | CH143: N/A
A144: Latrine emptying practices | B144: Not emptied/treated and disposed in situ | C144: N/A | D144: N/A | E144: N/A | F144: N/A | G144: N/A | H144: N/A | I144: N/A | J144: N/A | K144: N/A | L144: N/A | M144: N/A | N144: N/A | O144: N/A | P144: N/A | Q144: N/A | R144: N/A | S144: N/A | T144: N/A | U144: N/A | V144: N/A | W144: N/A | X144: N/A | Y144: N/A | Z144: N/A | AA144: N/A | AB144: N/A | AC144: N/A | AD144: N/A | AE144: N/A | AF144: N/A | AG144: N/A | AH144: N/A | BA144: Latrine emptying practices | BB144: Not emptied/treated and disposed in situ | BC144: N/A | BD144: N/A | BE144: N/A | BF144: N/A | BG144: N/A | BH144: N/A | BI144: N/A | BJ144: N/A | BK144: N/A | BL144: N/A | BM144: N/A | BN144: N/A | BO144: N/A | BP144: N/A | BQ144: N/A | BR144: N/A | BS144: N/A | BT144: N/A | BU144: N/A | BV144: N/A | BW144: N/A | BX144: N/A | BY144: N/A | BZ144: N/A | CA144: N/A | CB144: N/A | CC144: N/A | CD144: N/A | CE144: N/A | CF144: N/A | CG144: N/A | CH144: N/A
B145: Emptied and buried on site | C145: N/A | D145: N/A | E145: N/A | F145: N/A | G145: N/A | H145: N/A | I145: N/A | J145: N/A | K145: N/A | L145: N/A | M145: N/A | N145: N/A | O145: N/A | P145: N/A | Q145: N/A | R145: N/A | S145: N/A | T145: N/A | U145: N/A | V145: N/A | W145: N/A | X145: N/A | Y145: N/A | Z145: N/A | AA145: N/A | AB145: N/A | AC145: N/A | AD145: N/A | AE145: N/A | AF145: N/A | AG145: N/A | AH145: N/A | BB145: Emptied and buried on site | BC145: N/A | BD145: N/A | BE145: N/A | BF145: N/A | BG145: N/A | BH145: N/A | BI145: N/A | BJ145: N/A | BK145: N/A | BL145: N/A | BM145: N/A | BN145: N/A | BO145: N/A | BP145: N/A | BQ145: N/A | BR145: N/A | BS145: N/A | BT145: N/A | BU145: N/A | BV145: N/A | BW145: N/A | BX145: N/A | BY145: N/A | BZ145: N/A | CA145: N/A | CB145: N/A | CC145: N/A | CD145: N/A | CE145: N/A | CF145: N/A | CG145: N/A | CH145: N/A
B146: Emptied and discharged locally | C146: N/A | D146: N/A | E146: N/A | F146: N/A | G146: N/A | H146: N/A | I146: N/A | J146: N/A | K146: N/A | L146: N/A | M146: N/A | N146: N/A | O146: N/A | P146: N/A | Q146: N/A | R146: N/A | S146: N/A | T146: N/A | U146: N/A | V146: N/A | W146: N/A | X146: N/A | Y146: N/A | Z146: N/A | AA146: N/A | AB146: N/A | AC146: N/A | AD146: N/A | AE146: N/A | AF146: N/A | AG146: N/A | AH146: N/A | BB146: Emptied and discharged locally | BC146: N/A | BD146: N/A | BE146: N/A | BF146: N/A | BG146: N/A | BH146: N/A | BI146: N/A | BJ146: N/A | BK146: N/A | BL146: N/A | BM146: N/A | BN146: N/A | BO146: N/A | BP146: N/A | BQ146: N/A | BR146: N/A | BS146: N/A | BT146: N/A | BU146: N/A | BV146: N/A | BW146: N/A | BX146: N/A | BY146: N/A | BZ146: N/A | CA146: N/A | CB146: N/A | CC146: N/A | CD146: N/A | CE146: N/A | CF146: N/A | CG146: N/A | CH146: N/A
B147: Emptied and removed offsite | C147: N/A | D147: N/A | E147: N/A | F147: N/A | G147: N/A | H147: N/A | I147: N/A | J147: N/A | K147: N/A | L147: N/A | M147: N/A | N147: N/A | O147: N/A | P147: N/A | Q147: N/A | R147: N/A | S147: N/A | T147: N/A | U147: N/A | V147: N/A | W147: N/A | X147: N/A | Y147: N/A | Z147: N/A | AA147: N/A | AB147: N/A | AC147: N/A | AD147: N/A | AE147: N/A | AF147: N/A | AG147: N/A | AH147: N/A | BB147: Emptied and removed offsite | BC147: N/A | BD147: N/A | BE147: N/A | BF147: N/A | BG147: N/A | BH147: N/A | BI147: N/A | BJ147: N/A | BK147: N/A | BL147: N/A | BM147: N/A | BN147: N/A | BO147: N/A | BP147: N/A | BQ147: N/A | BR147: N/A | BS147: N/A | BT147: N/A | BU147: N/A | BV147: N/A | BW147: N/A | BX147: N/A | BY147: N/A | BZ147: N/A | CA147: N/A | CB147: N/A | CC147: N/A | CD147: N/A | CE147: N/A | CF147: N/A | CG147: N/A | CH147: N/A
A148: Shared among improved sanitation facilities | B148: Yes | C148: N/A | D148: N/A | E148: N/A | F148: N/A | G148: N/A | H148: N/A | I148: N/A | J148: N/A | K148: N/A | L148: N/A | M148: N/A | N148: N/A | O148: N/A | P148: N/A | Q148: N/A | R148: N/A | S148: N/A | T148: N/A | U148: N/A | V148: N/A | W148: N/A | X148: N/A | Y148: N/A | Z148: N/A | AA148: N/A | AB148: N/A | AC148: N/A | AD148: N/A | AE148: N/A | AF148: N/A | AG148: N/A | AH148: N/A | BA148: Shared among improved sanitation facilities | BB148: Yes | BC148: N/A | BD148: N/A | BE148: N/A | BF148: N/A | BG148: N/A | BH148: N/A | BI148: N/A | BJ148: N/A | BK148: N/A | BL148: N/A | BM148: N/A | BN148: N/A | BO148: N/A | BP148: N/A | BQ148: N/A | BR148: N/A | BS148: N/A | BT148: N/A | BU148: N/A | BV148: N/A | BW148: N/A | BX148: N/A | BY148: N/A | BZ148: N/A | CA148: N/A | CB148: N/A | CC148: N/A | CD148: N/A | CE148: N/A | CF148: N/A | CG148: N/A | CH148: N/A
B149: No | C149: N/A | D149: N/A | E149: N/A | F149: N/A | G149: N/A | H149: N/A | I149: N/A | J149: N/A | K149: N/A | L149: N/A | M149: N/A | N149: N/A | O149: N/A | P149: N/A | Q149: N/A | R149: N/A | S149: N/A | T149: N/A | U149: N/A | V149: N/A | W149: N/A | X149: N/A | Y149: N/A | Z149: N/A | AA149: N/A | AB149: N/A | AC149: N/A | AD149: N/A | AE149: N/A | AF149: N/A | AG149: N/A | AH149: N/A | BB149: No | BC149: N/A | BD149: N/A | BE149: N/A | BF149: N/A | BG149: N/A | BH149: N/A | BI149: N/A | BJ149: N/A | BK149: N/A | BL149: N/A | BM149: N/A | BN149: N/A | BO149: N/A | BP149: N/A | BQ149: N/A | BR149: N/A | BS149: N/A | BT149: N/A | BU149: N/A | BV149: N/A | BW149: N/A | BX149: N/A | BY149: N/A | BZ149: N/A | CA149: N/A | CB149: N/A | CC149: N/A | CD149: N/A | CE149: N/A | CF149: N/A | CG149: N/A | CH149: N/A
B150: DK/missing | C150: N/A | D150: N/A | E150: N/A | F150: N/A | G150: N/A | H150: N/A | I150: N/A | J150: N/A | K150: N/A | L150: N/A | M150: N/A | N150: N/A | O150: N/A | P150: N/A | Q150: N/A | R150: N/A | S150: N/A | T150: N/A | U150: N/A | V150: N/A | W150: N/A | X150: N/A | Y150: N/A | Z150: N/A | AA150: N/A | AB150: N/A | AC150: N/A | AD150: N/A | AE150: N/A | AF150: N/A | AG150: N/A | AH150: N/A | BB150: DK/missing | BC150: N/A | BD150: N/A | BE150: N/A | BF150: N/A | BG150: N/A | BH150: N/A | BI150: N/A | BJ150: N/A | BK150: N/A | BL150: N/A | BM150: N/A | BN150: N/A | BO150: N/A | BP150: N/A | BQ150: N/A | BR150: N/A | BS150: N/A | BT150: N/A | BU150: N/A | BV150: N/A | BW150: N/A | BX150: N/A | BY150: N/A | BZ150: N/A | CA150: N/A | CB150: N/A | CC150: N/A | CD150: N/A | CE150: N/A | CF150: N/A | CG150: N/A | CH150: N/A
A151: Shared among all sanitation facilities | B151: Yes | C151: N/A | D151: N/A | E151: N/A | F151: N/A | G151: N/A | H151: N/A | I151: N/A | J151: N/A | K151: N/A | L151: N/A | M151: N/A | N151: N/A | O151: N/A | P151: N/A | Q151: N/A | R151: N/A | S151: N/A | T151: N/A | U151: N/A | V151: N/A | W151: N/A | X151: N/A | Y151: N/A | Z151: N/A | AA151: N/A | AB151: N/A | AC151: N/A | AD151: N/A | AE151: N/A | AF151: N/A | AG151: N/A | AH151: N/A | BA151: Shared among all sanitation facilities | BB151: Yes | BC151: N/A | BD151: N/A | BE151: N/A | BF151: N/A | BG151: N/A | BH151: N/A | BI151: N/A | BJ151: N/A | BK151: N/A | BL151: N/A | BM151: N/A | BN151: N/A | BO151: N/A | BP151: N/A | BQ151: N/A | BR151: N/A | BS151: N/A | BT151: N/A | BU151: N/A | BV151: N/A | BW151: N/A | BX151: N/A | BY151: N/A | BZ151: N/A | CA151: N/A | CB151: N/A | CC151: N/A | CD151: N/A | CE151: N/A | CF151: N/A | CG151: N/A | CH151: N/A
B152: No | C152: N/A | D152: N/A | E152: N/A | F152: N/A | G152: N/A | H152: N/A | I152: N/A | J152: N/A | K152: N/A | L152: N/A | M152: N/A | N152: N/A | O152: N/A | P152: N/A | Q152: N/A | R152: N/A | S152: N/A | T152: N/A | U152: N/A | V152: N/A | W152: N/A | X152: N/A | Y152: N/A | Z152: N/A | AA152: N/A | AB152: N/A | AC152: N/A | AD152: N/A | AE152: N/A | AF152: N/A | AG152: N/A | AH152: N/A | BB152: No | BC152: N/A | BD152: N/A | BE152: N/A | BF152: N/A | BG152: N/A | BH152: N/A | BI152: N/A | BJ152: N/A | BK152: N/A | BL152: N/A | BM152: N/A | BN152: N/A | BO152: N/A | BP152: N/A | BQ152: N/A | BR152: N/A | BS152: N/A | BT152: N/A | BU152: N/A | BV152: N/A | BW152: N/A | BX152: N/A | BY152: N/A | BZ152: N/A | CA152: N/A | CB152: N/A | CC152: N/A | CD152: N/A | CE152: N/A | CF152: N/A | CG152: N/A | CH152: N/A
A153: type de toilette | B153: chasse d'eau avec egouts ou avec fosse sceptique | C153: 0.05753557138 | D153: 0.04823140396 | E153: 0.07708379251 | F153: 0.2885794914 | G153: 3.809864165 | H153: 0.1042198436 | I153: 0.02504844054 | J153: 0.09990453533 | K153: 0.866538857 | L153: 8.375455493 | M153: 0.05973935629 | N153: 0.03990124036 | O153: 0.04080285994 | P153: 0.041447888 | Q153: 0.5679800605 | R153: 0.4302691036 | S153: 3.368698813 | T153: 0.1144813188 | U153: 0 | V153: 0.354209499 | W153: 0.6197939446 | X153: 0.2700762063 | Y153: 0.9232675252 | Z153: 0.1533051083 | AA153: 0.1334094575 | AB153: 0.3308187789 | AC153: 0.1064840393 | AD153: 0.1557418469 | AE153: 0.345657025 | AF153: 0.3375721623 | AG153: 0.4192705766 | AH153: 0 | BA153: type de toilette | BB153: chasse d'eau avec egouts ou avec fosse sceptique | BC153: 10.66415906 | BD153: 8.90030396 | BE153: 14.25649893 | BF153: 53.37598807 | BG153: 704.8119224 | BH153: 7.802231133 | BI153: 1.876755953 | BJ153: 7.477490902 | BK153: 64.73188013 | BL153: 627.5664563 | BM153: 6.556178927 | BN153: 4.401515961 | BO153: 4.498787999 | BP153: 4.563863933 | BQ153: 62.53371114 | BR153: 3.612224981 | BS153: 532.4503044 | BT153: 6.745322943 | BU153: 0 | BV153: 5.815278023 | BW153: 17.05038065 | BX153: 15.745758 | BY153: 96.39088964 | BZ153: 6.63261503 | CA153: 3.694251001 | CB153: 16.23565167 | CC153: 9.68350482 | CD153: 9.989329875 | CE153: 25.30272603 | CF153: 33.54556465 | CG153: 9.115070701 | CH153: 0
B154: latrines a evacuation | C154: 0.07851393807 | D154: 0.05302128477 | E154: 0.1684362401 | F154: 0.1566027208 | G154: 1.095411509 | H154: 0.1950447371 | I154: 0.218538805 | J154: 0.1150890587 | K154: 0.3182349084 | L154: 2.263247533 | M154: 0.1134813302 | N154: 0.08709699609 | O154: 0.01616022757 | P154: 0.09816984072 | Q154: 0.1771367431 | R154: 0 | S154: 1.350048858 | T154: 0.1186907181 | U154: 0 | V154: 0.579515314 | W154: 0.2524874331 | X154: 0 | Y154: 0 | Z154: 0.2667422344 | AA154: 0 | AB154: 0.08672128451 | AC154: 0.3196141751 | AD154: 0 | AE154: 0 | AF154: 0 | AG154: 0.2483907162 | AH154: 0 | BB154: latrines a evacuation | BC154: 14.55247778 | BD154: 9.784196854 | BE154: 31.15195814 | BF154: 28.96541578 | BG154: 202.6474064 | BH154: 14.60167342 | BI154: 16.37403345 | BJ154: 8.613997221 | BK154: 23.77267191 | BL154: 169.5834018 | BM154: 12.45416677 | BN154: 9.607691765 | BO154: 1.78177309 | BP154: 10.80956876 | BQ154: 19.50247675 | BR154: 0 | BS154: 213.3862258 | BT154: 6.99334383 | BU154: 0 | BV154: 9.514263958 | BW154: 6.945867866 | BX154: 0 | BY154: 0 | BZ154: 11.54037574 | CA154: 0 | CB154: 4.256035805 | CC154: 29.06525171 | CD154: 0 | CE154: 0 | CF154: 0 | CG154: 5.400090218 | CH154: 0
B155: latrines ameliorees a ventillation | C155: 0.05033857984 | D155: 0.1996842697 | E155: 0.01035325722 | F155: 0.2674669222 | G155: 1.265634978 | H155: 0 | I155: 0.1138181198 | J155: 0.02185621312 | K155: 1.109485869 | L155: 1.583590349 | M155: 0.01968086537 | N155: 0.185337767 | O155: 0.2138106853 | P155: 0.01738987795 | Q155: 0.6531231643 | R155: 0 | S155: 1.012446982 | T155: 0.1870021991 | U155: 0.2874585665 | V155: 0.6341278961 | W155: 1.815549561 | X155: 0 | Y155: 0 | Z155: 0.2552211525 | AA155: 0.02197242362 | AB155: 0 | AC155: 0 | AD155: 0.4044640236 | AE155: 0 | AF155: 0.4567639287 | AG155: 0 | AH155: 1.289622977 | BB155: latrines ameliorees a ventillation | BC155: 9.33020407 | BD155: 36.84841308 | BE155: 1.914814979 | BF155: 49.47098346 | BG155: 234.1381695 | BH155: 0 | BI155: 8.527829647 | BJ155: 1.635858014 | BK155: 82.88042215 | BL155: 118.6572103 | BM155: 2.159904003 | BN155: 20.44465616 | BO155: 23.57405698 | BP155: 1.914814979 | BQ155: 71.90783292 | BR155: 0 | BS155: 160.0254976 | BT155: 11.0183062 | BU155: 3.672137201 | BV155: 10.41087274 | BW155: 49.94532678 | BX155: 0 | BY155: 0 | BZ155: 11.04192594 | CA155: 0.6084399819 | CB155: 0 | CC155: 0 | CD155: 25.94244665 | CE155: 0 | CF155: 45.39001024 | CG155: 0 | CH155: 13.64762184
B156: latrines traditionnelle ameliorees | C156: 4.478320873 | D156: 11.87389184 | E156: 22.28202507 | F156: 32.02526553 | G156: 49.77465038 | H156: 20.70443713 | I156: 38.68116586 | J156: 38.12362965 | K156: 46.04315589 | L156: 63.16629977 | M156: 2.620215912 | N156: 5.417594227 | O156: 12.12259775 | P156: 19.12525213 | Q156: 22.45256414 | R156: 23.36759534 | S156: 49.73914317 | T156: 8.792367793 | U156: 19.58940768 | V156: 36.12578116 | W156: 16.79934758 | X156: 12.91834299 | Y156: 51.54075786 | Z156: 13.57384651 | AA156: 14.04282671 | AB156: 9.154702312 | AC156: 24.24716929 | AD156: 12.82181657 | AE156: 4.495136338 | AF156: 4.574014672 | AG156: 37.7849674 | AH156: 18.93811596 | BB156: latrines traditionnelle ameliorees | BC156: 830.052174 | BD156: 2191.129386 | BE156: 4121.017612 | BF156: 5923.429216 | BG156: 9208.141159 | BH156: 1550.000446 | BI156: 2898.188738 | BJ156: 2853.414942 | BK156: 3439.499595 | BL156: 4733.002395 | BM156: 287.5592476 | BN156: 597.6161955 | BO156: 1336.597419 | BP156: 2105.898578 | BQ156: 2471.99199 | BR156: 196.1772549 | BS156: 7861.676984 | BT156: 518.0527342 | BU156: 250.2447346 | BV156: 593.0994562 | BW156: 462.1459653 | BX156: 753.1544719 | BY156: 5380.953373 | BZ156: 587.2609161 | CA156: 388.8609368 | CB156: 449.2869431 | CC156: 2205.002573 | CD156: 822.3952516 | CE156: 329.0521963 | CF156: 454.5336436 | CG156: 821.4567597 | CH156: 200.4153537
B157: trou ouvert | C157: 12.09429341 | D157: 15.0578421 | E157: 12.85367085 | F157: 9.695533026 | G157: 7.318423538 | H157: 9.115811045 | I157: 6.55423347 | J157: 10.10216631 | K157: 8.951310116 | L157: 3.993114539 | M157: 12.07024305 | N157: 13.49307447 | O157: 17.26836899 | P157: 15.24861833 | Q157: 11.36433022 | R157: 16.6295743 | S157: 7.246716728 | T157: 15.05570575 | U157: 15.4639252 | V157: 17.77185927 | W157: 13.74362125 | X157: 11.69190584 | Y157: 11.37137362 | Z157: 26.08943939 | AA157: 26.81185993 | AB157: 7.20069516 | AC157: 16.28070869 | AD157: 5.517226405 | AE157: 9.785900248 | AF157: 4.323648402 | AG157: 15.65877535 | AH157: 8.599760076 | BB157: trou ouvert | BC157: 2241.664861 | BD157: 2778.674487 | BE157: 2377.261662 | BF157: 1793.296719 | BG157: 1353.883482 | BH157: 682.4387977 | BI157: 491.0763471 | BJ157: 756.1103854 | BK157: 668.6776118 | BL157: 299.2010098 | BM157: 1324.665648 | BN157: 1488.424473 | BO157: 1903.953088 | BP157: 1679.038971 | BQ157: 1251.19488 | BR157: 139.609754 | BS157: 1145.402644 | BT157: 887.0931827 | BU157: 197.5437911 | BV157: 291.7716857 | BW157: 378.0836773 | BX157: 681.6517544 | BY157: 1187.193083 | BZ157: 1128.73739 | CA157: 742.4491652 | CB157: 353.3897888 | CC157: 1480.544147 | CD157: 353.8765955 | CE157: 716.345785 | CF157: 429.6539917 | CG157: 340.4265702 | CH157: 91.00820592
B158: seau | C158: 0.1984257089 | D158: 0.1565206604 | E158: 0 | F158: 0.06892753092 | G158: 0.008842638197 | H158: 0.1820451705 | I158: 0 | J158: 0 | K158: 0.0218985534 | L158: 0 | M158: 0.2056377244 | N158: 0.2233706468 | O158: 0.04375908869 | P158: 0 | Q158: 0.1157956039 | R158: 0.2897564077 | S158: 0 | T158: 0 | U158: 0 | V158: 0.09964036892 | W158: 0.06399184381 | X158: 0.2720564466 | Y158: 0 | Z158: 0 | AA158: 0.1742342021 | AB158: 0.09171545976 | AC158: 0.1498647524 | AD158: 0 | AE158: 0.4836171324 | AF158: 0 | AG158: 0 | AH158: 0 | BB158: seau | BC158: 36.77800134 | BD158: 28.88328639 | BE158: 0 | BF158: 12.74891382 | BG158: 1.635858014 | BH158: 13.62848425 | BI158: 0 | BJ158: 0 | BK158: 1.635858014 | BL158: 0 | BM158: 22.56799871 | BN158: 24.64007279 | BO158: 4.824731976 | BP158: 0 | BQ158: 12.74891382 | BR158: 2.432583064 | BS158: 0 | BT158: 0 | BU158: 0 | BV158: 1.635858014 | BW158: 1.760400057 | BX158: 15.86120832 | BY158: 0 | BZ158: 0 | CA158: 4.824731976 | CB158: 4.501135826 | CC158: 13.62848425 | CD158: 0 | CE158: 35.40165806 | CF158: 0 | CG158: 0 | CH158: 0
B159: autres | C159: 1.020455303 | D159: 0.8943840939 | E159: 0.6145955992 | F159: 0.3302506132 | G159: 0.4255773363 | H159: 0.8653305277 | I159: 0.3084674713 | J159: 0.2633981585 | K159: 0.2582450106 | L159: 0.7932689386 | M159: 1.059124955 | N159: 1.099817367 | O159: 0.546685502 | P159: 0.8965267861 | Q159: 0.2250598524 | R159: 0.6487433245 | S159: 0.3751075935 | T159: 0.332130703 | U159: 2.008620627 | V159: 0 | W159: 0.8801321274 | X159: 1.2784543 | Y159: 0.1068027222 | Z159: 1.246870357 | AA159: 0.1280136392 | AB159: 0.4907944522 | AC159: 1.043182534 | AD159: 0.2412902342 | AE159: 0.6748568352 | AF159: 1.474096429 | AG159: 0 | AH159: 0 | BB159: autres | BC159: 189.1403423 | BD159: 165.0437192 | BE159: 113.6682721 | BF159: 61.08352572 | BG159: 78.73036087 | BH159: 64.78141353 | BI159: 23.11194432 | BJ159: 19.71439362 | BK159: 19.29132771 | BL159: 59.43903315 | BM159: 116.2351445 | BN159: 121.3211331 | BO159: 60.27573016 | BP159: 98.71736443 | BQ159: 24.7787357 | BR159: 5.446374893 | BS159: 59.28881252 | BT159: 19.56938368 | BU159: 25.65910843 | BV159: 0 | BW159: 24.21222073 | BX159: 74.53537762 | BY159: 11.15040779 | BZ159: 53.94478476 | CA159: 3.544835001 | CB159: 24.08680606 | CC159: 94.8655138 | CD159: 15.4764297 | CE159: 49.40075386 | CF159: 146.4854114 | CG159: 0 | CH159: 0
B160: pas de toilettes ou brousse ou champ | C160: 51.01590197 | D160: 34.55903148 | E160: 19.72682955 | F160: 7.313303358 | G160: 1.441322165 | H160: 13.31713056 | I160: 2.826788811 | J160: 1.934921399 | K160: 1.097487756 | L160: 0.03014001244 | M160: 61.09634 | N160: 45.41452962 | O160: 32.77850938 | P160: 25.90015658 | Q160: 13.46286714 | R160: 23.3050361 | S160: 1.098658362 | T160: 27.15409558 | U160: 17.35365688 | V160: 15.6260686 | W160: 32.57390665 | X160: 13.12285882 | Y160: 11.94333557 | Z160: 16.05468903 | AA160: 20.99941726 | AB160: 21.88609145 | AC160: 17.07736306 | AD160: 44.81716436 | AE160: 53.61157956 | AF160: 43.57019625 | AG160: 11.39320965 | AH160: 43.99721607 | BB160: pas de toilettes ou brousse ou champ | BC160: 9455.745031 | BD160: 6377.294864 | BE160: 3648.439123 | BF160: 1352.676834 | BG160: 266.6397021 | BH160: 996.9630264 | BI160: 211.7973261 | BJ160: 144.8218253 | BK160: 81.98414338 | BL160: 2.258368015 | BM160: 6705.102997 | BN160: 5009.6883 | BO160: 3614.049722 | BP160: 2851.889352 | BQ160: 1482.240493 | BR160: 195.6520533 | BS160: 173.6519089 | BT160: 1599.939151 | BU160: 221.6841536 | BV160: 256.5429034 | BW160: 896.1002481 | BX160: 765.0779835 | BY160: 1246.907001 | BZ160: 694.5924566 | CA160: 581.4963922 | CB160: 1074.107578 | CC160: 1552.990745 | CD160: 2874.586682 | CE160: 3924.465616 | CF160: 4329.701908 | CG160: 247.691866 | CH160: 465.6069082
B161: latrines traditionnelles | C161: 31.00621464 | D161: 37.15739287 | E161: 44.26700565 | F161: 49.85407081 | G161: 34.86027329 | H161: 55.51598098 | I161: 51.27193903 | J161: 49.33903467 | K161: 41.33364304 | L161: 19.79488336 | M161: 22.75553681 | N161: 34.03927766 | O161: 36.96930552 | P161: 38.67243857 | Q161: 50.98114307 | R161: 35.32902543 | S161: 35.80917949 | T161: 48.24552593 | U161: 45.29693104 | V161: 28.8087979 | W161: 33.25116962 | X161: 60.44630539 | Y161: 24.1144627 | Z161: 42.35988621 | AA161: 37.68826637 | AB161: 60.7584611 | AC161: 40.77561346 | AD161: 36.04229656 | AE161: 30.60325286 | AF161: 45.26370815 | AG161: 34.49538631 | AH161: 27.17528492 | BB161: latrines traditionnelles | BC161: 5746.970037 | BD161: 6856.779272 | BE161: 8187.097421 | BF161: 9221.06514 | BG161: 6449.032083 | BH161: 4156.104062 | BI161: 3841.553195 | BJ161: 3692.847193 | BK161: 3087.691227 | BL161: 1483.215428 | BM161: 2497.338107 | BN161: 3754.881366 | BO161: 4076.113004 | BP161: 4258.25672 | BQ161: 5612.943651 | BR161: 296.5966814 | BS161: 5659.932685 | BT161: 2842.661637 | BU161: 578.64529 | BV161: 472.9719835 | BW161: 914.7315876 | BX161: 3524.090144 | BY161: 2517.595876 | BZ161: 1832.664424 | CA161: 1043.628528 | CB161: 2981.853732 | CC161: 3708.075427 | CD161: 2311.763967 | CE161: 2240.214047 | CF161: 4497.991298 | CG161: 749.9402595 | CH161: 287.5863866
BB162: Total | BC162: 18534.89729 | BD162: 18453.33793 | BE162: 18494.80736 | BF162: 18496.11273 | BG162: 18499.66014 | BH162: 7486.320134 | BI162: 7492.50617 | BJ162: 7484.636085 | BK162: 7470.164737 | BL162: 7492.923302 | BM162: 10974.63939 | BN162: 11031.0254 | BO162: 11025.66831 | BP162: 11011.08923 | BQ162: 11009.84268 | BR162: 839.5269266 | BS162: 15805.81506 | BT162: 5892.073062 | BU162: 1277.449215 | BV162: 1641.762302 | BW162: 2750.975674 | BX162: 5830.116698 | BY162: 10440.19063 | BZ162: 4326.414888 | CA162: 2769.10728 | CB162: 4907.717671 | CC162: 9093.855646 | CD162: 6414.030702 | CE162: 7320.182782 | CF162: 9937.301828 | CG162: 2174.030616 | CH162: 1058.264476
A208: =A1026 -> Central African Republic
A209: =A1034 -> 2000
A210: Access to hygiene facilities
A211: by wealth quintile and sub-national region
A212: Notes:
A213: WHO/UNICEF JMP customised wealth index excludes water,
A214: sanitation and hygiene assets.
A215: Survey used for analysis: | B215: =A1025 -> MICS00
A220: Access to handwashing | C220: NATIONAL wealth index quintile | H220: URBAN wealth index quintile | M220: RURAL wealth index quintile | R220: SUB-REGIONS: | BA220: Raw numbers of respondents: | BB220: Access to handwashing | BC220: NATIONAL wealth index quintile | BH220: URBAN wealth index quintile | BM220: RURAL wealth index quintile | BR220: SUB-REGIONS:
A221: Weighted percentage (used in graphs) | C221: Poorest | D221: Poor | E221: Middle | F221: Rich | G221: Richest | H221: Poorest | I221: Poor | J221: Middle | K221: Rich | L221: Richest | M221: Poorest | N221: Poor | O221: Middle | P221: Rich | Q221: Richest | R221: bamingui-bangoran | S221: bangui | T221: basse-kotto | U221: haut-mbomou | V221: haute-kotto | W221: kémo | X221: lobaye | Y221: mambéré-kadeï | Z221: mbomou | AA221: nana-grébizi | AB221: nana-mambéré | AC221: ombella-m'poko | AD221: ouaka | AE221: ouham | AF221: ouham-pendé | AG221: sangha-mbaéré | AH221: vakaga | BA221: Hygiene data, raw numbers (weighted) | BC221: Poorest | BD221: Poor | BE221: Middle | BF221: Rich | BG221: Richest | BH221: Poorest | BI221: Poor | BJ221: Middle | BK221: Rich | BL221: Richest | BM221: Poorest | BN221: Poor | BO221: Middle | BP221: Rich | BQ221: Richest | BR221: bamingui-bangoran | BS221: bangui | BT221: basse-kotto | BU221: haut-mbomou | BV221: haute-kotto | BW221: kémo | BX221: lobaye | BY221: mambéré-kadeï | BZ221: mbomou | CA221: nana-grébizi | CB221: nana-mambéré | CC221: ombella-m'poko | CD221: ouaka | CE221: ouham | CF221: ouham-pendé | CG221: sangha-mbaéré | CH221: vakaga
A222: Hygiene ladder | B222: Basic | C222: N/A | D222: N/A | E222: N/A | F222: N/A | G222: N/A | H222: N/A | I222: N/A | J222: N/A | K222: N/A | L222: N/A | M222: N/A | N222: N/A | O222: N/A | P222: N/A | Q222: N/A | R222: N/A | S222: N/A | T222: N/A | U222: N/A | V222: N/A | W222: N/A | X222: N/A | Y222: N/A | Z222: N/A | AA222: N/A | AB222: N/A | AC222: N/A | AD222: N/A | AE222: N/A | AF222: N/A | AG222: N/A | AH222: N/A | BA222: Hygiene ladder | BB222: Basic | BC222: N/A | BD222: N/A | BE222: N/A | BF222: N/A | BG222: N/A | BH222: N/A | BI222: N/A | BJ222: N/A | BK222: N/A | BL222: N/A | BM222: N/A | BN222: N/A | BO222: N/A | BP222: N/A | BQ222: N/A | BR222: N/A | BS222: N/A | BT222: N/A | BU222: N/A | BV222: N/A | BW222: N/A | BX222: N/A | BY222: N/A | BZ222: N/A | CA222: N/A | CB222: N/A | CC222: N/A | CD222: N/A | CE222: N/A | CF222: N/A | CG222: N/A | CH222: N/A
B223: Limited | C223: N/A | D223: N/A | E223: N/A | F223: N/A | G223: N/A | H223: N/A | I223: N/A | J223: N/A | K223: N/A | L223: N/A | M223: N/A | N223: N/A | O223: N/A | P223: N/A | Q223: N/A | R223: N/A | S223: N/A | T223: N/A | U223: N/A | V223: N/A | W223: N/A | X223: N/A | Y223: N/A | Z223: N/A | AA223: N/A | AB223: N/A | AC223: N/A | AD223: N/A | AE223: N/A | AF223: N/A | AG223: N/A | AH223: N/A | BB223: Limited | BC223: N/A | BD223: N/A | BE223: N/A | BF223: N/A | BG223: N/A | BH223: N/A | BI223: N/A | BJ223: N/A | BK223: N/A | BL223: N/A | BM223: N/A | BN223: N/A | BO223: N/A | BP223: N/A | BQ223: N/A | BR223: N/A | BS223: N/A | BT223: N/A | BU223: N/A | BV223: N/A | BW223: N/A | BX223: N/A | BY223: N/A | BZ223: N/A | CA223: N/A | CB223: N/A | CC223: N/A | CD223: N/A | CE223: N/A | CF223: N/A | CG223: N/A | CH223: N/A
B224: No facility | C224: N/A | D224: N/A | E224: N/A | F224: N/A | G224: N/A | H224: N/A | I224: N/A | J224: N/A | K224: N/A | L224: N/A | M224: N/A | N224: N/A | O224: N/A | P224: N/A | Q224: N/A | R224: N/A | S224: N/A | T224: N/A | U224: N/A | V224: N/A | W224: N/A | X224: N/A | Y224: N/A | Z224: N/A | AA224: N/A | AB224: N/A | AC224: N/A | AD224: N/A | AE224: N/A | AF224: N/A | AG224: N/A | AH224: N/A | BB224: No facility | BC224: N/A | BD224: N/A | BE224: N/A | BF224: N/A | BG224: N/A | BH224: N/A | BI224: N/A | BJ224: N/A | BK224: N/A | BL224: N/A | BM224: N/A | BN224: N/A | BO224: N/A | BP224: N/A | BQ224: N/A | BR224: N/A | BS224: N/A | BT224: N/A | BU224: N/A | BV224: N/A | BW224: N/A | BX224: N/A | BY224: N/A | BZ224: N/A | CA224: N/A | CB224: N/A | CC224: N/A | CD224: N/A | CE224: N/A | CF224: N/A | CG224: N/A | CH224: N/A
BA225: Observed handwashing place | BB225: Fixed | BC225: N/A | BD225: N/A | BE225: N/A | BF225: N/A | BG225: N/A | BH225: N/A | BI225: N/A | BJ225: N/A | BK225: N/A | BL225: N/A | BM225: N/A | BN225: N/A | BO225: N/A | BP225: N/A | BQ225: N/A | BR225: N/A | BS225: N/A | BT225: N/A | BU225: N/A | BV225: N/A | BW225: N/A | BX225: N/A | BY225: N/A | BZ225: N/A | CA225: N/A | CB225: N/A | CC225: N/A | CD225: N/A | CE225: N/A | CF225: N/A | CG225: N/A | CH225: N/A
BB226: Mobile | BC226: N/A | BD226: N/A | BE226: N/A | BF226: N/A | BG226: N/A | BH226: N/A | BI226: N/A | BJ226: N/A | BK226: N/A | BL226: N/A | BM226: N/A | BN226: N/A | BO226: N/A | BP226: N/A | BQ226: N/A | BR226: N/A | BS226: N/A | BT226: N/A | BU226: N/A | BV226: N/A | BW226: N/A | BX226: N/A | BY226: N/A | BZ226: N/A | CA226: N/A | CB226: N/A | CC226: N/A | CD226: N/A | CE226: N/A | CF226: N/A | CG226: N/A | CH226: N/A
BA227: Water / Soap | BB227: Water and soap | BC227: N/A | BD227: N/A | BE227: N/A | BF227: N/A | BG227: N/A | BH227: N/A | BI227: N/A | BJ227: N/A | BK227: N/A | BL227: N/A | BM227: N/A | BN227: N/A | BO227: N/A | BP227: N/A | BQ227: N/A | BR227: N/A | BS227: N/A | BT227: N/A | BU227: N/A | BV227: N/A | BW227: N/A | BX227: N/A | BY227: N/A | BZ227: N/A | CA227: N/A | CB227: N/A | CC227: N/A | CD227: N/A | CE227: N/A | CF227: N/A | CG227: N/A | CH227: N/A
BB228: Water only | BC228: N/A | BD228: N/A | BE228: N/A | BF228: N/A | BG228: N/A | BH228: N/A | BI228: N/A | BJ228: N/A | BK228: N/A | BL228: N/A | BM228: N/A | BN228: N/A | BO228: N/A | BP228: N/A | BQ228: N/A | BR228: N/A | BS228: N/A | BT228: N/A | BU228: N/A | BV228: N/A | BW228: N/A | BX228: N/A | BY228: N/A | BZ228: N/A | CA228: N/A | CB228: N/A | CC228: N/A | CD228: N/A | CE228: N/A | CF228: N/A | CG228: N/A | CH228: N/A
BB229: Soap only | BC229: N/A | BD229: N/A | BE229: N/A | BF229: N/A | BG229: N/A | BH229: N/A | BI229: N/A | BJ229: N/A | BK229: N/A | BL229: N/A | BM229: N/A | BN229: N/A | BO229: N/A | BP229: N/A | BQ229: N/A | BR229: N/A | BS229: N/A | BT229: N/A | BU229: N/A | BV229: N/A | BW229: N/A | BX229: N/A | BY229: N/A | BZ229: N/A | CA229: N/A | CB229: N/A | CC229: N/A | CD229: N/A | CE229: N/A | CF229: N/A | CG229: N/A | CH229: N/A
BB230: Neither | BC230: N/A | BD230: N/A | BE230: N/A | BF230: N/A | BG230: N/A | BH230: N/A | BI230: N/A | BJ230: N/A | BK230: N/A | BL230: N/A | BM230: N/A | BN230: N/A | BO230: N/A | BP230: N/A | BQ230: N/A | BR230: N/A | BS230: N/A | BT230: N/A | BU230: N/A | BV230: N/A | BW230: N/A | BX230: N/A | BY230: N/A | BZ230: N/A | CA230: N/A | CB230: N/A | CC230: N/A | CD230: N/A | CE230: N/A | CF230: N/A | CG230: N/A | CH230: N/A
BA259: Raw numbers of respondents: | BB259: Menstrual health and hygiene | BC259: NATIONAL wealth index quintile | BH259: URBAN wealth index quintile | BM259: RURAL wealth index quintile | BR259: SUB-REGIONS:
BA260: MHH data, raw numbers (weighted) | BC260: Poorest | BD260: Poor | BE260: Middle | BF260: Rich | BG260: Richest | BH260: Poorest | BI260: Poor | BJ260: Middle | BK260: Rich | BL260: Richest | BM260: Poorest | BN260: Poor | BO260: Middle | BP260: Rich | BQ260: Richest | BR260: bamingui-bangoran | BS260: bangui | BT260: basse-kotto | BU260: haut-mbomou | BV260: haute-kotto | BW260: kémo | BX260: lobaye | BY260: mambéré-kadeï | BZ260: mbomou | CA260: nana-grébizi | CB260: nana-mambéré | CC260: ombella-m'poko | CD260: ouaka | CE260: ouham | CF260: ouham-pendé | CG260: sangha-mbaéré | CH260: vakaga
BA261: Private place to wash and change | BB261: Yes | BC261: N/A | BD261: N/A | BE261: N/A | BF261: N/A | BG261: N/A | BH261: N/A | BI261: N/A | BJ261: N/A | BK261: N/A | BL261: N/A | BM261: N/A | BN261: N/A | BO261: N/A | BP261: N/A | BQ261: N/A | BR261: N/A | BS261: N/A | BT261: N/A | BU261: N/A | BV261: N/A | BW261: N/A | BX261: N/A | BY261: N/A | BZ261: N/A | CA261: N/A | CB261: N/A | CC261: N/A | CD261: N/A | CE261: N/A | CF261: N/A | CG261: N/A | CH261: N/A
BB262: No | BC262: N/A | BD262: N/A | BE262: N/A | BF262: N/A | BG262: N/A | BH262: N/A | BI262: N/A | BJ262: N/A | BK262: N/A | BL262: N/A | BM262: N/A | BN262: N/A | BO262: N/A | BP262: N/A | BQ262: N/A | BR262: N/A | BS262: N/A | BT262: N/A | BU262: N/A | BV262: N/A | BW262: N/A | BX262: N/A | BY262: N/A | BZ262: N/A | CA262: N/A | CB262: N/A | CC262: N/A | CD262: N/A | CE262: N/A | CF262: N/A | CG262: N/A | CH262: N/A
BB263: DK/not sure/missing | BC263: N/A | BD263: N/A | BE263: N/A | BF263: N/A | BG263: N/A | BH263: N/A | BI263: N/A | BJ263: N/A | BK263: N/A | BL263: N/A | BM263: N/A | BN263: N/A | BO263: N/A | BP263: N/A | BQ263: N/A | BR263: N/A | BS263: N/A | BT263: N/A | BU263: N/A | BV263: N/A | BW263: N/A | BX263: N/A | BY263: N/A | BZ263: N/A | CA263: N/A | CB263: N/A | CC263: N/A | CD263: N/A | CE263: N/A | CF263: N/A | CG263: N/A | CH263: N/A
BA264: Use of menstrual materials | BB264: Materials reusable | BC264: N/A | BD264: N/A | BE264: N/A | BF264: N/A | BG264: N/A | BH264: N/A | BI264: N/A | BJ264: N/A | BK264: N/A | BL264: N/A | BM264: N/A | BN264: N/A | BO264: N/A | BP264: N/A | BQ264: N/A | BR264: N/A | BS264: N/A | BT264: N/A | BU264: N/A | BV264: N/A | BW264: N/A | BX264: N/A | BY264: N/A | BZ264: N/A | CA264: N/A | CB264: N/A | CC264: N/A | CD264: N/A | CE264: N/A | CF264: N/A | CG264: N/A | CH264: N/A
BB265: Materials not reusable | BC265: N/A | BD265: N/A | BE265: N/A | BF265: N/A | BG265: N/A | BH265: N/A | BI265: N/A | BJ265: N/A | BK265: N/A | BL265: N/A | BM265: N/A | BN265: N/A | BO265: N/A | BP265: N/A | BQ265: N/A | BR265: N/A | BS265: N/A | BT265: N/A | BU265: N/A | BV265: N/A | BW265: N/A | BX265: N/A | BY265: N/A | BZ265: N/A | CA265: N/A | CB265: N/A | CC265: N/A | CD265: N/A | CE265: N/A | CF265: N/A | CG265: N/A | CH265: N/A
BB266: No materials used | BC266: N/A | BD266: N/A | BE266: N/A | BF266: N/A | BG266: N/A | BH266: N/A | BI266: N/A | BJ266: N/A | BK266: N/A | BL266: N/A | BM266: N/A | BN266: N/A | BO266: N/A | BP266: N/A | BQ266: N/A | BR266: N/A | BS266: N/A | BT266: N/A | BU266: N/A | BV266: N/A | BW266: N/A | BX266: N/A | BY266: N/A | BZ266: N/A | CA266: N/A | CB266: N/A | CC266: N/A | CD266: N/A | CE266: N/A | CF266: N/A | CG266: N/A | CH266: N/A
BB267: DK/not sure/missing | BC267: N/A | BD267: N/A | BE267: N/A | BF267: N/A | BG267: N/A | BH267: N/A | BI267: N/A | BJ267: N/A | BK267: N/A | BL267: N/A | BM267: N/A | BN267: N/A | BO267: N/A | BP267: N/A | BQ267: N/A | BR267: N/A | BS267: N/A | BT267: N/A | BU267: N/A | BV267: N/A | BW267: N/A | BX267: N/A | BY267: N/A | BZ267: N/A | CA267: N/A | CB267: N/A | CC267: N/A | CD267: N/A | CE267: N/A | CF267: N/A | CG267: N/A | CH267: N/A
BA268: Use of menstrual materials with private place to wash and change | BB268: Materials reusable | BC268: N/A | BD268: N/A | BE268: N/A | BF268: N/A | BG268: N/A | BH268: N/A | BI268: N/A | BJ268: N/A | BK268: N/A | BL268: N/A | BM268: N/A | BN268: N/A | BO268: N/A | BP268: N/A | BQ268: N/A | BR268: N/A | BS268: N/A | BT268: N/A | BU268: N/A | BV268: N/A | BW268: N/A | BX268: N/A | BY268: N/A | BZ268: N/A | CA268: N/A | CB268: N/A | CC268: N/A | CD268: N/A | CE268: N/A | CF268: N/A | CG268: N/A | CH268: N/A
BB269: Materials not reusable | BC269: N/A | BD269: N/A | BE269: N/A | BF269: N/A | BG269: N/A | BH269: N/A | BI269: N/A | BJ269: N/A | BK269: N/A | BL269: N/A | BM269: N/A | BN269: N/A | BO269: N/A | BP269: N/A | BQ269: N/A | BR269: N/A | BS269: N/A | BT269: N/A | BU269: N/A | BV269: N/A | BW269: N/A | BX269: N/A | BY269: N/A | BZ269: N/A | CA269: N/A | CB269: N/A | CC269: N/A | CD269: N/A | CE269: N/A | CF269: N/A | CG269: N/A | CH269: N/A
BB270: No materials used | BC270: N/A | BD270: N/A | BE270: N/A | BF270: N/A | BG270: N/A | BH270: N/A | BI270: N/A | BJ270: N/A | BK270: N/A | BL270: N/A | BM270: N/A | BN270: N/A | BO270: N/A | BP270: N/A | BQ270: N/A | BR270: N/A | BS270: N/A | BT270: N/A | BU270: N/A | BV270: N/A | BW270: N/A | BX270: N/A | BY270: N/A | BZ270: N/A | CA270: N/A | CB270: N/A | CC270: N/A | CD270: N/A | CE270: N/A | CF270: N/A | CG270: N/A | CH270: N/A
BA271: Awareness of menstruation before menarche | BB271: Yes | BC271: N/A | BD271: N/A | BE271: N/A | BF271: N/A | BG271: N/A | BH271: N/A | BI271: N/A | BJ271: N/A | BK271: N/A | BL271: N/A | BM271: N/A | BN271: N/A | BO271: N/A | BP271: N/A | BQ271: N/A | BR271: N/A | BS271: N/A | BT271: N/A | BU271: N/A | BV271: N/A | BW271: N/A | BX271: N/A | BY271: N/A | BZ271: N/A | CA271: N/A | CB271: N/A | CC271: N/A | CD271: N/A | CE271: N/A | CF271: N/A | CG271: N/A | CH271: N/A
BB272: No | BC272: N/A | BD272: N/A | BE272: N/A | BF272: N/A | BG272: N/A | BH272: N/A | BI272: N/A | BJ272: N/A | BK272: N/A | BL272: N/A | BM272: N/A | BN272: N/A | BO272: N/A | BP272: N/A | BQ272: N/A | BR272: N/A | BS272: N/A | BT272: N/A | BU272: N/A | BV272: N/A | BW272: N/A | BX272: N/A | BY272: N/A | BZ272: N/A | CA272: N/A | CB272: N/A | CC272: N/A | CD272: N/A | CE272: N/A | CF272: N/A | CG272: N/A | CH272: N/A
BB273: DK/not sure/missing | BC273: N/A | BD273: N/A | BE273: N/A | BF273: N/A | BG273: N/A | BH273: N/A | BI273: N/A | BJ273: N/A | BK273: N/A | BL273: N/A | BM273: N/A | BN273: N/A | BO273: N/A | BP273: N/A | BQ273: N/A | BR273: N/A | BS273: N/A | BT273: N/A | BU273: N/A | BV273: N/A | BW273: N/A | BX273: N/A | BY273: N/A | BZ273: N/A | CA273: N/A | CB273: N/A | CC273: N/A | CD273: N/A | CE273: N/A | CF273: N/A | CG273: N/A | CH273: N/A
BA274: Participation in (all) activities during menstruation | BB274: Yes | BC274: N/A | BD274: N/A | BE274: N/A | BF274: N/A | BG274: N/A | BH274: N/A | BI274: N/A | BJ274: N/A | BK274: N/A | BL274: N/A | BM274: N/A | BN274: N/A | BO274: N/A | BP274: N/A | BQ274: N/A | BR274: N/A | BS274: N/A | BT274: N/A | BU274: N/A | BV274: N/A | BW274: N/A | BX274: N/A | BY274: N/A | BZ274: N/A | CA274: N/A | CB274: N/A | CC274: N/A | CD274: N/A | CE274: N/A | CF274: N/A | CG274: N/A | CH274: N/A
BB275: No | BC275: N/A | BD275: N/A | BE275: N/A | BF275: N/A | BG275: N/A | BH275: N/A | BI275: N/A | BJ275: N/A | BK275: N/A | BL275: N/A | BM275: N/A | BN275: N/A | BO275: N/A | BP275: N/A | BQ275: N/A | BR275: N/A | BS275: N/A | BT275: N/A | BU275: N/A | BV275: N/A | BW275: N/A | BX275: N/A | BY275: N/A | BZ275: N/A | CA275: N/A | CB275: N/A | CC275: N/A | CD275: N/A | CE275: N/A | CF275: N/A | CG275: N/A | CH275: N/A
BB276: DK/not sure/missing/no such activity | BC276: N/A | BD276: N/A | BE276: N/A | BF276: N/A | BG276: N/A | BH276: N/A | BI276: N/A | BJ276: N/A | BK276: N/A | BL276: N/A | BM276: N/A | BN276: N/A | BO276: N/A | BP276: N/A | BQ276: N/A | BR276: N/A | BS276: N/A | BT276: N/A | BU276: N/A | BV276: N/A | BW276: N/A | BX276: N/A | BY276: N/A | BZ276: N/A | CA276: N/A | CB276: N/A | CC276: N/A | CD276: N/A | CE276: N/A | CF276: N/A | CG276: N/A | CH276: N/A
BA277: Participation in specific activities during menstruation | BB277: Did not go to school (amongst those usually attending school) | BC277: N/A | BD277: N/A | BE277: N/A | BF277: N/A | BG277: N/A | BH277: N/A | BI277: N/A | BJ277: N/A | BK277: N/A | BL277: N/A | BM277: N/A | BN277: N/A | BO277: N/A | BP277: N/A | BQ277: N/A | BR277: N/A | BS277: N/A | BT277: N/A | BU277: N/A | BV277: N/A | BW277: N/A | BX277: N/A | BY277: N/A | BZ277: N/A | CA277: N/A | CB277: N/A | CC277: N/A | CD277: N/A | CE277: N/A | CF277: N/A | CG277: N/A | CH277: N/A
BB278: Did not go to work (amongst those who usually work) | BC278: N/A | BD278: N/A | BE278: N/A | BF278: N/A | BG278: N/A | BH278: N/A | BI278: N/A | BJ278: N/A | BK278: N/A | BL278: N/A | BM278: N/A | BN278: N/A | BO278: N/A | BP278: N/A | BQ278: N/A | BR278: N/A | BS278: N/A | BT278: N/A | BU278: N/A | BV278: N/A | BW278: N/A | BX278: N/A | BY278: N/A | BZ278: N/A | CA278: N/A | CB278: N/A | CC278: N/A | CD278: N/A | CE278: N/A | CF278: N/A | CG278: N/A | CH278: N/A
BB279: Did not participate in social activities | BC279: N/A | BD279: N/A | BE279: N/A | BF279: N/A | BG279: N/A | BH279: N/A | BI279: N/A | BJ279: N/A | BK279: N/A | BL279: N/A | BM279: N/A | BN279: N/A | BO279: N/A | BP279: N/A | BQ279: N/A | BR279: N/A | BS279: N/A | BT279: N/A | BU279: N/A | BV279: N/A | BW279: N/A | BX279: N/A | BY279: N/A | BZ279: N/A | CA279: N/A | CB279: N/A | CC279: N/A | CD279: N/A | CE279: N/A | CF279: N/A | CG279: N/A | CH279: N/A
BB280: Did not cook food | BC280: N/A | BD280: N/A | BE280: N/A | BF280: N/A | BG280: N/A | BH280: N/A | BI280: N/A | BJ280: N/A | BK280: N/A | BL280: N/A | BM280: N/A | BN280: N/A | BO280: N/A | BP280: N/A | BQ280: N/A | BR280: N/A | BS280: N/A | BT280: N/A | BU280: N/A | BV280: N/A | BW280: N/A | BX280: N/A | BY280: N/A | BZ280: N/A | CA280: N/A | CB280: N/A | CC280: N/A | CD280: N/A | CE280: N/A | CF280: N/A | CG280: N/A | CH280: N/A
BB281: Did not eat with others | BC281: N/A | BD281: N/A | BE281: N/A | BF281: N/A | BG281: N/A | BH281: N/A | BI281: N/A | BJ281: N/A | BK281: N/A | BL281: N/A | BM281: N/A | BN281: N/A | BO281: N/A | BP281: N/A | BQ281: N/A | BR281: N/A | BS281: N/A | BT281: N/A | BU281: N/A | BV281: N/A | BW281: N/A | BX281: N/A | BY281: N/A | BZ281: N/A | CA281: N/A | CB281: N/A | CC281: N/A | CD281: N/A | CE281: N/A | CF281: N/A | CG281: N/A | CH281: N/A
BB282: Did not bathe in regular place | BC282: N/A | BD282: N/A | BE282: N/A | BF282: N/A | BG282: N/A | BH282: N/A | BI282: N/A | BJ282: N/A | BK282: N/A | BL282: N/A | BM282: N/A | BN282: N/A | BO282: N/A | BP282: N/A | BQ282: N/A | BR282: N/A | BS282: N/A | BT282: N/A | BU282: N/A | BV282: N/A | BW282: N/A | BX282: N/A | BY282: N/A | BZ282: N/A | CA282: N/A | CB282: N/A | CC282: N/A | CD282: N/A | CE282: N/A | CF282: N/A | CG282: N/A | CH282: N/A
BB283: Did not participate in other activities | BC283: N/A | BD283: N/A | BE283: N/A | BF283: N/A | BG283: N/A | BH283: N/A | BI283: N/A | BJ283: N/A | BK283: N/A | BL283: N/A | BM283: N/A | BN283: N/A | BO283: N/A | BP283: N/A | BQ283: N/A | BR283: N/A | BS283: N/A | BT283: N/A | BU283: N/A | BV283: N/A | BW283: N/A | BX283: N/A | BY283: N/A | BZ283: N/A | CA283: N/A | CB283: N/A | CC283: N/A | CD283: N/A | CE283: N/A | CF283: N/A | CG283: N/A | CH283: N/A
BB284: DK/not sure/missing/no such activity | BC284: N/A | BD284: N/A | BE284: N/A | BF284: N/A | BG284: N/A | BH284: N/A | BI284: N/A | BJ284: N/A | BK284: N/A | BL284: N/A | BM284: N/A | BN284: N/A | BO284: N/A | BP284: N/A | BQ284: N/A | BR284: N/A | BS284: N/A | BT284: N/A | BU284: N/A | BV284: N/A | BW284: N/A | BX284: N/A | BY284: N/A | BZ284: N/A | CA284: N/A | CB284: N/A | CC284: N/A | CD284: N/A | CE284: N/A | CF284: N/A | CG284: N/A | CH284: N/A
BA339: Raw numbers of respondents: | BB339: Basic water, sanitation and hygiene | BC339: NATIONAL wealth index quintile | BH339: URBAN wealth index quintile | BM339: RURAL wealth index quintile | BR339: SUB-REGIONS:
BA340: WatSan data, raw numbers (weighted) | BC340: Poorest | BD340: Poor | BE340: Middle | BF340: Rich | BG340: Richest | BH340: Poorest | BI340: Poor | BJ340: Middle | BK340: Rich | BL340: Richest | BM340: Poorest | BN340: Poor | BO340: Middle | BP340: Rich | BQ340: Richest | BR340: bamingui-bangoran | BS340: bangui | BT340: basse-kotto | BU340: haut-mbomou | BV340: haute-kotto | BW340: kémo | BX340: lobaye | BY340: mambéré-kadeï | BZ340: mbomou | CA340: nana-grébizi | CB340: nana-mambéré | CC340: ombella-m'poko | CD340: ouaka | CE340: ouham | CF340: ouham-pendé | CG340: sangha-mbaéré | CH340: vakaga
BA341: Use of Basic Water Sanitation and Hygiene | BB341: Yes | BC341: N/A | BD341: N/A | BE341: N/A | BF341: N/A | BG341: N/A | BH341: N/A | BI341: N/A | BJ341: N/A | BK341: N/A | BL341: N/A | BM341: N/A | BN341: N/A | BO341: N/A | BP341: N/A | BQ341: N/A | BR341: N/A | BS341: N/A | BT341: N/A | BU341: N/A | BV341: N/A | BW341: N/A | BX341: N/A | BY341: N/A | BZ341: N/A | CA341: N/A | CB341: N/A | CC341: N/A | CD341: N/A | CE341: N/A | CF341: N/A | CG341: N/A | CH341: N/A
BB342: No | BC342: N/A | BD342: N/A | BE342: N/A | BF342: N/A | BG342: N/A | BH342: N/A | BI342: N/A | BJ342: N/A | BK342: N/A | BL342: N/A | BM342: N/A | BN342: N/A | BO342: N/A | BP342: N/A | BQ342: N/A | BR342: N/A | BS342: N/A | BT342: N/A | BU342: N/A | BV342: N/A | BW342: N/A | BX342: N/A | BY342: N/A | BZ342: N/A | CA342: N/A | CB342: N/A | CC342: N/A | CD342: N/A | CE342: N/A | CF342: N/A | CG342: N/A | CH342: N/A
BA343: Use of Basic Water and Sanitation | BB343: Yes | BC343: N/A | BD343: N/A | BE343: N/A | BF343: N/A | BG343: N/A | BH343: N/A | BI343: N/A | BJ343: N/A | BK343: N/A | BL343: N/A | BM343: N/A | BN343: N/A | BO343: N/A | BP343: N/A | BQ343: N/A | BR343: N/A | BS343: N/A | BT343: N/A | BU343: N/A | BV343: N/A | BW343: N/A | BX343: N/A | BY343: N/A | BZ343: N/A | CA343: N/A | CB343: N/A | CC343: N/A | CD343: N/A | CE343: N/A | CF343: N/A | CG343: N/A | CH343: N/A
BB344: No | BC344: N/A | BD344: N/A | BE344: N/A | BF344: N/A | BG344: N/A | BH344: N/A | BI344: N/A | BJ344: N/A | BK344: N/A | BL344: N/A | BM344: N/A | BN344: N/A | BO344: N/A | BP344: N/A | BQ344: N/A | BR344: N/A | BS344: N/A | BT344: N/A | BU344: N/A | BV344: N/A | BW344: N/A | BX344: N/A | BY344: N/A | BZ344: N/A | CA344: N/A | CB344: N/A | CC344: N/A | CD344: N/A | CE344: N/A | CF344: N/A | CG344: N/A | CH344: N/A
BA345: Use of Basic Water and Hygiene | BB345: Yes | BC345: N/A | BD345: N/A | BE345: N/A | BF345: N/A | BG345: N/A | BH345: N/A | BI345: N/A | BJ345: N/A | BK345: N/A | BL345: N/A | BM345: N/A | BN345: N/A | BO345: N/A | BP345: N/A | BQ345: N/A | BR345: N/A | BS345: N/A | BT345: N/A | BU345: N/A | BV345: N/A | BW345: N/A | BX345: N/A | BY345: N/A | BZ345: N/A | CA345: N/A | CB345: N/A | CC345: N/A | CD345: N/A | CE345: N/A | CF345: N/A | CG345: N/A | CH345: N/A
BB346: No | BC346: N/A | BD346: N/A | BE346: N/A | BF346: N/A | BG346: N/A | BH346: N/A | BI346: N/A | BJ346: N/A | BK346: N/A | BL346: N/A | BM346: N/A | BN346: N/A | BO346: N/A | BP346: N/A | BQ346: N/A | BR346: N/A | BS346: N/A | BT346: N/A | BU346: N/A | BV346: N/A | BW346: N/A | BX346: N/A | BY346: N/A | BZ346: N/A | CA346: N/A | CB346: N/A | CC346: N/A | CD346: N/A | CE346: N/A | CF346: N/A | CG346: N/A | CH346: N/A
BA347: Use of Basic Sanitation and Hygiene | BB347: Yes | BC347: N/A | BD347: N/A | BE347: N/A | BF347: N/A | BG347: N/A | BH347: N/A | BI347: N/A | BJ347: N/A | BK347: N/A | BL347: N/A | BM347: N/A | BN347: N/A | BO347: N/A | BP347: N/A | BQ347: N/A | BR347: N/A | BS347: N/A | BT347: N/A | BU347: N/A | BV347: N/A | BW347: N/A | BX347: N/A | BY347: N/A | BZ347: N/A | CA347: N/A | CB347: N/A | CC347: N/A | CD347: N/A | CE347: N/A | CF347: N/A | CG347: N/A | CH347: N/A
BB348: No | BC348: N/A | BD348: N/A | BE348: N/A | BF348: N/A | BG348: N/A | BH348: N/A | BI348: N/A | BJ348: N/A | BK348: N/A | BL348: N/A | BM348: N/A | BN348: N/A | BO348: N/A | BP348: N/A | BQ348: N/A | BR348: N/A | BS348: N/A | BT348: N/A | BU348: N/A | BV348: N/A | BW348: N/A | BX348: N/A | BY348: N/A | BZ348: N/A | CA348: N/A | CB348: N/A | CC348: N/A | CD348: N/A | CE348: N/A | CF348: N/A | CG348: N/A | CH348: N/A
BA349: Use of Basic Water | BB349: Yes | BC349: N/A | BD349: N/A | BE349: N/A | BF349: N/A | BG349: N/A | BH349: N/A | BI349: N/A | BJ349: N/A | BK349: N/A | BL349: N/A | BM349: N/A | BN349: N/A | BO349: N/A | BP349: N/A | BQ349: N/A | BR349: N/A | BS349: N/A | BT349: N/A | BU349: N/A | BV349: N/A | BW349: N/A | BX349: N/A | BY349: N/A | BZ349: N/A | CA349: N/A | CB349: N/A | CC349: N/A | CD349: N/A | CE349: N/A | CF349: N/A | CG349: N/A | CH349: N/A
BB350: No | BC350: N/A | BD350: N/A | BE350: N/A | BF350: N/A | BG350: N/A | BH350: N/A | BI350: N/A | BJ350: N/A | BK350: N/A | BL350: N/A | BM350: N/A | BN350: N/A | BO350: N/A | BP350: N/A | BQ350: N/A | BR350: N/A | BS350: N/A | BT350: N/A | BU350: N/A | BV350: N/A | BW350: N/A | BX350: N/A | BY350: N/A | BZ350: N/A | CA350: N/A | CB350: N/A | CC350: N/A | CD350: N/A | CE350: N/A | CF350: N/A | CG350: N/A | CH350: N/A
BA351: Use of Basic Sanitation | BB351: Yes | BC351: N/A | BD351: N/A | BE351: N/A | BF351: N/A | BG351: N/A | BH351: N/A | BI351: N/A | BJ351: N/A | BK351: N/A | BL351: N/A | BM351: N/A | BN351: N/A | BO351: N/A | BP351: N/A | BQ351: N/A | BR351: N/A | BS351: N/A | BT351: N/A | BU351: N/A | BV351: N/A | BW351: N/A | BX351: N/A | BY351: N/A | BZ351: N/A | CA351: N/A | CB351: N/A | CC351: N/A | CD351: N/A | CE351: N/A | CF351: N/A | CG351: N/A | CH351: N/A
BB352: No | BC352: N/A | BD352: N/A | BE352: N/A | BF352: N/A | BG352: N/A | BH352: N/A | BI352: N/A | BJ352: N/A | BK352: N/A | BL352: N/A | BM352: N/A | BN352: N/A | BO352: N/A | BP352: N/A | BQ352: N/A | BR352: N/A | BS352: N/A | BT352: N/A | BU352: N/A | BV352: N/A | BW352: N/A | BX352: N/A | BY352: N/A | BZ352: N/A | CA352: N/A | CB352: N/A | CC352: N/A | CD352: N/A | CE352: N/A | CF352: N/A | CG352: N/A | CH352: N/A
BA353: Access to Basic Hygiene | BB353: Yes | BC353: N/A | BD353: N/A | BE353: N/A | BF353: N/A | BG353: N/A | BH353: N/A | BI353: N/A | BJ353: N/A | BK353: N/A | BL353: N/A | BM353: N/A | BN353: N/A | BO353: N/A | BP353: N/A | BQ353: N/A | BR353: N/A | BS353: N/A | BT353: N/A | BU353: N/A | BV353: N/A | BW353: N/A | BX353: N/A | BY353: N/A | BZ353: N/A | CA353: N/A | CB353: N/A | CC353: N/A | CD353: N/A | CE353: N/A | CF353: N/A | CG353: N/A | CH353: N/A
BB354: No | BC354: N/A | BD354: N/A | BE354: N/A | BF354: N/A | BG354: N/A | BH354: N/A | BI354: N/A | BJ354: N/A | BK354: N/A | BL354: N/A | BM354: N/A | BN354: N/A | BO354: N/A | BP354: N/A | BQ354: N/A | BR354: N/A | BS354: N/A | BT354: N/A | BU354: N/A | BV354: N/A | BW354: N/A | BX354: N/A | BY354: N/A | BZ354: N/A | CA354: N/A | CB354: N/A | CC354: N/A | CD354: N/A | CE354: N/A | CF354: N/A | CG354: N/A | CH354: N/A
C399: INITIAL (national) Wealth Index | H399: URBAN Wealth Index | M399: RURAL Wealth Index
C400: Component Matrix | H400: Component Matrix | M400: Component Matrix
E401: Component | J401: Component | O401: Component
B402: Note: The INITIAL (national) Wealth Index is based on the first component of the Principal Component Analysis (PCA) which has been obtained at national level. The final national-level (NATIONAL) Wealth Index is based on the URBAN and RURAL specific wealth indexes. Regression procedures are used to establish the relationships between the two sets of scores (urban and rural) and the initial (national) wealth factors. This allows best use of the available information for each area and a better precision of the FINAL (NATIONAL) Wealth Index. For dependency reasons, all WASH variables (contained in the generic MICS and DHS scripts) have been excluded from the sets of asset variables used in the PCAs. The PCA can extracts as many components as there are asset variables in the input. Only the first of the components is used to represent the Wealth Index. The scores represent the weights of the asset variables on the Wealth Index (correlations between the variables and the component). The communalities are the proportion of each variable's variance that can be explained by the component. Proportion of explained variance is the part of the model's total variance that is explained by the component. For more information on the procedure used: The DHS Wealth Index, DHS Comparative Reports No. 6, Shea Oscar Rutstein, Kiersten Johnson, ORC Macro International Inc., 2004. The DHS Wealth Index: Approaches for Rural and Urban Areas, Shea O. Rutstein, ORC Macro International Inc., 2008. MICS Methodological Paper No. 4, Review of options for reporting water, sanitation and hygiene coverage by wealth quintile, UNICEF, 2016. | E402: 1 | J402: 1 | O402: 1
C403: Has cement floor | E403: -0.7469671552 | H403: Has earth/sand floor | J403: 0.7243329045 | M403: Has cement floor | O403: -0.6749571552
C404: Has earth/sand floor | E404: 0.7352356632 | H404: Has cement floor | J404: -0.7212496469 | M404: Has earth/sand floor | O404: 0.636593008
C405: Has corrugated iron roof | E405: -0.6996090855 | H405: Has corrugated iron roof | J405: -0.6428499508 | M405: Has corrugated iron roof | O405: -0.6208530784
C406: electricité | E406: 0.60258578 | H406: electricité | J406: 0.6323604445 | M406: Has jute roof | O406: 0.5435695318
C407: Has jute roof | E407: 0.5999811214 | H407: Has jute roof | J407: 0.6173151068 | M407: radio | O407: 0.4745921882
C408: téléviseur | E408: 0.5935461482 | H408: téléviseur | J408: 0.6172940295 | M408: réchaud à pétrole | O408: 0.4542814101
C409: réfrigérateur | E409: 0.536615126 | H409: réfrigérateur | J409: 0.5695742559 | M409: fer à repasser | O409: 0.4509797999
C410: réchaud à pétrole | E410: 0.5290164621 | H410: radio | J410: 0.4908377301 | M410: moto | O410: 0.4097112948
C411: radio | E411: 0.4938253881 | H411: voiture/véhicule | J411: 0.4799522217 | M411: téléviseur | O411: 0.3992521611
C412: fer à repasser | E412: 0.4821407022 | H412: Has cement wall | J412: -0.470398836 | M412: mobylette | O412: 0.3917709145
C413: voiture/véhicule | E413: 0.4652949679 | H413: réchaud à pétrole | J413: 0.4609323022 | M413: pousse | O413: 0.382297911
C414: Has cement wall | E414: -0.447725175 | H414: fer à repasser | J414: 0.4595864479 | M414: voiture/véhicule | O414: 0.3718294973
C415: pousse | E415: 0.4319762757 | H415: Has uncovered adobe wall | J415: 0.4168801404 | M415: réfrigérateur | O415: 0.3476028421
... 169 more rows

Sheet MICS06
A2: =A1026 -> Central African Republic
A3: =A1034 -> 2006
A4: Use of drinking water sources
A5: by wealth quintile and sub-national region
A6: Notes:
A7: WHO/UNICEF JMP customised wealth index excludes water,
A8: sanitation and hygiene assets.
A9: Survey used for analysis: | B9: =A1025 -> MICS06
A10: =B1028 -> 
A11: =B1027 -> 
A14: Use of drinking water sources | C14: NATIONAL wealth index quintile | H14: URBAN wealth index quintile | M14: RURAL wealth index quintile | R14: SUB-REGIONS: | BA14: Raw numbers of respondents: | BB14: Use of drinking water sources | BC14: NATIONAL wealth index quintile | BH14: URBAN wealth index quintile | BM14: RURAL wealth index quintile | BR14: SUB-REGIONS:
A15: Weighted percentage (used in graphs) | C15: Poorest | D15: Poor | E15: Middle | F15: Rich | G15: Richest | H15: Poorest | I15: Poor | J15: Middle | K15: Rich | L15: Richest | M15: Poorest | N15: Poor | O15: Middle | P15: Rich | Q15: Richest | R15: “Bamingui Bangoran” | S15: “Bangui” | T15: “Basse Kotto” | U15: “Haut Mbomou” | V15: “Haute-Kotto” | W15: “Kemo” | X15: “Lobaye” | Y15: “Mambere Kadei” | Z15: “Mbomou” | AA15: “Nana Gribizi” | AB15: “Nana Mambere” | AC15: “Ombella Mpoko” | AD15: “Ouaka” | AE15: “Ouham Pende” | AF15: “Ouham” | AG15: “Sangha Mbaere” | AH15: “Vakaga” | BA15: Water data, raw numbers (weighted) | BC15: Poorest | BD15: Poor | BE15: Middle | BF15: Rich | BG15: Richest | BH15: Poorest | BI15: Poor | BJ15: Middle | BK15: Rich | BL15: Richest | BM15: Poorest | BN15: Poor | BO15: Middle | BP15: Rich | BQ15: Richest | BR15: “Bamingui Bangoran” | BS15: “Bangui” | BT15: “Basse Kotto” | BU15: “Haut Mbomou” | BV15: “Haute-Kotto” | BW15: “Kemo” | BX15: “Lobaye” | BY15: “Mambere Kadei” | BZ15: “Mbomou” | CA15: “Nana Gribizi” | CB15: “Nana Mambere” | CC15: “Ombella Mpoko” | CD15: “Ouaka” | CE15: “Ouham Pende” | CF15: “Ouham” | CG15: “Sangha Mbaere” | CH15: “Vakaga”
A16: Water | B16: Improved | C16: 56.24101029 | D16: 44.71159471 | E16: 47.1783674 | F16: 62.49608623 | G16: 85.19455801 | H16: 78.46055803 | I16: 82.1136222 | J16: 84.32510142 | K16: 91.68118954 | L16: 96.99418614 | M16: 45.03463256 | N16: 44.64647411 | O16: 41.66099436 | P16: 48.19837076 | Q16: 51.47354311 | R16: 64.47509884 | S16: 96.96266996 | T16: 22.42357296 | U16: 74.22054368 | V16: 65.97314856 | W16: 75.74678908 | X16: 53.18887885 | Y16: 76.24602197 | Z16: 16.25932431 | AA16: 80.1014003 | AB16: 62.26028133 | AC16: 58.86219874 | AD16: 40.04303363 | AE16: 48.22686872 | AF16: 50.2244102 | AG16: 40.12930196 | AH16: N/A | BA16: Water | BB16: Improved | BC16: N/A | BD16: N/A | BE16: N/A | BF16: N/A | BG16: N/A | BH16: N/A | BI16: N/A | BJ16: N/A | BK16: N/A | BL16: N/A | BM16: N/A | BN16: N/A | BO16: N/A | BP16: N/A | BQ16: N/A | BR16: N/A | BS16: N/A | BT16: N/A | BU16: N/A | BV16: N/A | BW16: N/A | BX16: N/A | BY16: N/A | BZ16: N/A | CA16: N/A | CB16: N/A | CC16: N/A | CD16: N/A | CE16: N/A | CF16: N/A | CG16: N/A | CH16: N/A
B17: Not Improved | C17: 43.75898971 | D17: 55.28840529 | E17: 52.8216326 | F17: 37.50391377 | G17: 14.80544199 | H17: 21.53944197 | I17: 17.8863778 | J17: 15.67489858 | K17: 8.318810461 | L17: 3.005813858 | M17: 54.96536744 | N17: 55.35352589 | O17: 58.33900564 | P17: 51.80162924 | Q17: 48.52645689 | R17: 35.52490116 | S17: 3.03733004 | T17: 77.57642704 | U17: 25.77945632 | V17: 34.02685144 | W17: 24.25321092 | X17: 46.81112115 | Y17: 23.75397803 | Z17: 83.74067569 | AA17: 19.8985997 | AB17: 37.73971867 | AC17: 41.13780126 | AD17: 59.95696637 | AE17: 51.77313128 | AF17: 49.7755898 | AG17: 59.87069804 | AH17: N/A | BB17: Not Improved | BC17: N/A | BD17: N/A | BE17: N/A | BF17: N/A | BG17: N/A | BH17: N/A | BI17: N/A | BJ17: N/A | BK17: N/A | BL17: N/A | BM17: N/A | BN17: N/A | BO17: N/A | BP17: N/A | BQ17: N/A | BR17: N/A | BS17: N/A | BT17: N/A | BU17: N/A | BV17: N/A | BW17: N/A | BX17: N/A | BY17: N/A | BZ17: N/A | CA17: N/A | CB17: N/A | CC17: N/A | CD17: N/A | CE17: N/A | CF17: N/A | CG17: N/A | CH17: N/A
A18: Water ladder | B18: Basic | C18: 45.03935898 | D18: 32.69128569 | E18: 33.4634883 | F18: 51.95545622 | G18: 75.68635769 | H18: 67.98280871 | I18: 69.62434571 | J18: 73.80968312 | K18: 83.76396758 | L18: 88.31477321 | M18: 33.40455802 | N18: 33.17057157 | O18: 28.47301968 | P18: 35.18435244 | Q18: 40.53325944 | R18: 62.832627 | S18: 86.49358838 | T18: 18.82839418 | U18: 67.39196588 | V18: 48.39742822 | W18: 51.52964567 | X18: 42.46310479 | Y18: 46.63901431 | Z18: 11.45001588 | AA18: 67.27765417 | AB18: 36.10049235 | AC18: 46.97080346 | AD18: 31.69041884 | AE18: 43.03722145 | AF18: 44.22368466 | AG18: 35.45183603 | AH18: N/A | BA18: Water ladder | BB18: Basic | BC18: N/A | BD18: N/A | BE18: N/A | BF18: N/A | BG18: N/A | BH18: N/A | BI18: N/A | BJ18: N/A | BK18: N/A | BL18: N/A | BM18: N/A | BN18: N/A | BO18: N/A | BP18: N/A | BQ18: N/A | BR18: N/A | BS18: N/A | BT18: N/A | BU18: N/A | BV18: N/A | BW18: N/A | BX18: N/A | BY18: N/A | BZ18: N/A | CA18: N/A | CB18: N/A | CC18: N/A | CD18: N/A | CE18: N/A | CF18: N/A | CG18: N/A | CH18: N/A
B19: Limited | C19: 11.17239398 | D19: 11.99887877 | E19: 13.59058208 | F19: 10.5395978 | G19: 9.508200319 | H19: 10.47774933 | I19: 12.48927649 | J19: 10.51406796 | K19: 7.917221956 | L19: 8.67941293 | M19: 11.57596813 | N19: 11.4444325 | O19: 13.1722867 | P19: 12.84813762 | Q19: 10.94028367 | R19: 1.642471844 | S19: 10.46908158 | T19: 3.595178783 | U19: 6.8285778 | V19: 17.50753744 | W19: 24.2171434 | X19: 10.68996862 | Y19: 29.53057138 | Z19: 4.809308426 | AA19: 12.8036297 | AB19: 26.00549215 | AC19: 11.83197135 | AD19: 8.314403201 | AE19: 5.189647279 | AF19: 6.000725537 | AG19: 4.677465922 | AH19: N/A | BB19: Limited | BC19: N/A | BD19: N/A | BE19: N/A | BF19: N/A | BG19: N/A | BH19: N/A | BI19: N/A | BJ19: N/A | BK19: N/A | BL19: N/A | BM19: N/A | BN19: N/A | BO19: N/A | BP19: N/A | BQ19: N/A | BR19: N/A | BS19: N/A | BT19: N/A | BU19: N/A | BV19: N/A | BW19: N/A | BX19: N/A | BY19: N/A | BZ19: N/A | CA19: N/A | CB19: N/A | CC19: N/A | CD19: N/A | CE19: N/A | CF19: N/A | CG19: N/A | CH19: N/A
B20: Unimproved | C20: 36.67738262 | D20: 48.40172269 | E20: 46.12346407 | F20: 34.01258239 | G20: 13.97113486 | H20: 19.86633621 | I20: 16.56975478 | J20: 15.20619679 | K20: 8.000171014 | L20: 2.943700802 | M20: 45.4125787 | N20: 46.96285593 | O20: 52.75150114 | P20: 44.32139866 | Q20: 44.5921447 | R20: 32.37816141 | S20: 3.03733004 | T20: 68.37710838 | U20: 22.89197312 | V20: 32.59651682 | W20: 7.414672778 | X20: 42.28414299 | Y20: 20.0725795 | Z20: 72.84492443 | AA20: 17.11364122 | AB20: 31.51554984 | AC20: 40.49222932 | AD20: 59.41409686 | AE20: 33.73772261 | AF20: 49.67568788 | AG20: 55.70383265 | AH20: N/A | BB20: Unimproved | BC20: N/A | BD20: N/A | BE20: N/A | BF20: N/A | BG20: N/A | BH20: N/A | BI20: N/A | BJ20: N/A | BK20: N/A | BL20: N/A | BM20: N/A | BN20: N/A | BO20: N/A | BP20: N/A | BQ20: N/A | BR20: N/A | BS20: N/A | BT20: N/A | BU20: N/A | BV20: N/A | BW20: N/A | BX20: N/A | BY20: N/A | BZ20: N/A | CA20: N/A | CB20: N/A | CC20: N/A | CD20: N/A | CE20: N/A | CF20: N/A | CG20: N/A | CH20: N/A
B21: Surface water | C21: 7.110864421 | D21: 6.908112843 | E21: 6.822465547 | F21: 3.492363585 | G21: 0.8343071361 | H21: 1.673105752 | I21: 1.316623025 | J21: 0.470052122 | K21: 0.3186394478 | L21: 0.06211305677 | M21: 9.606895144 | N21: 8.422140005 | O21: 5.603192479 | P21: 7.646111277 | Q21: 3.934312191 | R21: 3.14673975 | S21: 0 | T21: 9.199318657 | U21: 2.887483194 | V21: 1.498517522 | W21: 16.83853815 | X21: 4.562783596 | Y21: 3.757834815 | Z21: 10.89575126 | AA21: 2.805074909 | AB21: 6.378465654 | AC21: 0.7049958725 | AD21: 0.5810810962 | AE21: 18.03540867 | AF21: 0.0999019148 | AG21: 4.166865393 | AH21: N/A | BB21: Surface water | BC21: N/A | BD21: N/A | BE21: N/A | BF21: N/A | BG21: N/A | BH21: N/A | BI21: N/A | BJ21: N/A | BK21: N/A | BL21: N/A | BM21: N/A | BN21: N/A | BO21: N/A | BP21: N/A | BQ21: N/A | BR21: N/A | BS21: N/A | BT21: N/A | BU21: N/A | BV21: N/A | BW21: N/A | BX21: N/A | BY21: N/A | BZ21: N/A | CA21: N/A | CB21: N/A | CC21: N/A | CD21: N/A | CE21: N/A | CF21: N/A | CG21: N/A | CH21: N/A
A22: Improved water point at more than 30 minutes | B22: Yes | C22: 19.87554808 | D22: 26.84903696 | E22: 28.88290422 | F22: 16.86469108 | G22: 11.16057239 | H22: 13.35416111 | I22: 15.2097498 | J22: 12.468691 | K22: 8.635601257 | L22: 8.948384717 | M22: 25.73551073 | N22: 25.65153301 | O22: 31.62970295 | P22: 26.74884771 | Q22: 21.25418809 | R22: 2.547451456 | S22: 10.7970228 | T22: 16.03303269 | U22: 9.200387738 | V22: 26.56482294 | W22: 31.97118148 | X22: 20.11166605 | Y22: 38.76950506 | Z22: 29.57877176 | AA22: 15.98829224 | AB22: 41.87276373 | AC22: 20.12145071 | AD22: 20.78350253 | AE22: 10.76090448 | AF22: 11.94782679 | AG22: 11.65598626 | AH22: N/A | BA22: Improved water point at more than 30 minutes | BB22: Yes | BC22: N/A | BD22: N/A | BE22: N/A | BF22: N/A | BG22: N/A | BH22: N/A | BI22: N/A | BJ22: N/A | BK22: N/A | BL22: N/A | BM22: N/A | BN22: N/A | BO22: N/A | BP22: N/A | BQ22: N/A | BR22: N/A | BS22: N/A | BT22: N/A | BU22: N/A | BV22: N/A | BW22: N/A | BX22: N/A | BY22: N/A | BZ22: N/A | CA22: N/A | CB22: N/A | CC22: N/A | CD22: N/A | CE22: N/A | CF22: N/A | CG22: N/A | CH22: N/A
B23: No | C23: 80.12445192 | D23: 73.15096304 | E23: 71.11709578 | F23: 83.13530892 | G23: 88.83942761 | H23: 86.64583889 | I23: 84.7902502 | J23: 87.531309 | K23: 91.36439874 | L23: 91.05161528 | M23: 74.26448927 | N23: 74.34846699 | O23: 68.37029705 | P23: 73.25115229 | Q23: 78.74581191 | R23: 97.45254854 | S23: 89.2029772 | T23: 83.96696731 | U23: 90.79961226 | V23: 73.43517706 | W23: 68.02881852 | X23: 79.88833395 | Y23: 61.23049494 | Z23: 70.42122824 | AA23: 84.01170776 | AB23: 58.12723627 | AC23: 79.87854929 | AD23: 79.21649747 | AE23: 89.23909552 | AF23: 88.05217321 | AG23: 88.34401374 | AH23: N/A | BB23: No | BC23: N/A | BD23: N/A | BE23: N/A | BF23: N/A | BG23: N/A | BH23: N/A | BI23: N/A | BJ23: N/A | BK23: N/A | BL23: N/A | BM23: N/A | BN23: N/A | BO23: N/A | BP23: N/A | BQ23: N/A | BR23: N/A | BS23: N/A | BT23: N/A | BU23: N/A | BV23: N/A | BW23: N/A | BX23: N/A | BY23: N/A | BZ23: N/A | CA23: N/A | CB23: N/A | CC23: N/A | CD23: N/A | CE23: N/A | CF23: N/A | CG23: N/A | CH23: N/A
A24: Manually calculated ratios | B24: Improved wells
B25: Improved springs
B26: Other
C27: NATIONAL wealth index quintile | H27: URBAN wealth index quintile | M27: RURAL wealth index quintile | R27: SUB-REGIONS: | BA27: Raw numbers of respondents: | BB27: Use of drinking water sources | BC27: NATIONAL wealth index quintile | BH27: URBAN wealth index quintile | BM27: RURAL wealth index quintile | BR27: SUB-REGIONS:
A28: Percentage based on weighted population | C28: Poorest | D28: Poor | E28: Middle | F28: Rich | G28: Richest | H28: Poorest | I28: Poor | J28: Middle | K28: Rich | L28: Richest | M28: Poorest | N28: Poor | O28: Middle | P28: Rich | Q28: Richest | R28: “Bamingui Bangoran” | S28: “Bangui” | T28: “Basse Kotto” | U28: “Haut Mbomou” | V28: “Haute-Kotto” | W28: “Kemo” | X28: “Lobaye” | Y28: “Mambere Kadei” | Z28: “Mbomou” | AA28: “Nana Gribizi” | AB28: “Nana Mambere” | AC28: “Ombella Mpoko” | AD28: “Ouaka” | AE28: “Ouham Pende” | AF28: “Ouham” | AG28: “Sangha Mbaere” | AH28: “Vakaga” | BA28: Water data, raw numbers (weighted) | BC28: Poorest | BD28: Poor | BE28: Middle | BF28: Rich | BG28: Richest | BH28: Poorest | BI28: Poor | BJ28: Middle | BK28: Rich | BL28: Richest | BM28: Poorest | BN28: Poor | BO28: Middle | BP28: Rich | BQ28: Richest | BR28: “Bamingui Bangoran” | BS28: “Bangui” | BT28: “Basse Kotto” | BU28: “Haut Mbomou” | BV28: “Haute-Kotto” | BW28: “Kemo” | BX28: “Lobaye” | BY28: “Mambere Kadei” | BZ28: “Mbomou” | CA28: “Nana Gribizi” | CB28: “Nana Mambere” | CC28: “Ombella Mpoko” | CD28: “Ouaka” | CE28: “Ouham Pende” | CF28: “Ouham” | CG28: “Sangha Mbaere” | CH28: “Vakaga”
A29: Piped water | B29: Yes | C29: 16.05711787 | D29: 5.51629626 | E29: 6.396337253 | F29: 22.29739366 | G29: 50.9646504 | H29: 38.02983215 | I29: 47.89550699 | J29: 51.01002391 | K29: 46.84273536 | L29: 81.94793985 | M29: 4.841091589 | N29: 5.321331696 | O29: 3.608515207 | P29: 5.1084521 | Q29: 5.013710968 | R29: 0 | S29: 84.37927877 | T29: 4.773402923 | U29: 2.260584794 | V29: 27.14516455 | W29: 9.408700691 | X29: 2.698733941 | Y29: 1.660632162 | Z29: 0 | AA29: 24.80597825 | AB29: 1.352585839 | AC29: 11.479729 | AD29: 7.462826019 | AE29: 0.6467128382 | AF29: 7.715235231 | AG29: 23.46740486 | AH29: N/A | BA29: Piped water | BB29: Yes | BC29: N/A | BD29: N/A | BE29: N/A | BF29: N/A | BG29: N/A | BH29: N/A | BI29: N/A | BJ29: N/A | BK29: N/A | BL29: N/A | BM29: N/A | BN29: N/A | BO29: N/A | BP29: N/A | BQ29: N/A | BR29: N/A | BS29: N/A | BT29: N/A | BU29: N/A | BV29: N/A | BW29: N/A | BX29: N/A | BY29: N/A | BZ29: N/A | CA29: N/A | CB29: N/A | CC29: N/A | CD29: N/A | CE29: N/A | CF29: N/A | CG29: N/A | CH29: N/A
B30: No | C30: 83.94288213 | D30: 94.48370374 | E30: 93.60366275 | F30: 77.70260634 | G30: 49.0353496 | H30: 61.97016785 | I30: 52.10449301 | J30: 48.98997609 | K30: 53.15726464 | L30: 18.05206015 | M30: 95.15890841 | N30: 94.6786683 | O30: 96.39148479 | P30: 94.8915479 | Q30: 94.98628903 | R30: 100 | S30: 15.62072123 | T30: 95.22659708 | U30: 97.73941521 | V30: 72.85483545 | W30: 90.59129931 | X30: 97.30126606 | Y30: 98.33936784 | Z30: 100 | AA30: 75.19402175 | AB30: 98.64741416 | AC30: 88.520271 | AD30: 92.53717398 | AE30: 99.35328716 | AF30: 92.28476477 | AG30: 76.53259514 | AH30: N/A | BB30: No | BC30: N/A | BD30: N/A | BE30: N/A | BF30: N/A | BG30: N/A | BH30: N/A | BI30: N/A | BJ30: N/A | BK30: N/A | BL30: N/A | BM30: N/A | BN30: N/A | BO30: N/A | BP30: N/A | BQ30: N/A | BR30: N/A | BS30: N/A | BT30: N/A | BU30: N/A | BV30: N/A | BW30: N/A | BX30: N/A | BY30: N/A | BZ30: N/A | CA30: N/A | CB30: N/A | CC30: N/A | CD30: N/A | CE30: N/A | CF30: N/A | CG30: N/A | CH30: N/A
A31: Piped water on premises | B31: Yes | C31: 0.2319458629 | D31: 0 | E31: 0 | F31: 0.2161100287 | G31: 5.927772094 | H31: 0.2400506907 | I31: 0.3017562418 | J31: 1.129970688 | K31: 2.877892669 | L31: 14.75274878 | M31: 0.2284995289 | N31: 0 | O31: 0 | P31: 0 | Q31: 0.08557922333 | R31: 0 | S31: 6.603371406 | T31: 0 | U31: 0 | V31: 1.03986914 | W31: 0.3612800236 | X31: 0 | Y31: 0 | Z31: 0 | AA31: 0.3909924488 | AB31: 0 | AC31: 1.508769628 | AD31: 0.3374849802 | AE31: 0 | AF31: 1.409075314 | AG31: 0.7053673069 | AH31: N/A | BA31: Piped water on premises | BB31: Yes | BC31: N/A | BD31: N/A | BE31: N/A | BF31: N/A | BG31: N/A | BH31: N/A | BI31: N/A | BJ31: N/A | BK31: N/A | BL31: N/A | BM31: N/A | BN31: N/A | BO31: N/A | BP31: N/A | BQ31: N/A | BR31: N/A | BS31: N/A | BT31: N/A | BU31: N/A | BV31: N/A | BW31: N/A | BX31: N/A | BY31: N/A | BZ31: N/A | CA31: N/A | CB31: N/A | CC31: N/A | CD31: N/A | CE31: N/A | CF31: N/A | CG31: N/A | CH31: N/A
B32: No | C32: 99.76805414 | D32: 100 | E32: 100 | F32: 99.78388997 | G32: 94.07222791 | H32: 99.75994931 | I32: 99.69824376 | J32: 98.87002931 | K32: 97.12210733 | L32: 85.24725122 | M32: 99.77150047 | N32: 100 | O32: 100 | P32: 100 | Q32: 99.91442078 | R32: 100 | S32: 93.39662859 | T32: 100 | U32: 100 | V32: 98.96013086 | W32: 99.63871998 | X32: 100 | Y32: 100 | Z32: 100 | AA32: 99.60900755 | AB32: 100 | AC32: 98.49123037 | AD32: 99.66251502 | AE32: 100 | AF32: 98.59092469 | AG32: 99.29463269 | AH32: N/A | BB32: No | BC32: N/A | BD32: N/A | BE32: N/A | BF32: N/A | BG32: N/A | BH32: N/A | BI32: N/A | BJ32: N/A | BK32: N/A | BL32: N/A | BM32: N/A | BN32: N/A | BO32: N/A | BP32: N/A | BQ32: N/A | BR32: N/A | BS32: N/A | BT32: N/A | BU32: N/A | BV32: N/A | BW32: N/A | BX32: N/A | BY32: N/A | BZ32: N/A | CA32: N/A | CB32: N/A | CC32: N/A | CD32: N/A | CE32: N/A | CF32: N/A | CG32: N/A | CH32: N/A
A33: Piped water into dwelling | B33: Yes | C33: N/A | D33: N/A | E33: N/A | F33: N/A | G33: N/A | H33: N/A | I33: N/A | J33: N/A | K33: N/A | L33: N/A | M33: N/A | N33: N/A | O33: N/A | P33: N/A | Q33: N/A | R33: N/A | S33: N/A | T33: N/A | U33: N/A | V33: N/A | W33: N/A | X33: N/A | Y33: N/A | Z33: N/A | AA33: N/A | AB33: N/A | AC33: N/A | AD33: N/A | AE33: N/A | AF33: N/A | AG33: N/A | AH33: N/A | BA33: Piped water into dwelling | BB33: Yes | BC33: N/A | BD33: N/A | BE33: N/A | BF33: N/A | BG33: N/A | BH33: N/A | BI33: N/A | BJ33: N/A | BK33: N/A | BL33: N/A | BM33: N/A | BN33: N/A | BO33: N/A | BP33: N/A | BQ33: N/A | BR33: N/A | BS33: N/A | BT33: N/A | BU33: N/A | BV33: N/A | BW33: N/A | BX33: N/A | BY33: N/A | BZ33: N/A | CA33: N/A | CB33: N/A | CC33: N/A | CD33: N/A | CE33: N/A | CF33: N/A | CG33: N/A | CH33: N/A
B34: No | C34: N/A | D34: N/A | E34: N/A | F34: N/A | G34: N/A | H34: N/A | I34: N/A | J34: N/A | K34: N/A | L34: N/A | M34: N/A | N34: N/A | O34: N/A | P34: N/A | Q34: N/A | R34: N/A | S34: N/A | T34: N/A | U34: N/A | V34: N/A | W34: N/A | X34: N/A | Y34: N/A | Z34: N/A | AA34: N/A | AB34: N/A | AC34: N/A | AD34: N/A | AE34: N/A | AF34: N/A | AG34: N/A | AH34: N/A | BB34: No | BC34: N/A | BD34: N/A | BE34: N/A | BF34: N/A | BG34: N/A | BH34: N/A | BI34: N/A | BJ34: N/A | BK34: N/A | BL34: N/A | BM34: N/A | BN34: N/A | BO34: N/A | BP34: N/A | BQ34: N/A | BR34: N/A | BS34: N/A | BT34: N/A | BU34: N/A | BV34: N/A | BW34: N/A | BX34: N/A | BY34: N/A | BZ34: N/A | CA34: N/A | CB34: N/A | CC34: N/A | CD34: N/A | CE34: N/A | CF34: N/A | CG34: N/A | CH34: N/A
A35: Water source on premises | B35: Yes | C35: 3.486897419 | D35: 1.686051293 | E35: 2.609378377 | F35: 4.697870026 | G35: 13.9014612 | H35: 6.987725402 | I35: 5.700499502 | J35: 9.322714584 | K35: 10.05478252 | L35: 25.67214097 | M35: 1.818549404 | N35: 1.317303067 | O35: 2.749587951 | P35: 2.518135 | Q35: 3.255526685 | R35: 20.38812881 | S35: 12.65811141 | T35: 8.366575182 | U35: 1.383949971 | V35: 3.382757364 | W35: 0.928741055 | X35: 4.099217111 | Y35: 0.7537842654 | Z35: 1.083883726 | AA35: 6.209338384 | AB35: 2.431486722 | AC35: 6.392162061 | AD35: 6.044967882 | AE35: 3.364252141 | AF35: 4.906526225 | AG35: 1.461062541 | AH35: N/A | BA35: Water source on premises | BB35: Yes | BC35: N/A | BD35: N/A | BE35: N/A | BF35: N/A | BG35: N/A | BH35: N/A | BI35: N/A | BJ35: N/A | BK35: N/A | BL35: N/A | BM35: N/A | BN35: N/A | BO35: N/A | BP35: N/A | BQ35: N/A | BR35: N/A | BS35: N/A | BT35: N/A | BU35: N/A | BV35: N/A | BW35: N/A | BX35: N/A | BY35: N/A | BZ35: N/A | CA35: N/A | CB35: N/A | CC35: N/A | CD35: N/A | CE35: N/A | CF35: N/A | CG35: N/A | CH35: N/A
B36: No | C36: 96.51310258 | D36: 98.31394871 | E36: 97.39062162 | F36: 95.30212997 | G36: 86.0985388 | H36: 93.0122746 | I36: 94.2995005 | J36: 90.67728542 | K36: 89.94521748 | L36: 74.32785903 | M36: 98.1814506 | N36: 98.68269693 | O36: 97.25041205 | P36: 97.481865 | Q36: 96.74447331 | R36: 79.61187119 | S36: 87.34188859 | T36: 91.63342482 | U36: 98.61605003 | V36: 96.61724264 | W36: 99.07125894 | X36: 95.90078289 | Y36: 99.24621573 | Z36: 98.91611627 | AA36: 93.79066162 | AB36: 97.56851328 | AC36: 93.60783794 | AD36: 93.95503212 | AE36: 96.63574786 | AF36: 95.09347378 | AG36: 98.53893746 | AH36: N/A | BB36: No | BC36: N/A | BD36: N/A | BE36: N/A | BF36: N/A | BG36: N/A | BH36: N/A | BI36: N/A | BJ36: N/A | BK36: N/A | BL36: N/A | BM36: N/A | BN36: N/A | BO36: N/A | BP36: N/A | BQ36: N/A | BR36: N/A | BS36: N/A | BT36: N/A | BU36: N/A | BV36: N/A | BW36: N/A | BX36: N/A | BY36: N/A | BZ36: N/A | CA36: N/A | CB36: N/A | CC36: N/A | CD36: N/A | CE36: N/A | CF36: N/A | CG36: N/A | CH36: N/A
A37: Improved Water source on premises | B37: Yes | C37: 2.687896697 | D37: 1.977875135 | E37: 3.186608379 | F37: 5.532104467 | G37: 14.78868101 | H37: 3.667128896 | I37: 4.949349291 | J37: 8.650858946 | K37: 9.87111146 | L37: 25.8880564 | M37: 1.871746074 | N37: 2.192833987 | O37: 2.594318963 | P37: 3.52805254 | Q37: 3.885407744 | R37: 22.31459546 | S37: 12.1002367 | T37: 9.860264741 | U37: 1.29286324 | V37: 4.305688132 | W37: 0.818647554 | X37: 2.55437014 | Y37: 0.8688879545 | Z37: 0.8600082951 | AA37: 5.891357336 | AB37: 3.407615921 | AC37: 8.460216095 | AD37: 9.271128941 | AE37: 3.523704258 | AF37: 8.76930401 | AG37: 3.640887006 | AH37: N/A | BA37: Improved water source on premises | BB37: Yes | BC37: N/A | BD37: N/A | BE37: N/A | BF37: N/A | BG37: N/A | BH37: N/A | BI37: N/A | BJ37: N/A | BK37: N/A | BL37: N/A | BM37: N/A | BN37: N/A | BO37: N/A | BP37: N/A | BQ37: N/A | BR37: N/A | BS37: N/A | BT37: N/A | BU37: N/A | BV37: N/A | BW37: N/A | BX37: N/A | BY37: N/A | BZ37: N/A | CA37: N/A | CB37: N/A | CC37: N/A | CD37: N/A | CE37: N/A | CF37: N/A | CG37: N/A | CH37: N/A
B38: No | C38: 97.3121033 | D38: 98.02212486 | E38: 96.81339162 | F38: 94.46789553 | G38: 85.21131899 | H38: 96.3328711 | I38: 95.05065071 | J38: 91.34914105 | K38: 90.12888854 | L38: 74.1119436 | M38: 98.12825393 | N38: 97.80716601 | O38: 97.40568104 | P38: 96.47194746 | Q38: 96.11459226 | R38: 77.68540454 | S38: 87.8997633 | T38: 90.13973526 | U38: 98.70713676 | V38: 95.69431187 | W38: 99.18135245 | X38: 97.44562986 | Y38: 99.13111205 | Z38: 99.1399917 | AA38: 94.10864266 | AB38: 96.59238408 | AC38: 91.5397839 | AD38: 90.72887106 | AE38: 96.47629574 | AF38: 91.23069599 | AG38: 96.35911299 | AH38: N/A | BB38: No | BC38: N/A | BD38: N/A | BE38: N/A | BF38: N/A | BG38: N/A | BH38: N/A | BI38: N/A | BJ38: N/A | BK38: N/A | BL38: N/A | BM38: N/A | BN38: N/A | BO38: N/A | BP38: N/A | BQ38: N/A | BR38: N/A | BS38: N/A | BT38: N/A | BU38: N/A | BV38: N/A | BW38: N/A | BX38: N/A | BY38: N/A | BZ38: N/A | CA38: N/A | CB38: N/A | CC38: N/A | CD38: N/A | CE38: N/A | CF38: N/A | CG38: N/A | CH38: N/A
A39: Piped water on premises available when needed | B39: Yes | C39: N/A | D39: N/A | E39: N/A | F39: N/A | G39: N/A | H39: N/A | I39: N/A | J39: N/A | K39: N/A | L39: N/A | M39: N/A | N39: N/A | O39: N/A | P39: N/A | Q39: N/A | R39: N/A | S39: N/A | T39: N/A | U39: N/A | V39: N/A | W39: N/A | X39: N/A | Y39: N/A | Z39: N/A | AA39: N/A | AB39: N/A | AC39: N/A | AD39: N/A | AE39: N/A | AF39: N/A | AG39: N/A | AH39: N/A | BA39: Piped water on premises available when needed | BB39: Yes | BC39: N/A | BD39: N/A | BE39: N/A | BF39: N/A | BG39: N/A | BH39: N/A | BI39: N/A | BJ39: N/A | BK39: N/A | BL39: N/A | BM39: N/A | BN39: N/A | BO39: N/A | BP39: N/A | BQ39: N/A | BR39: N/A | BS39: N/A | BT39: N/A | BU39: N/A | BV39: N/A | BW39: N/A | BX39: N/A | BY39: N/A | BZ39: N/A | CA39: N/A | CB39: N/A | CC39: N/A | CD39: N/A | CE39: N/A | CF39: N/A | CG39: N/A | CH39: N/A
B40: No | C40: N/A | D40: N/A | E40: N/A | F40: N/A | G40: N/A | H40: N/A | I40: N/A | J40: N/A | K40: N/A | L40: N/A | M40: N/A | N40: N/A | O40: N/A | P40: N/A | Q40: N/A | R40: N/A | S40: N/A | T40: N/A | U40: N/A | V40: N/A | W40: N/A | X40: N/A | Y40: N/A | Z40: N/A | AA40: N/A | AB40: N/A | AC40: N/A | AD40: N/A | AE40: N/A | AF40: N/A | AG40: N/A | AH40: N/A | BB40: No | BC40: N/A | BD40: N/A | BE40: N/A | BF40: N/A | BG40: N/A | BH40: N/A | BI40: N/A | BJ40: N/A | BK40: N/A | BL40: N/A | BM40: N/A | BN40: N/A | BO40: N/A | BP40: N/A | BQ40: N/A | BR40: N/A | BS40: N/A | BT40: N/A | BU40: N/A | BV40: N/A | BW40: N/A | BX40: N/A | BY40: N/A | BZ40: N/A | CA40: N/A | CB40: N/A | CC40: N/A | CD40: N/A | CE40: N/A | CF40: N/A | CG40: N/A | CH40: N/A
A41: Water point at more than 30 minutes | B41: Yes | C41: 22.98296877 | D41: 26.70122946 | E41: 31.93650148 | F41: 21.49754276 | G41: 11.68027802 | H41: 15.72332627 | I41: 15.24162955 | J41: 12.81328348 | K41: 8.878005479 | L41: 8.979813423 | M41: 26.95840773 | N41: 25.61986271 | O41: 30.22042592 | P41: 33.04800638 | Q41: 23.99142433 | R41: 5.548399581 | S41: 10.57247974 | T41: 16.82054441 | U41: 14.26509054 | V41: 30.29883228 | W41: 39.49036041 | X41: 24.38898521 | Y41: 42.13549705 | Z41: 26.07849004 | AA41: 19.43867109 | AB41: 44.03931603 | AC41: 22.53949796 | AD41: 21.74922575 | AE41: 17.27225148 | AF41: 14.61664757 | AG41: 22.55532426 | AH41: N/A | BA41: Water point at more than 30 minutes | BB41: Yes | BC41: N/A | BD41: N/A | BE41: N/A | BF41: N/A | BG41: N/A | BH41: N/A | BI41: N/A | BJ41: N/A | BK41: N/A | BL41: N/A | BM41: N/A | BN41: N/A | BO41: N/A | BP41: N/A | BQ41: N/A | BR41: N/A | BS41: N/A | BT41: N/A | BU41: N/A | BV41: N/A | BW41: N/A | BX41: N/A | BY41: N/A | BZ41: N/A | CA41: N/A | CB41: N/A | CC41: N/A | CD41: N/A | CE41: N/A | CF41: N/A | CG41: N/A | CH41: N/A
B42: No | C42: 77.01703123 | D42: 73.29877054 | E42: 68.06349852 | F42: 78.50245724 | G42: 88.31972198 | H42: 84.27667373 | I42: 84.75837045 | J42: 87.18671652 | K42: 91.12199452 | L42: 91.02018658 | M42: 73.04159227 | N42: 74.38013729 | O42: 69.77957408 | P42: 66.95199362 | Q42: 76.00857567 | R42: 94.45160042 | S42: 89.42752026 | T42: 83.17945559 | U42: 85.73490946 | V42: 69.70116772 | W42: 60.50963959 | X42: 75.61101479 | Y42: 57.86450295 | Z42: 73.92150996 | AA42: 80.56132891 | AB42: 55.96068397 | AC42: 77.46050204 | AD42: 78.25077425 | AE42: 82.72774852 | AF42: 85.38335243 | AG42: 77.44467574 | AH42: N/A | BB42: No | BC42: N/A | BD42: N/A | BE42: N/A | BF42: N/A | BG42: N/A | BH42: N/A | BI42: N/A | BJ42: N/A | BK42: N/A | BL42: N/A | BM42: N/A | BN42: N/A | BO42: N/A | BP42: N/A | BQ42: N/A | BR42: N/A | BS42: N/A | BT42: N/A | BU42: N/A | BV42: N/A | BW42: N/A | BX42: N/A | BY42: N/A | BZ42: N/A | CA42: N/A | CB42: N/A | CC42: N/A | CD42: N/A | CE42: N/A | CF42: N/A | CG42: N/A | CH42: N/A
A43: Water source available when needed | B43: Yes | C43: N/A | D43: N/A | E43: N/A | F43: N/A | G43: N/A | H43: N/A | I43: N/A | J43: N/A | K43: N/A | L43: N/A | M43: N/A | N43: N/A | O43: N/A | P43: N/A | Q43: N/A | R43: N/A | S43: N/A | T43: N/A | U43: N/A | V43: N/A | W43: N/A | X43: N/A | Y43: N/A | Z43: N/A | AA43: N/A | AB43: N/A | AC43: N/A | AD43: N/A | AE43: N/A | AF43: N/A | AG43: N/A | AH43: N/A | BA43: Water source available when needed | BB43: Yes | BC43: N/A | BD43: N/A | BE43: N/A | BF43: N/A | BG43: N/A | BH43: N/A | BI43: N/A | BJ43: N/A | BK43: N/A | BL43: N/A | BM43: N/A | BN43: N/A | BO43: N/A | BP43: N/A | BQ43: N/A | BR43: N/A | BS43: N/A | BT43: N/A | BU43: N/A | BV43: N/A | BW43: N/A | BX43: N/A | BY43: N/A | BZ43: N/A | CA43: N/A | CB43: N/A | CC43: N/A | CD43: N/A | CE43: N/A | CF43: N/A | CG43: N/A | CH43: N/A
B44: No | C44: N/A | D44: N/A | E44: N/A | F44: N/A | G44: N/A | H44: N/A | I44: N/A | J44: N/A | K44: N/A | L44: N/A | M44: N/A | N44: N/A | O44: N/A | P44: N/A | Q44: N/A | R44: N/A | S44: N/A | T44: N/A | U44: N/A | V44: N/A | W44: N/A | X44: N/A | Y44: N/A | Z44: N/A | AA44: N/A | AB44: N/A | AC44: N/A | AD44: N/A | AE44: N/A | AF44: N/A | AG44: N/A | AH44: N/A | BB44: No | BC44: N/A | BD44: N/A | BE44: N/A | BF44: N/A | BG44: N/A | BH44: N/A | BI44: N/A | BJ44: N/A | BK44: N/A | BL44: N/A | BM44: N/A | BN44: N/A | BO44: N/A | BP44: N/A | BQ44: N/A | BR44: N/A | BS44: N/A | BT44: N/A | BU44: N/A | BV44: N/A | BW44: N/A | BX44: N/A | BY44: N/A | BZ44: N/A | CA44: N/A | CB44: N/A | CC44: N/A | CD44: N/A | CE44: N/A | CF44: N/A | CG44: N/A | CH44: N/A
A45: Improved water source available when needed | B45: Yes | C45: N/A | D45: N/A | E45: N/A | F45: N/A | G45: N/A | H45: N/A | I45: N/A | J45: N/A | K45: N/A | L45: N/A | M45: N/A | N45: N/A | O45: N/A | P45: N/A | Q45: N/A | R45: N/A | S45: N/A | T45: N/A | U45: N/A | V45: N/A | W45: N/A | X45: N/A | Y45: N/A | Z45: N/A | AA45: N/A | AB45: N/A | AC45: N/A | AD45: N/A | AE45: N/A | AF45: N/A | AG45: N/A | AH45: N/A | BA45: Improved water source available when needed | BB45: Yes | BC45: N/A | BD45: N/A | BE45: N/A | BF45: N/A | BG45: N/A | BH45: N/A | BI45: N/A | BJ45: N/A | BK45: N/A | BL45: N/A | BM45: N/A | BN45: N/A | BO45: N/A | BP45: N/A | BQ45: N/A | BR45: N/A | BS45: N/A | BT45: N/A | BU45: N/A | BV45: N/A | BW45: N/A | BX45: N/A | BY45: N/A | BZ45: N/A | CA45: N/A | CB45: N/A | CC45: N/A | CD45: N/A | CE45: N/A | CF45: N/A | CG45: N/A | CH45: N/A
B46: No | C46: N/A | D46: N/A | E46: N/A | F46: N/A | G46: N/A | H46: N/A | I46: N/A | J46: N/A | K46: N/A | L46: N/A | M46: N/A | N46: N/A | O46: N/A | P46: N/A | Q46: N/A | R46: N/A | S46: N/A | T46: N/A | U46: N/A | V46: N/A | W46: N/A | X46: N/A | Y46: N/A | Z46: N/A | AA46: N/A | AB46: N/A | AC46: N/A | AD46: N/A | AE46: N/A | AF46: N/A | AG46: N/A | AH46: N/A | BB46: No | BC46: N/A | BD46: N/A | BE46: N/A | BF46: N/A | BG46: N/A | BH46: N/A | BI46: N/A | BJ46: N/A | BK46: N/A | BL46: N/A | BM46: N/A | BN46: N/A | BO46: N/A | BP46: N/A | BQ46: N/A | BR46: N/A | BS46: N/A | BT46: N/A | BU46: N/A | BV46: N/A | BW46: N/A | BX46: N/A | BY46: N/A | BZ46: N/A | CA46: N/A | CB46: N/A | CC46: N/A | CD46: N/A | CE46: N/A | CF46: N/A | CG46: N/A | CH46: N/A
A47: Microbiological quality at point of collection | B47: Not contaminated (No E. coli in 100 mL) | C47: N/A | D47: N/A | E47: N/A | F47: N/A | G47: N/A | H47: N/A | I47: N/A | J47: N/A | K47: N/A | L47: N/A | M47: N/A | N47: N/A | O47: N/A | P47: N/A | Q47: N/A | R47: N/A | S47: N/A | T47: N/A | U47: N/A | V47: N/A | W47: N/A | X47: N/A | Y47: N/A | Z47: N/A | AA47: N/A | AB47: N/A | AC47: N/A | AD47: N/A | AE47: N/A | AF47: N/A | AG47: N/A | AH47: N/A | BA47: Microbiological quality at point of collection | BB47: Not contaminated (No E. coli in 100 mL) | BC47: N/A | BD47: N/A | BE47: N/A | BF47: N/A | BG47: N/A | BH47: N/A | BI47: N/A | BJ47: N/A | BK47: N/A | BL47: N/A | BM47: N/A | BN47: N/A | BO47: N/A | BP47: N/A | BQ47: N/A | BR47: N/A | BS47: N/A | BT47: N/A | BU47: N/A | BV47: N/A | BW47: N/A | BX47: N/A | BY47: N/A | BZ47: N/A | CA47: N/A | CB47: N/A | CC47: N/A | CD47: N/A | CE47: N/A | CF47: N/A | CG47: N/A | CH47: N/A
B48: Contaminated (E. coli detected in 100 mL) | C48: N/A | D48: N/A | E48: N/A | F48: N/A | G48: N/A | H48: N/A | I48: N/A | J48: N/A | K48: N/A | L48: N/A | M48: N/A | N48: N/A | O48: N/A | P48: N/A | Q48: N/A | R48: N/A | S48: N/A | T48: N/A | U48: N/A | V48: N/A | W48: N/A | X48: N/A | Y48: N/A | Z48: N/A | AA48: N/A | AB48: N/A | AC48: N/A | AD48: N/A | AE48: N/A | AF48: N/A | AG48: N/A | AH48: N/A | BB48: Contaminated (E. coli detected in 100 mL) | BC48: N/A | BD48: N/A | BE48: N/A | BF48: N/A | BG48: N/A | BH48: N/A | BI48: N/A | BJ48: N/A | BK48: N/A | BL48: N/A | BM48: N/A | BN48: N/A | BO48: N/A | BP48: N/A | BQ48: N/A | BR48: N/A | BS48: N/A | BT48: N/A | BU48: N/A | BV48: N/A | BW48: N/A | BX48: N/A | BY48: N/A | BZ48: N/A | CA48: N/A | CB48: N/A | CC48: N/A | CD48: N/A | CE48: N/A | CF48: N/A | CG48: N/A | CH48: N/A
B49: Highly contaminated (>100 CFU/100 mL) | C49: N/A | D49: N/A | E49: N/A | F49: N/A | G49: N/A | H49: N/A | I49: N/A | J49: N/A | K49: N/A | L49: N/A | M49: N/A | N49: N/A | O49: N/A | P49: N/A | Q49: N/A | R49: N/A | S49: N/A | T49: N/A | U49: N/A | V49: N/A | W49: N/A | X49: N/A | Y49: N/A | Z49: N/A | AA49: N/A | AB49: N/A | AC49: N/A | AD49: N/A | AE49: N/A | AF49: N/A | AG49: N/A | AH49: N/A | BB49: Highly contaminated (>100 CFU/100 mL) | BC49: N/A | BD49: N/A | BE49: N/A | BF49: N/A | BG49: N/A | BH49: N/A | BI49: N/A | BJ49: N/A | BK49: N/A | BL49: N/A | BM49: N/A | BN49: N/A | BO49: N/A | BP49: N/A | BQ49: N/A | BR49: N/A | BS49: N/A | BT49: N/A | BU49: N/A | BV49: N/A | BW49: N/A | BX49: N/A | BY49: N/A | BZ49: N/A | CA49: N/A | CB49: N/A | CC49: N/A | CD49: N/A | CE49: N/A | CF49: N/A | CG49: N/A | CH49: N/A
A50: Microbiological quality of improved water sources at point of collection | B50: Not contaminated (No E. coli in 100 mL) | C50: N/A | D50: N/A | E50: N/A | F50: N/A | G50: N/A | H50: N/A | I50: N/A | J50: N/A | K50: N/A | L50: N/A | M50: N/A | N50: N/A | O50: N/A | P50: N/A | Q50: N/A | R50: N/A | S50: N/A | T50: N/A | U50: N/A | V50: N/A | W50: N/A | X50: N/A | Y50: N/A | Z50: N/A | AA50: N/A | AB50: N/A | AC50: N/A | AD50: N/A | AE50: N/A | AF50: N/A | AG50: N/A | AH50: N/A | BA50: Microbiological quality of improved water sources at point of collection | BB50: Not contaminated (No E. coli in 100 mL) | BC50: N/A | BD50: N/A | BE50: N/A | BF50: N/A | BG50: N/A | BH50: N/A | BI50: N/A | BJ50: N/A | BK50: N/A | BL50: N/A | BM50: N/A | BN50: N/A | BO50: N/A | BP50: N/A | BQ50: N/A | BR50: N/A | BS50: N/A | BT50: N/A | BU50: N/A | BV50: N/A | BW50: N/A | BX50: N/A | BY50: N/A | BZ50: N/A | CA50: N/A | CB50: N/A | CC50: N/A | CD50: N/A | CE50: N/A | CF50: N/A | CG50: N/A | CH50: N/A
B51: Contaminated (E. coli detected in 100 mL) | C51: N/A | D51: N/A | E51: N/A | F51: N/A | G51: N/A | H51: N/A | I51: N/A | J51: N/A | K51: N/A | L51: N/A | M51: N/A | N51: N/A | O51: N/A | P51: N/A | Q51: N/A | R51: N/A | S51: N/A | T51: N/A | U51: N/A | V51: N/A | W51: N/A | X51: N/A | Y51: N/A | Z51: N/A | AA51: N/A | AB51: N/A | AC51: N/A | AD51: N/A | AE51: N/A | AF51: N/A | AG51: N/A | AH51: N/A | BB51: Contaminated (E. coli detected in 100 mL) | BC51: N/A | BD51: N/A | BE51: N/A | BF51: N/A | BG51: N/A | BH51: N/A | BI51: N/A | BJ51: N/A | BK51: N/A | BL51: N/A | BM51: N/A | BN51: N/A | BO51: N/A | BP51: N/A | BQ51: N/A | BR51: N/A | BS51: N/A | BT51: N/A | BU51: N/A | BV51: N/A | BW51: N/A | BX51: N/A | BY51: N/A | BZ51: N/A | CA51: N/A | CB51: N/A | CC51: N/A | CD51: N/A | CE51: N/A | CF51: N/A | CG51: N/A | CH51: N/A
B52: Highly contaminated (>100 CFU/100 mL) | C52: N/A | D52: N/A | E52: N/A | F52: N/A | G52: N/A | H52: N/A | I52: N/A | J52: N/A | K52: N/A | L52: N/A | M52: N/A | N52: N/A | O52: N/A | P52: N/A | Q52: N/A | R52: N/A | S52: N/A | T52: N/A | U52: N/A | V52: N/A | W52: N/A | X52: N/A | Y52: N/A | Z52: N/A | AA52: N/A | AB52: N/A | AC52: N/A | AD52: N/A | AE52: N/A | AF52: N/A | AG52: N/A | AH52: N/A | BB52: Highly contaminated (>100 CFU/100 mL) | BC52: N/A | BD52: N/A | BE52: N/A | BF52: N/A | BG52: N/A | BH52: N/A | BI52: N/A | BJ52: N/A | BK52: N/A | BL52: N/A | BM52: N/A | BN52: N/A | BO52: N/A | BP52: N/A | BQ52: N/A | BR52: N/A | BS52: N/A | BT52: N/A | BU52: N/A | BV52: N/A | BW52: N/A | BX52: N/A | BY52: N/A | BZ52: N/A | CA52: N/A | CB52: N/A | CC52: N/A | CD52: N/A | CE52: N/A | CF52: N/A | CG52: N/A | CH52: N/A
A53: Microbiological quality of piped on premises at point of collection | B53: Not contaminated (No E. coli in 100 mL) | C53: N/A | D53: N/A | E53: N/A | F53: N/A | G53: N/A | H53: N/A | I53: N/A | J53: N/A | K53: N/A | L53: N/A | M53: N/A | N53: N/A | O53: N/A | P53: N/A | Q53: N/A | R53: N/A | S53: N/A | T53: N/A | U53: N/A | V53: N/A | W53: N/A | X53: N/A | Y53: N/A | Z53: N/A | AA53: N/A | AB53: N/A | AC53: N/A | AD53: N/A | AE53: N/A | AF53: N/A | AG53: N/A | AH53: N/A | BA53: Microbiological quality of piped on premises at point of collection | BB53: Not contaminated (No E. coli in 100 mL) | BC53: N/A | BD53: N/A | BE53: N/A | BF53: N/A | BG53: N/A | BH53: N/A | BI53: N/A | BJ53: N/A | BK53: N/A | BL53: N/A | BM53: N/A | BN53: N/A | BO53: N/A | BP53: N/A | BQ53: N/A | BR53: N/A | BS53: N/A | BT53: N/A | BU53: N/A | BV53: N/A | BW53: N/A | BX53: N/A | BY53: N/A | BZ53: N/A | CA53: N/A | CB53: N/A | CC53: N/A | CD53: N/A | CE53: N/A | CF53: N/A | CG53: N/A | CH53: N/A
B54: Contaminated (E. coli detected in 100 mL) | C54: N/A | D54: N/A | E54: N/A | F54: N/A | G54: N/A | H54: N/A | I54: N/A | J54: N/A | K54: N/A | L54: N/A | M54: N/A | N54: N/A | O54: N/A | P54: N/A | Q54: N/A | R54: N/A | S54: N/A | T54: N/A | U54: N/A | V54: N/A | W54: N/A | X54: N/A | Y54: N/A | Z54: N/A | AA54: N/A | AB54: N/A | AC54: N/A | AD54: N/A | AE54: N/A | AF54: N/A | AG54: N/A | AH54: N/A | BB54: Contaminated (E. coli detected in 100 mL) | BC54: N/A | BD54: N/A | BE54: N/A | BF54: N/A | BG54: N/A | BH54: N/A | BI54: N/A | BJ54: N/A | BK54: N/A | BL54: N/A | BM54: N/A | BN54: N/A | BO54: N/A | BP54: N/A | BQ54: N/A | BR54: N/A | BS54: N/A | BT54: N/A | BU54: N/A | BV54: N/A | BW54: N/A | BX54: N/A | BY54: N/A | BZ54: N/A | CA54: N/A | CB54: N/A | CC54: N/A | CD54: N/A | CE54: N/A | CF54: N/A | CG54: N/A | CH54: N/A
B55: Highly contaminated (>100 CFU/100 mL) | C55: N/A | D55: N/A | E55: N/A | F55: N/A | G55: N/A | H55: N/A | I55: N/A | J55: N/A | K55: N/A | L55: N/A | M55: N/A | N55: N/A | O55: N/A | P55: N/A | Q55: N/A | R55: N/A | S55: N/A | T55: N/A | U55: N/A | V55: N/A | W55: N/A | X55: N/A | Y55: N/A | Z55: N/A | AA55: N/A | AB55: N/A | AC55: N/A | AD55: N/A | AE55: N/A | AF55: N/A | AG55: N/A | AH55: N/A | BB55: Highly contaminated (>100 CFU/100 mL) | BC55: N/A | BD55: N/A | BE55: N/A | BF55: N/A | BG55: N/A | BH55: N/A | BI55: N/A | BJ55: N/A | BK55: N/A | BL55: N/A | BM55: N/A | BN55: N/A | BO55: N/A | BP55: N/A | BQ55: N/A | BR55: N/A | BS55: N/A | BT55: N/A | BU55: N/A | BV55: N/A | BW55: N/A | BX55: N/A | BY55: N/A | BZ55: N/A | CA55: N/A | CB55: N/A | CC55: N/A | CD55: N/A | CE55: N/A | CF55: N/A | CG55: N/A | CH55: N/A
C56: NATIONAL wealth index quintile | H56: URBAN wealth index quintile | M56: RURAL wealth index quintile | R56: SUB-REGIONS: | BA56: Raw numbers of respondents: | BB56: Use of drinking water sources | BC56: NATIONAL wealth index quintile | BH56: URBAN wealth index quintile | BM56: RURAL wealth index quintile | BR56: SUB-REGIONS:
A57: Percentage based on weighted population | C57: Poorest | D57: Poor | E57: Middle | F57: Rich | G57: Richest | H57: Poorest | I57: Poor | J57: Middle | K57: Rich | L57: Richest | M57: Poorest | N57: Poor | O57: Middle | P57: Rich | Q57: Richest | R57: “Bamingui Bangoran” | S57: “Bangui” | T57: “Basse Kotto” | U57: “Haut Mbomou” | V57: “Haute-Kotto” | W57: “Kemo” | X57: “Lobaye” | Y57: “Mambere Kadei” | Z57: “Mbomou” | AA57: “Nana Gribizi” | AB57: “Nana Mambere” | AC57: “Ombella Mpoko” | AD57: “Ouaka” | AE57: “Ouham Pende” | AF57: “Ouham” | AG57: “Sangha Mbaere” | AH57: “Vakaga” | BA57: Water data, raw numbers (weighted) | BC57: Poorest | BD57: Poor | BE57: Middle | BF57: Rich | BG57: Richest | BH57: Poorest | BI57: Poor | BJ57: Middle | BK57: Rich | BL57: Richest | BM57: Poorest | BN57: Poor | BO57: Middle | BP57: Rich | BQ57: Richest | BR57: “Bamingui Bangoran” | BS57: “Bangui” | BT57: “Basse Kotto” | BU57: “Haut Mbomou” | BV57: “Haute-Kotto” | BW57: “Kemo” | BX57: “Lobaye” | BY57: “Mambere Kadei” | BZ57: “Mbomou” | CA57: “Nana Gribizi” | CB57: “Nana Mambere” | CC57: “Ombella Mpoko” | CD57: “Ouaka” | CE57: “Ouham Pende” | CF57: “Ouham” | CG57: “Sangha Mbaere” | CH57: “Vakaga”
A58: Principale source d'eau que boivent les membre du menage | B58: Eau de robinet dans le logement | C58: 0.07669636944 | D58: 0 | E58: 0 | F58: 0.1811949431 | G58: 3.598885854 | H58: 0.2400506907 | I58: 0.3017562418 | J58: 0.6394997932 | K58: 1.40336993 | L58: 9.499081972 | M58: 0 | N58: 0 | O58: 0 | P58: 0 | Q58: 0 | R58: 0 | S58: 4.420680881 | T58: 0 | U58: 0 | V58: 0.5265855738 | W58: 0 | X58: 0 | Y58: 0 | Z58: 0 | AA58: 0.3909924488 | AB58: 0 | AC58: 0.3633262242 | AD58: 0 | AE58: 0 | AF58: 0.6568158633 | AG58: 0.584797657 | AH58: N/A
B59: Dans la cours/parcelle | C59: 0.1552494935 | D59: 0 | E59: 0 | F59: 0.03491508557 | G59: 2.319260069 | H59: 0 | I59: 0 | J59: 0.4904708952 | K59: 1.474522739 | L59: 5.223463907 | M59: 0.2284995289 | N59: 0 | O59: 0 | P59: 0 | Q59: 0.08557922333 | R59: 0 | S59: 2.167878478 | T59: 0 | U59: 0 | V59: 0.5132835663 | W59: 0.3612800236 | X59: 0 | Y59: 0 | Z59: 0 | AA59: 0 | AB59: 0 | AC59: 1.145443404 | AD59: 0.3374849802 | AE59: 0 | AF59: 0.7522594505 | AG59: 0.12056965 | AH59: N/A
B60: Robinet public/borne fontaine | C60: 15.825172 | D60: 5.51629626 | E60: 6.396337253 | F60: 22.08128363 | G60: 45.03687831 | H60: 37.78978146 | I60: 47.59375074 | J60: 49.88005322 | K60: 43.96484269 | L60: 67.19519108 | M60: 4.61259206 | N60: 5.321331696 | O60: 3.608515207 | P60: 5.1084521 | Q60: 4.928131745 | R60: 0 | S60: 77.77590737 | T60: 4.773402923 | U60: 2.260584794 | V60: 26.10529541 | W60: 9.047420667 | X60: 2.698733941 | Y60: 1.660632162 | Z60: 0 | AA60: 24.4149858 | AB60: 1.352585839 | AC60: 9.970959374 | AD60: 7.125341039 | AE60: 0.6467128382 | AF60: 6.306159917 | AG60: 22.76203755 | AH60: N/A
B61: Puits a pompe/forage | C61: 23.34298622 | D61: 26.26892376 | E61: 25.83027491 | F61: 22.64269017 | G61: 11.98576794 | H61: 17.6843852 | I61: 9.350805042 | J61: 10.56386367 | K61: 12.43218373 | L61: 4.010234147 | M61: 26.31843285 | N61: 27.44930212 | O61: 24.76467227 | P61: 28.2890701 | Q61: 29.60290892 | R61: 0.1020611817 | S61: 0 | T61: 7.293182107 | U61: 59.4513587 | V61: 29.26882896 | W61: 60.65668117 | X61: 33.28322077 | Y61: 68.95537615 | Z61: 2.096766621 | AA61: 43.59486904 | AB61: 47.64820812 | AC61: 16.10889208 | AD61: 6.65864208 | AE61: 11.45384735 | AF61: 13.73518853 | AG61: 7.78096973 | AH61: N/A
B62: Puits protege | C62: 9.816114342 | D62: 6.820764148 | E62: 7.86614916 | F62: 10.41984593 | G62: 17.54199596 | H62: 18.24600518 | I62: 18.61162503 | J62: 19.81391329 | K62: 27.30792708 | L62: 9.568451176 | M62: 5.483563342 | N62: 5.996313545 | O62: 6.97012644 | P62: 7.287945534 | Q62: 7.358175049 | R62: 58.94792059 | S62: 11.91475331 | T62: 6.576713133 | U62: 5.997059485 | V62: 7.945538945 | W62: 2.349399935 | X62: 9.881810327 | Y62: 5.262153125 | Z62: 4.226410542 | AA62: 9.103968421 | AB62: 9.317270075 | AC62: 23.51750283 | AD62: 14.70592763 | AE62: 28.26999317 | AF62: 6.504863384 | AG62: 2.246766967 | AH62: N/A
B63: Puits non protege | C63: 10.25815787 | D63: 10.6790317 | E63: 8.15555197 | F63: 8.019099575 | G63: 6.571090964 | H63: 9.825635495 | I63: 10.73697323 | J63: 9.395375382 | K63: 5.498482634 | L63: 2.218923667 | M63: 10.08646031 | N63: 10.83047834 | O63: 9.565081726 | P63: 7.173347068 | Q63: 8.84104044 | R63: 23.29157257 | S63: 2.236801594 | T63: 20.75623364 | U63: 5.850798143 | V63: 14.92538496 | W63: 1.656670475 | X63: 13.49194954 | Y63: 5.099633083 | Z63: 8.268039475 | AA63: 5.110789797 | AB63: 7.729273899 | AC63: 21.0156932 | AD63: 17.15047613 | AE63: 12.30297585 | AF63: 7.775889607 | AG63: 3.91290798 | AH63: N/A
B64: Source protegee | C64: 6.780001207 | D64: 5.831577961 | E64: 6.86537022 | F64: 7.113144132 | G64: 4.690258439 | H64: 4.491047191 | I64: 6.176340173 | J64: 2.937300559 | K64: 5.061403815 | L64: 1.467560967 | M64: 8.035624467 | N64: 5.477659543 | O64: 6.083899582 | P64: 7.459563956 | Q64: 9.464905164 | R64: 5.425117074 | S64: 0.6686378821 | T64: 3.763002894 | U64: 6.511540702 | V64: 1.49390687 | W64: 3.332007277 | X64: 6.690397145 | Y64: 0.3678605286 | Z64: 9.936147143 | AA64: 1.931695272 | AB64: 3.942217288 | AC64: 7.756074825 | AD64: 10.94609156 | AE64: 6.781623217 | AF64: 22.26912305 | AG64: 6.634160405 | AH64: N/A
B65: Source non protegee | C65: 26.37825879 | D65: 37.42398876 | E65: 37.52072821 | F65: 25.91601858 | G65: 7.289122784 | H65: 10.04070072 | I65: 5.832781545 | J65: 5.809511561 | K65: 2.50168838 | L65: 0.5616097994 | M65: 35.2572336 | N65: 35.74206129 | O65: 43.06702737 | P65: 36.48456542 | Q65: 35.63261946 | R65: 9.086588833 | S65: 0.8005284456 | T65: 47.29564415 | U65: 17.04117498 | V65: 17.28022646 | W65: 5.758002303 | X65: 28.46494281 | Y65: 14.90856342 | Z65: 63.65165113 | AA65: 11.98556791 | AB65: 23.65795095 | AC65: 19.41812909 | AD65: 41.71802827 | AE65: 21.01335082 | AF65: 41.74827966 | AG65: 51.74978402 | AH65: N/A
B66: Eau de pluie | C66: 0.009544510066 | D66: 0.04410907548 | E66: 0.1151437224 | F66: 0 | G66: 0.01188526414 | H66: 0.009288315977 | I66: 0.07934497029 | J66: 0 | K66: 0.03693955294 | L66: 0 | M66: 0.009680002216 | N66: 0.0646857039 | O66: 0.1322541892 | P66: 0 | Q66: 0 | R66: 0 | S66: 0 | T66: 0 | U66: 0 | V66: 0.1197092326 | W66: 0 | X66: 0.5293836081 | Y66: 0 | Z66: 0 | AA66: 0 | AB66: 0 | AC66: 0 | AD66: 0.2695463376 | AE66: 0 | AF66: 0 | AG66: 0 | AH66: N/A
B67: Charrette avec petite citerne/tonneau | C67: 0.2352461397 | D67: 0.2299235085 | E67: 0.1050921416 | F67: 0.02301233858 | G67: 0 | H67: 0 | I67: 0 | J67: 0 | K67: 0 | L67: 0 | M67: 0.3462403057 | N67: 0.3371814946 | O67: 0.1015266728 | P67: 0.05333907616 | Q67: 0.03384301089 | R67: 0 | S67: 0 | T67: 0.01727190582 | U67: 0 | V67: 0 | W67: 0 | X67: 0.105333062 | Y67: 0 | Z67: 0 | AA67: 0.6648893155 | AB67: 0 | AC67: 0 | AD67: 0 | AE67: 1.074692141 | AF67: 0 | AG67: 0 | AH67: N/A
B68: Eau de surface | C68: 7.106113262 | D68: 6.905436239 | E68: 6.806448978 | F68: 3.492267469 | G68: 0.8343071361 | H68: 1.673105752 | I68: 1.316623025 | J68: 0.4700116321 | K68: 0.3186394478 | L68: 0.06211305677 | M68: 9.597447679 | N68: 8.417354502 | O68: 5.601686126 | P68: 7.62170483 | Q68: 3.934312191 | R68: 3.14673975 | S68: 0 | T68: 9.199318657 | U68: 2.887483194 | V68: 1.495520802 | W68: 16.83853815 | X68: 4.559296229 | Y68: 3.745781524 | Z68: 10.89575126 | AA68: 2.80224199 | AB68: 6.352493822 | AC68: 0.7039789684 | AD68: 0.5807109993 | AE68: 18.03540867 | AF68: 0.0999019148 | AG68: 4.166865393 | AH68: N/A
B69: Eau en bouteille | C69: 0 | D69: 0 | E69: 0 | F69: 0 | G69: 0.009626171005 | H69: 0 | I69: 0 | J69: 0 | K69: 0 | L69: 0.03020289696 | M69: 0 | N69: 0 | O69: 0 | P69: 0 | Q69: 0 | R69: 0 | S69: 0.0148120466 | T69: 0 | U69: 0 | V69: 0 | W69: 0 | X69: 0 | Y69: 0 | Z69: 0 | AA69: 0 | AB69: 0 | AC69: 0 | AD69: 0 | AE69: 0 | AF69: 0 | AG69: 0 | AH69: N/A
B70: Autre | C70: 0.01645977994 | D70: 0.2799485932 | E70: 0.2958191961 | F70: 0 | G70: 0 | H70: 0 | I70: 0 | J70: 0 | K70: 0 | L70: 0 | M70: 0.02422585657 | N70: 0.3636317524 | O70: 0.1052104185 | P70: 0.3777556812 | Q70: 0 | R70: 0 | S70: 0 | T70: 0.1381752465 | U70: 0 | V70: 0 | W70: 0 | X70: 0 | Y70: 0 | Z70: 0.9252338214 | AA70: 0 | AB70: 0 | AC70: 0 | AD70: 0.5077509695 | AE70: 0 | AF70: 0 | AG70: 0.04114065206 | AH70: N/A
B71: Manquant | C71: 0 | D71: 0 | E71: 0.04308424672 | F71: 0.07652814782 | G71: 0.1109211105 | H71: 0 | I71: 0 | J71: 0 | K71: 0 | L71: 0.163167335 | M71: 0 | N71: 0 | O71: 0 | P71: 0.144256243 | Q71: 0.1184848042 | R71: 0 | S71: 0 | T71: 0.1870553443 | U71: 0 | V71: 0.3257192241 | W71: 0 | X71: 0.2949325737 | Y71: 0 | Z71: 0 | AA71: 0 | AB71: 0 | AC71: 0 | AD71: 0 | AE71: 0.4213959371 | AF71: 0.15151862 | AG71: 0 | AH71: N/A
A108: =A1026 -> Central African Republic
A109: =A1034 -> 2006
A110: Use of sanitation facilities
A111: by wealth quintile and sub-national region
A112: Notes:
A113: WHO/UNICEF JMP customised wealth index excludes water,
A114: sanitation and hygiene assets.
A115: Survey used for analysis: | B115: =A1025 -> MICS06
A116: Ratio of Improved latrines based on: | B116: MICS10
A117: =B1029 -> 
A120: Use of sanitation facilities | C120: NATIONAL wealth index quintile | H120: URBAN wealth index quintile | M120: RURAL wealth index quintile | R120: SUB-REGIONS: | BA120: Raw numbers of respondents: | BB120: Use of sanitation facilities | BC120: NATIONAL wealth index quintile | BH120: URBAN wealth index quintile | BM120: RURAL wealth index quintile | BR120: SUB-REGIONS:
A121: Weighted percentage (used in graphs) | C121: Poorest | D121: Poor | E121: Middle | F121: Rich | G121: Richest | H121: Poorest | I121: Poor | J121: Middle | K121: Rich | L121: Richest | M121: Poorest | N121: Poor | O121: Middle | P121: Rich | Q121: Richest | R121: “Bamingui Bangoran” | S121: “Bangui” | T121: “Basse Kotto” | U121: “Haut Mbomou” | V121: “Haute-Kotto” | W121: “Kemo” | X121: “Lobaye” | Y121: “Mambere Kadei” | Z121: “Mbomou” | AA121: “Nana Gribizi” | AB121: “Nana Mambere” | AC121: “Ombella Mpoko” | AD121: “Ouaka” | AE121: “Ouham Pende” | AF121: “Ouham” | AG121: “Sangha Mbaere” | AH121: “Vakaga” | BA121: Sanitation data, raw numbers (weighted) | BC121: Poorest | BD121: Poor | BE121: Middle | BF121: Rich | BG121: Richest | BH121: Poorest | BI121: Poor | BJ121: Middle | BK121: Rich | BL121: Richest | BM121: Poorest | BN121: Poor | BO121: Middle | BP121: Rich | BQ121: Richest | BR121: “Bamingui Bangoran” | BS121: “Bangui” | BT121: “Basse Kotto” | BU121: “Haut Mbomou” | BV121: “Haute-Kotto” | BW121: “Kemo” | BX121: “Lobaye” | BY121: “Mambere Kadei” | BZ121: “Mbomou” | CA121: “Nana Gribizi” | CB121: “Nana Mambere” | CC121: “Ombella Mpoko” | CD121: “Ouaka” | CE121: “Ouham Pende” | CF121: “Ouham” | CG121: “Sangha Mbaere” | CH121: “Vakaga”
A122: Sanitation | B122: Improved | C122: =C153+C154+C155+C157+C158+C161+(C159)*MICS10!C130/100 -> 2.902993491 | D122: =D153+D154+D155+D157+D158+D161+(D159)*MICS10!D130/100 -> 3.117372276 | E122: =E153+E154+E155+E157+E158+E161+(E159)*MICS10!E130/100 -> 11.92590928 | F122: =F153+F154+F155+F157+F158+F161+(F159)*MICS10!F130/100 -> 42.31830424 | G122: =G153+G154+G155+G157+G158+G161+(G159)*MICS10!G130/100 -> 69.98704063 | H122: =H153+H154+H155+H157+H158+H161+(H159)*MICS10!H130/100 -> 12.75629593 | I122: =I153+I154+I155+I157+I158+I161+(I159)*MICS10!I130/100 -> 45.28267103 | J122: =J153+J154+J155+J157+J158+J161+(J159)*MICS10!J130/100 -> 60.19309429 | K122: =K153+K154+K155+K157+K158+K161+(K159)*MICS10!K130/100 -> 68.83958199 | L122: =L153+L154+L155+L157+L158+L161+(L159)*MICS10!L130/100 -> 77.13828089 | M122: =M153+M154+M155+M157+M158+M161+(M159)*MICS10!M130/100 -> 1.301246296 | N122: =N153+N154+N155+N157+N158+N161+(N159)*MICS10!N130/100 -> 1.880978776 | O122: =O153+O154+O155+O157+O158+O161+(O159)*MICS10!O130/100 -> 3.841898029 | P122: =P153+P154+P155+P157+P158+P161+(P159)*MICS10!P130/100 -> 10.02548632 | Q122: =Q153+Q154+Q155+Q157+Q158+Q161+(Q159)*MICS10!Q130/100 -> 34.1815983 | R122: =R153+R154+R155+R157+R158+R161+(R159)*MICS10!R130/100 -> 23.32690938 | S122: =S153+S154+S155+S157+S158+S161+(S159)*MICS10!S130/100 -> 66.30286421 | T122: =T153+T154+T155+T157+T158+T161+(T159)*MICS10!T130/100 -> 8.394059647 | U122: =U153+U154+U155+U157+U158+U161+(U159)*MICS10!U130/100 -> 21.96945757 | V122: =V153+V154+V155+V157+V158+V161+(V159)*MICS10!V130/100 -> 29.06804272 | W122: =W153+W154+W155+W157+W158+W161+(W159)*MICS10!W130/100 -> 8.28384342 | X122: =X153+X154+X155+X157+X158+X161+(X159)*MICS10!X130/100 -> 9.598660967 | Y122: =Y153+Y154+Y155+Y157+Y158+Y161+(Y159)*MICS10!Y130/100 -> 19.52831417 | Z122: =Z153+Z154+Z155+Z157+Z158+Z161+(Z159)*MICS10!Z130/100 -> 10.54123912 | AA122: =AA153+AA154+AA155+AA157+AA158+AA161+(AA159)*MICS10!AA130/100 -> 14.00694806 | AB122: =AB153+AB154+AB155+AB157+AB158+AB161+(AB159)*MICS10!AB130/100 -> 19.98978421 | AC122: =AC153+AC154+AC155+AC157+AC158+AC161+(AC159)*MICS10!AC130/100 -> 16.57790434 | AD122: =AD153+AD154+AD155+AD157+AD158+AD161+(AD159)*MICS10!AD130/100 -> 9.944457314 | AE122: =AE153+AE154+AE155+AE157+AE158+AE161+(AE159)*MICS10!AE130/100 -> 25.13694426 | AF122: =AF153+AF154+AF155+AF157+AF158+AF161+(AF159)*MICS10!AF130/100 -> 18.85593851 | AG122: =AG153+AG154+AG155+AG157+AG158+AG161+(AG159)*MICS10!AG130/100 -> 12.44570133 | AH122: N/A | BA122: Sanitation | BB122: Improved | BC122: 2911.522889 | BD122: 2529.201764 | BE122: 3454.272964 | BF122: 4596.800985 | BG122: 5666.798566 | BH122: 1300.725759 | BI122: 1494.860356 | BJ122: 1593.110934 | BK122: 1765.624684 | BL122: 1965.633013 | BM122: 1565.288326 | BN122: 1652.830079 | BO122: 1911.548924 | BP122: 2556.360952 | BQ122: 3352.614139 | BR122: 379.7866661 | BS122: 3441.137585 | BT122: 1188.315433 | BU122: 311.6572635 | BV122: 248.5763354 | BW122: 903.4427562 | BX122: 254.4134649 | BY122: 378.9324366 | BZ122: 1408.22992 | CA122: 2736.783176 | CB122: 1583.444286 | CC122: 787.0355011 | CD122: 1111.810197 | CE122: 1055.470295 | CF122: 1583.642976 | CG122: 1785.918875 | CH122: N/A
B123: Not Improved | C123: =100-C122 -> 97.09700651 | D123: =100-D122 -> 96.88262772 | E123: 88.07409072 | F123: 57.68169576 | G123: 30.01295937 | H123: 87.24370407 | I123: 54.71732897 | J123: 39.80690571 | K123: 31.16041801 | L123: 22.86171911 | M123: 98.6987537 | N123: 98.11902122 | O123: 96.15810197 | P123: 89.97451368 | Q123: 65.8184017 | R123: 76.67309062 | S123: 33.69713579 | T123: 91.60594035 | U123: 78.03054243 | V123: 70.93195728 | W123: 91.71615658 | X123: 90.40133903 | Y123: 80.47168583 | Z123: 89.45876088 | AA123: 85.99305194 | AB123: 80.01021579 | AC123: 83.42209566 | AD123: 90.05554269 | AE123: 74.86305574 | AF123: 81.14406149 | AG123: 87.55429867 | AH123: N/A | BB123: Not Improved | BC123: 4969.981723 | BD123: 5318.508708 | BE123: 4433.617898 | BF123: 3276.822106 | BG123: 2204.911957 | BH123: 1217.420669 | BI123: 1027.735179 | BJ123: 922.5505915 | BK123: 767.0902878 | BL123: 543.2134629 | BM123: 3789.644373 | BN123: 3698.51083 | BO123: 3442.427779 | BP123: 2794.011097 | BQ123: 2001.238122 | BR123: 408.6140097 | BS123: 1674.592445 | BT123: 628.4935826 | BU123: 211.4869703 | BV123: 184.4375538 | BW123: 2483.402679 | BX123: 839.8574295 | BY123: 663.2657585 | BZ123: 1536.198178 | CA123: 1839.848654 | CB123: 1135.928213 | CC123: 2283.976617 | CD123: 1826.660422 | CE123: 320.7528712 | CF123: 1267.364604 | CG123: 2898.962403 | CH123: N/A
A124: Sanitation ladder | B124: Basic | C124: =C122*C129/100 -> 1.811119969 | D124: =D122*D129/100 -> 1.933243769 | E124: =E122*E129/100 -> 7.781827917 | F124: 25.38804849 | G124: 50.15314474 | H124: 7.267771891 | I124: 21.48168388 | J124: 33.22046141 | K124: 48.17632982 | L124: 60.37837732 | M124: 0.8733729451 | N124: 1.168015067 | O124: 2.528637152 | P124: 6.600414635 | Q124: 23.8106171 | R124: 18.47592146 | S124: 37.12561019 | T124: 6.771385618 | U124: 15.88234406 | V124: 21.34467087 | W124: 3.908809573 | X124: 5.514975882 | Y124: 11.39212557 | Z124: 8.898268454 | AA124: 9.154472102 | AB124: 16.39986086 | AC124: 10.58737342 | AD124: 6.881099844 | AE124: 13.64180265 | AF124: 11.18007697 | AG124: 9.502766627 | AH124: N/A | BA124: Sanitation ladder | BB124: Basic | BC124: 1807.982054 | BD124: 1568.488816 | BE124: 2245.311508 | BF124: 2752.571751 | BG124: 4060.862785 | BH124: 741.0754788 | BI124: 705.0439866 | BJ124: 879.2350836 | BK124: 1235.645463 | BL124: 1538.558163 | BM124: 1041.492569 | BN124: 1026.34355 | BO124: 1251.276568 | BP124: 1681.142924 | BQ124: 2335.403128 | BR124: 179.205917 | BS124: 1921.98561 | BT124: 991.6239661 | BU124: 225.3058762 | BV124: 196.8832122 | BW124: 535.6699453 | BX124: 166.2761193 | BY124: 278.2501807 | BZ124: 1130.473314 | CA124: 1485.250378 | CB124: 909.778674 | CC124: 500.3604476 | CD124: 769.3207115 | CE124: 803.7509977 | CF124: 1299.239861 | CG124: 1041.841703 | CH124: N/A
B125: Limited | C125: =C122*C128/100 -> 1.091873522 | D125: =D122*D128/100 -> 1.184128508 | E125: =E122*E128/100 -> 4.144081368 | F125: 16.93025575 | G125: 19.83389589 | H125: 5.488524036 | I125: 23.80098716 | J125: 26.97263288 | K125: 20.66325217 | L125: 16.75990356 | M125: 0.4278733508 | N125: 0.7129637097 | O125: 1.313260877 | P125: 3.425071685 | Q125: 10.37098119 | R125: 4.850987921 | S125: 29.17725402 | T125: 1.622674029 | U125: 6.087113516 | V125: 7.723371856 | W125: 4.375033847 | X125: 4.083685085 | Y125: 8.136188597 | Z125: 1.642970664 | AA125: 4.852475957 | AB125: 3.58992335 | AC125: 5.990530926 | AD125: 3.06335747 | AE125: 11.49514161 | AF125: 7.675861542 | AG125: 2.942934708 | AH125: N/A | BB125: Limited | BC125: 1089.981761 | BD125: 960.7129482 | BE125: 1195.70282 | BF125: 1835.578018 | BG125: 1605.935781 | BH125: 559.6502805 | BI125: 781.165153 | BJ125: 713.8758499 | BK125: 529.9792217 | BL125: 427.0748501 | BM125: 510.2366838 | BN125: 626.4865291 | BO125: 649.8570042 | BP125: 872.3747441 | BQ125: 1017.211012 | BR125: 200.5807491 | BS125: 1510.500759 | BT125: 183.0928225 | BU125: 86.35138737 | BV125: 51.69312319 | BW125: 367.7728109 | BX125: 88.13734557 | BY125: 100.6822559 | BZ125: 270.9031489 | CA125: 1251.532797 | CB125: 673.6656118 | CC125: 283.1131592 | CD125: 342.489486 | CE125: 248.9155844 | CF125: 284.4031151 | CG125: 744.0771724 | CH125: N/A
B126: Unimproved | C126: =100-C124-C125-C127 -> 57.43530292 | D126: =100-D124-D125-D127 -> 54.54718256 | E126: =100-E124-E125-E127 -> 56.37188026 | F126: 43.42667206 | G126: 27.65884729 | H126: 70.9250035 | I126: 49.73924289 | J126: 37.01610642 | K126: 29.02967537 | L126: 22.36357352 | M126: 46.78174989 | N126: 52.57457627 | O126: 58.40471266 | P126: 60.74290073 | Q126: 51.20817818 | R126: 57.36430511 | S126: 32.36366272 | T126: 59.86532842 | U126: 65.04741444 | V126: 36.17461618 | W126: 71.22264654 | X126: 70.81532153 | Y126: 55.95610678 | Z126: 78.38140161 | AA126: 52.89593844 | AB126: 50.73844717 | AC126: 61.68354207 | AD126: 55.15072463 | AE126: 38.23031668 | AF126: 23.23944225 | AG126: 75.74462311 | AH126: N/A | BB126: Unimproved | BC126: 1849.420485 | BD126: 1996.145544 | BE126: 1937.185417 | BF126: 2155.668501 | BG126: 2019.603069 | BH126: 806.4918932 | BI126: 902.5888671 | BJ126: 852.3435275 | BK126: 713.1246498 | BL126: 530.7157547 | BM126: 1016.563224 | BN126: 1261.272315 | BO126: 1425.052259 | BP126: 1230.842186 | BQ126: 1219.02834 | BR126: 247.043038 | BS126: 1606.490924 | BT126: 428.7454914 | BU126: 143.5664848 | BV126: 100.8278307 | BW126: 522.2627255 | BX126: 477.6853495 | BY126: 301.025377 | BZ126: 603.7940112 | CA126: 163.3030585 | CB126: 603.3114392 | CC126: 1617.157307 | CD126: 800.9925984 | CE126: 158.5564898 | CF126: 432.8242616 | CG126: 1750.43663 | CH126: N/A
B127: Open defecation | C127: 39.66170359 | D127: 42.33544516 | E127: 31.70221046 | F127: 14.2550237 | G127: 2.354112082 | H127: 16.31870057 | I127: 4.978086072 | J127: 2.790799291 | K127: 2.130742642 | L127: 0.4981455937 | M127: 51.91700381 | N127: 45.54444496 | O127: 37.75338931 | P127: 29.23161295 | Q127: 14.61022352 | R127: 19.30878551 | S127: 1.333473072 | T127: 31.74061194 | U127: 12.98312799 | V127: 34.75734109 | W127: 20.49351004 | X127: 19.5860175 | Y127: 24.51557906 | Z127: 11.07735927 | AA127: 33.0971135 | AB127: 29.27176863 | AC127: 21.73855359 | AD127: 34.90481806 | AE127: 36.63273906 | AF127: 57.90461924 | AG127: 11.80967555 | AH127: N/A | BB127: Open defecation | BC127: 3120.561238 | BD127: 3322.363163 | BE127: 2496.432481 | BF127: 1121.153605 | BG127: 185.3088885 | BH127: 410.9287754 | BI127: 125.146312 | BJ127: 70.207064 | BK127: 53.96563791 | BL127: 12.49770817 | BM127: 2773.081149 | BN127: 2437.238515 | BO127: 2017.37552 | BP127: 1563.168911 | BQ127: 782.2097826 | BR127: 161.5709717 | BS127: 68.10152076 | BT127: 199.7480912 | BU127: 67.92048544 | BV127: 83.60972311 | BW127: 1961.139954 | BX127: 362.1720799 | BY127: 362.2403815 | BZ127: 932.4041671 | CA127: 1676.545596 | CB127: 532.6167735 | CC127: 666.8193107 | CD127: 1025.667823 | CE127: 162.1963814 | CF127: 834.5403424 | CG127: 1148.525774 | CH127: N/A
A128: Shared among Improved Sanitation | B128: Yes | C128: 37.61198657 | D128: 37.98482833 | E128: 34.74855685 | F128: 40.00693331 | G128: 28.33938356 | H128: 43.02600118 | I128: 52.56091705 | J128: 44.81017831 | K128: 30.01652766 | L128: 21.72708981 | M128: 32.88181124 | N128: 37.90386785 | O128: 34.18260629 | P128: 34.16364629 | Q128: 30.34083165 | R128: 20.79567354 | S128: 44.00602352 | T128: 19.3312187 | U128: 27.70716344 | V128: 26.56997559 | W128: 52.81405774 | X128: 42.5443205 | Y128: 41.66354826 | Z128: 15.58612461 | AA128: 34.6433494 | AB128: 17.95878991 | AC128: 36.13563453 | AD128: 30.80467212 | AE128: 45.73006763 | AF128: 40.70792625 | AG128: 23.64619421 | AH128: N/A | BA128: Shared among improved sanitation facilities | BB128: Yes | BC128: N/A | BD128: N/A | BE128: N/A | BF128: N/A | BG128: N/A | BH128: N/A | BI128: N/A | BJ128: N/A | BK128: N/A | BL128: N/A | BM128: N/A | BN128: N/A | BO128: N/A | BP128: N/A | BQ128: N/A | BR128: N/A | BS128: N/A | BT128: N/A | BU128: N/A | BV128: N/A | BW128: N/A | BX128: N/A | BY128: N/A | BZ128: N/A | CA128: N/A | CB128: N/A | CC128: N/A | CD128: N/A | CE128: N/A | CF128: N/A | CG128: N/A | CH128: N/A
B129: No | C129: 62.38801343 | D129: 62.01517167 | E129: 65.25144315 | F129: 59.99306669 | G129: 71.66061644 | H129: 56.97399882 | I129: 47.43908295 | J129: 55.18982169 | K129: 69.98347234 | L129: 78.27291019 | M129: 67.11818876 | N129: 62.09613215 | O129: 65.81739371 | P129: 65.83635371 | Q129: 69.65916835 | R129: 79.20432646 | S129: 55.99397648 | T129: 80.6687813 | U129: 72.29283656 | V129: 73.43002441 | W129: 47.18594226 | X129: 57.4556795 | Y129: 58.33645174 | Z129: 84.41387539 | AA129: 65.3566506 | AB129: 82.04121009 | AC129: 63.86436547 | AD129: 69.19532788 | AE129: 54.26993237 | AF129: 59.29207375 | AG129: 76.35380579 | AH129: N/A | BB129: No | BC129: N/A | BD129: N/A | BE129: N/A | BF129: N/A | BG129: N/A | BH129: N/A | BI129: N/A | BJ129: N/A | BK129: N/A | BL129: N/A | BM129: N/A | BN129: N/A | BO129: N/A | BP129: N/A | BQ129: N/A | BR129: N/A | BS129: N/A | BT129: N/A | BU129: N/A | BV129: N/A | BW129: N/A | BX129: N/A | BY129: N/A | BZ129: N/A | CA129: N/A | CB129: N/A | CC129: N/A | CD129: N/A | CE129: N/A | CF129: N/A | CG129: N/A | CH129: N/A
A130: Manually calculated ratios | B130: Improved latrines | C130: =(C158+C159)/(C158+C159+C160)*100 -> 62.76131169 | D130: =(D158+D159)/(D158+D159+D160)*100 -> 56.75278876 | E130: 64.54973613 | F130: 68.24002248 | G130: 72.73614697 | H130: 62.79844211 | I130: 62.17228984 | J130: 65.22631226 | K130: 70.78921612 | L130: 76.10728145 | M130: 62.71503222 | N130: 57.55766629 | O130: 58.10183917 | P130: 67.82553653 | Q130: 73.74321027 | R130: 57.70488663 | S130: 65.85674934 | T130: 75.93286727 | U130: 68.54646883 | V130: 71.31124909 | W130: 65.57597138 | X130: 35.30013522 | Y130: 56.20238009 | Z130: 70.79101146 | AA130: 94.36902749 | AB130: 74.0078079 | AC130: 32.9164117 | AD130: 58.66850659 | AE130: 87.2166234 | AF130: 78.49073383 | AG130: 51.13459055
B131: Sewer/(Sewer+Septic) | C131: =C135/(C135+C136)*100 -> 0 | D131: =D135/(D135+D136)*100 -> 0 | E131: 0 | F131: 50.19051401 | G131: 12.51168072 | H131: 0 | I131: 50.15659565 | J131: 50.67180458 | K131: 0 | L131: 8.507802996 | M131: 0 | N131: 0 | O131: 0 | P131: 0 | Q131: 0 | R131: 0 | S131: 16.88548526 | T131: 0 | U131: 0 | V131: 0 | X131: 0 | Y131: 0 | Z131: 0 | AC131: 0 | AD131: 0 | AE131: 0 | AF131: 0 | AG131: 0
B132: Other
C133: NATIONAL wealth index quintile | H133: URBAN wealth index quintile | M133: RURAL wealth index quintile | R133: SUB-REGIONS: | BA133: Raw numbers of respondents: | BB133: Use of sanitation facilities | BC133: NATIONAL wealth index quintile | BH133: URBAN wealth index quintile | BM133: RURAL wealth index quintile | BR133: SUB-REGIONS:
A134: Percentage based on weighted population | C134: Poorest | D134: Poor | E134: Middle | F134: Rich | G134: Richest | H134: Poorest | I134: Poor | J134: Middle | K134: Rich | L134: Richest | M134: Poorest | N134: Poor | O134: Middle | P134: Rich | Q134: Richest | R134: “Bamingui Bangoran” | S134: “Bangui” | T134: “Basse Kotto” | U134: “Haut Mbomou” | V134: “Haute-Kotto” | W134: “Kemo” | X134: “Lobaye” | Y134: “Mambere Kadei” | Z134: “Mbomou” | AA134: “Nana Gribizi” | AB134: “Nana Mambere” | AC134: “Ombella Mpoko” | AD134: “Ouaka” | AE134: “Ouham Pende” | AF134: “Ouham” | AG134: “Sangha Mbaere” | AH134: “Vakaga” | BA134: Sanitation data, raw numbers (weighted) | BC134: Poorest | BD134: Poor | BE134: Middle | BF134: Rich | BG134: Richest | BH134: Poorest | BI134: Poor | BJ134: Middle | BK134: Rich | BL134: Richest | BM134: Poorest | BN134: Poor | BO134: Middle | BP134: Rich | BQ134: Richest | BR134: “Bamingui Bangoran” | BS134: “Bangui” | BT134: “Basse Kotto” | BU134: “Haut Mbomou” | BV134: “Haute-Kotto” | BW134: “Kemo” | BX134: “Lobaye” | BY134: “Mambere Kadei” | BZ134: “Mbomou” | CA134: “Nana Gribizi” | CB134: “Nana Mambere” | CC134: “Ombella Mpoko” | CD134: “Ouaka” | CE134: “Ouham Pende” | CF134: “Ouham” | CG134: “Sangha Mbaere” | CH134: “Vakaga”
A135: Sanitation type | B135: Sewer connection | C135: 0 | D135: 0 | E135: 0 | F135: 0.1724826425 | G135: 0.4809140589 | H135: 0 | I135: 0.5383595181 | J135: 0.6712752483 | K135: 0 | L135: 0.8358083936 | M135: 0 | N135: 0 | O135: 0 | P135: 0 | Q135: 0 | R135: 0 | S135: 1.005463452 | T135: 0 | U135: 0 | V135: 0 | W135: 0 | X135: 0 | Y135: 0 | Z135: 0 | AA135: 0 | AB135: 0 | AC135: 0 | AD135: 0 | AE135: 0 | AF135: 0 | AG135: 0 | AH135: N/A | BA135: Sanitation type | BB135: Sewer connection | BC135: N/A | BD135: N/A | BE135: N/A | BF135: N/A | BG135: N/A | BH135: N/A | BI135: N/A | BJ135: N/A | BK135: N/A | BL135: N/A | BM135: N/A | BN135: N/A | BO135: N/A | BP135: N/A | BQ135: N/A | BR135: N/A | BS135: N/A | BT135: N/A | BU135: N/A | BV135: N/A | BW135: N/A | BX135: N/A | BY135: N/A | BZ135: N/A | CA135: N/A | CB135: N/A | CC135: N/A | CD135: N/A | CE135: N/A | CF135: N/A | CG135: N/A | CH135: N/A
B136: Septic tank connection | C136: 0.5335059374 | D136: 0.01884150197 | E136: 0.07241518377 | F136: 0.1711732173 | G136: 3.362806619 | H136: 1.324491681 | I136: 0.5349978563 | J136: 0.6534757723 | K136: 0.9120963091 | L136: 8.988213085 | M136: 0.1623858897 | N136: 0.02763095359 | O136: 0 | P136: 0.08878033018 | Q136: 0.0114600002 | R136: 5.832626282 | S136: 4.9491386 | T136: 0 | U136: 0 | V136: 0.4410346558 | W136: 0 | X136: 0.3104790758 | Y136: 0.1755447861 | Z136: 0 | AA136: 0 | AB136: 0 | AC136: 0.1883570925 | AD136: 0 | AE136: 0 | AF136: 0.1472600195 | AG136: 0.2377486618 | AH136: N/A | BB136: Septic tank connection | BC136: N/A | BD136: N/A | BE136: N/A | BF136: N/A | BG136: N/A | BH136: N/A | BI136: N/A | BJ136: N/A | BK136: N/A | BL136: N/A | BM136: N/A | BN136: N/A | BO136: N/A | BP136: N/A | BQ136: N/A | BR136: N/A | BS136: N/A | BT136: N/A | BU136: N/A | BV136: N/A | BW136: N/A | BX136: N/A | BY136: N/A | BZ136: N/A | CA136: N/A | CB136: N/A | CC136: N/A | CD136: N/A | CE136: N/A | CF136: N/A | CG136: N/A | CH136: N/A
B137: Improved latrines | C137: 36.4077005 | D137: 32.20968901 | E137: 43.71968368 | F137: 58.03862802 | G137: 68.14569699 | H137: 50.32960376 | I137: 58.18546296 | J137: 62.00296289 | K137: 68.80063109 | L137: 68.52405729 | M137: 29.06838906 | N137: 30.85864797 | O137: 35.70334781 | P137: 47.69034472 | Q137: 62.60913496 | R137: 42.33915714 | S137: 61.31121465 | T137: 65.40673361 | U137: 59.57386958 | V137: 56.96505359 | W137: 26.67505127 | X137: 22.93910804 | Y137: 36.18341634 | Z137: 47.82694204 | AA137: 59.7990679 | AB137: 58.22829666 | AC137: 25.43952944 | AD137: 37.83635576 | AE137: 76.69325157 | AF137: 55.39952236 | AG137: 37.88315066 | AH137: N/A | BB137: Improved latrines | BC137: N/A | BD137: N/A | BE137: N/A | BF137: N/A | BG137: N/A | BH137: N/A | BI137: N/A | BJ137: N/A | BK137: N/A | BL137: N/A | BM137: N/A | BN137: N/A | BO137: N/A | BP137: N/A | BQ137: N/A | BR137: N/A | BS137: N/A | BT137: N/A | BU137: N/A | BV137: N/A | BW137: N/A | BX137: N/A | BY137: N/A | BZ137: N/A | CA137: N/A | CB137: N/A | CC137: N/A | CD137: N/A | CE137: N/A | CF137: N/A | CG137: N/A | CH137: N/A
B138: Unimproved facilities | C138: 23.46532263 | D138: 25.43602432 | E138: 24.55897845 | F138: 27.37835526 | G138: 25.65647026 | H138: 32.02720399 | I138: 35.78016589 | J138: 33.8814868 | K138: 28.15652996 | L138: 21.15377564 | M138: 18.98367881 | N138: 23.56927612 | O138: 26.61670638 | P138: 23.00479621 | Q138: 22.76918152 | R138: 31.33470653 | S138: 31.40296526 | T138: 23.59882011 | U138: 27.44300244 | V138: 23.28512624 | W138: 15.42032949 | X138: 43.65329938 | Y138: 28.88369778 | Z138: 20.50632554 | AA138: 3.568193042 | AB138: 22.18568583 | AC138: 52.65877321 | AD138: 27.25882618 | AE138: 11.52113216 | AF138: 15.18144899 | AG138: 37.36352163 | AH138: N/A | BB138: Unimproved facilities | BC138: N/A | BD138: N/A | BE138: N/A | BF138: N/A | BG138: N/A | BH138: N/A | BI138: N/A | BJ138: N/A | BK138: N/A | BL138: N/A | BM138: N/A | BN138: N/A | BO138: N/A | BP138: N/A | BQ138: N/A | BR138: N/A | BS138: N/A | BT138: N/A | BU138: N/A | BV138: N/A | BW138: N/A | BX138: N/A | BY138: N/A | BZ138: N/A | CA138: N/A | CB138: N/A | CC138: N/A | CD138: N/A | CE138: N/A | CF138: N/A | CG138: N/A | CH138: N/A
B139: Open defecation | C139: 39.59347094 | D139: 42.33544516 | E139: 31.64892269 | F139: 14.23936086 | G139: 2.354112082 | H139: 16.31870057 | I139: 4.961013775 | J139: 2.790799291 | K139: 2.130742642 | L139: 0.4981455937 | M139: 51.78554623 | N139: 45.54444496 | O139: 37.67994581 | P139: 29.21607875 | Q139: 14.61022352 | R139: 20.49351004 | S139: 1.331218035 | T139: 10.99444628 | U139: 12.98312799 | V139: 19.30878551 | W139: 57.90461924 | X139: 33.0971135 | Y139: 34.75734109 | Z139: 31.66673242 | AA139: 36.63273906 | AB139: 19.5860175 | AC139: 21.71334026 | AD139: 34.90481806 | AE139: 11.78561627 | AF139: 29.27176863 | AG139: 24.51557906 | AH139: N/A | BB139: Open defecation | BC139: N/A | BD139: N/A | BE139: N/A | BF139: N/A | BG139: N/A | BH139: N/A | BI139: N/A | BJ139: N/A | BK139: N/A | BL139: N/A | BM139: N/A | BN139: N/A | BO139: N/A | BP139: N/A | BQ139: N/A | BR139: N/A | BS139: N/A | BT139: N/A | BU139: N/A | BV139: N/A | BW139: N/A | BX139: N/A | BY139: N/A | BZ139: N/A | CA139: N/A | CB139: N/A | CC139: N/A | CD139: N/A | CE139: N/A | CF139: N/A | CG139: N/A | CH139: N/A
A140: Septic tank emptying practices | B140: Not emptied/treated and disposed in situ | C140: N/A | D140: N/A | E140: N/A | F140: N/A | G140: N/A | H140: N/A | I140: N/A | J140: N/A | K140: N/A | L140: N/A | M140: N/A | N140: N/A | O140: N/A | P140: N/A | Q140: N/A | R140: N/A | S140: N/A | T140: N/A | U140: N/A | V140: N/A | W140: N/A | X140: N/A | Y140: N/A | Z140: N/A | AA140: N/A | AB140: N/A | AC140: N/A | AD140: N/A | AE140: N/A | AF140: N/A | AG140: N/A | AH140: N/A | BA140: Septic tank emptying practices | BB140: Not emptied/treated and disposed in situ | BC140: N/A | BD140: N/A | BE140: N/A | BF140: N/A | BG140: N/A | BH140: N/A | BI140: N/A | BJ140: N/A | BK140: N/A | BL140: N/A | BM140: N/A | BN140: N/A | BO140: N/A | BP140: N/A | BQ140: N/A | BR140: N/A | BS140: N/A | BT140: N/A | BU140: N/A | BV140: N/A | BW140: N/A | BX140: N/A | BY140: N/A | BZ140: N/A | CA140: N/A | CB140: N/A | CC140: N/A | CD140: N/A | CE140: N/A | CF140: N/A | CG140: N/A | CH140: N/A
B141: Emptied and buried on site | C141: N/A | D141: N/A | E141: N/A | F141: N/A | G141: N/A | H141: N/A | I141: N/A | J141: N/A | K141: N/A | L141: N/A | M141: N/A | N141: N/A | O141: N/A | P141: N/A | Q141: N/A | R141: N/A | S141: N/A | T141: N/A | U141: N/A | V141: N/A | W141: N/A | X141: N/A | Y141: N/A | Z141: N/A | AA141: N/A | AB141: N/A | AC141: N/A | AD141: N/A | AE141: N/A | AF141: N/A | AG141: N/A | AH141: N/A | BB141: Emptied and buried on site | BC141: N/A | BD141: N/A | BE141: N/A | BF141: N/A | BG141: N/A | BH141: N/A | BI141: N/A | BJ141: N/A | BK141: N/A | BL141: N/A | BM141: N/A | BN141: N/A | BO141: N/A | BP141: N/A | BQ141: N/A | BR141: N/A | BS141: N/A | BT141: N/A | BU141: N/A | BV141: N/A | BW141: N/A | BX141: N/A | BY141: N/A | BZ141: N/A | CA141: N/A | CB141: N/A | CC141: N/A | CD141: N/A | CE141: N/A | CF141: N/A | CG141: N/A | CH141: N/A
B142: Emptied and discharged locally | C142: N/A | D142: N/A | E142: N/A | F142: N/A | G142: N/A | H142: N/A | I142: N/A | J142: N/A | K142: N/A | L142: N/A | M142: N/A | N142: N/A | O142: N/A | P142: N/A | Q142: N/A | R142: N/A | S142: N/A | T142: N/A | U142: N/A | V142: N/A | W142: N/A | X142: N/A | Y142: N/A | Z142: N/A | AA142: N/A | AB142: N/A | AC142: N/A | AD142: N/A | AE142: N/A | AF142: N/A | AG142: N/A | AH142: N/A | BB142: Emptied and discharged locally | BC142: N/A | BD142: N/A | BE142: N/A | BF142: N/A | BG142: N/A | BH142: N/A | BI142: N/A | BJ142: N/A | BK142: N/A | BL142: N/A | BM142: N/A | BN142: N/A | BO142: N/A | BP142: N/A | BQ142: N/A | BR142: N/A | BS142: N/A | BT142: N/A | BU142: N/A | BV142: N/A | BW142: N/A | BX142: N/A | BY142: N/A | BZ142: N/A | CA142: N/A | CB142: N/A | CC142: N/A | CD142: N/A | CE142: N/A | CF142: N/A | CG142: N/A | CH142: N/A
B143: Emptied and removed offsite | C143: N/A | D143: N/A | E143: N/A | F143: N/A | G143: N/A | H143: N/A | I143: N/A | J143: N/A | K143: N/A | L143: N/A | M143: N/A | N143: N/A | O143: N/A | P143: N/A | Q143: N/A | R143: N/A | S143: N/A | T143: N/A | U143: N/A | V143: N/A | W143: N/A | X143: N/A | Y143: N/A | Z143: N/A | AA143: N/A | AB143: N/A | AC143: N/A | AD143: N/A | AE143: N/A | AF143: N/A | AG143: N/A | AH143: N/A | BB143: Emptied and removed offsite | BC143: N/A | BD143: N/A | BE143: N/A | BF143: N/A | BG143: N/A | BH143: N/A | BI143: N/A | BJ143: N/A | BK143: N/A | BL143: N/A | BM143: N/A | BN143: N/A | BO143: N/A | BP143: N/A | BQ143: N/A | BR143: N/A | BS143: N/A | BT143: N/A | BU143: N/A | BV143: N/A | BW143: N/A | BX143: N/A | BY143: N/A | BZ143: N/A | CA143: N/A | CB143: N/A | CC143: N/A | CD143: N/A | CE143: N/A | CF143: N/A | CG143: N/A | CH143: N/A
A144: Latrine emptying practices | B144: Not emptied/treated and disposed in situ | C144: N/A | D144: N/A | E144: N/A | F144: N/A | G144: N/A | H144: N/A | I144: N/A | J144: N/A | K144: N/A | L144: N/A | M144: N/A | N144: N/A | O144: N/A | P144: N/A | Q144: N/A | R144: N/A | S144: N/A | T144: N/A | U144: N/A | V144: N/A | W144: N/A | X144: N/A | Y144: N/A | Z144: N/A | AA144: N/A | AB144: N/A | AC144: N/A | AD144: N/A | AE144: N/A | AF144: N/A | AG144: N/A | AH144: N/A | BA144: Latrine emptying practices | BB144: Not emptied/treated and disposed in situ | BC144: N/A | BD144: N/A | BE144: N/A | BF144: N/A | BG144: N/A | BH144: N/A | BI144: N/A | BJ144: N/A | BK144: N/A | BL144: N/A | BM144: N/A | BN144: N/A | BO144: N/A | BP144: N/A | BQ144: N/A | BR144: N/A | BS144: N/A | BT144: N/A | BU144: N/A | BV144: N/A | BW144: N/A | BX144: N/A | BY144: N/A | BZ144: N/A | CA144: N/A | CB144: N/A | CC144: N/A | CD144: N/A | CE144: N/A | CF144: N/A | CG144: N/A | CH144: N/A
B145: Emptied and buried on site | C145: N/A | D145: N/A | E145: N/A | F145: N/A | G145: N/A | H145: N/A | I145: N/A | J145: N/A | K145: N/A | L145: N/A | M145: N/A | N145: N/A | O145: N/A | P145: N/A | Q145: N/A | R145: N/A | S145: N/A | T145: N/A | U145: N/A | V145: N/A | W145: N/A | X145: N/A | Y145: N/A | Z145: N/A | AA145: N/A | AB145: N/A | AC145: N/A | AD145: N/A | AE145: N/A | AF145: N/A | AG145: N/A | AH145: N/A | BB145: Emptied and buried on site | BC145: N/A | BD145: N/A | BE145: N/A | BF145: N/A | BG145: N/A | BH145: N/A | BI145: N/A | BJ145: N/A | BK145: N/A | BL145: N/A | BM145: N/A | BN145: N/A | BO145: N/A | BP145: N/A | BQ145: N/A | BR145: N/A | BS145: N/A | BT145: N/A | BU145: N/A | BV145: N/A | BW145: N/A | BX145: N/A | BY145: N/A | BZ145: N/A | CA145: N/A | CB145: N/A | CC145: N/A | CD145: N/A | CE145: N/A | CF145: N/A | CG145: N/A | CH145: N/A
B146: Emptied and discharged locally | C146: N/A | D146: N/A | E146: N/A | F146: N/A | G146: N/A | H146: N/A | I146: N/A | J146: N/A | K146: N/A | L146: N/A | M146: N/A | N146: N/A | O146: N/A | P146: N/A | Q146: N/A | R146: N/A | S146: N/A | T146: N/A | U146: N/A | V146: N/A | W146: N/A | X146: N/A | Y146: N/A | Z146: N/A | AA146: N/A | AB146: N/A | AC146: N/A | AD146: N/A | AE146: N/A | AF146: N/A | AG146: N/A | AH146: N/A | BB146: Emptied and discharged locally | BC146: N/A | BD146: N/A | BE146: N/A | BF146: N/A | BG146: N/A | BH146: N/A | BI146: N/A | BJ146: N/A | BK146: N/A | BL146: N/A | BM146: N/A | BN146: N/A | BO146: N/A | BP146: N/A | BQ146: N/A | BR146: N/A | BS146: N/A | BT146: N/A | BU146: N/A | BV146: N/A | BW146: N/A | BX146: N/A | BY146: N/A | BZ146: N/A | CA146: N/A | CB146: N/A | CC146: N/A | CD146: N/A | CE146: N/A | CF146: N/A | CG146: N/A | CH146: N/A
B147: Emptied and removed offsite | C147: N/A | D147: N/A | E147: N/A | F147: N/A | G147: N/A | H147: N/A | I147: N/A | J147: N/A | K147: N/A | L147: N/A | M147: N/A | N147: N/A | O147: N/A | P147: N/A | Q147: N/A | R147: N/A | S147: N/A | T147: N/A | U147: N/A | V147: N/A | W147: N/A | X147: N/A | Y147: N/A | Z147: N/A | AA147: N/A | AB147: N/A | AC147: N/A | AD147: N/A | AE147: N/A | AF147: N/A | AG147: N/A | AH147: N/A | BB147: Emptied and removed offsite | BC147: N/A | BD147: N/A | BE147: N/A | BF147: N/A | BG147: N/A | BH147: N/A | BI147: N/A | BJ147: N/A | BK147: N/A | BL147: N/A | BM147: N/A | BN147: N/A | BO147: N/A | BP147: N/A | BQ147: N/A | BR147: N/A | BS147: N/A | BT147: N/A | BU147: N/A | BV147: N/A | BW147: N/A | BX147: N/A | BY147: N/A | BZ147: N/A | CA147: N/A | CB147: N/A | CC147: N/A | CD147: N/A | CE147: N/A | CF147: N/A | CG147: N/A | CH147: N/A
A148: Shared among improved sanitation facilities | B148: Yes | C148: 13.82961521 | D148: 12.24195199 | E148: 15.15871405 | F148: 23.31300339 | G148: 20.40135719 | H148: 22.22469171 | I148: 30.96672225 | J148: 28.37726152 | K148: 20.9253401 | L148: 17.02275744 | M148: 9.528349139 | N148: 11.70709435 | O148: 12.13783773 | P148: 16.30493611 | Q148: 18.99960929 | R148: 25.44147351 | S148: 29.52659249 | T148: 10.07771433 | U148: 16.50622941 | V148: 11.9379827 | W148: 10.8588602 | X148: 8.0544357 | Y148: 9.660567095 | Z148: 9.200535378 | AA148: 27.3461542 | AB148: 24.77283315 | AC148: 9.218887724 | AD148: 11.65536534 | AE148: 18.08686196 | AF148: 9.975529951 | AG148: 15.88251928 | AH148: N/A | BA148: Shared among improved sanitation facilities | BB148: Yes | BC148: N/A | BD148: N/A | BE148: N/A | BF148: N/A | BG148: N/A | BH148: N/A | BI148: N/A | BJ148: N/A | BK148: N/A | BL148: N/A | BM148: N/A | BN148: N/A | BO148: N/A | BP148: N/A | BQ148: N/A | BR148: N/A | BS148: N/A | BT148: N/A | BU148: N/A | BV148: N/A | BW148: N/A | BX148: N/A | BY148: N/A | BZ148: N/A | CA148: N/A | CB148: N/A | CC148: N/A | CD148: N/A | CE148: N/A | CF148: N/A | CG148: N/A | CH148: N/A
B149: No | C149: 22.93955461 | D149: 19.98657852 | E149: 28.46529633 | F149: 34.95940457 | G149: 51.58806047 | H149: 29.42940373 | I149: 27.94914907 | J149: 34.95045239 | K149: 48.7873873 | L149: 61.32532133 | M149: 19.44921864 | N149: 19.17918458 | O149: 23.37097521 | P149: 31.42104714 | Q149: 43.62098566 | R149: 22.73030991 | S149: 37.57011411 | T149: 54.5805287 | U149: 43.06764017 | V149: 45.46810554 | W149: 15.81619107 | X149: 15.19515142 | Y149: 26.69839403 | Z149: 38.39364644 | AA149: 32.45291371 | AB149: 33.45546351 | AC149: 16.29301443 | AD149: 26.18099043 | AE149: 58.40266442 | AF149: 45.57125243 | AG149: 22.23838003 | AH149: N/A | BB149: No | BC149: N/A | BD149: N/A | BE149: N/A | BF149: N/A | BG149: N/A | BH149: N/A | BI149: N/A | BJ149: N/A | BK149: N/A | BL149: N/A | BM149: N/A | BN149: N/A | BO149: N/A | BP149: N/A | BQ149: N/A | BR149: N/A | BS149: N/A | BT149: N/A | BU149: N/A | BV149: N/A | BW149: N/A | BX149: N/A | BY149: N/A | BZ149: N/A | CA149: N/A | CB149: N/A | CC149: N/A | CD149: N/A | CE149: N/A | CF149: N/A | CG149: N/A | CH149: N/A
B150: DK/missing | C150: 63.23083018 | D150: 67.77146949 | E150: 56.37598962 | F150: 41.72759204 | G150: 28.01058234 | H150: 48.34590456 | I150: 41.08412867 | J150: 36.67228609 | K150: 30.2872726 | L150: 21.65192123 | M150: 71.02243222 | N150: 69.11372108 | O150: 64.49118706 | P150: 52.27401675 | Q150: 37.37940504 | R150: 51.82821657 | S150: 32.9032934 | T150: 35.34175697 | U150: 40.42613042 | V150: 42.59391175 | W150: 73.32494873 | X150: 76.75041288 | Y150: 63.64103888 | Z150: 52.40581818 | AA150: 40.2009321 | AB150: 41.77170334 | AC150: 74.48809785 | AD150: 62.16364424 | AE150: 23.51047363 | AF150: 44.45321762 | AG150: 61.87910068 | AH150: N/A | BB150: DK/missing | BC150: N/A | BD150: N/A | BE150: N/A | BF150: N/A | BG150: N/A | BH150: N/A | BI150: N/A | BJ150: N/A | BK150: N/A | BL150: N/A | BM150: N/A | BN150: N/A | BO150: N/A | BP150: N/A | BQ150: N/A | BR150: N/A | BS150: N/A | BT150: N/A | BU150: N/A | BV150: N/A | BW150: N/A | BX150: N/A | BY150: N/A | BZ150: N/A | CA150: N/A | CB150: N/A | CC150: N/A | CD150: N/A | CE150: N/A | CF150: N/A | CG150: N/A | CH150: N/A
